{"text_format":"1","workbook":"xlsx","n_sheets":22,"sheets":["Forside","0.0","1.0","1.1","1.2","1.3","1.4","1.5","1.6","1.7","1.8","1.9","2.0","2.1","2.2","2.3","2.4","3.0","3.1","3.2","Uddannelsesoversigt","Reference"],"not_rendered":{"charts":0,"images":10,"macros":1,"external_links":0,"defined_names":25,"comments":0,"pivot_tables":0},"unopened":[],"bounds":{"document_bytes":16777216,"sheet_cells":100000,"rows_first":2000,"rows_last":500,"rows_between":2000,"halvings":0,"cell_chars":16384,"cell_head_chars":4096},"cells_cut":0,"cells_raw":0,"read":"whole","date_system":"1900"}

{"sheet":"Forside","index":0,"n_rows":32,"n_cols":15,"rows_kept":32,"cut":false,"hidden":false,"merged":[[8,1,8,3]]}
[]
[]
[]
[]
[]
[]
[]
[null,"Institutionsplan for (klik herunder for at anvende rullemenu til angivelse af institutionsnavn)"]
[null,"Københavns Universitet"]
[]
[]
[]
[]
[]
[null,null,null,null,null,null,null,null,null,null,null,null,"Til udfyldelse:","Til udfyldelse:","Status"]
[]
[null,null,null,null,null,null,null,null,null,null,null,"0.0","Overordnede overvejelser om opgaven","Beskrivelse",{"$f":"IF(LEN($B$9)=0,\n\"Vælg institution\",\nIF(INDEX(Opgave_Opslag[],MATCH(Forside!$B$9,Opgave_Opslag[Institution],0),LEFT(Forside!L17,1)+3)=TRUE,\nIF(INDEX(Opgaver_Løst[Løst],MATCH(L17,Opgaver_Løst[Navn],0))=TRUE,\"Løst\",\"Ikke udfyldt\"),\n\"Ej relevant\"\n))","v":"Løst"}]
[null,null,null,null,null,null,null,null,null,null,null,"1.1","Ledelsesmæssige overvejelser","Beskrivelse",{"$f":"IF(LEN($B$9)=0,\n\"Vælg institution\",\nIF(INDEX(Opgave_Opslag[],MATCH(Forside!$B$9,Opgave_Opslag[Institution],0),LEFT(Forside!L18,1)+3)=TRUE,\nIF(INDEX(Opgaver_Løst[Løst],MATCH(L18,Opgaver_Løst[Navn],0))=TRUE,\"Løst\",\"Ikke udfyldt\"),\n\"Ej relevant\"\n))","v":"Løst"}]
[null,null,null,null,null,null,null,null,null,null,null,"1.2","Antal pladser der flyttes ud","Tabel",{"$f":"IF(LEN($B$9)=0,\n\"Vælg institution\",\nIF(INDEX(Opgave_Opslag[],MATCH(Forside!$B$9,Opgave_Opslag[Institution],0),LEFT(Forside!L19,1)+3)=TRUE,\nIF(INDEX(Opgaver_Løst[Løst],MATCH(L19,Opgaver_Løst[Navn],0))=TRUE,\"Løst\",\"Ikke udfyldt\"),\n\"Ej relevant\"\n))","v":"Løst"}]
[null,null,null,null,null,null,null,null,null,null,null,"1.3","Antal pladser på nye udbud","Tabel",{"$f":"IF(LEN($B$9)=0,\n\"Vælg institution\",\nIF(INDEX(Opgave_Opslag[],MATCH(Forside!$B$9,Opgave_Opslag[Institution],0),LEFT(Forside!L20,1)+3)=TRUE,\nIF(INDEX(Opgaver_Løst[Løst],MATCH(L20,Opgaver_Løst[Navn],0))=TRUE,\"Løst\",\"Ikke udfyldt\"),\n\"Ej relevant\"\n))","v":"Ikke udfyldt"}]
[null,null,null,null,null,null,null,null,null,null,null,"1.4","Antal pladser der nedskaleres","Tabel",{"$f":"IF(LEN($B$9)=0,\n\"Vælg institution\",\nIF(INDEX(Opgave_Opslag[],MATCH(Forside!$B$9,Opgave_Opslag[Institution],0),LEFT(Forside!L21,1)+3)=TRUE,\nIF(INDEX(Opgaver_Løst[Løst],MATCH(L21,Opgaver_Løst[Navn],0))=TRUE,\"Løst\",\"Ikke udfyldt\"),\n\"Ej relevant\"\n))","v":"Løst"}]
[null,null,null,null,null,null,null,null,null,null,null,"1.5","Beskrivelse af regionale elementer","Beskrivelse",{"$f":"IF(LEN($B$9)=0,\n\"Vælg institution\",\nIF(INDEX(Opgave_Opslag[],MATCH(Forside!$B$9,Opgave_Opslag[Institution],0),LEFT(Forside!L22,1)+3)=TRUE,\nIF(INDEX(Opgaver_Løst[Løst],MATCH(L22,Opgaver_Løst[Navn],0))=TRUE,\"Løst\",\"Ikke udfyldt\"),\n\"Ej relevant\"\n))","v":"Løst"}]
[null,null,null,null,null,null,null,null,null,null,null,"1.6","Tabel med regionale elementer","Tabel",{"$f":"IF(LEN($B$9)=0,\n\"Vælg institution\",\nIF(INDEX(Opgave_Opslag[],MATCH(Forside!$B$9,Opgave_Opslag[Institution],0),LEFT(Forside!L23,1)+3)=TRUE,\nIF(INDEX(Opgaver_Løst[Løst],MATCH(L23,Opgaver_Løst[Navn],0))=TRUE,\"Løst\",\"Ikke udfyldt\"),\n\"Ej relevant\"\n))","v":"Løst"}]
[null,null,null,null,null,null,null,null,null,null,null,"1.7","Beskrivelse af særlige hensyn","Beskrivelse",{"$f":"IF(LEN($B$9)=0,\n\"Vælg institution\",\nIF(INDEX(Opgave_Opslag[],MATCH(Forside!$B$9,Opgave_Opslag[Institution],0),LEFT(Forside!L24,1)+3)=TRUE,\nIF(INDEX(Opgaver_Løst[Løst],MATCH(L24,Opgaver_Løst[Navn],0))=TRUE,\"Løst\",\"Ikke udfyldt\"),\n\"Ej relevant\"\n))","v":"Løst"}]
[null,null,null,null,null,null,null,null,null,null,null,"1.8","Tabel med særlige hensyn","Tabel",{"$f":"IF(LEN($B$9)=0,\n\"Vælg institution\",\nIF(INDEX(Opgave_Opslag[],MATCH(Forside!$B$9,Opgave_Opslag[Institution],0),LEFT(Forside!L25,1)+3)=TRUE,\nIF(INDEX(Opgaver_Løst[Løst],MATCH(L25,Opgaver_Løst[Navn],0))=TRUE,\"Løst\",\"Ikke udfyldt\"),\n\"Ej relevant\"\n))","v":"Løst"}]
[null,null,null,null,null,null,null,null,null,null,null,"1.9","Samarbejde med øvrige institutioner og/eller aktører","Beskrivelse",{"$f":"IF(LEN($B$9)=0,\n\"Vælg institution\",\nIF(INDEX(Opgave_Opslag[],MATCH(Forside!$B$9,Opgave_Opslag[Institution],0),LEFT(Forside!L26,1)+3)=TRUE,\nIF(INDEX(Opgaver_Løst[Løst],MATCH(L26,Opgaver_Løst[Navn],0))=TRUE,\"Løst\",\"Ikke udfyldt\"),\n\"Ej relevant\"\n))","v":"Løst"}]
[null,null,null,null,null,null,null,null,null,null,null,"2.1","Institutionens plan for nye og udflyttede velfærdspladser uden for de store byer frem mod 2030","Beskrivelse",{"$f":"IF(LEN($B$9)=0,\n\"Vælg institution\",\nIF(INDEX(Opgave_Opslag[],MATCH(Forside!$B$9,Opgave_Opslag[Institution],0),LEFT(Forside!L27,1)+3)=TRUE,\nIF(INDEX(Opgaver_Løst[Løst],MATCH(L27,Opgaver_Løst[Navn],0))=TRUE,\"Løst\",\"Ikke udfyldt\"),\n\"Ej relevant\"\n))","v":"Ej relevant"}]
[null,null,null,null,null,null,null,null,null,null,null,"2.2","Antal nye og/eller udflyttede velfærdspladser","Tabel",{"$f":"IF(LEN($B$9)=0,\n\"Vælg institution\",\nIF(INDEX(Opgave_Opslag[],MATCH(Forside!$B$9,Opgave_Opslag[Institution],0),LEFT(Forside!L28,1)+3)=TRUE,\nIF(INDEX(Opgaver_Løst[Løst],MATCH(L28,Opgaver_Løst[Navn],0))=TRUE,\"Løst\",\"Ikke udfyldt\"),\n\"Ej relevant\"\n))","v":"Ej relevant"}]
[null,null,null,null,null,null,null,null,null,null,null,"2.3","Overvejelser omkring praktikpladsbehovet","Beskrivelse",{"$f":"IF(LEN($B$9)=0,\n\"Vælg institution\",\nIF(INDEX(Opgave_Opslag[],MATCH(Forside!$B$9,Opgave_Opslag[Institution],0),LEFT(Forside!L29,1)+3)=TRUE,\nIF(INDEX(Opgaver_Løst[Løst],MATCH(L29,Opgaver_Løst[Navn],0))=TRUE,\"Løst\",\"Ikke udfyldt\"),\n\"Ej relevant\"\n))","v":"Ej relevant"}]
[null,null,null,null,null,null,null,null,null,null,null,"2.4","Samarbejde med øvrige institutioner og/eller aktører","Beskrivelse",{"$f":"IF(LEN($B$9)=0,\n\"Vælg institution\",\nIF(INDEX(Opgave_Opslag[],MATCH(Forside!$B$9,Opgave_Opslag[Institution],0),LEFT(Forside!L30,1)+3)=TRUE,\nIF(INDEX(Opgaver_Løst[Løst],MATCH(L30,Opgaver_Løst[Navn],0))=TRUE,\"Løst\",\"Ikke udfyldt\"),\n\"Ej relevant\"\n))","v":"Ej relevant"}]
[null,null,null,null,null,null,null,null,null,null,null,"3.1","Nye udbud","Beskrivelse",{"$f":"IF(LEN($B$9)=0,\n\"Vælg institution\",\nIF(INDEX(Opgave_Opslag[],MATCH(Forside!$B$9,Opgave_Opslag[Institution],0),LEFT(Forside!L31,1)+3)=TRUE,\nIF(INDEX(Opgaver_Løst[Løst],MATCH(L31,Opgaver_Løst[Navn],0))=TRUE,\"Løst\",\"Ikke udfyldt\"),\n\"Ej relevant\"\n))","v":"Ej relevant"}]
[null,null,null,null,null,null,null,null,null,null,null,"3.2","Planlagte samarbejder eller overvejelser derom","Beskrivelse",{"$f":"IF(LEN($B$9)=0,\n\"Vælg institution\",\nIF(INDEX(Opgave_Opslag[],MATCH(Forside!$B$9,Opgave_Opslag[Institution],0),LEFT(Forside!L32,1)+3)=TRUE,\nIF(INDEX(Opgaver_Løst[Løst],MATCH(L32,Opgaver_Løst[Navn],0))=TRUE,\"Løst\",\"Ikke udfyldt\"),\n\"Ej relevant\"\n))","v":"Ej relevant"}]

{"sheet":"0.0","index":1,"n_rows":39,"n_cols":16,"rows_kept":39,"cut":false,"hidden":false,"merged":[[2,9,7,15],[33,9,36,15],[38,9,41,15]]}
[]
[]
[null,null,null,null,null,null,null,null,null,"OVERSIGT"]
[]
[]
[]
[]
[]
[null,null,null,null,null,null,null,null,null,{"$f":"IF(RIGHT(CELL(\"filnavn\"),3)=K9,_xlfn.UNICHAR(159),\"\")","v":""},{"$f":"INDEX(Links[ARKNAVN],ROW(K9)-ROW($K$9)+1)","v":"0.0"},{"$f":"HYPERLINK(INDEX(Links[LINK],MATCH(K9,Links[ARKNAVN],0)),INDEX(Links[OPGAVE],MATCH(K9,Links[ARKNAVN],0)))","v":"Overordnede overvejelser om opgaven"},null,null,null,{"$f":"IFERROR(INDEX(Forside!$O$17:$O$34,MATCH($K$9:$K$27,Forside!$L$17:$L$34,0)),\"\")","v":"Løst"}]
[null,null,null,null,null,null,null,null,null,{"$f":"IF(RIGHT(CELL(\"filnavn\"),3)=K10,_xlfn.UNICHAR(159),\"\")","v":""},{"$f":"INDEX(Links[ARKNAVN],ROW(K10)-ROW($K$9)+1)","v":"1.0"},{"$f":"HYPERLINK(INDEX(Links[LINK],MATCH(K10,Links[ARKNAVN],0)),INDEX(Links[OPGAVE],MATCH(K10,Links[ARKNAVN],0)))","v":"Indledning sektion 1"},null,null,null,{"$f":"IFERROR(INDEX(Forside!$O$17:$O$34,MATCH($K$9:$K$27,Forside!$L$17:$L$34,0)),\"\")","v":""}]
[null,null,null,null,null,null,null,null,null,{"$f":"IF(RIGHT(CELL(\"filnavn\"),3)=K11,_xlfn.UNICHAR(159),\"\")","v":""},{"$f":"INDEX(Links[ARKNAVN],ROW(K11)-ROW($K$9)+1)","v":"1.1"},{"$f":"HYPERLINK(INDEX(Links[LINK],MATCH(K11,Links[ARKNAVN],0)),INDEX(Links[OPGAVE],MATCH(K11,Links[ARKNAVN],0)))","v":"Ledelsesmæssige overvejelser"},null,null,null,{"$f":"IFERROR(INDEX(Forside!$O$17:$O$34,MATCH($K$9:$K$27,Forside!$L$17:$L$34,0)),\"\")","v":"Løst"}]
[null,null,null,null,null,null,null,null,null,"",{"$f":"INDEX(Links[ARKNAVN],ROW(K12)-ROW($K$9)+1)","v":"1.2"},{"$f":"HYPERLINK(INDEX(Links[LINK],MATCH(K12,Links[ARKNAVN],0)),INDEX(Links[OPGAVE],MATCH(K12,Links[ARKNAVN],0)))","v":"Antal pladser der flyttes ud"},null,null,null,{"$f":"IFERROR(INDEX(Forside!$O$17:$O$34,MATCH($K$9:$K$27,Forside!$L$17:$L$34,0)),\"\")","v":"Løst"}]
[null,null,null,null,null,null,null,null,null,"",{"$f":"INDEX(Links[ARKNAVN],ROW(K13)-ROW($K$9)+1)","v":"1.3"},{"$f":"HYPERLINK(INDEX(Links[LINK],MATCH(K13,Links[ARKNAVN],0)),INDEX(Links[OPGAVE],MATCH(K13,Links[ARKNAVN],0)))","v":"Antal pladser på nye udbud"},null,null,null,{"$f":"IFERROR(INDEX(Forside!$O$17:$O$34,MATCH($K$9:$K$27,Forside!$L$17:$L$34,0)),\"\")","v":"Ikke udfyldt"}]
[null,null,null,null,null,null,null,null,null,"",{"$f":"INDEX(Links[ARKNAVN],ROW(K14)-ROW($K$9)+1)","v":"1.4"},{"$f":"HYPERLINK(INDEX(Links[LINK],MATCH(K14,Links[ARKNAVN],0)),INDEX(Links[OPGAVE],MATCH(K14,Links[ARKNAVN],0)))","v":"Antal pladser der nedskaleres"},null,null,null,{"$f":"IFERROR(INDEX(Forside!$O$17:$O$34,MATCH($K$9:$K$27,Forside!$L$17:$L$34,0)),\"\")","v":"Løst"}]
[null,null,null,null,null,null,null,null,null,"",{"$f":"INDEX(Links[ARKNAVN],ROW(K15)-ROW($K$9)+1)","v":"1.5"},{"$f":"HYPERLINK(INDEX(Links[LINK],MATCH(K15,Links[ARKNAVN],0)),INDEX(Links[OPGAVE],MATCH(K15,Links[ARKNAVN],0)))","v":"Beskrivelse af regionale elementer"},null,null,null,{"$f":"IFERROR(INDEX(Forside!$O$17:$O$34,MATCH($K$9:$K$27,Forside!$L$17:$L$34,0)),\"\")","v":"Løst"}]
[null,null,null,null,null,null,null,null,null,"",{"$f":"INDEX(Links[ARKNAVN],ROW(K16)-ROW($K$9)+1)","v":"1.6"},{"$f":"HYPERLINK(INDEX(Links[LINK],MATCH(K16,Links[ARKNAVN],0)),INDEX(Links[OPGAVE],MATCH(K16,Links[ARKNAVN],0)))","v":"Tabel med regionale elementer"},null,null,null,{"$f":"IFERROR(INDEX(Forside!$O$17:$O$34,MATCH($K$9:$K$27,Forside!$L$17:$L$34,0)),\"\")","v":"Løst"}]
[null,null,null,null,null,null,null,null,null,"",{"$f":"INDEX(Links[ARKNAVN],ROW(K17)-ROW($K$9)+1)","v":"1.7"},{"$f":"HYPERLINK(INDEX(Links[LINK],MATCH(K17,Links[ARKNAVN],0)),INDEX(Links[OPGAVE],MATCH(K17,Links[ARKNAVN],0)))","v":"Beskrivelse af særlige hensyn"},null,null,null,{"$f":"IFERROR(INDEX(Forside!$O$17:$O$34,MATCH($K$9:$K$27,Forside!$L$17:$L$34,0)),\"\")","v":"Løst"}]
[null,null,null,null,null,null,null,null,null,"",{"$f":"INDEX(Links[ARKNAVN],ROW(K18)-ROW($K$9)+1)","v":"1.8"},{"$f":"HYPERLINK(INDEX(Links[LINK],MATCH(K18,Links[ARKNAVN],0)),INDEX(Links[OPGAVE],MATCH(K18,Links[ARKNAVN],0)))","v":"Tabel med særlige hensyn"},null,null,null,{"$f":"IFERROR(INDEX(Forside!$O$17:$O$34,MATCH($K$9:$K$27,Forside!$L$17:$L$34,0)),\"\")","v":"Løst"}]
[null,null,null,null,null,null,null,null,null,"",{"$f":"INDEX(Links[ARKNAVN],ROW(K19)-ROW($K$9)+1)","v":"1.9"},{"$f":"HYPERLINK(INDEX(Links[LINK],MATCH(K19,Links[ARKNAVN],0)),INDEX(Links[OPGAVE],MATCH(K19,Links[ARKNAVN],0)))","v":"Samarbejde med øvrige institutioner og/eller aktører"},null,null,null,{"$f":"IFERROR(INDEX(Forside!$O$17:$O$34,MATCH($K$9:$K$27,Forside!$L$17:$L$34,0)),\"\")","v":"Løst"}]
[null,null,null,null,null,null,null,null,null,"",{"$f":"INDEX(Links[ARKNAVN],ROW(K20)-ROW($K$9)+1)","v":"2.0"},{"$f":"HYPERLINK(INDEX(Links[LINK],MATCH(K20,Links[ARKNAVN],0)),INDEX(Links[OPGAVE],MATCH(K20,Links[ARKNAVN],0)))","v":"Indledning sektion 2"},null,null,null,{"$f":"IFERROR(INDEX(Forside!$O$17:$O$34,MATCH($K$9:$K$27,Forside!$L$17:$L$34,0)),\"\")","v":""}]
[null,null,null,null,null,null,null,null,null,"",{"$f":"INDEX(Links[ARKNAVN],ROW(K21)-ROW($K$9)+1)","v":"2.1"},{"$f":"HYPERLINK(INDEX(Links[LINK],MATCH(K21,Links[ARKNAVN],0)),INDEX(Links[OPGAVE],MATCH(K21,Links[ARKNAVN],0)))","v":"Plan for nye/udflyttede velfærdspladser"},null,null,null,{"$f":"IFERROR(INDEX(Forside!$O$17:$O$34,MATCH($K$9:$K$27,Forside!$L$17:$L$34,0)),\"\")","v":"Ej relevant"}]
[null,null,null,null,null,null,null,null,null,"",{"$f":"INDEX(Links[ARKNAVN],ROW(K22)-ROW($K$9)+1)","v":"2.2"},{"$f":"HYPERLINK(INDEX(Links[LINK],MATCH(K22,Links[ARKNAVN],0)),INDEX(Links[OPGAVE],MATCH(K22,Links[ARKNAVN],0)))","v":"Antal nye og/eller udflyttede velfærdspladser"},null,null,null,{"$f":"IFERROR(INDEX(Forside!$O$17:$O$34,MATCH($K$9:$K$27,Forside!$L$17:$L$34,0)),\"\")","v":"Ej relevant"}]
[null,null,null,null,null,null,null,null,null,"",{"$f":"INDEX(Links[ARKNAVN],ROW(K23)-ROW($K$9)+1)","v":"2.3"},{"$f":"HYPERLINK(INDEX(Links[LINK],MATCH(K23,Links[ARKNAVN],0)),INDEX(Links[OPGAVE],MATCH(K23,Links[ARKNAVN],0)))","v":"Overvejelser omkring praktikpladsbehovet"},null,null,null,{"$f":"IFERROR(INDEX(Forside!$O$17:$O$34,MATCH($K$9:$K$27,Forside!$L$17:$L$34,0)),\"\")","v":"Ej relevant"}]
[null,null,null,null,null,null,null,null,null,"",{"$f":"INDEX(Links[ARKNAVN],ROW(K24)-ROW($K$9)+1)","v":"2.4"},{"$f":"HYPERLINK(INDEX(Links[LINK],MATCH(K24,Links[ARKNAVN],0)),INDEX(Links[OPGAVE],MATCH(K24,Links[ARKNAVN],0)))","v":"Samarbejde med øvrige institutioner og/eller aktører"},null,null,null,{"$f":"IFERROR(INDEX(Forside!$O$17:$O$34,MATCH($K$9:$K$27,Forside!$L$17:$L$34,0)),\"\")","v":"Ej relevant"}]
[null,null,null,null,null,null,null,null,null,"",{"$f":"INDEX(Links[ARKNAVN],ROW(K25)-ROW($K$9)+1)","v":"3.0"},{"$f":"HYPERLINK(INDEX(Links[LINK],MATCH(K25,Links[ARKNAVN],0)),INDEX(Links[OPGAVE],MATCH(K25,Links[ARKNAVN],0)))","v":"Indledning sektion 3"},null,null,null,{"$f":"IFERROR(INDEX(Forside!$O$17:$O$34,MATCH($K$9:$K$27,Forside!$L$17:$L$34,0)),\"\")","v":""}]
[null,null,null,null,null,null,null,null,null,"",{"$f":"INDEX(Links[ARKNAVN],ROW(K26)-ROW($K$9)+1)","v":"3.1"},{"$f":"HYPERLINK(INDEX(Links[LINK],MATCH(K26,Links[ARKNAVN],0)),INDEX(Links[OPGAVE],MATCH(K26,Links[ARKNAVN],0)))","v":"Nye udbud"},null,null,null,{"$f":"IFERROR(INDEX(Forside!$O$17:$O$34,MATCH($K$9:$K$27,Forside!$L$17:$L$34,0)),\"\")","v":"Ej relevant"}]
[null,null,null,null,null,null,null,null,null,null,{"$f":"INDEX(Links[ARKNAVN],ROW(K27)-ROW($K$9)+1)","v":"3.2"},{"$f":"HYPERLINK(INDEX(Links[LINK],MATCH(K27,Links[ARKNAVN],0)),INDEX(Links[OPGAVE],MATCH(K27,Links[ARKNAVN],0)))","v":"Planlagte samarbejder eller overvejelser derom"},null,null,null,{"$f":"IFERROR(INDEX(Forside!$O$17:$O$34,MATCH($K$9:$K$27,Forside!$L$17:$L$34,0)),\"\")","v":"Ej relevant"}]
[]
[]
[]
[]
[]
[]
[null,null,null,null,null,null,null,null,null,"FORSIDE"]
[]
[]
[]
[]
[null,null,null,null,null,null,null,null,null,{"$f":"HYPERLINK(INDEX(Links[LINK],MATCH(RIGHT(CELL(\"filnavn\"),3),Links[ARKNAVN],0)+1),_xlfn.UNICHAR(232))","v":{"$error":"#N/A"}}]

{"sheet":"1.0","index":2,"n_rows":40,"n_cols":16,"rows_kept":40,"cut":false,"hidden":false,"merged":[[2,9,7,15],[29,9,32,15],[34,9,37,15],[39,9,42,15]]}
[]
[]
[null,null,null,null,null,null,null,null,null,"OVERSIGT"]
[]
[]
[]
[]
[]
[null,null,null,null,null,null,null,null,null,{"$f":"IF(RIGHT(CELL(\"filnavn\"),3)=K9,_xlfn.UNICHAR(159),\"\")","v":""},{"$f":"INDEX(Links[ARKNAVN],ROW(K9)-ROW($K$9)+1)","v":"0.0"},{"$f":"HYPERLINK(INDEX(Links[LINK],MATCH(K9,Links[ARKNAVN],0)),INDEX(Links[OPGAVE],MATCH(K9,Links[ARKNAVN],0)))","v":"Overordnede overvejelser om opgaven"},null,null,null,{"$f":"IFERROR(INDEX(Forside!$O$17:$O$34,MATCH($K$9:$K$27,Forside!$L$17:$L$34,0)),\"\")","v":"Løst"}]
[null,null,null,null,null,null,null,null,null,{"$f":"IF(RIGHT(CELL(\"filnavn\"),3)=K10,_xlfn.UNICHAR(159),\"\")","v":""},{"$f":"INDEX(Links[ARKNAVN],ROW(K10)-ROW($K$9)+1)","v":"1.0"},{"$f":"HYPERLINK(INDEX(Links[LINK],MATCH(K10,Links[ARKNAVN],0)),INDEX(Links[OPGAVE],MATCH(K10,Links[ARKNAVN],0)))","v":"Indledning sektion 1"},null,null,null,{"$f":"IFERROR(INDEX(Forside!$O$17:$O$34,MATCH($K$9:$K$27,Forside!$L$17:$L$34,0)),\"\")","v":""}]
[null,null,null,null,null,null,null,null,null,"",{"$f":"INDEX(Links[ARKNAVN],ROW(K11)-ROW($K$9)+1)","v":"1.1"},{"$f":"HYPERLINK(INDEX(Links[LINK],MATCH(K11,Links[ARKNAVN],0)),INDEX(Links[OPGAVE],MATCH(K11,Links[ARKNAVN],0)))","v":"Ledelsesmæssige overvejelser"},null,null,null,{"$f":"IFERROR(INDEX(Forside!$O$17:$O$34,MATCH($K$9:$K$27,Forside!$L$17:$L$34,0)),\"\")","v":"Løst"}]
[null,null,null,null,null,null,null,null,null,"",{"$f":"INDEX(Links[ARKNAVN],ROW(K12)-ROW($K$9)+1)","v":"1.2"},{"$f":"HYPERLINK(INDEX(Links[LINK],MATCH(K12,Links[ARKNAVN],0)),INDEX(Links[OPGAVE],MATCH(K12,Links[ARKNAVN],0)))","v":"Antal pladser der flyttes ud"},null,null,null,{"$f":"IFERROR(INDEX(Forside!$O$17:$O$34,MATCH($K$9:$K$27,Forside!$L$17:$L$34,0)),\"\")","v":"Løst"}]
[null,null,null,null,null,null,null,null,null,"",{"$f":"INDEX(Links[ARKNAVN],ROW(K13)-ROW($K$9)+1)","v":"1.3"},{"$f":"HYPERLINK(INDEX(Links[LINK],MATCH(K13,Links[ARKNAVN],0)),INDEX(Links[OPGAVE],MATCH(K13,Links[ARKNAVN],0)))","v":"Antal pladser på nye udbud"},null,null,null,{"$f":"IFERROR(INDEX(Forside!$O$17:$O$34,MATCH($K$9:$K$27,Forside!$L$17:$L$34,0)),\"\")","v":"Ikke udfyldt"}]
[null,null,null,null,null,null,null,null,null,"",{"$f":"INDEX(Links[ARKNAVN],ROW(K14)-ROW($K$9)+1)","v":"1.4"},{"$f":"HYPERLINK(INDEX(Links[LINK],MATCH(K14,Links[ARKNAVN],0)),INDEX(Links[OPGAVE],MATCH(K14,Links[ARKNAVN],0)))","v":"Antal pladser der nedskaleres"},null,null,null,{"$f":"IFERROR(INDEX(Forside!$O$17:$O$34,MATCH($K$9:$K$27,Forside!$L$17:$L$34,0)),\"\")","v":"Løst"}]
[null,null,null,null,null,null,null,null,null,"",{"$f":"INDEX(Links[ARKNAVN],ROW(K15)-ROW($K$9)+1)","v":"1.5"},{"$f":"HYPERLINK(INDEX(Links[LINK],MATCH(K15,Links[ARKNAVN],0)),INDEX(Links[OPGAVE],MATCH(K15,Links[ARKNAVN],0)))","v":"Beskrivelse af regionale elementer"},null,null,null,{"$f":"IFERROR(INDEX(Forside!$O$17:$O$34,MATCH($K$9:$K$27,Forside!$L$17:$L$34,0)),\"\")","v":"Løst"}]
[null,null,null,null,null,null,null,null,null,"",{"$f":"INDEX(Links[ARKNAVN],ROW(K16)-ROW($K$9)+1)","v":"1.6"},{"$f":"HYPERLINK(INDEX(Links[LINK],MATCH(K16,Links[ARKNAVN],0)),INDEX(Links[OPGAVE],MATCH(K16,Links[ARKNAVN],0)))","v":"Tabel med regionale elementer"},null,null,null,{"$f":"IFERROR(INDEX(Forside!$O$17:$O$34,MATCH($K$9:$K$27,Forside!$L$17:$L$34,0)),\"\")","v":"Løst"}]
[null,null,null,null,null,null,null,null,null,"",{"$f":"INDEX(Links[ARKNAVN],ROW(K17)-ROW($K$9)+1)","v":"1.7"},{"$f":"HYPERLINK(INDEX(Links[LINK],MATCH(K17,Links[ARKNAVN],0)),INDEX(Links[OPGAVE],MATCH(K17,Links[ARKNAVN],0)))","v":"Beskrivelse af særlige hensyn"},null,null,null,{"$f":"IFERROR(INDEX(Forside!$O$17:$O$34,MATCH($K$9:$K$27,Forside!$L$17:$L$34,0)),\"\")","v":"Løst"}]
[null,null,null,null,null,null,null,null,null,"",{"$f":"INDEX(Links[ARKNAVN],ROW(K18)-ROW($K$9)+1)","v":"1.8"},{"$f":"HYPERLINK(INDEX(Links[LINK],MATCH(K18,Links[ARKNAVN],0)),INDEX(Links[OPGAVE],MATCH(K18,Links[ARKNAVN],0)))","v":"Tabel med særlige hensyn"},null,null,null,{"$f":"IFERROR(INDEX(Forside!$O$17:$O$34,MATCH($K$9:$K$27,Forside!$L$17:$L$34,0)),\"\")","v":"Løst"}]
[null,null,null,null,null,null,null,null,null,"",{"$f":"INDEX(Links[ARKNAVN],ROW(K19)-ROW($K$9)+1)","v":"1.9"},{"$f":"HYPERLINK(INDEX(Links[LINK],MATCH(K19,Links[ARKNAVN],0)),INDEX(Links[OPGAVE],MATCH(K19,Links[ARKNAVN],0)))","v":"Samarbejde med øvrige institutioner og/eller aktører"},null,null,null,{"$f":"IFERROR(INDEX(Forside!$O$17:$O$34,MATCH($K$9:$K$27,Forside!$L$17:$L$34,0)),\"\")","v":"Løst"}]
[null,null,null,null,null,null,null,null,null,"",{"$f":"INDEX(Links[ARKNAVN],ROW(K20)-ROW($K$9)+1)","v":"2.0"},{"$f":"HYPERLINK(INDEX(Links[LINK],MATCH(K20,Links[ARKNAVN],0)),INDEX(Links[OPGAVE],MATCH(K20,Links[ARKNAVN],0)))","v":"Indledning sektion 2"},null,null,null,{"$f":"IFERROR(INDEX(Forside!$O$17:$O$34,MATCH($K$9:$K$27,Forside!$L$17:$L$34,0)),\"\")","v":""}]
[null,null,null,null,null,null,null,null,null,"",{"$f":"INDEX(Links[ARKNAVN],ROW(K21)-ROW($K$9)+1)","v":"2.1"},{"$f":"HYPERLINK(INDEX(Links[LINK],MATCH(K21,Links[ARKNAVN],0)),INDEX(Links[OPGAVE],MATCH(K21,Links[ARKNAVN],0)))","v":"Plan for nye/udflyttede velfærdspladser"},null,null,null,{"$f":"IFERROR(INDEX(Forside!$O$17:$O$34,MATCH($K$9:$K$27,Forside!$L$17:$L$34,0)),\"\")","v":"Ej relevant"}]
[null,null,null,null,null,null,null,null,null,"",{"$f":"INDEX(Links[ARKNAVN],ROW(K22)-ROW($K$9)+1)","v":"2.2"},{"$f":"HYPERLINK(INDEX(Links[LINK],MATCH(K22,Links[ARKNAVN],0)),INDEX(Links[OPGAVE],MATCH(K22,Links[ARKNAVN],0)))","v":"Antal nye og/eller udflyttede velfærdspladser"},null,null,null,{"$f":"IFERROR(INDEX(Forside!$O$17:$O$34,MATCH($K$9:$K$27,Forside!$L$17:$L$34,0)),\"\")","v":"Ej relevant"}]
[null,null,null,null,null,null,null,null,null,"",{"$f":"INDEX(Links[ARKNAVN],ROW(K23)-ROW($K$9)+1)","v":"2.3"},{"$f":"HYPERLINK(INDEX(Links[LINK],MATCH(K23,Links[ARKNAVN],0)),INDEX(Links[OPGAVE],MATCH(K23,Links[ARKNAVN],0)))","v":"Overvejelser omkring praktikpladsbehovet"},null,null,null,{"$f":"IFERROR(INDEX(Forside!$O$17:$O$34,MATCH($K$9:$K$27,Forside!$L$17:$L$34,0)),\"\")","v":"Ej relevant"}]
[null,null,null,null,null,null,null,null,null,"",{"$f":"INDEX(Links[ARKNAVN],ROW(K24)-ROW($K$9)+1)","v":"2.4"},{"$f":"HYPERLINK(INDEX(Links[LINK],MATCH(K24,Links[ARKNAVN],0)),INDEX(Links[OPGAVE],MATCH(K24,Links[ARKNAVN],0)))","v":"Samarbejde med øvrige institutioner og/eller aktører"},null,null,null,{"$f":"IFERROR(INDEX(Forside!$O$17:$O$34,MATCH($K$9:$K$27,Forside!$L$17:$L$34,0)),\"\")","v":"Ej relevant"}]
[null,null,null,null,null,null,null,null,null,"",{"$f":"INDEX(Links[ARKNAVN],ROW(K25)-ROW($K$9)+1)","v":"3.0"},{"$f":"HYPERLINK(INDEX(Links[LINK],MATCH(K25,Links[ARKNAVN],0)),INDEX(Links[OPGAVE],MATCH(K25,Links[ARKNAVN],0)))","v":"Indledning sektion 3"},null,null,null,{"$f":"IFERROR(INDEX(Forside!$O$17:$O$34,MATCH($K$9:$K$27,Forside!$L$17:$L$34,0)),\"\")","v":""}]
[null,null,null,null,null,null,null,null,null,"",{"$f":"INDEX(Links[ARKNAVN],ROW(K26)-ROW($K$9)+1)","v":"3.1"},{"$f":"HYPERLINK(INDEX(Links[LINK],MATCH(K26,Links[ARKNAVN],0)),INDEX(Links[OPGAVE],MATCH(K26,Links[ARKNAVN],0)))","v":"Nye udbud"},null,null,null,{"$f":"IFERROR(INDEX(Forside!$O$17:$O$34,MATCH($K$9:$K$27,Forside!$L$17:$L$34,0)),\"\")","v":"Ej relevant"}]
[null,null,null,null,null,null,null,null,null,null,{"$f":"INDEX(Links[ARKNAVN],ROW(K27)-ROW($K$9)+1)","v":"3.2"},{"$f":"HYPERLINK(INDEX(Links[LINK],MATCH(K27,Links[ARKNAVN],0)),INDEX(Links[OPGAVE],MATCH(K27,Links[ARKNAVN],0)))","v":"Planlagte samarbejder eller overvejelser derom"},null,null,null,{"$f":"IFERROR(INDEX(Forside!$O$17:$O$34,MATCH($K$9:$K$27,Forside!$L$17:$L$34,0)),\"\")","v":"Ej relevant"}]
[]
[]
[null,null,null,null,null,null,null,null,null,"FORSIDE"]
[]
[]
[]
[]
[null,null,null,null,null,null,null,null,null,{"$f":"HYPERLINK(INDEX(Links[LINK],MATCH(RIGHT(CELL(\"filnavn\"),3),Links[ARKNAVN],0)-1),_xlfn.UNICHAR(231))","v":{"$error":"#N/A"}}]
[]
[]
[]
[]
[null,null,null,null,null,null,null,null,null,{"$f":"HYPERLINK(INDEX(Links[LINK],MATCH(RIGHT(CELL(\"filnavn\"),3),Links[ARKNAVN],0)+1),_xlfn.UNICHAR(232))","v":{"$error":"#N/A"}}]

{"sheet":"1.1","index":3,"n_rows":40,"n_cols":16,"rows_kept":40,"cut":false,"hidden":false,"merged":[[2,9,7,15],[29,9,32,15],[34,9,37,15],[39,9,42,15]]}
[]
[]
[null,null,null,null,null,null,null,null,null,"OVERSIGT"]
[]
[]
[]
[]
[]
[null,null,null,null,null,null,null,null,null,{"$f":"IF(RIGHT(CELL(\"filnavn\"),3)=K9,_xlfn.UNICHAR(159),\"\")","v":""},{"$f":"INDEX(Links[ARKNAVN],ROW(K9)-ROW($K$9)+1)","v":"0.0"},{"$f":"HYPERLINK(INDEX(Links[LINK],MATCH(K9,Links[ARKNAVN],0)),INDEX(Links[OPGAVE],MATCH(K9,Links[ARKNAVN],0)))","v":"Overordnede overvejelser om opgaven"},null,null,null,{"$f":"IFERROR(INDEX(Forside!$O$17:$O$34,MATCH($K$9:$K$27,Forside!$L$17:$L$34,0)),\"\")","v":"Løst"}]
[null,null,null,null,null,null,null,null,null,{"$f":"IF(RIGHT(CELL(\"filnavn\"),3)=K10,_xlfn.UNICHAR(159),\"\")","v":""},{"$f":"INDEX(Links[ARKNAVN],ROW(K10)-ROW($K$9)+1)","v":"1.0"},{"$f":"HYPERLINK(INDEX(Links[LINK],MATCH(K10,Links[ARKNAVN],0)),INDEX(Links[OPGAVE],MATCH(K10,Links[ARKNAVN],0)))","v":"Indledning sektion 1"},null,null,null,{"$f":"IFERROR(INDEX(Forside!$O$17:$O$34,MATCH($K$9:$K$27,Forside!$L$17:$L$34,0)),\"\")","v":""}]
[null,null,null,null,null,null,null,null,null,"",{"$f":"INDEX(Links[ARKNAVN],ROW(K11)-ROW($K$9)+1)","v":"1.1"},{"$f":"HYPERLINK(INDEX(Links[LINK],MATCH(K11,Links[ARKNAVN],0)),INDEX(Links[OPGAVE],MATCH(K11,Links[ARKNAVN],0)))","v":"Ledelsesmæssige overvejelser"},null,null,null,{"$f":"IFERROR(INDEX(Forside!$O$17:$O$34,MATCH($K$9:$K$27,Forside!$L$17:$L$34,0)),\"\")","v":"Løst"}]
[null,null,null,null,null,null,null,null,null,"",{"$f":"INDEX(Links[ARKNAVN],ROW(K12)-ROW($K$9)+1)","v":"1.2"},{"$f":"HYPERLINK(INDEX(Links[LINK],MATCH(K12,Links[ARKNAVN],0)),INDEX(Links[OPGAVE],MATCH(K12,Links[ARKNAVN],0)))","v":"Antal pladser der flyttes ud"},null,null,null,{"$f":"IFERROR(INDEX(Forside!$O$17:$O$34,MATCH($K$9:$K$27,Forside!$L$17:$L$34,0)),\"\")","v":"Løst"}]
[null,null,null,null,null,null,null,null,null,"",{"$f":"INDEX(Links[ARKNAVN],ROW(K13)-ROW($K$9)+1)","v":"1.3"},{"$f":"HYPERLINK(INDEX(Links[LINK],MATCH(K13,Links[ARKNAVN],0)),INDEX(Links[OPGAVE],MATCH(K13,Links[ARKNAVN],0)))","v":"Antal pladser på nye udbud"},null,null,null,{"$f":"IFERROR(INDEX(Forside!$O$17:$O$34,MATCH($K$9:$K$27,Forside!$L$17:$L$34,0)),\"\")","v":"Ikke udfyldt"}]
[null,null,null,null,null,null,null,null,null,"",{"$f":"INDEX(Links[ARKNAVN],ROW(K14)-ROW($K$9)+1)","v":"1.4"},{"$f":"HYPERLINK(INDEX(Links[LINK],MATCH(K14,Links[ARKNAVN],0)),INDEX(Links[OPGAVE],MATCH(K14,Links[ARKNAVN],0)))","v":"Antal pladser der nedskaleres"},null,null,null,{"$f":"IFERROR(INDEX(Forside!$O$17:$O$34,MATCH($K$9:$K$27,Forside!$L$17:$L$34,0)),\"\")","v":"Løst"}]
[null,null,null,null,null,null,null,null,null,"",{"$f":"INDEX(Links[ARKNAVN],ROW(K15)-ROW($K$9)+1)","v":"1.5"},{"$f":"HYPERLINK(INDEX(Links[LINK],MATCH(K15,Links[ARKNAVN],0)),INDEX(Links[OPGAVE],MATCH(K15,Links[ARKNAVN],0)))","v":"Beskrivelse af regionale elementer"},null,null,null,{"$f":"IFERROR(INDEX(Forside!$O$17:$O$34,MATCH($K$9:$K$27,Forside!$L$17:$L$34,0)),\"\")","v":"Løst"}]
[null,null,null,null,null,null,null,null,null,"",{"$f":"INDEX(Links[ARKNAVN],ROW(K16)-ROW($K$9)+1)","v":"1.6"},{"$f":"HYPERLINK(INDEX(Links[LINK],MATCH(K16,Links[ARKNAVN],0)),INDEX(Links[OPGAVE],MATCH(K16,Links[ARKNAVN],0)))","v":"Tabel med regionale elementer"},null,null,null,{"$f":"IFERROR(INDEX(Forside!$O$17:$O$34,MATCH($K$9:$K$27,Forside!$L$17:$L$34,0)),\"\")","v":"Løst"}]
[null,null,null,null,null,null,null,null,null,"",{"$f":"INDEX(Links[ARKNAVN],ROW(K17)-ROW($K$9)+1)","v":"1.7"},{"$f":"HYPERLINK(INDEX(Links[LINK],MATCH(K17,Links[ARKNAVN],0)),INDEX(Links[OPGAVE],MATCH(K17,Links[ARKNAVN],0)))","v":"Beskrivelse af særlige hensyn"},null,null,null,{"$f":"IFERROR(INDEX(Forside!$O$17:$O$34,MATCH($K$9:$K$27,Forside!$L$17:$L$34,0)),\"\")","v":"Løst"}]
[null,null,null,null,null,null,null,null,null,"",{"$f":"INDEX(Links[ARKNAVN],ROW(K18)-ROW($K$9)+1)","v":"1.8"},{"$f":"HYPERLINK(INDEX(Links[LINK],MATCH(K18,Links[ARKNAVN],0)),INDEX(Links[OPGAVE],MATCH(K18,Links[ARKNAVN],0)))","v":"Tabel med særlige hensyn"},null,null,null,{"$f":"IFERROR(INDEX(Forside!$O$17:$O$34,MATCH($K$9:$K$27,Forside!$L$17:$L$34,0)),\"\")","v":"Løst"}]
[null,null,null,null,null,null,null,null,null,"",{"$f":"INDEX(Links[ARKNAVN],ROW(K19)-ROW($K$9)+1)","v":"1.9"},{"$f":"HYPERLINK(INDEX(Links[LINK],MATCH(K19,Links[ARKNAVN],0)),INDEX(Links[OPGAVE],MATCH(K19,Links[ARKNAVN],0)))","v":"Samarbejde med øvrige institutioner og/eller aktører"},null,null,null,{"$f":"IFERROR(INDEX(Forside!$O$17:$O$34,MATCH($K$9:$K$27,Forside!$L$17:$L$34,0)),\"\")","v":"Løst"}]
[null,null,null,null,null,null,null,null,null,"",{"$f":"INDEX(Links[ARKNAVN],ROW(K20)-ROW($K$9)+1)","v":"2.0"},{"$f":"HYPERLINK(INDEX(Links[LINK],MATCH(K20,Links[ARKNAVN],0)),INDEX(Links[OPGAVE],MATCH(K20,Links[ARKNAVN],0)))","v":"Indledning sektion 2"},null,null,null,{"$f":"IFERROR(INDEX(Forside!$O$17:$O$34,MATCH($K$9:$K$27,Forside!$L$17:$L$34,0)),\"\")","v":""}]
[null,null,null,null,null,null,null,null,null,"",{"$f":"INDEX(Links[ARKNAVN],ROW(K21)-ROW($K$9)+1)","v":"2.1"},{"$f":"HYPERLINK(INDEX(Links[LINK],MATCH(K21,Links[ARKNAVN],0)),INDEX(Links[OPGAVE],MATCH(K21,Links[ARKNAVN],0)))","v":"Plan for nye/udflyttede velfærdspladser"},null,null,null,{"$f":"IFERROR(INDEX(Forside!$O$17:$O$34,MATCH($K$9:$K$27,Forside!$L$17:$L$34,0)),\"\")","v":"Ej relevant"}]
[null,null,null,null,null,null,null,null,null,"",{"$f":"INDEX(Links[ARKNAVN],ROW(K22)-ROW($K$9)+1)","v":"2.2"},{"$f":"HYPERLINK(INDEX(Links[LINK],MATCH(K22,Links[ARKNAVN],0)),INDEX(Links[OPGAVE],MATCH(K22,Links[ARKNAVN],0)))","v":"Antal nye og/eller udflyttede velfærdspladser"},null,null,null,{"$f":"IFERROR(INDEX(Forside!$O$17:$O$34,MATCH($K$9:$K$27,Forside!$L$17:$L$34,0)),\"\")","v":"Ej relevant"}]
[null,null,null,null,null,null,null,null,null,"",{"$f":"INDEX(Links[ARKNAVN],ROW(K23)-ROW($K$9)+1)","v":"2.3"},{"$f":"HYPERLINK(INDEX(Links[LINK],MATCH(K23,Links[ARKNAVN],0)),INDEX(Links[OPGAVE],MATCH(K23,Links[ARKNAVN],0)))","v":"Overvejelser omkring praktikpladsbehovet"},null,null,null,{"$f":"IFERROR(INDEX(Forside!$O$17:$O$34,MATCH($K$9:$K$27,Forside!$L$17:$L$34,0)),\"\")","v":"Ej relevant"}]
[null,null,null,null,null,null,null,null,null,"",{"$f":"INDEX(Links[ARKNAVN],ROW(K24)-ROW($K$9)+1)","v":"2.4"},{"$f":"HYPERLINK(INDEX(Links[LINK],MATCH(K24,Links[ARKNAVN],0)),INDEX(Links[OPGAVE],MATCH(K24,Links[ARKNAVN],0)))","v":"Samarbejde med øvrige institutioner og/eller aktører"},null,null,null,{"$f":"IFERROR(INDEX(Forside!$O$17:$O$34,MATCH($K$9:$K$27,Forside!$L$17:$L$34,0)),\"\")","v":"Ej relevant"}]
[null,null,null,null,null,null,null,null,null,"",{"$f":"INDEX(Links[ARKNAVN],ROW(K25)-ROW($K$9)+1)","v":"3.0"},{"$f":"HYPERLINK(INDEX(Links[LINK],MATCH(K25,Links[ARKNAVN],0)),INDEX(Links[OPGAVE],MATCH(K25,Links[ARKNAVN],0)))","v":"Indledning sektion 3"},null,null,null,{"$f":"IFERROR(INDEX(Forside!$O$17:$O$34,MATCH($K$9:$K$27,Forside!$L$17:$L$34,0)),\"\")","v":""}]
[null,null,null,null,null,null,null,null,null,"",{"$f":"INDEX(Links[ARKNAVN],ROW(K26)-ROW($K$9)+1)","v":"3.1"},{"$f":"HYPERLINK(INDEX(Links[LINK],MATCH(K26,Links[ARKNAVN],0)),INDEX(Links[OPGAVE],MATCH(K26,Links[ARKNAVN],0)))","v":"Nye udbud"},null,null,null,{"$f":"IFERROR(INDEX(Forside!$O$17:$O$34,MATCH($K$9:$K$27,Forside!$L$17:$L$34,0)),\"\")","v":"Ej relevant"}]
[null,null,null,null,null,null,null,null,null,null,{"$f":"INDEX(Links[ARKNAVN],ROW(K27)-ROW($K$9)+1)","v":"3.2"},{"$f":"HYPERLINK(INDEX(Links[LINK],MATCH(K27,Links[ARKNAVN],0)),INDEX(Links[OPGAVE],MATCH(K27,Links[ARKNAVN],0)))","v":"Planlagte samarbejder eller overvejelser derom"},null,null,null,{"$f":"IFERROR(INDEX(Forside!$O$17:$O$34,MATCH($K$9:$K$27,Forside!$L$17:$L$34,0)),\"\")","v":"Ej relevant"}]
[]
[]
[null,null,null,null,null,null,null,null,null,"FORSIDE"]
[]
[]
[]
[]
[null,null,null,null,null,null,null,null,null,{"$f":"HYPERLINK(INDEX(Links[LINK],MATCH(RIGHT(CELL(\"filnavn\"),3),Links[ARKNAVN],0)-1),_xlfn.UNICHAR(231))","v":{"$error":"#N/A"}}]
[]
[]
[]
[]
[null,null,null,null,null,null,null,null,null,{"$f":"HYPERLINK(INDEX(Links[LINK],MATCH(RIGHT(CELL(\"filnavn\"),3),Links[ARKNAVN],0)+1),_xlfn.UNICHAR(232))","v":{"$error":"#N/A"}}]

{"sheet":"1.2","index":4,"n_rows":50,"n_cols":17,"rows_kept":50,"cut":false,"hidden":false,"merged":[[2,10,7,16],[29,10,32,16],[34,10,37,16],[39,10,42,16]]}
[]
[]
[null,null,null,null,null,null,null,null,null,null,"OVERSIGT"]
[]
[]
[]
[]
[]
[null,null,null,null,null,null,null,null,null,null,{"$f":"IF(RIGHT(CELL(\"filnavn\"),3)=L9,_xlfn.UNICHAR(159),\"\")","v":""},{"$f":"INDEX(Links[ARKNAVN],ROW(L9)-ROW($K$9)+1)","v":"0.0"},{"$f":"HYPERLINK(INDEX(Links[LINK],MATCH(L9,Links[ARKNAVN],0)),INDEX(Links[OPGAVE],MATCH(L9,Links[ARKNAVN],0)))","v":"Overordnede overvejelser om opgaven"},null,null,null,{"$f":"IFERROR(INDEX(Forside!$O$17:$O$34,MATCH($L$9:$L$27,Forside!$L$17:$L$34,0)),\"\")","v":"Løst"}]
[null,null,null,null,null,null,null,null,null,null,{"$f":"IF(RIGHT(CELL(\"filnavn\"),3)=L10,_xlfn.UNICHAR(159),\"\")","v":""},{"$f":"INDEX(Links[ARKNAVN],ROW(L10)-ROW($K$9)+1)","v":"1.0"},{"$f":"HYPERLINK(INDEX(Links[LINK],MATCH(L10,Links[ARKNAVN],0)),INDEX(Links[OPGAVE],MATCH(L10,Links[ARKNAVN],0)))","v":"Indledning sektion 1"},null,null,null,{"$f":"IFERROR(INDEX(Forside!$O$17:$O$34,MATCH($L$9:$L$27,Forside!$L$17:$L$34,0)),\"\")","v":""}]
[null,null,null,null,null,null,null,null,null,null,"",{"$f":"INDEX(Links[ARKNAVN],ROW(L11)-ROW($K$9)+1)","v":"1.1"},{"$f":"HYPERLINK(INDEX(Links[LINK],MATCH(L11,Links[ARKNAVN],0)),INDEX(Links[OPGAVE],MATCH(L11,Links[ARKNAVN],0)))","v":"Ledelsesmæssige overvejelser"},null,null,null,{"$f":"IFERROR(INDEX(Forside!$O$17:$O$34,MATCH($L$9:$L$27,Forside!$L$17:$L$34,0)),\"\")","v":"Løst"}]
[null,null,null,null,null,null,null,null,null,null,"",{"$f":"INDEX(Links[ARKNAVN],ROW(L12)-ROW($K$9)+1)","v":"1.2"},{"$f":"HYPERLINK(INDEX(Links[LINK],MATCH(L12,Links[ARKNAVN],0)),INDEX(Links[OPGAVE],MATCH(L12,Links[ARKNAVN],0)))","v":"Antal pladser der flyttes ud"},null,null,null,{"$f":"IFERROR(INDEX(Forside!$O$17:$O$34,MATCH($L$9:$L$27,Forside!$L$17:$L$34,0)),\"\")","v":"Løst"}]
[null,"Uddannelsesområde","Antal pladser med aktivitet","År for forventet udflytning","Flytning fra by","Specifik uddannelse","Bemærkning",null,null,null,"",{"$f":"INDEX(Links[ARKNAVN],ROW(L13)-ROW($K$9)+1)","v":"1.3"},{"$f":"HYPERLINK(INDEX(Links[LINK],MATCH(L13,Links[ARKNAVN],0)),INDEX(Links[OPGAVE],MATCH(L13,Links[ARKNAVN],0)))","v":"Antal pladser på nye udbud"},null,null,null,{"$f":"IFERROR(INDEX(Forside!$O$17:$O$34,MATCH($L$9:$L$27,Forside!$L$17:$L$34,0)),\"\")","v":"Ikke udfyldt"}]
[{"$f":"SUMPRODUCT(--(B14:G14<>\"\"))","v":5},"Natur, bach.",59,2024,"København","Husdyrsvidenskab",null,null,null,null,"",{"$f":"INDEX(Links[ARKNAVN],ROW(L14)-ROW($K$9)+1)","v":"1.4"},{"$f":"HYPERLINK(INDEX(Links[LINK],MATCH(L14,Links[ARKNAVN],0)),INDEX(Links[OPGAVE],MATCH(L14,Links[ARKNAVN],0)))","v":"Antal pladser der nedskaleres"},null,null,null,{"$f":"IFERROR(INDEX(Forside!$O$17:$O$34,MATCH($L$9:$L$27,Forside!$L$17:$L$34,0)),\"\")","v":"Løst"}]
[5,"Natur, kandidat",40,"2024 og frem","Odense/København","STEM-undervisning og Animal Science",null,null,null,null,"",{"$f":"INDEX(Links[ARKNAVN],ROW(L15)-ROW($K$9)+1)","v":"1.5"},{"$f":"HYPERLINK(INDEX(Links[LINK],MATCH(L15,Links[ARKNAVN],0)),INDEX(Links[OPGAVE],MATCH(L15,Links[ARKNAVN],0)))","v":"Beskrivelse af regionale elementer"},null,null,null,{"$f":"IFERROR(INDEX(Forside!$O$17:$O$34,MATCH($L$9:$L$27,Forside!$L$17:$L$34,0)),\"\")","v":"Løst"}]
[6,"Sundhed, bach.",55,2024,"København","Medicin","KU opretter en bacheloruddannelse i Køge med optag på 110 studerende",null,null,null,"",{"$f":"INDEX(Links[ARKNAVN],ROW(L16)-ROW($K$9)+1)","v":"1.6"},{"$f":"HYPERLINK(INDEX(Links[LINK],MATCH(L16,Links[ARKNAVN],0)),INDEX(Links[OPGAVE],MATCH(L16,Links[ARKNAVN],0)))","v":"Tabel med regionale elementer"},null,null,null,{"$f":"IFERROR(INDEX(Forside!$O$17:$O$34,MATCH($L$9:$L$27,Forside!$L$17:$L$34,0)),\"\")","v":"Løst"}]
[6,"Sundhed, kandidat",100,2027,"København","Medicin","KU opretter en kandidatuddannelse i Køge med optag på 100 studerende",null,null,null,"",{"$f":"INDEX(Links[ARKNAVN],ROW(L17)-ROW($K$9)+1)","v":"1.7"},{"$f":"HYPERLINK(INDEX(Links[LINK],MATCH(L17,Links[ARKNAVN],0)),INDEX(Links[OPGAVE],MATCH(L17,Links[ARKNAVN],0)))","v":"Beskrivelse af særlige hensyn"},null,null,null,{"$f":"IFERROR(INDEX(Forside!$O$17:$O$34,MATCH($L$9:$L$27,Forside!$L$17:$L$34,0)),\"\")","v":"Løst"}]
[6,"Sundhed, bach.",25,"Afventer","København","Veterinærmedicin","Veterinærmedicin ift. finanslovsdimensionering",null,null,null,"",{"$f":"INDEX(Links[ARKNAVN],ROW(L18)-ROW($K$9)+1)","v":"1.8"},{"$f":"HYPERLINK(INDEX(Links[LINK],MATCH(L18,Links[ARKNAVN],0)),INDEX(Links[OPGAVE],MATCH(L18,Links[ARKNAVN],0)))","v":"Tabel med særlige hensyn"},null,null,null,{"$f":"IFERROR(INDEX(Forside!$O$17:$O$34,MATCH($L$9:$L$27,Forside!$L$17:$L$34,0)),\"\")","v":"Løst"}]
[6,"Samfund, kandidat",25,2024,"København","KA i Klinisk Psykologi ","Samarbejde med Region Sjælland",null,null,null,"",{"$f":"INDEX(Links[ARKNAVN],ROW(L19)-ROW($K$9)+1)","v":"1.9"},{"$f":"HYPERLINK(INDEX(Links[LINK],MATCH(L19,Links[ARKNAVN],0)),INDEX(Links[OPGAVE],MATCH(L19,Links[ARKNAVN],0)))","v":"Samarbejde med øvrige institutioner og/eller aktører"},null,null,null,{"$f":"IFERROR(INDEX(Forside!$O$17:$O$34,MATCH($L$9:$L$27,Forside!$L$17:$L$34,0)),\"\")","v":"Løst"}]
[0,null,null,null,null,null,null,null,null,null,"",{"$f":"INDEX(Links[ARKNAVN],ROW(L20)-ROW($K$9)+1)","v":"2.0"},{"$f":"HYPERLINK(INDEX(Links[LINK],MATCH(L20,Links[ARKNAVN],0)),INDEX(Links[OPGAVE],MATCH(L20,Links[ARKNAVN],0)))","v":"Indledning sektion 2"},null,null,null,{"$f":"IFERROR(INDEX(Forside!$O$17:$O$34,MATCH($L$9:$L$27,Forside!$L$17:$L$34,0)),\"\")","v":""}]
[0,null,null,null,null,null,null,null,null,null,"",{"$f":"INDEX(Links[ARKNAVN],ROW(L21)-ROW($K$9)+1)","v":"2.1"},{"$f":"HYPERLINK(INDEX(Links[LINK],MATCH(L21,Links[ARKNAVN],0)),INDEX(Links[OPGAVE],MATCH(L21,Links[ARKNAVN],0)))","v":"Plan for nye/udflyttede velfærdspladser"},null,null,null,{"$f":"IFERROR(INDEX(Forside!$O$17:$O$34,MATCH($L$9:$L$27,Forside!$L$17:$L$34,0)),\"\")","v":"Ej relevant"}]
[0,null,null,null,null,null,null,null,null,null,"",{"$f":"INDEX(Links[ARKNAVN],ROW(L22)-ROW($K$9)+1)","v":"2.2"},{"$f":"HYPERLINK(INDEX(Links[LINK],MATCH(L22,Links[ARKNAVN],0)),INDEX(Links[OPGAVE],MATCH(L22,Links[ARKNAVN],0)))","v":"Antal nye og/eller udflyttede velfærdspladser"},null,null,null,{"$f":"IFERROR(INDEX(Forside!$O$17:$O$34,MATCH($L$9:$L$27,Forside!$L$17:$L$34,0)),\"\")","v":"Ej relevant"}]
[0,null,null,null,null,null,null,null,null,null,"",{"$f":"INDEX(Links[ARKNAVN],ROW(L23)-ROW($K$9)+1)","v":"2.3"},{"$f":"HYPERLINK(INDEX(Links[LINK],MATCH(L23,Links[ARKNAVN],0)),INDEX(Links[OPGAVE],MATCH(L23,Links[ARKNAVN],0)))","v":"Overvejelser omkring praktikpladsbehovet"},null,null,null,{"$f":"IFERROR(INDEX(Forside!$O$17:$O$34,MATCH($L$9:$L$27,Forside!$L$17:$L$34,0)),\"\")","v":"Ej relevant"}]
[0,null,null,null,null,null,null,null,null,null,"",{"$f":"INDEX(Links[ARKNAVN],ROW(L24)-ROW($K$9)+1)","v":"2.4"},{"$f":"HYPERLINK(INDEX(Links[LINK],MATCH(L24,Links[ARKNAVN],0)),INDEX(Links[OPGAVE],MATCH(L24,Links[ARKNAVN],0)))","v":"Samarbejde med øvrige institutioner og/eller aktører"},null,null,null,{"$f":"IFERROR(INDEX(Forside!$O$17:$O$34,MATCH($L$9:$L$27,Forside!$L$17:$L$34,0)),\"\")","v":"Ej relevant"}]
[0,null,null,null,null,null,null,null,null,null,"",{"$f":"INDEX(Links[ARKNAVN],ROW(L25)-ROW($K$9)+1)","v":"3.0"},{"$f":"HYPERLINK(INDEX(Links[LINK],MATCH(L25,Links[ARKNAVN],0)),INDEX(Links[OPGAVE],MATCH(L25,Links[ARKNAVN],0)))","v":"Indledning sektion 3"},null,null,null,{"$f":"IFERROR(INDEX(Forside!$O$17:$O$34,MATCH($L$9:$L$27,Forside!$L$17:$L$34,0)),\"\")","v":""}]
[0,null,null,null,null,null,null,null,null,null,"",{"$f":"INDEX(Links[ARKNAVN],ROW(L26)-ROW($K$9)+1)","v":"3.1"},{"$f":"HYPERLINK(INDEX(Links[LINK],MATCH(L26,Links[ARKNAVN],0)),INDEX(Links[OPGAVE],MATCH(L26,Links[ARKNAVN],0)))","v":"Nye udbud"},null,null,null,{"$f":"IFERROR(INDEX(Forside!$O$17:$O$34,MATCH($L$9:$L$27,Forside!$L$17:$L$34,0)),\"\")","v":"Ej relevant"}]
[0,null,null,null,null,null,null,null,null,null,null,{"$f":"INDEX(Links[ARKNAVN],ROW(L27)-ROW($K$9)+1)","v":"3.2"},{"$f":"HYPERLINK(INDEX(Links[LINK],MATCH(L27,Links[ARKNAVN],0)),INDEX(Links[OPGAVE],MATCH(L27,Links[ARKNAVN],0)))","v":"Planlagte samarbejder eller overvejelser derom"},null,null,null,{"$f":"IFERROR(INDEX(Forside!$O$17:$O$34,MATCH($L$9:$L$27,Forside!$L$17:$L$34,0)),\"\")","v":"Ej relevant"}]
[{"$f":"SUMPRODUCT(--(B28:H28<>\"\"))","v":0}]
[0]
[0,null,null,null,null,null,null,null,null,null,"FORSIDE"]
[0]
[0]
[0]
[0]
[0,null,null,null,null,null,null,null,null,null,{"$f":"HYPERLINK(INDEX(Links[LINK],MATCH(RIGHT(CELL(\"filnavn\"),3),Links[ARKNAVN],0)-1),_xlfn.UNICHAR(231))","v":{"$error":"#N/A"}}]
[0]
[0]
[0]
[0]
[0,null,null,null,null,null,null,null,null,null,{"$f":"HYPERLINK(INDEX(Links[LINK],MATCH(RIGHT(CELL(\"filnavn\"),3),Links[ARKNAVN],0)+1),_xlfn.UNICHAR(232))","v":{"$error":"#N/A"}}]
[0]
[0]
[0]
[0]
[0]
[0]
[0]
[0]
[0]
[0]

{"sheet":"1.3","index":5,"n_rows":50,"n_cols":16,"rows_kept":50,"cut":false,"hidden":false,"merged":[[2,9,7,15],[29,9,32,15],[34,9,37,15],[39,9,42,15]]}
[]
[]
[null,null,null,null,null,null,null,null,null,"OVERSIGT"]
[]
[]
[]
[]
[]
[null,null,null,null,null,null,null,null,null,{"$f":"IF(RIGHT(CELL(\"filnavn\"),3)=K9,_xlfn.UNICHAR(159),\"\")","v":""},{"$f":"INDEX(Links[ARKNAVN],ROW(K9)-ROW($K$9)+1)","v":"0.0"},{"$f":"HYPERLINK(INDEX(Links[LINK],MATCH(K9,Links[ARKNAVN],0)),INDEX(Links[OPGAVE],MATCH(K9,Links[ARKNAVN],0)))","v":"Overordnede overvejelser om opgaven"},null,null,null,{"$f":"IFERROR(INDEX(Forside!$O$17:$O$34,MATCH($K$9:$K$27,Forside!$L$17:$L$34,0)),\"\")","v":"Løst"}]
[null,null,null,null,null,null,null,null,null,{"$f":"IF(RIGHT(CELL(\"filnavn\"),3)=K10,_xlfn.UNICHAR(159),\"\")","v":""},{"$f":"INDEX(Links[ARKNAVN],ROW(K10)-ROW($K$9)+1)","v":"1.0"},{"$f":"HYPERLINK(INDEX(Links[LINK],MATCH(K10,Links[ARKNAVN],0)),INDEX(Links[OPGAVE],MATCH(K10,Links[ARKNAVN],0)))","v":"Indledning sektion 1"},null,null,null,{"$f":"IFERROR(INDEX(Forside!$O$17:$O$34,MATCH($K$9:$K$27,Forside!$L$17:$L$34,0)),\"\")","v":""}]
[null,null,null,null,null,null,null,null,null,"",{"$f":"INDEX(Links[ARKNAVN],ROW(K11)-ROW($K$9)+1)","v":"1.1"},{"$f":"HYPERLINK(INDEX(Links[LINK],MATCH(K11,Links[ARKNAVN],0)),INDEX(Links[OPGAVE],MATCH(K11,Links[ARKNAVN],0)))","v":"Ledelsesmæssige overvejelser"},null,null,null,{"$f":"IFERROR(INDEX(Forside!$O$17:$O$34,MATCH($K$9:$K$27,Forside!$L$17:$L$34,0)),\"\")","v":"Løst"}]
[null,null,null,null,null,null,null,null,null,"",{"$f":"INDEX(Links[ARKNAVN],ROW(K12)-ROW($K$9)+1)","v":"1.2"},{"$f":"HYPERLINK(INDEX(Links[LINK],MATCH(K12,Links[ARKNAVN],0)),INDEX(Links[OPGAVE],MATCH(K12,Links[ARKNAVN],0)))","v":"Antal pladser der flyttes ud"},null,null,null,{"$f":"IFERROR(INDEX(Forside!$O$17:$O$34,MATCH($K$9:$K$27,Forside!$L$17:$L$34,0)),\"\")","v":"Løst"}]
[null,"Uddannelsesområde","Antal pladser","År med forventet oprettelse","By","Specifik uddannelse","Bemærkning",null,null,"",{"$f":"INDEX(Links[ARKNAVN],ROW(K13)-ROW($K$9)+1)","v":"1.3"},{"$f":"HYPERLINK(INDEX(Links[LINK],MATCH(K13,Links[ARKNAVN],0)),INDEX(Links[OPGAVE],MATCH(K13,Links[ARKNAVN],0)))","v":"Antal pladser på nye udbud"},null,null,null,{"$f":"IFERROR(INDEX(Forside!$O$17:$O$34,MATCH($K$9:$K$27,Forside!$L$17:$L$34,0)),\"\")","v":"Ikke udfyldt"}]
[{"$f":"SUMPRODUCT(--(B14:G14<>\"\"))","v":0},null,null,null,null,null,null,null,null,"",{"$f":"INDEX(Links[ARKNAVN],ROW(K14)-ROW($K$9)+1)","v":"1.4"},{"$f":"HYPERLINK(INDEX(Links[LINK],MATCH(K14,Links[ARKNAVN],0)),INDEX(Links[OPGAVE],MATCH(K14,Links[ARKNAVN],0)))","v":"Antal pladser der nedskaleres"},null,null,null,{"$f":"IFERROR(INDEX(Forside!$O$17:$O$34,MATCH($K$9:$K$27,Forside!$L$17:$L$34,0)),\"\")","v":"Løst"}]
[0,null,null,null,null,null,null,null,null,"",{"$f":"INDEX(Links[ARKNAVN],ROW(K15)-ROW($K$9)+1)","v":"1.5"},{"$f":"HYPERLINK(INDEX(Links[LINK],MATCH(K15,Links[ARKNAVN],0)),INDEX(Links[OPGAVE],MATCH(K15,Links[ARKNAVN],0)))","v":"Beskrivelse af regionale elementer"},null,null,null,{"$f":"IFERROR(INDEX(Forside!$O$17:$O$34,MATCH($K$9:$K$27,Forside!$L$17:$L$34,0)),\"\")","v":"Løst"}]
[0,null,null,null,null,null,null,null,null,"",{"$f":"INDEX(Links[ARKNAVN],ROW(K16)-ROW($K$9)+1)","v":"1.6"},{"$f":"HYPERLINK(INDEX(Links[LINK],MATCH(K16,Links[ARKNAVN],0)),INDEX(Links[OPGAVE],MATCH(K16,Links[ARKNAVN],0)))","v":"Tabel med regionale elementer"},null,null,null,{"$f":"IFERROR(INDEX(Forside!$O$17:$O$34,MATCH($K$9:$K$27,Forside!$L$17:$L$34,0)),\"\")","v":"Løst"}]
[0,null,null,null,null,null,null,null,null,"",{"$f":"INDEX(Links[ARKNAVN],ROW(K17)-ROW($K$9)+1)","v":"1.7"},{"$f":"HYPERLINK(INDEX(Links[LINK],MATCH(K17,Links[ARKNAVN],0)),INDEX(Links[OPGAVE],MATCH(K17,Links[ARKNAVN],0)))","v":"Beskrivelse af særlige hensyn"},null,null,null,{"$f":"IFERROR(INDEX(Forside!$O$17:$O$34,MATCH($K$9:$K$27,Forside!$L$17:$L$34,0)),\"\")","v":"Løst"}]
[0,null,null,null,null,null,null,null,null,"",{"$f":"INDEX(Links[ARKNAVN],ROW(K18)-ROW($K$9)+1)","v":"1.8"},{"$f":"HYPERLINK(INDEX(Links[LINK],MATCH(K18,Links[ARKNAVN],0)),INDEX(Links[OPGAVE],MATCH(K18,Links[ARKNAVN],0)))","v":"Tabel med særlige hensyn"},null,null,null,{"$f":"IFERROR(INDEX(Forside!$O$17:$O$34,MATCH($K$9:$K$27,Forside!$L$17:$L$34,0)),\"\")","v":"Løst"}]
[0,null,null,null,null,null,null,null,null,"",{"$f":"INDEX(Links[ARKNAVN],ROW(K19)-ROW($K$9)+1)","v":"1.9"},{"$f":"HYPERLINK(INDEX(Links[LINK],MATCH(K19,Links[ARKNAVN],0)),INDEX(Links[OPGAVE],MATCH(K19,Links[ARKNAVN],0)))","v":"Samarbejde med øvrige institutioner og/eller aktører"},null,null,null,{"$f":"IFERROR(INDEX(Forside!$O$17:$O$34,MATCH($K$9:$K$27,Forside!$L$17:$L$34,0)),\"\")","v":"Løst"}]
[0,null,null,null,null,null,null,null,null,"",{"$f":"INDEX(Links[ARKNAVN],ROW(K20)-ROW($K$9)+1)","v":"2.0"},{"$f":"HYPERLINK(INDEX(Links[LINK],MATCH(K20,Links[ARKNAVN],0)),INDEX(Links[OPGAVE],MATCH(K20,Links[ARKNAVN],0)))","v":"Indledning sektion 2"},null,null,null,{"$f":"IFERROR(INDEX(Forside!$O$17:$O$34,MATCH($K$9:$K$27,Forside!$L$17:$L$34,0)),\"\")","v":""}]
[0,null,null,null,null,null,null,null,null,"",{"$f":"INDEX(Links[ARKNAVN],ROW(K21)-ROW($K$9)+1)","v":"2.1"},{"$f":"HYPERLINK(INDEX(Links[LINK],MATCH(K21,Links[ARKNAVN],0)),INDEX(Links[OPGAVE],MATCH(K21,Links[ARKNAVN],0)))","v":"Plan for nye/udflyttede velfærdspladser"},null,null,null,{"$f":"IFERROR(INDEX(Forside!$O$17:$O$34,MATCH($K$9:$K$27,Forside!$L$17:$L$34,0)),\"\")","v":"Ej relevant"}]
[0,null,null,null,null,null,null,null,null,"",{"$f":"INDEX(Links[ARKNAVN],ROW(K22)-ROW($K$9)+1)","v":"2.2"},{"$f":"HYPERLINK(INDEX(Links[LINK],MATCH(K22,Links[ARKNAVN],0)),INDEX(Links[OPGAVE],MATCH(K22,Links[ARKNAVN],0)))","v":"Antal nye og/eller udflyttede velfærdspladser"},null,null,null,{"$f":"IFERROR(INDEX(Forside!$O$17:$O$34,MATCH($K$9:$K$27,Forside!$L$17:$L$34,0)),\"\")","v":"Ej relevant"}]
[0,null,null,null,null,null,null,null,null,"",{"$f":"INDEX(Links[ARKNAVN],ROW(K23)-ROW($K$9)+1)","v":"2.3"},{"$f":"HYPERLINK(INDEX(Links[LINK],MATCH(K23,Links[ARKNAVN],0)),INDEX(Links[OPGAVE],MATCH(K23,Links[ARKNAVN],0)))","v":"Overvejelser omkring praktikpladsbehovet"},null,null,null,{"$f":"IFERROR(INDEX(Forside!$O$17:$O$34,MATCH($K$9:$K$27,Forside!$L$17:$L$34,0)),\"\")","v":"Ej relevant"}]
[0,null,null,null,null,null,null,null,null,"",{"$f":"INDEX(Links[ARKNAVN],ROW(K24)-ROW($K$9)+1)","v":"2.4"},{"$f":"HYPERLINK(INDEX(Links[LINK],MATCH(K24,Links[ARKNAVN],0)),INDEX(Links[OPGAVE],MATCH(K24,Links[ARKNAVN],0)))","v":"Samarbejde med øvrige institutioner og/eller aktører"},null,null,null,{"$f":"IFERROR(INDEX(Forside!$O$17:$O$34,MATCH($K$9:$K$27,Forside!$L$17:$L$34,0)),\"\")","v":"Ej relevant"}]
[0,null,null,null,null,null,null,null,null,"",{"$f":"INDEX(Links[ARKNAVN],ROW(K25)-ROW($K$9)+1)","v":"3.0"},{"$f":"HYPERLINK(INDEX(Links[LINK],MATCH(K25,Links[ARKNAVN],0)),INDEX(Links[OPGAVE],MATCH(K25,Links[ARKNAVN],0)))","v":"Indledning sektion 3"},null,null,null,{"$f":"IFERROR(INDEX(Forside!$O$17:$O$34,MATCH($K$9:$K$27,Forside!$L$17:$L$34,0)),\"\")","v":""}]
[0,null,null,null,null,null,null,null,null,"",{"$f":"INDEX(Links[ARKNAVN],ROW(K26)-ROW($K$9)+1)","v":"3.1"},{"$f":"HYPERLINK(INDEX(Links[LINK],MATCH(K26,Links[ARKNAVN],0)),INDEX(Links[OPGAVE],MATCH(K26,Links[ARKNAVN],0)))","v":"Nye udbud"},null,null,null,{"$f":"IFERROR(INDEX(Forside!$O$17:$O$34,MATCH($K$9:$K$27,Forside!$L$17:$L$34,0)),\"\")","v":"Ej relevant"}]
[0,null,null,null,null,null,null,null,null,null,{"$f":"INDEX(Links[ARKNAVN],ROW(K27)-ROW($K$9)+1)","v":"3.2"},{"$f":"HYPERLINK(INDEX(Links[LINK],MATCH(K27,Links[ARKNAVN],0)),INDEX(Links[OPGAVE],MATCH(K27,Links[ARKNAVN],0)))","v":"Planlagte samarbejder eller overvejelser derom"},null,null,null,{"$f":"IFERROR(INDEX(Forside!$O$17:$O$34,MATCH($K$9:$K$27,Forside!$L$17:$L$34,0)),\"\")","v":"Ej relevant"}]
[{"$f":"SUMPRODUCT(--(B28:G28<>\"\"))","v":0}]
[0]
[0,null,null,null,null,null,null,null,null,"FORSIDE"]
[0]
[0]
[0]
[0]
[0,null,null,null,null,null,null,null,null,{"$f":"HYPERLINK(INDEX(Links[LINK],MATCH(RIGHT(CELL(\"filnavn\"),3),Links[ARKNAVN],0)-1),_xlfn.UNICHAR(231))","v":{"$error":"#N/A"}}]
[0]
[0]
[0]
[0]
[0,null,null,null,null,null,null,null,null,{"$f":"HYPERLINK(INDEX(Links[LINK],MATCH(RIGHT(CELL(\"filnavn\"),3),Links[ARKNAVN],0)+1),_xlfn.UNICHAR(232))","v":{"$error":"#N/A"}}]
[0]
[0]
[0]
[0]
[0]
[0]
[0]
[0]
[0]
[0]

{"sheet":"1.4","index":6,"n_rows":50,"n_cols":16,"rows_kept":50,"cut":false,"hidden":false,"merged":[[2,9,7,15],[29,9,32,15],[34,9,37,15],[39,9,42,15]]}
[]
[]
[null,null,null,null,null,null,null,null,null,"OVERSIGT"]
[]
[]
[]
[]
[]
[null,null,null,null,null,null,null,null,null,{"$f":"IF(RIGHT(CELL(\"filnavn\"),3)=K9,_xlfn.UNICHAR(159),\"\")","v":""},{"$f":"INDEX(Links[ARKNAVN],ROW(K9)-ROW($K$9)+1)","v":"0.0"},{"$f":"HYPERLINK(INDEX(Links[LINK],MATCH(K9,Links[ARKNAVN],0)),INDEX(Links[OPGAVE],MATCH(K9,Links[ARKNAVN],0)))","v":"Overordnede overvejelser om opgaven"},null,null,null,{"$f":"IFERROR(INDEX(Forside!$O$17:$O$34,MATCH($K$9:$K$27,Forside!$L$17:$L$34,0)),\"\")","v":"Løst"}]
[null,null,null,null,null,null,null,null,null,{"$f":"IF(RIGHT(CELL(\"filnavn\"),3)=K10,_xlfn.UNICHAR(159),\"\")","v":""},{"$f":"INDEX(Links[ARKNAVN],ROW(K10)-ROW($K$9)+1)","v":"1.0"},{"$f":"HYPERLINK(INDEX(Links[LINK],MATCH(K10,Links[ARKNAVN],0)),INDEX(Links[OPGAVE],MATCH(K10,Links[ARKNAVN],0)))","v":"Indledning sektion 1"},null,null,null,{"$f":"IFERROR(INDEX(Forside!$O$17:$O$34,MATCH($K$9:$K$27,Forside!$L$17:$L$34,0)),\"\")","v":""}]
[null,null,null,null,null,null,null,null,null,"",{"$f":"INDEX(Links[ARKNAVN],ROW(K11)-ROW($K$9)+1)","v":"1.1"},{"$f":"HYPERLINK(INDEX(Links[LINK],MATCH(K11,Links[ARKNAVN],0)),INDEX(Links[OPGAVE],MATCH(K11,Links[ARKNAVN],0)))","v":"Ledelsesmæssige overvejelser"},null,null,null,{"$f":"IFERROR(INDEX(Forside!$O$17:$O$34,MATCH($K$9:$K$27,Forside!$L$17:$L$34,0)),\"\")","v":"Løst"}]
[null,null,null,null,null,null,null,null,null,"",{"$f":"INDEX(Links[ARKNAVN],ROW(K12)-ROW($K$9)+1)","v":"1.2"},{"$f":"HYPERLINK(INDEX(Links[LINK],MATCH(K12,Links[ARKNAVN],0)),INDEX(Links[OPGAVE],MATCH(K12,Links[ARKNAVN],0)))","v":"Antal pladser der flyttes ud"},null,null,null,{"$f":"IFERROR(INDEX(Forside!$O$17:$O$34,MATCH($K$9:$K$27,Forside!$L$17:$L$34,0)),\"\")","v":"Løst"}]
[null,"Uddannelsesområde","Antal pladser med aktivitet","Forventet år for nedskalering","By","Specifik uddannelse","Bemærkning",null,null,"",{"$f":"INDEX(Links[ARKNAVN],ROW(K13)-ROW($K$9)+1)","v":"1.3"},{"$f":"HYPERLINK(INDEX(Links[LINK],MATCH(K13,Links[ARKNAVN],0)),INDEX(Links[OPGAVE],MATCH(K13,Links[ARKNAVN],0)))","v":"Antal pladser på nye udbud"},null,null,null,{"$f":"IFERROR(INDEX(Forside!$O$17:$O$34,MATCH($K$9:$K$27,Forside!$L$17:$L$34,0)),\"\")","v":"Ikke udfyldt"}]
[{"$f":"SUMPRODUCT(--(B14:G14<>\"\"))","v":5},"Humaniora, bach.",207,"2023-2030","København",null,"Reduktion jf. del 1 inkl. teologi",null,null,"",{"$f":"INDEX(Links[ARKNAVN],ROW(K14)-ROW($K$9)+1)","v":"1.4"},{"$f":"HYPERLINK(INDEX(Links[LINK],MATCH(K14,Links[ARKNAVN],0)),INDEX(Links[OPGAVE],MATCH(K14,Links[ARKNAVN],0)))","v":"Antal pladser der nedskaleres"},null,null,null,{"$f":"IFERROR(INDEX(Forside!$O$17:$O$34,MATCH($K$9:$K$27,Forside!$L$17:$L$34,0)),\"\")","v":"Løst"}]
[5,"Humaniora, kandidat",146,"2022, 2026-2028","København",null,"Reduktion jf. del 1 inkl. teologi",null,null,"",{"$f":"INDEX(Links[ARKNAVN],ROW(K15)-ROW($K$9)+1)","v":"1.5"},{"$f":"HYPERLINK(INDEX(Links[LINK],MATCH(K15,Links[ARKNAVN],0)),INDEX(Links[OPGAVE],MATCH(K15,Links[ARKNAVN],0)))","v":"Beskrivelse af regionale elementer"},null,null,null,{"$f":"IFERROR(INDEX(Forside!$O$17:$O$34,MATCH($K$9:$K$27,Forside!$L$17:$L$34,0)),\"\")","v":"Løst"}]
[6,"Samfund, bach.",78,"2022-2023","København","Fx på uddannelserne antropologi og sociologi","Reduktion jf. del 1",null,null,"",{"$f":"INDEX(Links[ARKNAVN],ROW(K16)-ROW($K$9)+1)","v":"1.6"},{"$f":"HYPERLINK(INDEX(Links[LINK],MATCH(K16,Links[ARKNAVN],0)),INDEX(Links[OPGAVE],MATCH(K16,Links[ARKNAVN],0)))","v":"Tabel med regionale elementer"},null,null,null,{"$f":"IFERROR(INDEX(Forside!$O$17:$O$34,MATCH($K$9:$K$27,Forside!$L$17:$L$34,0)),\"\")","v":"Løst"}]
[6,"Samfund, kandidat",57,"2023-2026","København","Fx på uddannelserne statskundskab og psykologi","Reduktion jf. del 1",null,null,"",{"$f":"INDEX(Links[ARKNAVN],ROW(K17)-ROW($K$9)+1)","v":"1.7"},{"$f":"HYPERLINK(INDEX(Links[LINK],MATCH(K17,Links[ARKNAVN],0)),INDEX(Links[OPGAVE],MATCH(K17,Links[ARKNAVN],0)))","v":"Beskrivelse af særlige hensyn"},null,null,null,{"$f":"IFERROR(INDEX(Forside!$O$17:$O$34,MATCH($K$9:$K$27,Forside!$L$17:$L$34,0)),\"\")","v":"Løst"}]
[5,"Sundhed, bach. og kandidat",27,"2022-2026","København","Fx på uddannelsen farmaci",null,null,null,"",{"$f":"INDEX(Links[ARKNAVN],ROW(K18)-ROW($K$9)+1)","v":"1.8"},{"$f":"HYPERLINK(INDEX(Links[LINK],MATCH(K18,Links[ARKNAVN],0)),INDEX(Links[OPGAVE],MATCH(K18,Links[ARKNAVN],0)))","v":"Tabel med særlige hensyn"},null,null,null,{"$f":"IFERROR(INDEX(Forside!$O$17:$O$34,MATCH($K$9:$K$27,Forside!$L$17:$L$34,0)),\"\")","v":"Løst"}]
[{"$f":"SUMPRODUCT(--(B19:G19<>\"\"))","v":5},"Natur, bach.",{"$f":"14+25","v":39},"2023-2030","København",null,"Reduktion jf. del 1",null,null,"",{"$f":"INDEX(Links[ARKNAVN],ROW(K19)-ROW($K$9)+1)","v":"1.9"},{"$f":"HYPERLINK(INDEX(Links[LINK],MATCH(K19,Links[ARKNAVN],0)),INDEX(Links[OPGAVE],MATCH(K19,Links[ARKNAVN],0)))","v":"Samarbejde med øvrige institutioner og/eller aktører"},null,null,null,{"$f":"IFERROR(INDEX(Forside!$O$17:$O$34,MATCH($K$9:$K$27,Forside!$L$17:$L$34,0)),\"\")","v":"Løst"}]
[{"$f":"SUMPRODUCT(--(B20:G20<>\"\"))","v":6},"Natur, kandidat",{"$f":"46+25","v":71},"2022-2030","København","Fx ved nedlæggelse af klinisk ernæring og oprettelse af en specialisering på human ernæring","Reduktion jf. del 1",null,null,"",{"$f":"INDEX(Links[ARKNAVN],ROW(K20)-ROW($K$9)+1)","v":"2.0"},{"$f":"HYPERLINK(INDEX(Links[LINK],MATCH(K20,Links[ARKNAVN],0)),INDEX(Links[OPGAVE],MATCH(K20,Links[ARKNAVN],0)))","v":"Indledning sektion 2"},null,null,null,{"$f":"IFERROR(INDEX(Forside!$O$17:$O$34,MATCH($K$9:$K$27,Forside!$L$17:$L$34,0)),\"\")","v":""}]
[0,null,null,null,null,null,null,null,null,"",{"$f":"INDEX(Links[ARKNAVN],ROW(K21)-ROW($K$9)+1)","v":"2.1"},{"$f":"HYPERLINK(INDEX(Links[LINK],MATCH(K21,Links[ARKNAVN],0)),INDEX(Links[OPGAVE],MATCH(K21,Links[ARKNAVN],0)))","v":"Plan for nye/udflyttede velfærdspladser"},null,null,null,{"$f":"IFERROR(INDEX(Forside!$O$17:$O$34,MATCH($K$9:$K$27,Forside!$L$17:$L$34,0)),\"\")","v":"Ej relevant"}]
[0,null,null,null,null,null,null,null,null,"",{"$f":"INDEX(Links[ARKNAVN],ROW(K22)-ROW($K$9)+1)","v":"2.2"},{"$f":"HYPERLINK(INDEX(Links[LINK],MATCH(K22,Links[ARKNAVN],0)),INDEX(Links[OPGAVE],MATCH(K22,Links[ARKNAVN],0)))","v":"Antal nye og/eller udflyttede velfærdspladser"},null,null,null,{"$f":"IFERROR(INDEX(Forside!$O$17:$O$34,MATCH($K$9:$K$27,Forside!$L$17:$L$34,0)),\"\")","v":"Ej relevant"}]
[{"$f":"SUMPRODUCT(--(B23:G23<>\"\"))","v":5},"Humaniora,  bach. og kandidat",327,"2026-2030","København",null,"Reduktion jf. del 2 inkl teologi",null,null,"",{"$f":"INDEX(Links[ARKNAVN],ROW(K23)-ROW($K$9)+1)","v":"2.3"},{"$f":"HYPERLINK(INDEX(Links[LINK],MATCH(K23,Links[ARKNAVN],0)),INDEX(Links[OPGAVE],MATCH(K23,Links[ARKNAVN],0)))","v":"Overvejelser omkring praktikpladsbehovet"},null,null,null,{"$f":"IFERROR(INDEX(Forside!$O$17:$O$34,MATCH($K$9:$K$27,Forside!$L$17:$L$34,0)),\"\")","v":"Ej relevant"}]
[{"$f":"SUMPRODUCT(--(B24:G24<>\"\"))","v":5},"Natur,  bach. og kandidat",{"$f":"246-50","v":196},"2026-2030","København",null,"Reduktion jf. del 2",null,null,"",{"$f":"INDEX(Links[ARKNAVN],ROW(K24)-ROW($K$9)+1)","v":"2.4"},{"$f":"HYPERLINK(INDEX(Links[LINK],MATCH(K24,Links[ARKNAVN],0)),INDEX(Links[OPGAVE],MATCH(K24,Links[ARKNAVN],0)))","v":"Samarbejde med øvrige institutioner og/eller aktører"},null,null,null,{"$f":"IFERROR(INDEX(Forside!$O$17:$O$34,MATCH($K$9:$K$27,Forside!$L$17:$L$34,0)),\"\")","v":"Ej relevant"}]
[{"$f":"SUMPRODUCT(--(B27:G27<>\"\"))","v":4},"Sundhed, bach. og kandidat",30,"2026-2030","København",null,"Reduktion jf. del 2",null,null,"",{"$f":"INDEX(Links[ARKNAVN],ROW(K25)-ROW($K$9)+1)","v":"3.0"},{"$f":"HYPERLINK(INDEX(Links[LINK],MATCH(K25,Links[ARKNAVN],0)),INDEX(Links[OPGAVE],MATCH(K25,Links[ARKNAVN],0)))","v":"Indledning sektion 3"},null,null,null,{"$f":"IFERROR(INDEX(Forside!$O$17:$O$34,MATCH($K$9:$K$27,Forside!$L$17:$L$34,0)),\"\")","v":""}]
[{"$f":"SUMPRODUCT(--(B28:G28<>\"\"))","v":0},"Samfund, bach.",10,null,"København",null,"Reduktion jf. del 2",null,null,"",{"$f":"INDEX(Links[ARKNAVN],ROW(K26)-ROW($K$9)+1)","v":"3.1"},{"$f":"HYPERLINK(INDEX(Links[LINK],MATCH(K26,Links[ARKNAVN],0)),INDEX(Links[OPGAVE],MATCH(K26,Links[ARKNAVN],0)))","v":"Nye udbud"},null,null,null,{"$f":"IFERROR(INDEX(Forside!$O$17:$O$34,MATCH($K$9:$K$27,Forside!$L$17:$L$34,0)),\"\")","v":"Ej relevant"}]
[{"$f":"SUMPRODUCT(--(B29:G29<>\"\"))","v":0},"Samfund, kandidat",10,null,"København",null,"Reduktion jf. del 2",null,null,null,{"$f":"INDEX(Links[ARKNAVN],ROW(K27)-ROW($K$9)+1)","v":"3.2"},{"$f":"HYPERLINK(INDEX(Links[LINK],MATCH(K27,Links[ARKNAVN],0)),INDEX(Links[OPGAVE],MATCH(K27,Links[ARKNAVN],0)))","v":"Planlagte samarbejder eller overvejelser derom"},null,null,null,{"$f":"IFERROR(INDEX(Forside!$O$17:$O$34,MATCH($K$9:$K$27,Forside!$L$17:$L$34,0)),\"\")","v":"Ej relevant"}]
[{"$f":"SUMPRODUCT(--(B30:G30<>\"\"))","v":1}]
[0]
[0,null,{"$f":"SUBTOTAL(109,Opgave_1.4[Antal pladser med aktivitet])","v":1198},null,null,null,null,null,null,"FORSIDE"]
[0]
[0]
[0]
[0]
[0,null,null,null,null,null,null,null,null,{"$f":"HYPERLINK(INDEX(Links[LINK],MATCH(RIGHT(CELL(\"filnavn\"),3),Links[ARKNAVN],0)-1),_xlfn.UNICHAR(231))","v":{"$error":"#N/A"}}]
[0]
[0]
[0]
[0]
[0,null,null,null,null,null,null,null,null,{"$f":"HYPERLINK(INDEX(Links[LINK],MATCH(RIGHT(CELL(\"filnavn\"),3),Links[ARKNAVN],0)+1),_xlfn.UNICHAR(232))","v":{"$error":"#N/A"}}]
[0]
[0]
[0]
[0]
[0]
[0]
[0]
[0]
[0]
[0]

{"sheet":"1.5","index":7,"n_rows":40,"n_cols":16,"rows_kept":40,"cut":false,"hidden":false,"merged":[[2,9,7,15],[29,9,32,15],[34,9,37,15],[39,9,42,15]]}
[]
[]
[null,null,null,null,null,null,null,null,null,"OVERSIGT"]
[]
[]
[]
[]
[]
[null,null,null,null,null,null,null,null,null,{"$f":"IF(RIGHT(CELL(\"filnavn\"),3)=K9,_xlfn.UNICHAR(159),\"\")","v":""},{"$f":"INDEX(Links[ARKNAVN],ROW(K9)-ROW($K$9)+1)","v":"0.0"},{"$f":"HYPERLINK(INDEX(Links[LINK],MATCH(K9,Links[ARKNAVN],0)),INDEX(Links[OPGAVE],MATCH(K9,Links[ARKNAVN],0)))","v":"Overordnede overvejelser om opgaven"},null,null,null,{"$f":"IFERROR(INDEX(Forside!$O$17:$O$34,MATCH($K$9:$K$27,Forside!$L$17:$L$34,0)),\"\")","v":"Løst"}]
[null,null,null,null,null,null,null,null,null,{"$f":"IF(RIGHT(CELL(\"filnavn\"),3)=K10,_xlfn.UNICHAR(159),\"\")","v":""},{"$f":"INDEX(Links[ARKNAVN],ROW(K10)-ROW($K$9)+1)","v":"1.0"},{"$f":"HYPERLINK(INDEX(Links[LINK],MATCH(K10,Links[ARKNAVN],0)),INDEX(Links[OPGAVE],MATCH(K10,Links[ARKNAVN],0)))","v":"Indledning sektion 1"},null,null,null,{"$f":"IFERROR(INDEX(Forside!$O$17:$O$34,MATCH($K$9:$K$27,Forside!$L$17:$L$34,0)),\"\")","v":""}]
[null,null,null,null,null,null,null,null,null,"",{"$f":"INDEX(Links[ARKNAVN],ROW(K11)-ROW($K$9)+1)","v":"1.1"},{"$f":"HYPERLINK(INDEX(Links[LINK],MATCH(K11,Links[ARKNAVN],0)),INDEX(Links[OPGAVE],MATCH(K11,Links[ARKNAVN],0)))","v":"Ledelsesmæssige overvejelser"},null,null,null,{"$f":"IFERROR(INDEX(Forside!$O$17:$O$34,MATCH($K$9:$K$27,Forside!$L$17:$L$34,0)),\"\")","v":"Løst"}]
[null,null,null,null,null,null,null,null,null,"",{"$f":"INDEX(Links[ARKNAVN],ROW(K12)-ROW($K$9)+1)","v":"1.2"},{"$f":"HYPERLINK(INDEX(Links[LINK],MATCH(K12,Links[ARKNAVN],0)),INDEX(Links[OPGAVE],MATCH(K12,Links[ARKNAVN],0)))","v":"Antal pladser der flyttes ud"},null,null,null,{"$f":"IFERROR(INDEX(Forside!$O$17:$O$34,MATCH($K$9:$K$27,Forside!$L$17:$L$34,0)),\"\")","v":"Løst"}]
[null,null,null,null,null,null,null,null,null,"",{"$f":"INDEX(Links[ARKNAVN],ROW(K13)-ROW($K$9)+1)","v":"1.3"},{"$f":"HYPERLINK(INDEX(Links[LINK],MATCH(K13,Links[ARKNAVN],0)),INDEX(Links[OPGAVE],MATCH(K13,Links[ARKNAVN],0)))","v":"Antal pladser på nye udbud"},null,null,null,{"$f":"IFERROR(INDEX(Forside!$O$17:$O$34,MATCH($K$9:$K$27,Forside!$L$17:$L$34,0)),\"\")","v":"Ikke udfyldt"}]
[null,null,null,null,null,null,null,null,null,"",{"$f":"INDEX(Links[ARKNAVN],ROW(K14)-ROW($K$9)+1)","v":"1.4"},{"$f":"HYPERLINK(INDEX(Links[LINK],MATCH(K14,Links[ARKNAVN],0)),INDEX(Links[OPGAVE],MATCH(K14,Links[ARKNAVN],0)))","v":"Antal pladser der nedskaleres"},null,null,null,{"$f":"IFERROR(INDEX(Forside!$O$17:$O$34,MATCH($K$9:$K$27,Forside!$L$17:$L$34,0)),\"\")","v":"Løst"}]
[null,null,null,null,null,null,null,null,null,"",{"$f":"INDEX(Links[ARKNAVN],ROW(K15)-ROW($K$9)+1)","v":"1.5"},{"$f":"HYPERLINK(INDEX(Links[LINK],MATCH(K15,Links[ARKNAVN],0)),INDEX(Links[OPGAVE],MATCH(K15,Links[ARKNAVN],0)))","v":"Beskrivelse af regionale elementer"},null,null,null,{"$f":"IFERROR(INDEX(Forside!$O$17:$O$34,MATCH($K$9:$K$27,Forside!$L$17:$L$34,0)),\"\")","v":"Løst"}]
[null,null,null,null,null,null,null,null,null,"",{"$f":"INDEX(Links[ARKNAVN],ROW(K16)-ROW($K$9)+1)","v":"1.6"},{"$f":"HYPERLINK(INDEX(Links[LINK],MATCH(K16,Links[ARKNAVN],0)),INDEX(Links[OPGAVE],MATCH(K16,Links[ARKNAVN],0)))","v":"Tabel med regionale elementer"},null,null,null,{"$f":"IFERROR(INDEX(Forside!$O$17:$O$34,MATCH($K$9:$K$27,Forside!$L$17:$L$34,0)),\"\")","v":"Løst"}]
[null,null,null,null,null,null,null,null,null,"",{"$f":"INDEX(Links[ARKNAVN],ROW(K17)-ROW($K$9)+1)","v":"1.7"},{"$f":"HYPERLINK(INDEX(Links[LINK],MATCH(K17,Links[ARKNAVN],0)),INDEX(Links[OPGAVE],MATCH(K17,Links[ARKNAVN],0)))","v":"Beskrivelse af særlige hensyn"},null,null,null,{"$f":"IFERROR(INDEX(Forside!$O$17:$O$34,MATCH($K$9:$K$27,Forside!$L$17:$L$34,0)),\"\")","v":"Løst"}]
[null,null,null,null,null,null,null,null,null,"",{"$f":"INDEX(Links[ARKNAVN],ROW(K18)-ROW($K$9)+1)","v":"1.8"},{"$f":"HYPERLINK(INDEX(Links[LINK],MATCH(K18,Links[ARKNAVN],0)),INDEX(Links[OPGAVE],MATCH(K18,Links[ARKNAVN],0)))","v":"Tabel med særlige hensyn"},null,null,null,{"$f":"IFERROR(INDEX(Forside!$O$17:$O$34,MATCH($K$9:$K$27,Forside!$L$17:$L$34,0)),\"\")","v":"Løst"}]
[null,null,null,null,null,null,null,null,null,"",{"$f":"INDEX(Links[ARKNAVN],ROW(K19)-ROW($K$9)+1)","v":"1.9"},{"$f":"HYPERLINK(INDEX(Links[LINK],MATCH(K19,Links[ARKNAVN],0)),INDEX(Links[OPGAVE],MATCH(K19,Links[ARKNAVN],0)))","v":"Samarbejde med øvrige institutioner og/eller aktører"},null,null,null,{"$f":"IFERROR(INDEX(Forside!$O$17:$O$34,MATCH($K$9:$K$27,Forside!$L$17:$L$34,0)),\"\")","v":"Løst"}]
[null,null,null,null,null,null,null,null,null,"",{"$f":"INDEX(Links[ARKNAVN],ROW(K20)-ROW($K$9)+1)","v":"2.0"},{"$f":"HYPERLINK(INDEX(Links[LINK],MATCH(K20,Links[ARKNAVN],0)),INDEX(Links[OPGAVE],MATCH(K20,Links[ARKNAVN],0)))","v":"Indledning sektion 2"},null,null,null,{"$f":"IFERROR(INDEX(Forside!$O$17:$O$34,MATCH($K$9:$K$27,Forside!$L$17:$L$34,0)),\"\")","v":""}]
[null,null,null,null,null,null,null,null,null,"",{"$f":"INDEX(Links[ARKNAVN],ROW(K21)-ROW($K$9)+1)","v":"2.1"},{"$f":"HYPERLINK(INDEX(Links[LINK],MATCH(K21,Links[ARKNAVN],0)),INDEX(Links[OPGAVE],MATCH(K21,Links[ARKNAVN],0)))","v":"Plan for nye/udflyttede velfærdspladser"},null,null,null,{"$f":"IFERROR(INDEX(Forside!$O$17:$O$34,MATCH($K$9:$K$27,Forside!$L$17:$L$34,0)),\"\")","v":"Ej relevant"}]
[null,null,null,null,null,null,null,null,null,"",{"$f":"INDEX(Links[ARKNAVN],ROW(K22)-ROW($K$9)+1)","v":"2.2"},{"$f":"HYPERLINK(INDEX(Links[LINK],MATCH(K22,Links[ARKNAVN],0)),INDEX(Links[OPGAVE],MATCH(K22,Links[ARKNAVN],0)))","v":"Antal nye og/eller udflyttede velfærdspladser"},null,null,null,{"$f":"IFERROR(INDEX(Forside!$O$17:$O$34,MATCH($K$9:$K$27,Forside!$L$17:$L$34,0)),\"\")","v":"Ej relevant"}]
[null,null,null,null,null,null,null,null,null,"",{"$f":"INDEX(Links[ARKNAVN],ROW(K23)-ROW($K$9)+1)","v":"2.3"},{"$f":"HYPERLINK(INDEX(Links[LINK],MATCH(K23,Links[ARKNAVN],0)),INDEX(Links[OPGAVE],MATCH(K23,Links[ARKNAVN],0)))","v":"Overvejelser omkring praktikpladsbehovet"},null,null,null,{"$f":"IFERROR(INDEX(Forside!$O$17:$O$34,MATCH($K$9:$K$27,Forside!$L$17:$L$34,0)),\"\")","v":"Ej relevant"}]
[null,null,null,null,null,null,null,null,null,"",{"$f":"INDEX(Links[ARKNAVN],ROW(K24)-ROW($K$9)+1)","v":"2.4"},{"$f":"HYPERLINK(INDEX(Links[LINK],MATCH(K24,Links[ARKNAVN],0)),INDEX(Links[OPGAVE],MATCH(K24,Links[ARKNAVN],0)))","v":"Samarbejde med øvrige institutioner og/eller aktører"},null,null,null,{"$f":"IFERROR(INDEX(Forside!$O$17:$O$34,MATCH($K$9:$K$27,Forside!$L$17:$L$34,0)),\"\")","v":"Ej relevant"}]
[null,null,null,null,null,null,null,null,null,"",{"$f":"INDEX(Links[ARKNAVN],ROW(K25)-ROW($K$9)+1)","v":"3.0"},{"$f":"HYPERLINK(INDEX(Links[LINK],MATCH(K25,Links[ARKNAVN],0)),INDEX(Links[OPGAVE],MATCH(K25,Links[ARKNAVN],0)))","v":"Indledning sektion 3"},null,null,null,{"$f":"IFERROR(INDEX(Forside!$O$17:$O$34,MATCH($K$9:$K$27,Forside!$L$17:$L$34,0)),\"\")","v":""}]
[null,null,null,null,null,null,null,null,null,"",{"$f":"INDEX(Links[ARKNAVN],ROW(K26)-ROW($K$9)+1)","v":"3.1"},{"$f":"HYPERLINK(INDEX(Links[LINK],MATCH(K26,Links[ARKNAVN],0)),INDEX(Links[OPGAVE],MATCH(K26,Links[ARKNAVN],0)))","v":"Nye udbud"},null,null,null,{"$f":"IFERROR(INDEX(Forside!$O$17:$O$34,MATCH($K$9:$K$27,Forside!$L$17:$L$34,0)),\"\")","v":"Ej relevant"}]
[null,null,null,null,null,null,null,null,null,null,{"$f":"INDEX(Links[ARKNAVN],ROW(K27)-ROW($K$9)+1)","v":"3.2"},{"$f":"HYPERLINK(INDEX(Links[LINK],MATCH(K27,Links[ARKNAVN],0)),INDEX(Links[OPGAVE],MATCH(K27,Links[ARKNAVN],0)))","v":"Planlagte samarbejder eller overvejelser derom"},null,null,null,{"$f":"IFERROR(INDEX(Forside!$O$17:$O$34,MATCH($K$9:$K$27,Forside!$L$17:$L$34,0)),\"\")","v":"Ej relevant"}]
[]
[]
[null,null,null,null,null,null,null,null,null,"FORSIDE"]
[]
[]
[]
[]
[null,null,null,null,null,null,null,null,null,{"$f":"HYPERLINK(INDEX(Links[LINK],MATCH(RIGHT(CELL(\"filnavn\"),3),Links[ARKNAVN],0)-1),_xlfn.UNICHAR(231))","v":{"$error":"#N/A"}}]
[]
[]
[]
[]
[null,null,null,null,null,null,null,null,null,{"$f":"HYPERLINK(INDEX(Links[LINK],MATCH(RIGHT(CELL(\"filnavn\"),3),Links[ARKNAVN],0)+1),_xlfn.UNICHAR(232))","v":{"$error":"#N/A"}}]

{"sheet":"1.6","index":8,"n_rows":50,"n_cols":16,"rows_kept":50,"cut":false,"hidden":false,"merged":[[2,9,7,15],[29,9,32,15],[34,9,37,15],[39,9,42,15]]}
[]
[]
[null,null,null,null,null,null,null,null,null,"OVERSIGT"]
[]
[]
[]
[]
[]
[null,null,null,null,null,null,null,null,null,{"$f":"IF(RIGHT(CELL(\"filnavn\"),3)=K9,_xlfn.UNICHAR(159),\"\")","v":""},{"$f":"INDEX(Links[ARKNAVN],ROW(K9)-ROW($K$9)+1)","v":"0.0"},{"$f":"HYPERLINK(INDEX(Links[LINK],MATCH(K9,Links[ARKNAVN],0)),INDEX(Links[OPGAVE],MATCH(K9,Links[ARKNAVN],0)))","v":"Overordnede overvejelser om opgaven"},null,null,null,{"$f":"IFERROR(INDEX(Forside!$O$17:$O$34,MATCH($K$9:$K$27,Forside!$L$17:$L$34,0)),\"\")","v":"Løst"}]
[null,null,null,null,null,null,null,null,null,{"$f":"IF(RIGHT(CELL(\"filnavn\"),3)=K10,_xlfn.UNICHAR(159),\"\")","v":""},{"$f":"INDEX(Links[ARKNAVN],ROW(K10)-ROW($K$9)+1)","v":"1.0"},{"$f":"HYPERLINK(INDEX(Links[LINK],MATCH(K10,Links[ARKNAVN],0)),INDEX(Links[OPGAVE],MATCH(K10,Links[ARKNAVN],0)))","v":"Indledning sektion 1"},null,null,null,{"$f":"IFERROR(INDEX(Forside!$O$17:$O$34,MATCH($K$9:$K$27,Forside!$L$17:$L$34,0)),\"\")","v":""}]
[null,null,null,null,null,null,null,null,null,"",{"$f":"INDEX(Links[ARKNAVN],ROW(K11)-ROW($K$9)+1)","v":"1.1"},{"$f":"HYPERLINK(INDEX(Links[LINK],MATCH(K11,Links[ARKNAVN],0)),INDEX(Links[OPGAVE],MATCH(K11,Links[ARKNAVN],0)))","v":"Ledelsesmæssige overvejelser"},null,null,null,{"$f":"IFERROR(INDEX(Forside!$O$17:$O$34,MATCH($K$9:$K$27,Forside!$L$17:$L$34,0)),\"\")","v":"Løst"}]
[null,null,null,null,null,null,null,null,null,"",{"$f":"INDEX(Links[ARKNAVN],ROW(K12)-ROW($K$9)+1)","v":"1.2"},{"$f":"HYPERLINK(INDEX(Links[LINK],MATCH(K12,Links[ARKNAVN],0)),INDEX(Links[OPGAVE],MATCH(K12,Links[ARKNAVN],0)))","v":"Antal pladser der flyttes ud"},null,null,null,{"$f":"IFERROR(INDEX(Forside!$O$17:$O$34,MATCH($K$9:$K$27,Forside!$L$17:$L$34,0)),\"\")","v":"Løst"}]
[null,"Beskrivelse","ECTS","År for iværksættelse","Omfattet by/område","Uddannelse/område","Bemærkning",null,null,"",{"$f":"INDEX(Links[ARKNAVN],ROW(K13)-ROW($K$9)+1)","v":"1.3"},{"$f":"HYPERLINK(INDEX(Links[LINK],MATCH(K13,Links[ARKNAVN],0)),INDEX(Links[OPGAVE],MATCH(K13,Links[ARKNAVN],0)))","v":"Antal pladser på nye udbud"},null,null,null,{"$f":"IFERROR(INDEX(Forside!$O$17:$O$34,MATCH($K$9:$K$27,Forside!$L$17:$L$34,0)),\"\")","v":"Ikke udfyldt"}]
[{"$f":"SUMPRODUCT(--(B14:G14<>\"\"))","v":4},"Klinisk farmaci - samarbejde med apoteker ",null,"Afventer afklaring","Hele landet","Sundhedsvidenskab",null,null,null,"",{"$f":"INDEX(Links[ARKNAVN],ROW(K14)-ROW($K$9)+1)","v":"1.4"},{"$f":"HYPERLINK(INDEX(Links[LINK],MATCH(K14,Links[ARKNAVN],0)),INDEX(Links[OPGAVE],MATCH(K14,Links[ARKNAVN],0)))","v":"Antal pladser der nedskaleres"},null,null,null,{"$f":"IFERROR(INDEX(Forside!$O$17:$O$34,MATCH($K$9:$K$27,Forside!$L$17:$L$34,0)),\"\")","v":"Løst"}]
[{"$f":"SUMPRODUCT(--(B15:G15<>\"\"))","v":4},"Undervisningsaktivitet - grøn omstilling",null,2026,"Region Sjælland ","Samfundsvidenskab",null,null,null,"",{"$f":"INDEX(Links[ARKNAVN],ROW(K15)-ROW($K$9)+1)","v":"1.5"},{"$f":"HYPERLINK(INDEX(Links[LINK],MATCH(K15,Links[ARKNAVN],0)),INDEX(Links[OPGAVE],MATCH(K15,Links[ARKNAVN],0)))","v":"Beskrivelse af regionale elementer"},null,null,null,{"$f":"IFERROR(INDEX(Forside!$O$17:$O$34,MATCH($K$9:$K$27,Forside!$L$17:$L$34,0)),\"\")","v":"Løst"}]
[4,"Specialesamarbejde og projektorienterede forløb",null,"Afventer afklaring","Hele landet","Naturvidenskab",null,null,null,"",{"$f":"INDEX(Links[ARKNAVN],ROW(K16)-ROW($K$9)+1)","v":"1.6"},{"$f":"HYPERLINK(INDEX(Links[LINK],MATCH(K16,Links[ARKNAVN],0)),INDEX(Links[OPGAVE],MATCH(K16,Links[ARKNAVN],0)))","v":"Tabel med regionale elementer"},null,null,null,{"$f":"IFERROR(INDEX(Forside!$O$17:$O$34,MATCH($K$9:$K$27,Forside!$L$17:$L$34,0)),\"\")","v":"Løst"}]
[0,null,null,null,null,null,null,null,null,"",{"$f":"INDEX(Links[ARKNAVN],ROW(K17)-ROW($K$9)+1)","v":"1.7"},{"$f":"HYPERLINK(INDEX(Links[LINK],MATCH(K17,Links[ARKNAVN],0)),INDEX(Links[OPGAVE],MATCH(K17,Links[ARKNAVN],0)))","v":"Beskrivelse af særlige hensyn"},null,null,null,{"$f":"IFERROR(INDEX(Forside!$O$17:$O$34,MATCH($K$9:$K$27,Forside!$L$17:$L$34,0)),\"\")","v":"Løst"}]
[0,null,null,null,null,null,null,null,null,"",{"$f":"INDEX(Links[ARKNAVN],ROW(K18)-ROW($K$9)+1)","v":"1.8"},{"$f":"HYPERLINK(INDEX(Links[LINK],MATCH(K18,Links[ARKNAVN],0)),INDEX(Links[OPGAVE],MATCH(K18,Links[ARKNAVN],0)))","v":"Tabel med særlige hensyn"},null,null,null,{"$f":"IFERROR(INDEX(Forside!$O$17:$O$34,MATCH($K$9:$K$27,Forside!$L$17:$L$34,0)),\"\")","v":"Løst"}]
[0,null,null,null,null,null,null,null,null,"",{"$f":"INDEX(Links[ARKNAVN],ROW(K19)-ROW($K$9)+1)","v":"1.9"},{"$f":"HYPERLINK(INDEX(Links[LINK],MATCH(K19,Links[ARKNAVN],0)),INDEX(Links[OPGAVE],MATCH(K19,Links[ARKNAVN],0)))","v":"Samarbejde med øvrige institutioner og/eller aktører"},null,null,null,{"$f":"IFERROR(INDEX(Forside!$O$17:$O$34,MATCH($K$9:$K$27,Forside!$L$17:$L$34,0)),\"\")","v":"Løst"}]
[0,null,null,null,null,null,null,null,null,"",{"$f":"INDEX(Links[ARKNAVN],ROW(K20)-ROW($K$9)+1)","v":"2.0"},{"$f":"HYPERLINK(INDEX(Links[LINK],MATCH(K20,Links[ARKNAVN],0)),INDEX(Links[OPGAVE],MATCH(K20,Links[ARKNAVN],0)))","v":"Indledning sektion 2"},null,null,null,{"$f":"IFERROR(INDEX(Forside!$O$17:$O$34,MATCH($K$9:$K$27,Forside!$L$17:$L$34,0)),\"\")","v":""}]
[0,null,null,null,null,null,null,null,null,"",{"$f":"INDEX(Links[ARKNAVN],ROW(K21)-ROW($K$9)+1)","v":"2.1"},{"$f":"HYPERLINK(INDEX(Links[LINK],MATCH(K21,Links[ARKNAVN],0)),INDEX(Links[OPGAVE],MATCH(K21,Links[ARKNAVN],0)))","v":"Plan for nye/udflyttede velfærdspladser"},null,null,null,{"$f":"IFERROR(INDEX(Forside!$O$17:$O$34,MATCH($K$9:$K$27,Forside!$L$17:$L$34,0)),\"\")","v":"Ej relevant"}]
[0,null,null,null,null,null,null,null,null,"",{"$f":"INDEX(Links[ARKNAVN],ROW(K22)-ROW($K$9)+1)","v":"2.2"},{"$f":"HYPERLINK(INDEX(Links[LINK],MATCH(K22,Links[ARKNAVN],0)),INDEX(Links[OPGAVE],MATCH(K22,Links[ARKNAVN],0)))","v":"Antal nye og/eller udflyttede velfærdspladser"},null,null,null,{"$f":"IFERROR(INDEX(Forside!$O$17:$O$34,MATCH($K$9:$K$27,Forside!$L$17:$L$34,0)),\"\")","v":"Ej relevant"}]
[0,null,null,null,null,null,null,null,null,"",{"$f":"INDEX(Links[ARKNAVN],ROW(K23)-ROW($K$9)+1)","v":"2.3"},{"$f":"HYPERLINK(INDEX(Links[LINK],MATCH(K23,Links[ARKNAVN],0)),INDEX(Links[OPGAVE],MATCH(K23,Links[ARKNAVN],0)))","v":"Overvejelser omkring praktikpladsbehovet"},null,null,null,{"$f":"IFERROR(INDEX(Forside!$O$17:$O$34,MATCH($K$9:$K$27,Forside!$L$17:$L$34,0)),\"\")","v":"Ej relevant"}]
[0,null,null,null,null,null,null,null,null,"",{"$f":"INDEX(Links[ARKNAVN],ROW(K24)-ROW($K$9)+1)","v":"2.4"},{"$f":"HYPERLINK(INDEX(Links[LINK],MATCH(K24,Links[ARKNAVN],0)),INDEX(Links[OPGAVE],MATCH(K24,Links[ARKNAVN],0)))","v":"Samarbejde med øvrige institutioner og/eller aktører"},null,null,null,{"$f":"IFERROR(INDEX(Forside!$O$17:$O$34,MATCH($K$9:$K$27,Forside!$L$17:$L$34,0)),\"\")","v":"Ej relevant"}]
[0,null,null,null,null,null,null,null,null,"",{"$f":"INDEX(Links[ARKNAVN],ROW(K25)-ROW($K$9)+1)","v":"3.0"},{"$f":"HYPERLINK(INDEX(Links[LINK],MATCH(K25,Links[ARKNAVN],0)),INDEX(Links[OPGAVE],MATCH(K25,Links[ARKNAVN],0)))","v":"Indledning sektion 3"},null,null,null,{"$f":"IFERROR(INDEX(Forside!$O$17:$O$34,MATCH($K$9:$K$27,Forside!$L$17:$L$34,0)),\"\")","v":""}]
[0,null,null,null,null,null,null,null,null,"",{"$f":"INDEX(Links[ARKNAVN],ROW(K26)-ROW($K$9)+1)","v":"3.1"},{"$f":"HYPERLINK(INDEX(Links[LINK],MATCH(K26,Links[ARKNAVN],0)),INDEX(Links[OPGAVE],MATCH(K26,Links[ARKNAVN],0)))","v":"Nye udbud"},null,null,null,{"$f":"IFERROR(INDEX(Forside!$O$17:$O$34,MATCH($K$9:$K$27,Forside!$L$17:$L$34,0)),\"\")","v":"Ej relevant"}]
[0,null,null,null,null,null,null,null,null,null,{"$f":"INDEX(Links[ARKNAVN],ROW(K27)-ROW($K$9)+1)","v":"3.2"},{"$f":"HYPERLINK(INDEX(Links[LINK],MATCH(K27,Links[ARKNAVN],0)),INDEX(Links[OPGAVE],MATCH(K27,Links[ARKNAVN],0)))","v":"Planlagte samarbejder eller overvejelser derom"},null,null,null,{"$f":"IFERROR(INDEX(Forside!$O$17:$O$34,MATCH($K$9:$K$27,Forside!$L$17:$L$34,0)),\"\")","v":"Ej relevant"}]
[0]
[0]
[0,null,null,null,null,null,null,null,null,"FORSIDE"]
[0]
[0]
[0]
[0]
[0,null,null,null,null,null,null,null,null,{"$f":"HYPERLINK(INDEX(Links[LINK],MATCH(RIGHT(CELL(\"filnavn\"),3),Links[ARKNAVN],0)-1),_xlfn.UNICHAR(231))","v":{"$error":"#N/A"}}]
[0]
[0]
[0]
[0]
[0,null,null,null,null,null,null,null,null,{"$f":"HYPERLINK(INDEX(Links[LINK],MATCH(RIGHT(CELL(\"filnavn\"),3),Links[ARKNAVN],0)+1),_xlfn.UNICHAR(232))","v":{"$error":"#N/A"}}]
[0]
[0]
[0]
[0]
[0]
[0]
[0]
[0]
[0]
[0]

{"sheet":"1.7","index":9,"n_rows":40,"n_cols":16,"rows_kept":40,"cut":false,"hidden":false,"merged":[[2,9,7,15],[29,9,32,15],[34,9,37,15],[39,9,42,15]]}
[]
[]
[null,null,null,null,null,null,null,null,null,"OVERSIGT"]
[]
[]
[]
[]
[]
[null,null,null,null,null,null,null,null,null,{"$f":"IF(RIGHT(CELL(\"filnavn\"),3)=K9,_xlfn.UNICHAR(159),\"\")","v":""},{"$f":"INDEX(Links[ARKNAVN],ROW(K9)-ROW($K$9)+1)","v":"0.0"},{"$f":"HYPERLINK(INDEX(Links[LINK],MATCH(K9,Links[ARKNAVN],0)),INDEX(Links[OPGAVE],MATCH(K9,Links[ARKNAVN],0)))","v":"Overordnede overvejelser om opgaven"},null,null,null,{"$f":"IFERROR(INDEX(Forside!$O$17:$O$34,MATCH($K$9:$K$27,Forside!$L$17:$L$34,0)),\"\")","v":"Løst"}]
[null,null,null,null,null,null,null,null,null,{"$f":"IF(RIGHT(CELL(\"filnavn\"),3)=K10,_xlfn.UNICHAR(159),\"\")","v":""},{"$f":"INDEX(Links[ARKNAVN],ROW(K10)-ROW($K$9)+1)","v":"1.0"},{"$f":"HYPERLINK(INDEX(Links[LINK],MATCH(K10,Links[ARKNAVN],0)),INDEX(Links[OPGAVE],MATCH(K10,Links[ARKNAVN],0)))","v":"Indledning sektion 1"},null,null,null,{"$f":"IFERROR(INDEX(Forside!$O$17:$O$34,MATCH($K$9:$K$27,Forside!$L$17:$L$34,0)),\"\")","v":""}]
[null,null,null,null,null,null,null,null,null,"",{"$f":"INDEX(Links[ARKNAVN],ROW(K11)-ROW($K$9)+1)","v":"1.1"},{"$f":"HYPERLINK(INDEX(Links[LINK],MATCH(K11,Links[ARKNAVN],0)),INDEX(Links[OPGAVE],MATCH(K11,Links[ARKNAVN],0)))","v":"Ledelsesmæssige overvejelser"},null,null,null,{"$f":"IFERROR(INDEX(Forside!$O$17:$O$34,MATCH($K$9:$K$27,Forside!$L$17:$L$34,0)),\"\")","v":"Løst"}]
[null,null,null,null,null,null,null,null,null,"",{"$f":"INDEX(Links[ARKNAVN],ROW(K12)-ROW($K$9)+1)","v":"1.2"},{"$f":"HYPERLINK(INDEX(Links[LINK],MATCH(K12,Links[ARKNAVN],0)),INDEX(Links[OPGAVE],MATCH(K12,Links[ARKNAVN],0)))","v":"Antal pladser der flyttes ud"},null,null,null,{"$f":"IFERROR(INDEX(Forside!$O$17:$O$34,MATCH($K$9:$K$27,Forside!$L$17:$L$34,0)),\"\")","v":"Løst"}]
[null,null,null,null,null,null,null,null,null,"",{"$f":"INDEX(Links[ARKNAVN],ROW(K13)-ROW($K$9)+1)","v":"1.3"},{"$f":"HYPERLINK(INDEX(Links[LINK],MATCH(K13,Links[ARKNAVN],0)),INDEX(Links[OPGAVE],MATCH(K13,Links[ARKNAVN],0)))","v":"Antal pladser på nye udbud"},null,null,null,{"$f":"IFERROR(INDEX(Forside!$O$17:$O$34,MATCH($K$9:$K$27,Forside!$L$17:$L$34,0)),\"\")","v":"Ikke udfyldt"}]
[null,null,null,null,null,null,null,null,null,"",{"$f":"INDEX(Links[ARKNAVN],ROW(K14)-ROW($K$9)+1)","v":"1.4"},{"$f":"HYPERLINK(INDEX(Links[LINK],MATCH(K14,Links[ARKNAVN],0)),INDEX(Links[OPGAVE],MATCH(K14,Links[ARKNAVN],0)))","v":"Antal pladser der nedskaleres"},null,null,null,{"$f":"IFERROR(INDEX(Forside!$O$17:$O$34,MATCH($K$9:$K$27,Forside!$L$17:$L$34,0)),\"\")","v":"Løst"}]
[null,null,null,null,null,null,null,null,null,"",{"$f":"INDEX(Links[ARKNAVN],ROW(K15)-ROW($K$9)+1)","v":"1.5"},{"$f":"HYPERLINK(INDEX(Links[LINK],MATCH(K15,Links[ARKNAVN],0)),INDEX(Links[OPGAVE],MATCH(K15,Links[ARKNAVN],0)))","v":"Beskrivelse af regionale elementer"},null,null,null,{"$f":"IFERROR(INDEX(Forside!$O$17:$O$34,MATCH($K$9:$K$27,Forside!$L$17:$L$34,0)),\"\")","v":"Løst"}]
[null,null,null,null,null,null,null,null,null,"",{"$f":"INDEX(Links[ARKNAVN],ROW(K16)-ROW($K$9)+1)","v":"1.6"},{"$f":"HYPERLINK(INDEX(Links[LINK],MATCH(K16,Links[ARKNAVN],0)),INDEX(Links[OPGAVE],MATCH(K16,Links[ARKNAVN],0)))","v":"Tabel med regionale elementer"},null,null,null,{"$f":"IFERROR(INDEX(Forside!$O$17:$O$34,MATCH($K$9:$K$27,Forside!$L$17:$L$34,0)),\"\")","v":"Løst"}]
[null,null,null,null,null,null,null,null,null,"",{"$f":"INDEX(Links[ARKNAVN],ROW(K17)-ROW($K$9)+1)","v":"1.7"},{"$f":"HYPERLINK(INDEX(Links[LINK],MATCH(K17,Links[ARKNAVN],0)),INDEX(Links[OPGAVE],MATCH(K17,Links[ARKNAVN],0)))","v":"Beskrivelse af særlige hensyn"},null,null,null,{"$f":"IFERROR(INDEX(Forside!$O$17:$O$34,MATCH($K$9:$K$27,Forside!$L$17:$L$34,0)),\"\")","v":"Løst"}]
[null,null,null,null,null,null,null,null,null,"",{"$f":"INDEX(Links[ARKNAVN],ROW(K18)-ROW($K$9)+1)","v":"1.8"},{"$f":"HYPERLINK(INDEX(Links[LINK],MATCH(K18,Links[ARKNAVN],0)),INDEX(Links[OPGAVE],MATCH(K18,Links[ARKNAVN],0)))","v":"Tabel med særlige hensyn"},null,null,null,{"$f":"IFERROR(INDEX(Forside!$O$17:$O$34,MATCH($K$9:$K$27,Forside!$L$17:$L$34,0)),\"\")","v":"Løst"}]
[null,null,null,null,null,null,null,null,null,"",{"$f":"INDEX(Links[ARKNAVN],ROW(K19)-ROW($K$9)+1)","v":"1.9"},{"$f":"HYPERLINK(INDEX(Links[LINK],MATCH(K19,Links[ARKNAVN],0)),INDEX(Links[OPGAVE],MATCH(K19,Links[ARKNAVN],0)))","v":"Samarbejde med øvrige institutioner og/eller aktører"},null,null,null,{"$f":"IFERROR(INDEX(Forside!$O$17:$O$34,MATCH($K$9:$K$27,Forside!$L$17:$L$34,0)),\"\")","v":"Løst"}]
[null,null,null,null,null,null,null,null,null,"",{"$f":"INDEX(Links[ARKNAVN],ROW(K20)-ROW($K$9)+1)","v":"2.0"},{"$f":"HYPERLINK(INDEX(Links[LINK],MATCH(K20,Links[ARKNAVN],0)),INDEX(Links[OPGAVE],MATCH(K20,Links[ARKNAVN],0)))","v":"Indledning sektion 2"},null,null,null,{"$f":"IFERROR(INDEX(Forside!$O$17:$O$34,MATCH($K$9:$K$27,Forside!$L$17:$L$34,0)),\"\")","v":""}]
[null,null,null,null,null,null,null,null,null,"",{"$f":"INDEX(Links[ARKNAVN],ROW(K21)-ROW($K$9)+1)","v":"2.1"},{"$f":"HYPERLINK(INDEX(Links[LINK],MATCH(K21,Links[ARKNAVN],0)),INDEX(Links[OPGAVE],MATCH(K21,Links[ARKNAVN],0)))","v":"Plan for nye/udflyttede velfærdspladser"},null,null,null,{"$f":"IFERROR(INDEX(Forside!$O$17:$O$34,MATCH($K$9:$K$27,Forside!$L$17:$L$34,0)),\"\")","v":"Ej relevant"}]
[null,null,null,null,null,null,null,null,null,"",{"$f":"INDEX(Links[ARKNAVN],ROW(K22)-ROW($K$9)+1)","v":"2.2"},{"$f":"HYPERLINK(INDEX(Links[LINK],MATCH(K22,Links[ARKNAVN],0)),INDEX(Links[OPGAVE],MATCH(K22,Links[ARKNAVN],0)))","v":"Antal nye og/eller udflyttede velfærdspladser"},null,null,null,{"$f":"IFERROR(INDEX(Forside!$O$17:$O$34,MATCH($K$9:$K$27,Forside!$L$17:$L$34,0)),\"\")","v":"Ej relevant"}]
[null,null,null,null,null,null,null,null,null,"",{"$f":"INDEX(Links[ARKNAVN],ROW(K23)-ROW($K$9)+1)","v":"2.3"},{"$f":"HYPERLINK(INDEX(Links[LINK],MATCH(K23,Links[ARKNAVN],0)),INDEX(Links[OPGAVE],MATCH(K23,Links[ARKNAVN],0)))","v":"Overvejelser omkring praktikpladsbehovet"},null,null,null,{"$f":"IFERROR(INDEX(Forside!$O$17:$O$34,MATCH($K$9:$K$27,Forside!$L$17:$L$34,0)),\"\")","v":"Ej relevant"}]
[null,null,null,null,null,null,null,null,null,"",{"$f":"INDEX(Links[ARKNAVN],ROW(K24)-ROW($K$9)+1)","v":"2.4"},{"$f":"HYPERLINK(INDEX(Links[LINK],MATCH(K24,Links[ARKNAVN],0)),INDEX(Links[OPGAVE],MATCH(K24,Links[ARKNAVN],0)))","v":"Samarbejde med øvrige institutioner og/eller aktører"},null,null,null,{"$f":"IFERROR(INDEX(Forside!$O$17:$O$34,MATCH($K$9:$K$27,Forside!$L$17:$L$34,0)),\"\")","v":"Ej relevant"}]
[null,null,null,null,null,null,null,null,null,"",{"$f":"INDEX(Links[ARKNAVN],ROW(K25)-ROW($K$9)+1)","v":"3.0"},{"$f":"HYPERLINK(INDEX(Links[LINK],MATCH(K25,Links[ARKNAVN],0)),INDEX(Links[OPGAVE],MATCH(K25,Links[ARKNAVN],0)))","v":"Indledning sektion 3"},null,null,null,{"$f":"IFERROR(INDEX(Forside!$O$17:$O$34,MATCH($K$9:$K$27,Forside!$L$17:$L$34,0)),\"\")","v":""}]
[null,null,null,null,null,null,null,null,null,"",{"$f":"INDEX(Links[ARKNAVN],ROW(K26)-ROW($K$9)+1)","v":"3.1"},{"$f":"HYPERLINK(INDEX(Links[LINK],MATCH(K26,Links[ARKNAVN],0)),INDEX(Links[OPGAVE],MATCH(K26,Links[ARKNAVN],0)))","v":"Nye udbud"},null,null,null,{"$f":"IFERROR(INDEX(Forside!$O$17:$O$34,MATCH($K$9:$K$27,Forside!$L$17:$L$34,0)),\"\")","v":"Ej relevant"}]
[null,null,null,null,null,null,null,null,null,null,{"$f":"INDEX(Links[ARKNAVN],ROW(K27)-ROW($K$9)+1)","v":"3.2"},{"$f":"HYPERLINK(INDEX(Links[LINK],MATCH(K27,Links[ARKNAVN],0)),INDEX(Links[OPGAVE],MATCH(K27,Links[ARKNAVN],0)))","v":"Planlagte samarbejder eller overvejelser derom"},null,null,null,{"$f":"IFERROR(INDEX(Forside!$O$17:$O$34,MATCH($K$9:$K$27,Forside!$L$17:$L$34,0)),\"\")","v":"Ej relevant"}]
[]
[]
[null,null,null,null,null,null,null,null,null,"FORSIDE"]
[]
[]
[]
[]
[null,null,null,null,null,null,null,null,null,{"$f":"HYPERLINK(INDEX(Links[LINK],MATCH(RIGHT(CELL(\"filnavn\"),3),Links[ARKNAVN],0)-1),_xlfn.UNICHAR(231))","v":{"$error":"#N/A"}}]
[]
[]
[]
[]
[null,null,null,null,null,null,null,null,null,{"$f":"HYPERLINK(INDEX(Links[LINK],MATCH(RIGHT(CELL(\"filnavn\"),3),Links[ARKNAVN],0)+1),_xlfn.UNICHAR(232))","v":{"$error":"#N/A"}}]

{"sheet":"1.8","index":10,"n_rows":50,"n_cols":15,"rows_kept":50,"cut":false,"hidden":false,"merged":[[2,8,7,14],[29,8,32,14],[34,8,37,14],[39,8,42,14]]}
[]
[]
[null,null,null,null,null,null,null,null,"OVERSIGT"]
[]
[]
[]
[]
[]
[null,null,null,null,null,null,null,null,{"$f":"IF(RIGHT(CELL(\"filnavn\"),3)=J9,_xlfn.UNICHAR(159),\"\")","v":""},{"$f":"INDEX(Links[ARKNAVN],ROW(J9)-ROW($K$9)+1)","v":"0.0"},{"$f":"HYPERLINK(INDEX(Links[LINK],MATCH(J9,Links[ARKNAVN],0)),INDEX(Links[OPGAVE],MATCH(J9,Links[ARKNAVN],0)))","v":"Overordnede overvejelser om opgaven"},null,null,null,{"$f":"IFERROR(INDEX(Forside!$O$17:$O$34,MATCH($J$9:$J$27,Forside!$L$17:$L$34,0)),\"\")","v":"Løst"}]
[null,null,null,null,null,null,null,null,{"$f":"IF(RIGHT(CELL(\"filnavn\"),3)=J10,_xlfn.UNICHAR(159),\"\")","v":""},{"$f":"INDEX(Links[ARKNAVN],ROW(J10)-ROW($K$9)+1)","v":"1.0"},{"$f":"HYPERLINK(INDEX(Links[LINK],MATCH(J10,Links[ARKNAVN],0)),INDEX(Links[OPGAVE],MATCH(J10,Links[ARKNAVN],0)))","v":"Indledning sektion 1"},null,null,null,{"$f":"IFERROR(INDEX(Forside!$O$17:$O$34,MATCH($J$9:$J$27,Forside!$L$17:$L$34,0)),\"\")","v":""}]
[null,null,null,null,null,null,null,null,"",{"$f":"INDEX(Links[ARKNAVN],ROW(J11)-ROW($K$9)+1)","v":"1.1"},{"$f":"HYPERLINK(INDEX(Links[LINK],MATCH(J11,Links[ARKNAVN],0)),INDEX(Links[OPGAVE],MATCH(J11,Links[ARKNAVN],0)))","v":"Ledelsesmæssige overvejelser"},null,null,null,{"$f":"IFERROR(INDEX(Forside!$O$17:$O$34,MATCH($J$9:$J$27,Forside!$L$17:$L$34,0)),\"\")","v":"Løst"}]
[null,null,null,null,null,null,null,null,"",{"$f":"INDEX(Links[ARKNAVN],ROW(J12)-ROW($K$9)+1)","v":"1.2"},{"$f":"HYPERLINK(INDEX(Links[LINK],MATCH(J12,Links[ARKNAVN],0)),INDEX(Links[OPGAVE],MATCH(J12,Links[ARKNAVN],0)))","v":"Antal pladser der flyttes ud"},null,null,null,{"$f":"IFERROR(INDEX(Forside!$O$17:$O$34,MATCH($J$9:$J$27,Forside!$L$17:$L$34,0)),\"\")","v":"Løst"}]
[null,"Uddannelsesområde","Antal storbypladser","By/Område","Uddannelse","Beskrivelse",null,null,"",{"$f":"INDEX(Links[ARKNAVN],ROW(J13)-ROW($K$9)+1)","v":"1.3"},{"$f":"HYPERLINK(INDEX(Links[LINK],MATCH(J13,Links[ARKNAVN],0)),INDEX(Links[OPGAVE],MATCH(J13,Links[ARKNAVN],0)))","v":"Antal pladser på nye udbud"},null,null,null,{"$f":"IFERROR(INDEX(Forside!$O$17:$O$34,MATCH($J$9:$J$27,Forside!$L$17:$L$34,0)),\"\")","v":"Ikke udfyldt"}]
[{"$f":"SUMPRODUCT(--(B14:F14<>\"\"))","v":4},"Humaniora,  bach. og kandidat",150,"København","Sproguddannelser, Grønlandske og arktiske studier",null,null,null,"",{"$f":"INDEX(Links[ARKNAVN],ROW(J14)-ROW($K$9)+1)","v":"1.4"},{"$f":"HYPERLINK(INDEX(Links[LINK],MATCH(J14,Links[ARKNAVN],0)),INDEX(Links[OPGAVE],MATCH(J14,Links[ARKNAVN],0)))","v":"Antal pladser der nedskaleres"},null,null,null,{"$f":"IFERROR(INDEX(Forside!$O$17:$O$34,MATCH($J$9:$J$27,Forside!$L$17:$L$34,0)),\"\")","v":"Løst"}]
[4,"Sundhed, bach.",36,"København","Medicin",null,null,null,"",{"$f":"INDEX(Links[ARKNAVN],ROW(J15)-ROW($K$9)+1)","v":"1.5"},{"$f":"HYPERLINK(INDEX(Links[LINK],MATCH(J15,Links[ARKNAVN],0)),INDEX(Links[OPGAVE],MATCH(J15,Links[ARKNAVN],0)))","v":"Beskrivelse af regionale elementer"},null,null,null,{"$f":"IFERROR(INDEX(Forside!$O$17:$O$34,MATCH($J$9:$J$27,Forside!$L$17:$L$34,0)),\"\")","v":"Løst"}]
[4,"Sundhed, kandidat",28,"København","Medicin",null,null,null,"",{"$f":"INDEX(Links[ARKNAVN],ROW(J16)-ROW($K$9)+1)","v":"1.6"},{"$f":"HYPERLINK(INDEX(Links[LINK],MATCH(J16,Links[ARKNAVN],0)),INDEX(Links[OPGAVE],MATCH(J16,Links[ARKNAVN],0)))","v":"Tabel med regionale elementer"},null,null,null,{"$f":"IFERROR(INDEX(Forside!$O$17:$O$34,MATCH($J$9:$J$27,Forside!$L$17:$L$34,0)),\"\")","v":"Løst"}]
[4,"Natur, bach.",127,"København","fx STEM-uddannelser samt ny uddannelse i bioinformatik",null,null,null,"",{"$f":"INDEX(Links[ARKNAVN],ROW(J17)-ROW($K$9)+1)","v":"1.7"},{"$f":"HYPERLINK(INDEX(Links[LINK],MATCH(J17,Links[ARKNAVN],0)),INDEX(Links[OPGAVE],MATCH(J17,Links[ARKNAVN],0)))","v":"Beskrivelse af særlige hensyn"},null,null,null,{"$f":"IFERROR(INDEX(Forside!$O$17:$O$34,MATCH($J$9:$J$27,Forside!$L$17:$L$34,0)),\"\")","v":"Løst"}]
[4,"Natur, kandidat",165,"København","fx datalogi samt ny uddannelse i Quantum Information Science med DTU",null,null,null,"",{"$f":"INDEX(Links[ARKNAVN],ROW(J18)-ROW($K$9)+1)","v":"1.8"},{"$f":"HYPERLINK(INDEX(Links[LINK],MATCH(J18,Links[ARKNAVN],0)),INDEX(Links[OPGAVE],MATCH(J18,Links[ARKNAVN],0)))","v":"Tabel med særlige hensyn"},null,null,null,{"$f":"IFERROR(INDEX(Forside!$O$17:$O$34,MATCH($J$9:$J$27,Forside!$L$17:$L$34,0)),\"\")","v":"Løst"}]
[0,null,null,null,null,null,null,null,"",{"$f":"INDEX(Links[ARKNAVN],ROW(J19)-ROW($K$9)+1)","v":"1.9"},{"$f":"HYPERLINK(INDEX(Links[LINK],MATCH(J19,Links[ARKNAVN],0)),INDEX(Links[OPGAVE],MATCH(J19,Links[ARKNAVN],0)))","v":"Samarbejde med øvrige institutioner og/eller aktører"},null,null,null,{"$f":"IFERROR(INDEX(Forside!$O$17:$O$34,MATCH($J$9:$J$27,Forside!$L$17:$L$34,0)),\"\")","v":"Løst"}]
[0,null,null,null,null,null,null,null,"",{"$f":"INDEX(Links[ARKNAVN],ROW(J20)-ROW($K$9)+1)","v":"2.0"},{"$f":"HYPERLINK(INDEX(Links[LINK],MATCH(J20,Links[ARKNAVN],0)),INDEX(Links[OPGAVE],MATCH(J20,Links[ARKNAVN],0)))","v":"Indledning sektion 2"},null,null,null,{"$f":"IFERROR(INDEX(Forside!$O$17:$O$34,MATCH($J$9:$J$27,Forside!$L$17:$L$34,0)),\"\")","v":""}]
[0,null,null,null,null,null,null,null,"",{"$f":"INDEX(Links[ARKNAVN],ROW(J21)-ROW($K$9)+1)","v":"2.1"},{"$f":"HYPERLINK(INDEX(Links[LINK],MATCH(J21,Links[ARKNAVN],0)),INDEX(Links[OPGAVE],MATCH(J21,Links[ARKNAVN],0)))","v":"Plan for nye/udflyttede velfærdspladser"},null,null,null,{"$f":"IFERROR(INDEX(Forside!$O$17:$O$34,MATCH($J$9:$J$27,Forside!$L$17:$L$34,0)),\"\")","v":"Ej relevant"}]
[0,null,null,null,null,null,null,null,"",{"$f":"INDEX(Links[ARKNAVN],ROW(J22)-ROW($K$9)+1)","v":"2.2"},{"$f":"HYPERLINK(INDEX(Links[LINK],MATCH(J22,Links[ARKNAVN],0)),INDEX(Links[OPGAVE],MATCH(J22,Links[ARKNAVN],0)))","v":"Antal nye og/eller udflyttede velfærdspladser"},null,null,null,{"$f":"IFERROR(INDEX(Forside!$O$17:$O$34,MATCH($J$9:$J$27,Forside!$L$17:$L$34,0)),\"\")","v":"Ej relevant"}]
[0,null,null,null,null,null,null,null,"",{"$f":"INDEX(Links[ARKNAVN],ROW(J23)-ROW($K$9)+1)","v":"2.3"},{"$f":"HYPERLINK(INDEX(Links[LINK],MATCH(J23,Links[ARKNAVN],0)),INDEX(Links[OPGAVE],MATCH(J23,Links[ARKNAVN],0)))","v":"Overvejelser omkring praktikpladsbehovet"},null,null,null,{"$f":"IFERROR(INDEX(Forside!$O$17:$O$34,MATCH($J$9:$J$27,Forside!$L$17:$L$34,0)),\"\")","v":"Ej relevant"}]
[0,null,null,null,null,null,null,null,"",{"$f":"INDEX(Links[ARKNAVN],ROW(J24)-ROW($K$9)+1)","v":"2.4"},{"$f":"HYPERLINK(INDEX(Links[LINK],MATCH(J24,Links[ARKNAVN],0)),INDEX(Links[OPGAVE],MATCH(J24,Links[ARKNAVN],0)))","v":"Samarbejde med øvrige institutioner og/eller aktører"},null,null,null,{"$f":"IFERROR(INDEX(Forside!$O$17:$O$34,MATCH($J$9:$J$27,Forside!$L$17:$L$34,0)),\"\")","v":"Ej relevant"}]
[0,null,null,null,null,null,null,null,"",{"$f":"INDEX(Links[ARKNAVN],ROW(J25)-ROW($K$9)+1)","v":"3.0"},{"$f":"HYPERLINK(INDEX(Links[LINK],MATCH(J25,Links[ARKNAVN],0)),INDEX(Links[OPGAVE],MATCH(J25,Links[ARKNAVN],0)))","v":"Indledning sektion 3"},null,null,null,{"$f":"IFERROR(INDEX(Forside!$O$17:$O$34,MATCH($J$9:$J$27,Forside!$L$17:$L$34,0)),\"\")","v":""}]
[0,null,null,null,null,null,null,null,"",{"$f":"INDEX(Links[ARKNAVN],ROW(J26)-ROW($K$9)+1)","v":"3.1"},{"$f":"HYPERLINK(INDEX(Links[LINK],MATCH(J26,Links[ARKNAVN],0)),INDEX(Links[OPGAVE],MATCH(J26,Links[ARKNAVN],0)))","v":"Nye udbud"},null,null,null,{"$f":"IFERROR(INDEX(Forside!$O$17:$O$34,MATCH($J$9:$J$27,Forside!$L$17:$L$34,0)),\"\")","v":"Ej relevant"}]
[0,null,null,null,null,null,null,null,null,{"$f":"INDEX(Links[ARKNAVN],ROW(J27)-ROW($K$9)+1)","v":"3.2"},{"$f":"HYPERLINK(INDEX(Links[LINK],MATCH(J27,Links[ARKNAVN],0)),INDEX(Links[OPGAVE],MATCH(J27,Links[ARKNAVN],0)))","v":"Planlagte samarbejder eller overvejelser derom"},null,null,null,{"$f":"IFERROR(INDEX(Forside!$O$17:$O$34,MATCH($J$9:$J$27,Forside!$L$17:$L$34,0)),\"\")","v":"Ej relevant"}]
[{"$f":"SUMPRODUCT(--(B28:F28<>\"\"))","v":0}]
[0]
[0,null,null,null,null,null,null,null,"FORSIDE"]
[0]
[0]
[0]
[0]
[0,null,null,null,null,null,null,null,{"$f":"HYPERLINK(INDEX(Links[LINK],MATCH(RIGHT(CELL(\"filnavn\"),3),Links[ARKNAVN],0)-1),_xlfn.UNICHAR(231))","v":{"$error":"#N/A"}}]
[0]
[0]
[0]
[0]
[0,null,null,null,null,null,null,null,{"$f":"HYPERLINK(INDEX(Links[LINK],MATCH(RIGHT(CELL(\"filnavn\"),3),Links[ARKNAVN],0)+1),_xlfn.UNICHAR(232))","v":{"$error":"#N/A"}}]
[0]
[0]
[0]
[0]
[0]
[0]
[0]
[0]
[0]
[0]

{"sheet":"1.9","index":11,"n_rows":40,"n_cols":16,"rows_kept":40,"cut":false,"hidden":false,"merged":[[2,9,7,15],[29,9,32,15],[34,9,37,15],[39,9,42,15]]}
[]
[]
[null,null,null,null,null,null,null,null,null,"OVERSIGT"]
[]
[]
[]
[]
[]
[null,null,null,null,null,null,null,null,null,{"$f":"IF(RIGHT(CELL(\"filnavn\"),3)=K9,_xlfn.UNICHAR(159),\"\")","v":""},{"$f":"INDEX(Links[ARKNAVN],ROW(K9)-ROW($K$9)+1)","v":"0.0"},{"$f":"HYPERLINK(INDEX(Links[LINK],MATCH(K9,Links[ARKNAVN],0)),INDEX(Links[OPGAVE],MATCH(K9,Links[ARKNAVN],0)))","v":"Overordnede overvejelser om opgaven"},null,null,null,{"$f":"IFERROR(INDEX(Forside!$O$17:$O$34,MATCH($K$9:$K$27,Forside!$L$17:$L$34,0)),\"\")","v":"Løst"}]
[null,null,null,null,null,null,null,null,null,{"$f":"IF(RIGHT(CELL(\"filnavn\"),3)=K10,_xlfn.UNICHAR(159),\"\")","v":""},{"$f":"INDEX(Links[ARKNAVN],ROW(K10)-ROW($K$9)+1)","v":"1.0"},{"$f":"HYPERLINK(INDEX(Links[LINK],MATCH(K10,Links[ARKNAVN],0)),INDEX(Links[OPGAVE],MATCH(K10,Links[ARKNAVN],0)))","v":"Indledning sektion 1"},null,null,null,{"$f":"IFERROR(INDEX(Forside!$O$17:$O$34,MATCH($K$9:$K$27,Forside!$L$17:$L$34,0)),\"\")","v":""}]
[null,null,null,null,null,null,null,null,null,"",{"$f":"INDEX(Links[ARKNAVN],ROW(K11)-ROW($K$9)+1)","v":"1.1"},{"$f":"HYPERLINK(INDEX(Links[LINK],MATCH(K11,Links[ARKNAVN],0)),INDEX(Links[OPGAVE],MATCH(K11,Links[ARKNAVN],0)))","v":"Ledelsesmæssige overvejelser"},null,null,null,{"$f":"IFERROR(INDEX(Forside!$O$17:$O$34,MATCH($K$9:$K$27,Forside!$L$17:$L$34,0)),\"\")","v":"Løst"}]
[null,null,null,null,null,null,null,null,null,"",{"$f":"INDEX(Links[ARKNAVN],ROW(K12)-ROW($K$9)+1)","v":"1.2"},{"$f":"HYPERLINK(INDEX(Links[LINK],MATCH(K12,Links[ARKNAVN],0)),INDEX(Links[OPGAVE],MATCH(K12,Links[ARKNAVN],0)))","v":"Antal pladser der flyttes ud"},null,null,null,{"$f":"IFERROR(INDEX(Forside!$O$17:$O$34,MATCH($K$9:$K$27,Forside!$L$17:$L$34,0)),\"\")","v":"Løst"}]
[null,null,null,null,null,null,null,null,null,"",{"$f":"INDEX(Links[ARKNAVN],ROW(K13)-ROW($K$9)+1)","v":"1.3"},{"$f":"HYPERLINK(INDEX(Links[LINK],MATCH(K13,Links[ARKNAVN],0)),INDEX(Links[OPGAVE],MATCH(K13,Links[ARKNAVN],0)))","v":"Antal pladser på nye udbud"},null,null,null,{"$f":"IFERROR(INDEX(Forside!$O$17:$O$34,MATCH($K$9:$K$27,Forside!$L$17:$L$34,0)),\"\")","v":"Ikke udfyldt"}]
[null,null,null,null,null,null,null,null,null,"",{"$f":"INDEX(Links[ARKNAVN],ROW(K14)-ROW($K$9)+1)","v":"1.4"},{"$f":"HYPERLINK(INDEX(Links[LINK],MATCH(K14,Links[ARKNAVN],0)),INDEX(Links[OPGAVE],MATCH(K14,Links[ARKNAVN],0)))","v":"Antal pladser der nedskaleres"},null,null,null,{"$f":"IFERROR(INDEX(Forside!$O$17:$O$34,MATCH($K$9:$K$27,Forside!$L$17:$L$34,0)),\"\")","v":"Løst"}]
[null,null,null,null,null,null,null,null,null,"",{"$f":"INDEX(Links[ARKNAVN],ROW(K15)-ROW($K$9)+1)","v":"1.5"},{"$f":"HYPERLINK(INDEX(Links[LINK],MATCH(K15,Links[ARKNAVN],0)),INDEX(Links[OPGAVE],MATCH(K15,Links[ARKNAVN],0)))","v":"Beskrivelse af regionale elementer"},null,null,null,{"$f":"IFERROR(INDEX(Forside!$O$17:$O$34,MATCH($K$9:$K$27,Forside!$L$17:$L$34,0)),\"\")","v":"Løst"}]
[null,null,null,null,null,null,null,null,null,"",{"$f":"INDEX(Links[ARKNAVN],ROW(K16)-ROW($K$9)+1)","v":"1.6"},{"$f":"HYPERLINK(INDEX(Links[LINK],MATCH(K16,Links[ARKNAVN],0)),INDEX(Links[OPGAVE],MATCH(K16,Links[ARKNAVN],0)))","v":"Tabel med regionale elementer"},null,null,null,{"$f":"IFERROR(INDEX(Forside!$O$17:$O$34,MATCH($K$9:$K$27,Forside!$L$17:$L$34,0)),\"\")","v":"Løst"}]
[null,null,null,null,null,null,null,null,null,"",{"$f":"INDEX(Links[ARKNAVN],ROW(K17)-ROW($K$9)+1)","v":"1.7"},{"$f":"HYPERLINK(INDEX(Links[LINK],MATCH(K17,Links[ARKNAVN],0)),INDEX(Links[OPGAVE],MATCH(K17,Links[ARKNAVN],0)))","v":"Beskrivelse af særlige hensyn"},null,null,null,{"$f":"IFERROR(INDEX(Forside!$O$17:$O$34,MATCH($K$9:$K$27,Forside!$L$17:$L$34,0)),\"\")","v":"Løst"}]
[null,null,null,null,null,null,null,null,null,"",{"$f":"INDEX(Links[ARKNAVN],ROW(K18)-ROW($K$9)+1)","v":"1.8"},{"$f":"HYPERLINK(INDEX(Links[LINK],MATCH(K18,Links[ARKNAVN],0)),INDEX(Links[OPGAVE],MATCH(K18,Links[ARKNAVN],0)))","v":"Tabel med særlige hensyn"},null,null,null,{"$f":"IFERROR(INDEX(Forside!$O$17:$O$34,MATCH($K$9:$K$27,Forside!$L$17:$L$34,0)),\"\")","v":"Løst"}]
[null,null,null,null,null,null,null,null,null,"",{"$f":"INDEX(Links[ARKNAVN],ROW(K19)-ROW($K$9)+1)","v":"1.9"},{"$f":"HYPERLINK(INDEX(Links[LINK],MATCH(K19,Links[ARKNAVN],0)),INDEX(Links[OPGAVE],MATCH(K19,Links[ARKNAVN],0)))","v":"Samarbejde med øvrige institutioner og/eller aktører"},null,null,null,{"$f":"IFERROR(INDEX(Forside!$O$17:$O$34,MATCH($K$9:$K$27,Forside!$L$17:$L$34,0)),\"\")","v":"Løst"}]
[null,null,null,null,null,null,null,null,null,"",{"$f":"INDEX(Links[ARKNAVN],ROW(K20)-ROW($K$9)+1)","v":"2.0"},{"$f":"HYPERLINK(INDEX(Links[LINK],MATCH(K20,Links[ARKNAVN],0)),INDEX(Links[OPGAVE],MATCH(K20,Links[ARKNAVN],0)))","v":"Indledning sektion 2"},null,null,null,{"$f":"IFERROR(INDEX(Forside!$O$17:$O$34,MATCH($K$9:$K$27,Forside!$L$17:$L$34,0)),\"\")","v":""}]
[null,null,null,null,null,null,null,null,null,"",{"$f":"INDEX(Links[ARKNAVN],ROW(K21)-ROW($K$9)+1)","v":"2.1"},{"$f":"HYPERLINK(INDEX(Links[LINK],MATCH(K21,Links[ARKNAVN],0)),INDEX(Links[OPGAVE],MATCH(K21,Links[ARKNAVN],0)))","v":"Plan for nye/udflyttede velfærdspladser"},null,null,null,{"$f":"IFERROR(INDEX(Forside!$O$17:$O$34,MATCH($K$9:$K$27,Forside!$L$17:$L$34,0)),\"\")","v":"Ej relevant"}]
[null,null,null,null,null,null,null,null,null,"",{"$f":"INDEX(Links[ARKNAVN],ROW(K22)-ROW($K$9)+1)","v":"2.2"},{"$f":"HYPERLINK(INDEX(Links[LINK],MATCH(K22,Links[ARKNAVN],0)),INDEX(Links[OPGAVE],MATCH(K22,Links[ARKNAVN],0)))","v":"Antal nye og/eller udflyttede velfærdspladser"},null,null,null,{"$f":"IFERROR(INDEX(Forside!$O$17:$O$34,MATCH($K$9:$K$27,Forside!$L$17:$L$34,0)),\"\")","v":"Ej relevant"}]
[null,null,null,null,null,null,null,null,null,"",{"$f":"INDEX(Links[ARKNAVN],ROW(K23)-ROW($K$9)+1)","v":"2.3"},{"$f":"HYPERLINK(INDEX(Links[LINK],MATCH(K23,Links[ARKNAVN],0)),INDEX(Links[OPGAVE],MATCH(K23,Links[ARKNAVN],0)))","v":"Overvejelser omkring praktikpladsbehovet"},null,null,null,{"$f":"IFERROR(INDEX(Forside!$O$17:$O$34,MATCH($K$9:$K$27,Forside!$L$17:$L$34,0)),\"\")","v":"Ej relevant"}]
[null,null,null,null,null,null,null,null,null,"",{"$f":"INDEX(Links[ARKNAVN],ROW(K24)-ROW($K$9)+1)","v":"2.4"},{"$f":"HYPERLINK(INDEX(Links[LINK],MATCH(K24,Links[ARKNAVN],0)),INDEX(Links[OPGAVE],MATCH(K24,Links[ARKNAVN],0)))","v":"Samarbejde med øvrige institutioner og/eller aktører"},null,null,null,{"$f":"IFERROR(INDEX(Forside!$O$17:$O$34,MATCH($K$9:$K$27,Forside!$L$17:$L$34,0)),\"\")","v":"Ej relevant"}]
[null,null,null,null,null,null,null,null,null,"",{"$f":"INDEX(Links[ARKNAVN],ROW(K25)-ROW($K$9)+1)","v":"3.0"},{"$f":"HYPERLINK(INDEX(Links[LINK],MATCH(K25,Links[ARKNAVN],0)),INDEX(Links[OPGAVE],MATCH(K25,Links[ARKNAVN],0)))","v":"Indledning sektion 3"},null,null,null,{"$f":"IFERROR(INDEX(Forside!$O$17:$O$34,MATCH($K$9:$K$27,Forside!$L$17:$L$34,0)),\"\")","v":""}]
[null,null,null,null,null,null,null,null,null,"",{"$f":"INDEX(Links[ARKNAVN],ROW(K26)-ROW($K$9)+1)","v":"3.1"},{"$f":"HYPERLINK(INDEX(Links[LINK],MATCH(K26,Links[ARKNAVN],0)),INDEX(Links[OPGAVE],MATCH(K26,Links[ARKNAVN],0)))","v":"Nye udbud"},null,null,null,{"$f":"IFERROR(INDEX(Forside!$O$17:$O$34,MATCH($K$9:$K$27,Forside!$L$17:$L$34,0)),\"\")","v":"Ej relevant"}]
[null,null,null,null,null,null,null,null,null,null,{"$f":"INDEX(Links[ARKNAVN],ROW(K27)-ROW($K$9)+1)","v":"3.2"},{"$f":"HYPERLINK(INDEX(Links[LINK],MATCH(K27,Links[ARKNAVN],0)),INDEX(Links[OPGAVE],MATCH(K27,Links[ARKNAVN],0)))","v":"Planlagte samarbejder eller overvejelser derom"},null,null,null,{"$f":"IFERROR(INDEX(Forside!$O$17:$O$34,MATCH($K$9:$K$27,Forside!$L$17:$L$34,0)),\"\")","v":"Ej relevant"}]
[]
[]
[null,null,null,null,null,null,null,null,null,"FORSIDE"]
[]
[]
[]
[]
[null,null,null,null,null,null,null,null,null,{"$f":"HYPERLINK(INDEX(Links[LINK],MATCH(RIGHT(CELL(\"filnavn\"),3),Links[ARKNAVN],0)-1),_xlfn.UNICHAR(231))","v":{"$error":"#N/A"}}]
[]
[]
[]
[]
[null,null,null,null,null,null,null,null,null,{"$f":"HYPERLINK(INDEX(Links[LINK],MATCH(RIGHT(CELL(\"filnavn\"),3),Links[ARKNAVN],0)+1),_xlfn.UNICHAR(232))","v":{"$error":"#N/A"}}]

{"sheet":"2.0","index":12,"n_rows":40,"n_cols":16,"rows_kept":40,"cut":false,"hidden":false,"merged":[[2,9,7,15],[29,9,32,15],[34,9,37,15],[39,9,42,15]]}
[]
[]
[null,null,null,null,null,null,null,null,null,"OVERSIGT"]
[]
[]
[]
[]
[]
[null,null,null,null,null,null,null,null,null,{"$f":"IF(RIGHT(CELL(\"filnavn\"),3)=K9,_xlfn.UNICHAR(159),\"\")","v":""},{"$f":"INDEX(Links[ARKNAVN],ROW(K9)-ROW($K$9)+1)","v":"0.0"},{"$f":"HYPERLINK(INDEX(Links[LINK],MATCH(K9,Links[ARKNAVN],0)),INDEX(Links[OPGAVE],MATCH(K9,Links[ARKNAVN],0)))","v":"Overordnede overvejelser om opgaven"},null,null,null,{"$f":"IFERROR(INDEX(Forside!$O$17:$O$34,MATCH($K$9:$K$27,Forside!$L$17:$L$34,0)),\"\")","v":"Løst"}]
[null,null,null,null,null,null,null,null,null,{"$f":"IF(RIGHT(CELL(\"filnavn\"),3)=K10,_xlfn.UNICHAR(159),\"\")","v":""},{"$f":"INDEX(Links[ARKNAVN],ROW(K10)-ROW($K$9)+1)","v":"1.0"},{"$f":"HYPERLINK(INDEX(Links[LINK],MATCH(K10,Links[ARKNAVN],0)),INDEX(Links[OPGAVE],MATCH(K10,Links[ARKNAVN],0)))","v":"Indledning sektion 1"},null,null,null,{"$f":"IFERROR(INDEX(Forside!$O$17:$O$34,MATCH($K$9:$K$27,Forside!$L$17:$L$34,0)),\"\")","v":""}]
[null,null,null,null,null,null,null,null,null,"",{"$f":"INDEX(Links[ARKNAVN],ROW(K11)-ROW($K$9)+1)","v":"1.1"},{"$f":"HYPERLINK(INDEX(Links[LINK],MATCH(K11,Links[ARKNAVN],0)),INDEX(Links[OPGAVE],MATCH(K11,Links[ARKNAVN],0)))","v":"Ledelsesmæssige overvejelser"},null,null,null,{"$f":"IFERROR(INDEX(Forside!$O$17:$O$34,MATCH($K$9:$K$27,Forside!$L$17:$L$34,0)),\"\")","v":"Løst"}]
[null,null,null,null,null,null,null,null,null,"",{"$f":"INDEX(Links[ARKNAVN],ROW(K12)-ROW($K$9)+1)","v":"1.2"},{"$f":"HYPERLINK(INDEX(Links[LINK],MATCH(K12,Links[ARKNAVN],0)),INDEX(Links[OPGAVE],MATCH(K12,Links[ARKNAVN],0)))","v":"Antal pladser der flyttes ud"},null,null,null,{"$f":"IFERROR(INDEX(Forside!$O$17:$O$34,MATCH($K$9:$K$27,Forside!$L$17:$L$34,0)),\"\")","v":"Løst"}]
[null,null,null,null,null,null,null,null,null,"",{"$f":"INDEX(Links[ARKNAVN],ROW(K13)-ROW($K$9)+1)","v":"1.3"},{"$f":"HYPERLINK(INDEX(Links[LINK],MATCH(K13,Links[ARKNAVN],0)),INDEX(Links[OPGAVE],MATCH(K13,Links[ARKNAVN],0)))","v":"Antal pladser på nye udbud"},null,null,null,{"$f":"IFERROR(INDEX(Forside!$O$17:$O$34,MATCH($K$9:$K$27,Forside!$L$17:$L$34,0)),\"\")","v":"Ikke udfyldt"}]
[null,null,null,null,null,null,null,null,null,"",{"$f":"INDEX(Links[ARKNAVN],ROW(K14)-ROW($K$9)+1)","v":"1.4"},{"$f":"HYPERLINK(INDEX(Links[LINK],MATCH(K14,Links[ARKNAVN],0)),INDEX(Links[OPGAVE],MATCH(K14,Links[ARKNAVN],0)))","v":"Antal pladser der nedskaleres"},null,null,null,{"$f":"IFERROR(INDEX(Forside!$O$17:$O$34,MATCH($K$9:$K$27,Forside!$L$17:$L$34,0)),\"\")","v":"Løst"}]
[null,null,null,null,null,null,null,null,null,"",{"$f":"INDEX(Links[ARKNAVN],ROW(K15)-ROW($K$9)+1)","v":"1.5"},{"$f":"HYPERLINK(INDEX(Links[LINK],MATCH(K15,Links[ARKNAVN],0)),INDEX(Links[OPGAVE],MATCH(K15,Links[ARKNAVN],0)))","v":"Beskrivelse af regionale elementer"},null,null,null,{"$f":"IFERROR(INDEX(Forside!$O$17:$O$34,MATCH($K$9:$K$27,Forside!$L$17:$L$34,0)),\"\")","v":"Løst"}]
[null,null,null,null,null,null,null,null,null,"",{"$f":"INDEX(Links[ARKNAVN],ROW(K16)-ROW($K$9)+1)","v":"1.6"},{"$f":"HYPERLINK(INDEX(Links[LINK],MATCH(K16,Links[ARKNAVN],0)),INDEX(Links[OPGAVE],MATCH(K16,Links[ARKNAVN],0)))","v":"Tabel med regionale elementer"},null,null,null,{"$f":"IFERROR(INDEX(Forside!$O$17:$O$34,MATCH($K$9:$K$27,Forside!$L$17:$L$34,0)),\"\")","v":"Løst"}]
[null,null,null,null,null,null,null,null,null,"",{"$f":"INDEX(Links[ARKNAVN],ROW(K17)-ROW($K$9)+1)","v":"1.7"},{"$f":"HYPERLINK(INDEX(Links[LINK],MATCH(K17,Links[ARKNAVN],0)),INDEX(Links[OPGAVE],MATCH(K17,Links[ARKNAVN],0)))","v":"Beskrivelse af særlige hensyn"},null,null,null,{"$f":"IFERROR(INDEX(Forside!$O$17:$O$34,MATCH($K$9:$K$27,Forside!$L$17:$L$34,0)),\"\")","v":"Løst"}]
[null,null,null,null,null,null,null,null,null,"",{"$f":"INDEX(Links[ARKNAVN],ROW(K18)-ROW($K$9)+1)","v":"1.8"},{"$f":"HYPERLINK(INDEX(Links[LINK],MATCH(K18,Links[ARKNAVN],0)),INDEX(Links[OPGAVE],MATCH(K18,Links[ARKNAVN],0)))","v":"Tabel med særlige hensyn"},null,null,null,{"$f":"IFERROR(INDEX(Forside!$O$17:$O$34,MATCH($K$9:$K$27,Forside!$L$17:$L$34,0)),\"\")","v":"Løst"}]
[null,null,null,null,null,null,null,null,null,"",{"$f":"INDEX(Links[ARKNAVN],ROW(K19)-ROW($K$9)+1)","v":"1.9"},{"$f":"HYPERLINK(INDEX(Links[LINK],MATCH(K19,Links[ARKNAVN],0)),INDEX(Links[OPGAVE],MATCH(K19,Links[ARKNAVN],0)))","v":"Samarbejde med øvrige institutioner og/eller aktører"},null,null,null,{"$f":"IFERROR(INDEX(Forside!$O$17:$O$34,MATCH($K$9:$K$27,Forside!$L$17:$L$34,0)),\"\")","v":"Løst"}]
[null,null,null,null,null,null,null,null,null,"",{"$f":"INDEX(Links[ARKNAVN],ROW(K20)-ROW($K$9)+1)","v":"2.0"},{"$f":"HYPERLINK(INDEX(Links[LINK],MATCH(K20,Links[ARKNAVN],0)),INDEX(Links[OPGAVE],MATCH(K20,Links[ARKNAVN],0)))","v":"Indledning sektion 2"},null,null,null,{"$f":"IFERROR(INDEX(Forside!$O$17:$O$34,MATCH($K$9:$K$27,Forside!$L$17:$L$34,0)),\"\")","v":""}]
[null,null,null,null,null,null,null,null,null,"",{"$f":"INDEX(Links[ARKNAVN],ROW(K21)-ROW($K$9)+1)","v":"2.1"},{"$f":"HYPERLINK(INDEX(Links[LINK],MATCH(K21,Links[ARKNAVN],0)),INDEX(Links[OPGAVE],MATCH(K21,Links[ARKNAVN],0)))","v":"Plan for nye/udflyttede velfærdspladser"},null,null,null,{"$f":"IFERROR(INDEX(Forside!$O$17:$O$34,MATCH($K$9:$K$27,Forside!$L$17:$L$34,0)),\"\")","v":"Ej relevant"}]
[null,null,null,null,null,null,null,null,null,"",{"$f":"INDEX(Links[ARKNAVN],ROW(K22)-ROW($K$9)+1)","v":"2.2"},{"$f":"HYPERLINK(INDEX(Links[LINK],MATCH(K22,Links[ARKNAVN],0)),INDEX(Links[OPGAVE],MATCH(K22,Links[ARKNAVN],0)))","v":"Antal nye og/eller udflyttede velfærdspladser"},null,null,null,{"$f":"IFERROR(INDEX(Forside!$O$17:$O$34,MATCH($K$9:$K$27,Forside!$L$17:$L$34,0)),\"\")","v":"Ej relevant"}]
[null,null,null,null,null,null,null,null,null,"",{"$f":"INDEX(Links[ARKNAVN],ROW(K23)-ROW($K$9)+1)","v":"2.3"},{"$f":"HYPERLINK(INDEX(Links[LINK],MATCH(K23,Links[ARKNAVN],0)),INDEX(Links[OPGAVE],MATCH(K23,Links[ARKNAVN],0)))","v":"Overvejelser omkring praktikpladsbehovet"},null,null,null,{"$f":"IFERROR(INDEX(Forside!$O$17:$O$34,MATCH($K$9:$K$27,Forside!$L$17:$L$34,0)),\"\")","v":"Ej relevant"}]
[null,null,null,null,null,null,null,null,null,"",{"$f":"INDEX(Links[ARKNAVN],ROW(K24)-ROW($K$9)+1)","v":"2.4"},{"$f":"HYPERLINK(INDEX(Links[LINK],MATCH(K24,Links[ARKNAVN],0)),INDEX(Links[OPGAVE],MATCH(K24,Links[ARKNAVN],0)))","v":"Samarbejde med øvrige institutioner og/eller aktører"},null,null,null,{"$f":"IFERROR(INDEX(Forside!$O$17:$O$34,MATCH($K$9:$K$27,Forside!$L$17:$L$34,0)),\"\")","v":"Ej relevant"}]
[null,null,null,null,null,null,null,null,null,"",{"$f":"INDEX(Links[ARKNAVN],ROW(K25)-ROW($K$9)+1)","v":"3.0"},{"$f":"HYPERLINK(INDEX(Links[LINK],MATCH(K25,Links[ARKNAVN],0)),INDEX(Links[OPGAVE],MATCH(K25,Links[ARKNAVN],0)))","v":"Indledning sektion 3"},null,null,null,{"$f":"IFERROR(INDEX(Forside!$O$17:$O$34,MATCH($K$9:$K$27,Forside!$L$17:$L$34,0)),\"\")","v":""}]
[null,null,null,null,null,null,null,null,null,"",{"$f":"INDEX(Links[ARKNAVN],ROW(K26)-ROW($K$9)+1)","v":"3.1"},{"$f":"HYPERLINK(INDEX(Links[LINK],MATCH(K26,Links[ARKNAVN],0)),INDEX(Links[OPGAVE],MATCH(K26,Links[ARKNAVN],0)))","v":"Nye udbud"},null,null,null,{"$f":"IFERROR(INDEX(Forside!$O$17:$O$34,MATCH($K$9:$K$27,Forside!$L$17:$L$34,0)),\"\")","v":"Ej relevant"}]
[null,null,null,null,null,null,null,null,null,null,{"$f":"INDEX(Links[ARKNAVN],ROW(K27)-ROW($K$9)+1)","v":"3.2"},{"$f":"HYPERLINK(INDEX(Links[LINK],MATCH(K27,Links[ARKNAVN],0)),INDEX(Links[OPGAVE],MATCH(K27,Links[ARKNAVN],0)))","v":"Planlagte samarbejder eller overvejelser derom"},null,null,null,{"$f":"IFERROR(INDEX(Forside!$O$17:$O$34,MATCH($K$9:$K$27,Forside!$L$17:$L$34,0)),\"\")","v":"Ej relevant"}]
[]
[]
[null,null,null,null,null,null,null,null,null,"FORSIDE"]
[]
[]
[]
[]
[null,null,null,null,null,null,null,null,null,{"$f":"HYPERLINK(INDEX(Links[LINK],MATCH(RIGHT(CELL(\"filnavn\"),3),Links[ARKNAVN],0)-1),_xlfn.UNICHAR(231))","v":{"$error":"#N/A"}}]
[]
[]
[]
[]
[null,null,null,null,null,null,null,null,null,{"$f":"HYPERLINK(INDEX(Links[LINK],MATCH(RIGHT(CELL(\"filnavn\"),3),Links[ARKNAVN],0)+1),_xlfn.UNICHAR(232))","v":{"$error":"#N/A"}}]

{"sheet":"2.1","index":13,"n_rows":40,"n_cols":16,"rows_kept":40,"cut":false,"hidden":false,"merged":[[2,9,7,15],[29,9,32,15],[34,9,37,15],[39,9,42,15]]}
[]
[]
[null,null,null,null,null,null,null,null,null,"OVERSIGT"]
[]
[]
[]
[]
[]
[null,null,null,null,null,null,null,null,null,{"$f":"IF(RIGHT(CELL(\"filnavn\"),3)=K9,_xlfn.UNICHAR(159),\"\")","v":""},{"$f":"INDEX(Links[ARKNAVN],ROW(K9)-ROW($K$9)+1)","v":"0.0"},{"$f":"HYPERLINK(INDEX(Links[LINK],MATCH(K9,Links[ARKNAVN],0)),INDEX(Links[OPGAVE],MATCH(K9,Links[ARKNAVN],0)))","v":"Overordnede overvejelser om opgaven"},null,null,null,{"$f":"IFERROR(INDEX(Forside!$O$17:$O$34,MATCH($K$9:$K$27,Forside!$L$17:$L$34,0)),\"\")","v":"Løst"}]
[null,null,null,null,null,null,null,null,null,{"$f":"IF(RIGHT(CELL(\"filnavn\"),3)=K10,_xlfn.UNICHAR(159),\"\")","v":""},{"$f":"INDEX(Links[ARKNAVN],ROW(K10)-ROW($K$9)+1)","v":"1.0"},{"$f":"HYPERLINK(INDEX(Links[LINK],MATCH(K10,Links[ARKNAVN],0)),INDEX(Links[OPGAVE],MATCH(K10,Links[ARKNAVN],0)))","v":"Indledning sektion 1"},null,null,null,{"$f":"IFERROR(INDEX(Forside!$O$17:$O$34,MATCH($K$9:$K$27,Forside!$L$17:$L$34,0)),\"\")","v":""}]
[null,null,null,null,null,null,null,null,null,"",{"$f":"INDEX(Links[ARKNAVN],ROW(K11)-ROW($K$9)+1)","v":"1.1"},{"$f":"HYPERLINK(INDEX(Links[LINK],MATCH(K11,Links[ARKNAVN],0)),INDEX(Links[OPGAVE],MATCH(K11,Links[ARKNAVN],0)))","v":"Ledelsesmæssige overvejelser"},null,null,null,{"$f":"IFERROR(INDEX(Forside!$O$17:$O$34,MATCH($K$9:$K$27,Forside!$L$17:$L$34,0)),\"\")","v":"Løst"}]
[null,null,null,null,null,null,null,null,null,"",{"$f":"INDEX(Links[ARKNAVN],ROW(K12)-ROW($K$9)+1)","v":"1.2"},{"$f":"HYPERLINK(INDEX(Links[LINK],MATCH(K12,Links[ARKNAVN],0)),INDEX(Links[OPGAVE],MATCH(K12,Links[ARKNAVN],0)))","v":"Antal pladser der flyttes ud"},null,null,null,{"$f":"IFERROR(INDEX(Forside!$O$17:$O$34,MATCH($K$9:$K$27,Forside!$L$17:$L$34,0)),\"\")","v":"Løst"}]
[null,null,null,null,null,null,null,null,null,"",{"$f":"INDEX(Links[ARKNAVN],ROW(K13)-ROW($K$9)+1)","v":"1.3"},{"$f":"HYPERLINK(INDEX(Links[LINK],MATCH(K13,Links[ARKNAVN],0)),INDEX(Links[OPGAVE],MATCH(K13,Links[ARKNAVN],0)))","v":"Antal pladser på nye udbud"},null,null,null,{"$f":"IFERROR(INDEX(Forside!$O$17:$O$34,MATCH($K$9:$K$27,Forside!$L$17:$L$34,0)),\"\")","v":"Ikke udfyldt"}]
[null,null,null,null,null,null,null,null,null,"",{"$f":"INDEX(Links[ARKNAVN],ROW(K14)-ROW($K$9)+1)","v":"1.4"},{"$f":"HYPERLINK(INDEX(Links[LINK],MATCH(K14,Links[ARKNAVN],0)),INDEX(Links[OPGAVE],MATCH(K14,Links[ARKNAVN],0)))","v":"Antal pladser der nedskaleres"},null,null,null,{"$f":"IFERROR(INDEX(Forside!$O$17:$O$34,MATCH($K$9:$K$27,Forside!$L$17:$L$34,0)),\"\")","v":"Løst"}]
[null,null,null,null,null,null,null,null,null,"",{"$f":"INDEX(Links[ARKNAVN],ROW(K15)-ROW($K$9)+1)","v":"1.5"},{"$f":"HYPERLINK(INDEX(Links[LINK],MATCH(K15,Links[ARKNAVN],0)),INDEX(Links[OPGAVE],MATCH(K15,Links[ARKNAVN],0)))","v":"Beskrivelse af regionale elementer"},null,null,null,{"$f":"IFERROR(INDEX(Forside!$O$17:$O$34,MATCH($K$9:$K$27,Forside!$L$17:$L$34,0)),\"\")","v":"Løst"}]
[null,null,null,null,null,null,null,null,null,"",{"$f":"INDEX(Links[ARKNAVN],ROW(K16)-ROW($K$9)+1)","v":"1.6"},{"$f":"HYPERLINK(INDEX(Links[LINK],MATCH(K16,Links[ARKNAVN],0)),INDEX(Links[OPGAVE],MATCH(K16,Links[ARKNAVN],0)))","v":"Tabel med regionale elementer"},null,null,null,{"$f":"IFERROR(INDEX(Forside!$O$17:$O$34,MATCH($K$9:$K$27,Forside!$L$17:$L$34,0)),\"\")","v":"Løst"}]
[null,null,null,null,null,null,null,null,null,"",{"$f":"INDEX(Links[ARKNAVN],ROW(K17)-ROW($K$9)+1)","v":"1.7"},{"$f":"HYPERLINK(INDEX(Links[LINK],MATCH(K17,Links[ARKNAVN],0)),INDEX(Links[OPGAVE],MATCH(K17,Links[ARKNAVN],0)))","v":"Beskrivelse af særlige hensyn"},null,null,null,{"$f":"IFERROR(INDEX(Forside!$O$17:$O$34,MATCH($K$9:$K$27,Forside!$L$17:$L$34,0)),\"\")","v":"Løst"}]
[null,null,null,null,null,null,null,null,null,"",{"$f":"INDEX(Links[ARKNAVN],ROW(K18)-ROW($K$9)+1)","v":"1.8"},{"$f":"HYPERLINK(INDEX(Links[LINK],MATCH(K18,Links[ARKNAVN],0)),INDEX(Links[OPGAVE],MATCH(K18,Links[ARKNAVN],0)))","v":"Tabel med særlige hensyn"},null,null,null,{"$f":"IFERROR(INDEX(Forside!$O$17:$O$34,MATCH($K$9:$K$27,Forside!$L$17:$L$34,0)),\"\")","v":"Løst"}]
[null,null,null,null,null,null,null,null,null,"",{"$f":"INDEX(Links[ARKNAVN],ROW(K19)-ROW($K$9)+1)","v":"1.9"},{"$f":"HYPERLINK(INDEX(Links[LINK],MATCH(K19,Links[ARKNAVN],0)),INDEX(Links[OPGAVE],MATCH(K19,Links[ARKNAVN],0)))","v":"Samarbejde med øvrige institutioner og/eller aktører"},null,null,null,{"$f":"IFERROR(INDEX(Forside!$O$17:$O$34,MATCH($K$9:$K$27,Forside!$L$17:$L$34,0)),\"\")","v":"Løst"}]
[null,null,null,null,null,null,null,null,null,"",{"$f":"INDEX(Links[ARKNAVN],ROW(K20)-ROW($K$9)+1)","v":"2.0"},{"$f":"HYPERLINK(INDEX(Links[LINK],MATCH(K20,Links[ARKNAVN],0)),INDEX(Links[OPGAVE],MATCH(K20,Links[ARKNAVN],0)))","v":"Indledning sektion 2"},null,null,null,{"$f":"IFERROR(INDEX(Forside!$O$17:$O$34,MATCH($K$9:$K$27,Forside!$L$17:$L$34,0)),\"\")","v":""}]
[null,null,null,null,null,null,null,null,null,"",{"$f":"INDEX(Links[ARKNAVN],ROW(K21)-ROW($K$9)+1)","v":"2.1"},{"$f":"HYPERLINK(INDEX(Links[LINK],MATCH(K21,Links[ARKNAVN],0)),INDEX(Links[OPGAVE],MATCH(K21,Links[ARKNAVN],0)))","v":"Plan for nye/udflyttede velfærdspladser"},null,null,null,{"$f":"IFERROR(INDEX(Forside!$O$17:$O$34,MATCH($K$9:$K$27,Forside!$L$17:$L$34,0)),\"\")","v":"Ej relevant"}]
[null,null,null,null,null,null,null,null,null,"",{"$f":"INDEX(Links[ARKNAVN],ROW(K22)-ROW($K$9)+1)","v":"2.2"},{"$f":"HYPERLINK(INDEX(Links[LINK],MATCH(K22,Links[ARKNAVN],0)),INDEX(Links[OPGAVE],MATCH(K22,Links[ARKNAVN],0)))","v":"Antal nye og/eller udflyttede velfærdspladser"},null,null,null,{"$f":"IFERROR(INDEX(Forside!$O$17:$O$34,MATCH($K$9:$K$27,Forside!$L$17:$L$34,0)),\"\")","v":"Ej relevant"}]
[null,null,null,null,null,null,null,null,null,"",{"$f":"INDEX(Links[ARKNAVN],ROW(K23)-ROW($K$9)+1)","v":"2.3"},{"$f":"HYPERLINK(INDEX(Links[LINK],MATCH(K23,Links[ARKNAVN],0)),INDEX(Links[OPGAVE],MATCH(K23,Links[ARKNAVN],0)))","v":"Overvejelser omkring praktikpladsbehovet"},null,null,null,{"$f":"IFERROR(INDEX(Forside!$O$17:$O$34,MATCH($K$9:$K$27,Forside!$L$17:$L$34,0)),\"\")","v":"Ej relevant"}]
[null,null,null,null,null,null,null,null,null,"",{"$f":"INDEX(Links[ARKNAVN],ROW(K24)-ROW($K$9)+1)","v":"2.4"},{"$f":"HYPERLINK(INDEX(Links[LINK],MATCH(K24,Links[ARKNAVN],0)),INDEX(Links[OPGAVE],MATCH(K24,Links[ARKNAVN],0)))","v":"Samarbejde med øvrige institutioner og/eller aktører"},null,null,null,{"$f":"IFERROR(INDEX(Forside!$O$17:$O$34,MATCH($K$9:$K$27,Forside!$L$17:$L$34,0)),\"\")","v":"Ej relevant"}]
[null,null,null,null,null,null,null,null,null,"",{"$f":"INDEX(Links[ARKNAVN],ROW(K25)-ROW($K$9)+1)","v":"3.0"},{"$f":"HYPERLINK(INDEX(Links[LINK],MATCH(K25,Links[ARKNAVN],0)),INDEX(Links[OPGAVE],MATCH(K25,Links[ARKNAVN],0)))","v":"Indledning sektion 3"},null,null,null,{"$f":"IFERROR(INDEX(Forside!$O$17:$O$34,MATCH($K$9:$K$27,Forside!$L$17:$L$34,0)),\"\")","v":""}]
[null,null,null,null,null,null,null,null,null,"",{"$f":"INDEX(Links[ARKNAVN],ROW(K26)-ROW($K$9)+1)","v":"3.1"},{"$f":"HYPERLINK(INDEX(Links[LINK],MATCH(K26,Links[ARKNAVN],0)),INDEX(Links[OPGAVE],MATCH(K26,Links[ARKNAVN],0)))","v":"Nye udbud"},null,null,null,{"$f":"IFERROR(INDEX(Forside!$O$17:$O$34,MATCH($K$9:$K$27,Forside!$L$17:$L$34,0)),\"\")","v":"Ej relevant"}]
[null,null,null,null,null,null,null,null,null,null,{"$f":"INDEX(Links[ARKNAVN],ROW(K27)-ROW($K$9)+1)","v":"3.2"},{"$f":"HYPERLINK(INDEX(Links[LINK],MATCH(K27,Links[ARKNAVN],0)),INDEX(Links[OPGAVE],MATCH(K27,Links[ARKNAVN],0)))","v":"Planlagte samarbejder eller overvejelser derom"},null,null,null,{"$f":"IFERROR(INDEX(Forside!$O$17:$O$34,MATCH($K$9:$K$27,Forside!$L$17:$L$34,0)),\"\")","v":"Ej relevant"}]
[]
[]
[null,null,null,null,null,null,null,null,null,"FORSIDE"]
[]
[]
[]
[]
[null,null,null,null,null,null,null,null,null,{"$f":"HYPERLINK(INDEX(Links[LINK],MATCH(RIGHT(CELL(\"filnavn\"),3),Links[ARKNAVN],0)-1),_xlfn.UNICHAR(231))","v":{"$error":"#N/A"}}]
[]
[]
[]
[]
[null,null,null,null,null,null,null,null,null,{"$f":"HYPERLINK(INDEX(Links[LINK],MATCH(RIGHT(CELL(\"filnavn\"),3),Links[ARKNAVN],0)+1),_xlfn.UNICHAR(232))","v":{"$error":"#N/A"}}]

{"sheet":"2.2","index":14,"n_rows":50,"n_cols":16,"rows_kept":50,"cut":false,"hidden":false,"merged":[[2,9,7,15],[29,9,32,15],[34,9,37,15],[39,9,42,15]]}
[]
[]
[null,null,null,null,null,null,null,null,null,"OVERSIGT"]
[]
[]
[]
[]
[]
[null,null,null,null,null,null,null,null,null,{"$f":"IF(RIGHT(CELL(\"filnavn\"),3)=K9,_xlfn.UNICHAR(159),\"\")","v":""},{"$f":"INDEX(Links[ARKNAVN],ROW(K9)-ROW($K$9)+1)","v":"0.0"},{"$f":"HYPERLINK(INDEX(Links[LINK],MATCH(K9,Links[ARKNAVN],0)),INDEX(Links[OPGAVE],MATCH(K9,Links[ARKNAVN],0)))","v":"Overordnede overvejelser om opgaven"},null,null,null,{"$f":"IFERROR(INDEX(Forside!$O$17:$O$34,MATCH($K$9:$K$27,Forside!$L$17:$L$34,0)),\"\")","v":"Løst"}]
[null,null,null,null,null,null,null,null,null,{"$f":"IF(RIGHT(CELL(\"filnavn\"),3)=K10,_xlfn.UNICHAR(159),\"\")","v":""},{"$f":"INDEX(Links[ARKNAVN],ROW(K10)-ROW($K$9)+1)","v":"1.0"},{"$f":"HYPERLINK(INDEX(Links[LINK],MATCH(K10,Links[ARKNAVN],0)),INDEX(Links[OPGAVE],MATCH(K10,Links[ARKNAVN],0)))","v":"Indledning sektion 1"},null,null,null,{"$f":"IFERROR(INDEX(Forside!$O$17:$O$34,MATCH($K$9:$K$27,Forside!$L$17:$L$34,0)),\"\")","v":""}]
[null,null,null,null,null,null,null,null,null,"",{"$f":"INDEX(Links[ARKNAVN],ROW(K11)-ROW($K$9)+1)","v":"1.1"},{"$f":"HYPERLINK(INDEX(Links[LINK],MATCH(K11,Links[ARKNAVN],0)),INDEX(Links[OPGAVE],MATCH(K11,Links[ARKNAVN],0)))","v":"Ledelsesmæssige overvejelser"},null,null,null,{"$f":"IFERROR(INDEX(Forside!$O$17:$O$34,MATCH($K$9:$K$27,Forside!$L$17:$L$34,0)),\"\")","v":"Løst"}]
[null,null,null,null,null,null,null,null,null,"",{"$f":"INDEX(Links[ARKNAVN],ROW(K12)-ROW($K$9)+1)","v":"1.2"},{"$f":"HYPERLINK(INDEX(Links[LINK],MATCH(K12,Links[ARKNAVN],0)),INDEX(Links[OPGAVE],MATCH(K12,Links[ARKNAVN],0)))","v":"Antal pladser der flyttes ud"},null,null,null,{"$f":"IFERROR(INDEX(Forside!$O$17:$O$34,MATCH($K$9:$K$27,Forside!$L$17:$L$34,0)),\"\")","v":"Løst"}]
[null,"Uddannelse","Antal pladser","År for udflytning/nye pladser","Flytning til by","Type","Bemærkning",null,null,"",{"$f":"INDEX(Links[ARKNAVN],ROW(K13)-ROW($K$9)+1)","v":"1.3"},{"$f":"HYPERLINK(INDEX(Links[LINK],MATCH(K13,Links[ARKNAVN],0)),INDEX(Links[OPGAVE],MATCH(K13,Links[ARKNAVN],0)))","v":"Antal pladser på nye udbud"},null,null,null,{"$f":"IFERROR(INDEX(Forside!$O$17:$O$34,MATCH($K$9:$K$27,Forside!$L$17:$L$34,0)),\"\")","v":"Ikke udfyldt"}]
[{"$f":"SUMPRODUCT(--(B14:G14<>\"\"))","v":0},null,null,null,null,null,null,null,null,"",{"$f":"INDEX(Links[ARKNAVN],ROW(K14)-ROW($K$9)+1)","v":"1.4"},{"$f":"HYPERLINK(INDEX(Links[LINK],MATCH(K14,Links[ARKNAVN],0)),INDEX(Links[OPGAVE],MATCH(K14,Links[ARKNAVN],0)))","v":"Antal pladser der nedskaleres"},null,null,null,{"$f":"IFERROR(INDEX(Forside!$O$17:$O$34,MATCH($K$9:$K$27,Forside!$L$17:$L$34,0)),\"\")","v":"Løst"}]
[{"$f":"SUMPRODUCT(--(B15:G15<>\"\"))","v":0},null,null,null,null,null,null,null,null,"",{"$f":"INDEX(Links[ARKNAVN],ROW(K15)-ROW($K$9)+1)","v":"1.5"},{"$f":"HYPERLINK(INDEX(Links[LINK],MATCH(K15,Links[ARKNAVN],0)),INDEX(Links[OPGAVE],MATCH(K15,Links[ARKNAVN],0)))","v":"Beskrivelse af regionale elementer"},null,null,null,{"$f":"IFERROR(INDEX(Forside!$O$17:$O$34,MATCH($K$9:$K$27,Forside!$L$17:$L$34,0)),\"\")","v":"Løst"}]
[0,null,null,null,null,null,null,null,null,"",{"$f":"INDEX(Links[ARKNAVN],ROW(K16)-ROW($K$9)+1)","v":"1.6"},{"$f":"HYPERLINK(INDEX(Links[LINK],MATCH(K16,Links[ARKNAVN],0)),INDEX(Links[OPGAVE],MATCH(K16,Links[ARKNAVN],0)))","v":"Tabel med regionale elementer"},null,null,null,{"$f":"IFERROR(INDEX(Forside!$O$17:$O$34,MATCH($K$9:$K$27,Forside!$L$17:$L$34,0)),\"\")","v":"Løst"}]
[0,null,null,null,null,null,null,null,null,"",{"$f":"INDEX(Links[ARKNAVN],ROW(K17)-ROW($K$9)+1)","v":"1.7"},{"$f":"HYPERLINK(INDEX(Links[LINK],MATCH(K17,Links[ARKNAVN],0)),INDEX(Links[OPGAVE],MATCH(K17,Links[ARKNAVN],0)))","v":"Beskrivelse af særlige hensyn"},null,null,null,{"$f":"IFERROR(INDEX(Forside!$O$17:$O$34,MATCH($K$9:$K$27,Forside!$L$17:$L$34,0)),\"\")","v":"Løst"}]
[0,null,null,null,null,null,null,null,null,"",{"$f":"INDEX(Links[ARKNAVN],ROW(K18)-ROW($K$9)+1)","v":"1.8"},{"$f":"HYPERLINK(INDEX(Links[LINK],MATCH(K18,Links[ARKNAVN],0)),INDEX(Links[OPGAVE],MATCH(K18,Links[ARKNAVN],0)))","v":"Tabel med særlige hensyn"},null,null,null,{"$f":"IFERROR(INDEX(Forside!$O$17:$O$34,MATCH($K$9:$K$27,Forside!$L$17:$L$34,0)),\"\")","v":"Løst"}]
[0,null,null,null,null,null,null,null,null,"",{"$f":"INDEX(Links[ARKNAVN],ROW(K19)-ROW($K$9)+1)","v":"1.9"},{"$f":"HYPERLINK(INDEX(Links[LINK],MATCH(K19,Links[ARKNAVN],0)),INDEX(Links[OPGAVE],MATCH(K19,Links[ARKNAVN],0)))","v":"Samarbejde med øvrige institutioner og/eller aktører"},null,null,null,{"$f":"IFERROR(INDEX(Forside!$O$17:$O$34,MATCH($K$9:$K$27,Forside!$L$17:$L$34,0)),\"\")","v":"Løst"}]
[0,null,null,null,null,null,null,null,null,"",{"$f":"INDEX(Links[ARKNAVN],ROW(K20)-ROW($K$9)+1)","v":"2.0"},{"$f":"HYPERLINK(INDEX(Links[LINK],MATCH(K20,Links[ARKNAVN],0)),INDEX(Links[OPGAVE],MATCH(K20,Links[ARKNAVN],0)))","v":"Indledning sektion 2"},null,null,null,{"$f":"IFERROR(INDEX(Forside!$O$17:$O$34,MATCH($K$9:$K$27,Forside!$L$17:$L$34,0)),\"\")","v":""}]
[0,null,null,null,null,null,null,null,null,"",{"$f":"INDEX(Links[ARKNAVN],ROW(K21)-ROW($K$9)+1)","v":"2.1"},{"$f":"HYPERLINK(INDEX(Links[LINK],MATCH(K21,Links[ARKNAVN],0)),INDEX(Links[OPGAVE],MATCH(K21,Links[ARKNAVN],0)))","v":"Plan for nye/udflyttede velfærdspladser"},null,null,null,{"$f":"IFERROR(INDEX(Forside!$O$17:$O$34,MATCH($K$9:$K$27,Forside!$L$17:$L$34,0)),\"\")","v":"Ej relevant"}]
[0,null,null,null,null,null,null,null,null,"",{"$f":"INDEX(Links[ARKNAVN],ROW(K22)-ROW($K$9)+1)","v":"2.2"},{"$f":"HYPERLINK(INDEX(Links[LINK],MATCH(K22,Links[ARKNAVN],0)),INDEX(Links[OPGAVE],MATCH(K22,Links[ARKNAVN],0)))","v":"Antal nye og/eller udflyttede velfærdspladser"},null,null,null,{"$f":"IFERROR(INDEX(Forside!$O$17:$O$34,MATCH($K$9:$K$27,Forside!$L$17:$L$34,0)),\"\")","v":"Ej relevant"}]
[0,null,null,null,null,null,null,null,null,"",{"$f":"INDEX(Links[ARKNAVN],ROW(K23)-ROW($K$9)+1)","v":"2.3"},{"$f":"HYPERLINK(INDEX(Links[LINK],MATCH(K23,Links[ARKNAVN],0)),INDEX(Links[OPGAVE],MATCH(K23,Links[ARKNAVN],0)))","v":"Overvejelser omkring praktikpladsbehovet"},null,null,null,{"$f":"IFERROR(INDEX(Forside!$O$17:$O$34,MATCH($K$9:$K$27,Forside!$L$17:$L$34,0)),\"\")","v":"Ej relevant"}]
[0,null,null,null,null,null,null,null,null,"",{"$f":"INDEX(Links[ARKNAVN],ROW(K24)-ROW($K$9)+1)","v":"2.4"},{"$f":"HYPERLINK(INDEX(Links[LINK],MATCH(K24,Links[ARKNAVN],0)),INDEX(Links[OPGAVE],MATCH(K24,Links[ARKNAVN],0)))","v":"Samarbejde med øvrige institutioner og/eller aktører"},null,null,null,{"$f":"IFERROR(INDEX(Forside!$O$17:$O$34,MATCH($K$9:$K$27,Forside!$L$17:$L$34,0)),\"\")","v":"Ej relevant"}]
[0,null,null,null,null,null,null,null,null,"",{"$f":"INDEX(Links[ARKNAVN],ROW(K25)-ROW($K$9)+1)","v":"3.0"},{"$f":"HYPERLINK(INDEX(Links[LINK],MATCH(K25,Links[ARKNAVN],0)),INDEX(Links[OPGAVE],MATCH(K25,Links[ARKNAVN],0)))","v":"Indledning sektion 3"},null,null,null,{"$f":"IFERROR(INDEX(Forside!$O$17:$O$34,MATCH($K$9:$K$27,Forside!$L$17:$L$34,0)),\"\")","v":""}]
[0,null,null,null,null,null,null,null,null,"",{"$f":"INDEX(Links[ARKNAVN],ROW(K26)-ROW($K$9)+1)","v":"3.1"},{"$f":"HYPERLINK(INDEX(Links[LINK],MATCH(K26,Links[ARKNAVN],0)),INDEX(Links[OPGAVE],MATCH(K26,Links[ARKNAVN],0)))","v":"Nye udbud"},null,null,null,{"$f":"IFERROR(INDEX(Forside!$O$17:$O$34,MATCH($K$9:$K$27,Forside!$L$17:$L$34,0)),\"\")","v":"Ej relevant"}]
[0,null,null,null,null,null,null,null,null,null,{"$f":"INDEX(Links[ARKNAVN],ROW(K27)-ROW($K$9)+1)","v":"3.2"},{"$f":"HYPERLINK(INDEX(Links[LINK],MATCH(K27,Links[ARKNAVN],0)),INDEX(Links[OPGAVE],MATCH(K27,Links[ARKNAVN],0)))","v":"Planlagte samarbejder eller overvejelser derom"},null,null,null,{"$f":"IFERROR(INDEX(Forside!$O$17:$O$34,MATCH($K$9:$K$27,Forside!$L$17:$L$34,0)),\"\")","v":"Ej relevant"}]
[0]
[0]
[0,null,null,null,null,null,null,null,null,"FORSIDE"]
[0]
[0]
[0]
[0]
[0,null,null,null,null,null,null,null,null,{"$f":"HYPERLINK(INDEX(Links[LINK],MATCH(RIGHT(CELL(\"filnavn\"),3),Links[ARKNAVN],0)-1),_xlfn.UNICHAR(231))","v":{"$error":"#N/A"}}]
[0]
[0]
[0]
[0]
[0,null,null,null,null,null,null,null,null,{"$f":"HYPERLINK(INDEX(Links[LINK],MATCH(RIGHT(CELL(\"filnavn\"),3),Links[ARKNAVN],0)+1),_xlfn.UNICHAR(232))","v":{"$error":"#N/A"}}]
[0]
[0]
[0]
[0]
[0]
[0]
[0]
[0]
[0]
[0]

{"sheet":"2.3","index":15,"n_rows":40,"n_cols":16,"rows_kept":40,"cut":false,"hidden":false,"merged":[[2,9,7,15],[29,9,32,15],[34,9,37,15],[39,9,42,15]]}
[]
[]
[null,null,null,null,null,null,null,null,null,"OVERSIGT"]
[]
[]
[]
[]
[]
[null,null,null,null,null,null,null,null,null,{"$f":"IF(RIGHT(CELL(\"filnavn\"),3)=K9,_xlfn.UNICHAR(159),\"\")","v":""},{"$f":"INDEX(Links[ARKNAVN],ROW(K9)-ROW($K$9)+1)","v":"0.0"},{"$f":"HYPERLINK(INDEX(Links[LINK],MATCH(K9,Links[ARKNAVN],0)),INDEX(Links[OPGAVE],MATCH(K9,Links[ARKNAVN],0)))","v":"Overordnede overvejelser om opgaven"},null,null,null,{"$f":"IFERROR(INDEX(Forside!$O$17:$O$34,MATCH($K$9:$K$27,Forside!$L$17:$L$34,0)),\"\")","v":"Løst"}]
[null,null,null,null,null,null,null,null,null,{"$f":"IF(RIGHT(CELL(\"filnavn\"),3)=K10,_xlfn.UNICHAR(159),\"\")","v":""},{"$f":"INDEX(Links[ARKNAVN],ROW(K10)-ROW($K$9)+1)","v":"1.0"},{"$f":"HYPERLINK(INDEX(Links[LINK],MATCH(K10,Links[ARKNAVN],0)),INDEX(Links[OPGAVE],MATCH(K10,Links[ARKNAVN],0)))","v":"Indledning sektion 1"},null,null,null,{"$f":"IFERROR(INDEX(Forside!$O$17:$O$34,MATCH($K$9:$K$27,Forside!$L$17:$L$34,0)),\"\")","v":""}]
[null,null,null,null,null,null,null,null,null,"",{"$f":"INDEX(Links[ARKNAVN],ROW(K11)-ROW($K$9)+1)","v":"1.1"},{"$f":"HYPERLINK(INDEX(Links[LINK],MATCH(K11,Links[ARKNAVN],0)),INDEX(Links[OPGAVE],MATCH(K11,Links[ARKNAVN],0)))","v":"Ledelsesmæssige overvejelser"},null,null,null,{"$f":"IFERROR(INDEX(Forside!$O$17:$O$34,MATCH($K$9:$K$27,Forside!$L$17:$L$34,0)),\"\")","v":"Løst"}]
[null,null,null,null,null,null,null,null,null,"",{"$f":"INDEX(Links[ARKNAVN],ROW(K12)-ROW($K$9)+1)","v":"1.2"},{"$f":"HYPERLINK(INDEX(Links[LINK],MATCH(K12,Links[ARKNAVN],0)),INDEX(Links[OPGAVE],MATCH(K12,Links[ARKNAVN],0)))","v":"Antal pladser der flyttes ud"},null,null,null,{"$f":"IFERROR(INDEX(Forside!$O$17:$O$34,MATCH($K$9:$K$27,Forside!$L$17:$L$34,0)),\"\")","v":"Løst"}]
[null,null,null,null,null,null,null,null,null,"",{"$f":"INDEX(Links[ARKNAVN],ROW(K13)-ROW($K$9)+1)","v":"1.3"},{"$f":"HYPERLINK(INDEX(Links[LINK],MATCH(K13,Links[ARKNAVN],0)),INDEX(Links[OPGAVE],MATCH(K13,Links[ARKNAVN],0)))","v":"Antal pladser på nye udbud"},null,null,null,{"$f":"IFERROR(INDEX(Forside!$O$17:$O$34,MATCH($K$9:$K$27,Forside!$L$17:$L$34,0)),\"\")","v":"Ikke udfyldt"}]
[null,null,null,null,null,null,null,null,null,"",{"$f":"INDEX(Links[ARKNAVN],ROW(K14)-ROW($K$9)+1)","v":"1.4"},{"$f":"HYPERLINK(INDEX(Links[LINK],MATCH(K14,Links[ARKNAVN],0)),INDEX(Links[OPGAVE],MATCH(K14,Links[ARKNAVN],0)))","v":"Antal pladser der nedskaleres"},null,null,null,{"$f":"IFERROR(INDEX(Forside!$O$17:$O$34,MATCH($K$9:$K$27,Forside!$L$17:$L$34,0)),\"\")","v":"Løst"}]
[null,null,null,null,null,null,null,null,null,"",{"$f":"INDEX(Links[ARKNAVN],ROW(K15)-ROW($K$9)+1)","v":"1.5"},{"$f":"HYPERLINK(INDEX(Links[LINK],MATCH(K15,Links[ARKNAVN],0)),INDEX(Links[OPGAVE],MATCH(K15,Links[ARKNAVN],0)))","v":"Beskrivelse af regionale elementer"},null,null,null,{"$f":"IFERROR(INDEX(Forside!$O$17:$O$34,MATCH($K$9:$K$27,Forside!$L$17:$L$34,0)),\"\")","v":"Løst"}]
[null,null,null,null,null,null,null,null,null,"",{"$f":"INDEX(Links[ARKNAVN],ROW(K16)-ROW($K$9)+1)","v":"1.6"},{"$f":"HYPERLINK(INDEX(Links[LINK],MATCH(K16,Links[ARKNAVN],0)),INDEX(Links[OPGAVE],MATCH(K16,Links[ARKNAVN],0)))","v":"Tabel med regionale elementer"},null,null,null,{"$f":"IFERROR(INDEX(Forside!$O$17:$O$34,MATCH($K$9:$K$27,Forside!$L$17:$L$34,0)),\"\")","v":"Løst"}]
[null,null,null,null,null,null,null,null,null,"",{"$f":"INDEX(Links[ARKNAVN],ROW(K17)-ROW($K$9)+1)","v":"1.7"},{"$f":"HYPERLINK(INDEX(Links[LINK],MATCH(K17,Links[ARKNAVN],0)),INDEX(Links[OPGAVE],MATCH(K17,Links[ARKNAVN],0)))","v":"Beskrivelse af særlige hensyn"},null,null,null,{"$f":"IFERROR(INDEX(Forside!$O$17:$O$34,MATCH($K$9:$K$27,Forside!$L$17:$L$34,0)),\"\")","v":"Løst"}]
[null,null,null,null,null,null,null,null,null,"",{"$f":"INDEX(Links[ARKNAVN],ROW(K18)-ROW($K$9)+1)","v":"1.8"},{"$f":"HYPERLINK(INDEX(Links[LINK],MATCH(K18,Links[ARKNAVN],0)),INDEX(Links[OPGAVE],MATCH(K18,Links[ARKNAVN],0)))","v":"Tabel med særlige hensyn"},null,null,null,{"$f":"IFERROR(INDEX(Forside!$O$17:$O$34,MATCH($K$9:$K$27,Forside!$L$17:$L$34,0)),\"\")","v":"Løst"}]
[null,null,null,null,null,null,null,null,null,"",{"$f":"INDEX(Links[ARKNAVN],ROW(K19)-ROW($K$9)+1)","v":"1.9"},{"$f":"HYPERLINK(INDEX(Links[LINK],MATCH(K19,Links[ARKNAVN],0)),INDEX(Links[OPGAVE],MATCH(K19,Links[ARKNAVN],0)))","v":"Samarbejde med øvrige institutioner og/eller aktører"},null,null,null,{"$f":"IFERROR(INDEX(Forside!$O$17:$O$34,MATCH($K$9:$K$27,Forside!$L$17:$L$34,0)),\"\")","v":"Løst"}]
[null,null,null,null,null,null,null,null,null,"",{"$f":"INDEX(Links[ARKNAVN],ROW(K20)-ROW($K$9)+1)","v":"2.0"},{"$f":"HYPERLINK(INDEX(Links[LINK],MATCH(K20,Links[ARKNAVN],0)),INDEX(Links[OPGAVE],MATCH(K20,Links[ARKNAVN],0)))","v":"Indledning sektion 2"},null,null,null,{"$f":"IFERROR(INDEX(Forside!$O$17:$O$34,MATCH($K$9:$K$27,Forside!$L$17:$L$34,0)),\"\")","v":""}]
[null,null,null,null,null,null,null,null,null,"",{"$f":"INDEX(Links[ARKNAVN],ROW(K21)-ROW($K$9)+1)","v":"2.1"},{"$f":"HYPERLINK(INDEX(Links[LINK],MATCH(K21,Links[ARKNAVN],0)),INDEX(Links[OPGAVE],MATCH(K21,Links[ARKNAVN],0)))","v":"Plan for nye/udflyttede velfærdspladser"},null,null,null,{"$f":"IFERROR(INDEX(Forside!$O$17:$O$34,MATCH($K$9:$K$27,Forside!$L$17:$L$34,0)),\"\")","v":"Ej relevant"}]
[null,null,null,null,null,null,null,null,null,"",{"$f":"INDEX(Links[ARKNAVN],ROW(K22)-ROW($K$9)+1)","v":"2.2"},{"$f":"HYPERLINK(INDEX(Links[LINK],MATCH(K22,Links[ARKNAVN],0)),INDEX(Links[OPGAVE],MATCH(K22,Links[ARKNAVN],0)))","v":"Antal nye og/eller udflyttede velfærdspladser"},null,null,null,{"$f":"IFERROR(INDEX(Forside!$O$17:$O$34,MATCH($K$9:$K$27,Forside!$L$17:$L$34,0)),\"\")","v":"Ej relevant"}]
[null,null,null,null,null,null,null,null,null,"",{"$f":"INDEX(Links[ARKNAVN],ROW(K23)-ROW($K$9)+1)","v":"2.3"},{"$f":"HYPERLINK(INDEX(Links[LINK],MATCH(K23,Links[ARKNAVN],0)),INDEX(Links[OPGAVE],MATCH(K23,Links[ARKNAVN],0)))","v":"Overvejelser omkring praktikpladsbehovet"},null,null,null,{"$f":"IFERROR(INDEX(Forside!$O$17:$O$34,MATCH($K$9:$K$27,Forside!$L$17:$L$34,0)),\"\")","v":"Ej relevant"}]
[null,null,null,null,null,null,null,null,null,"",{"$f":"INDEX(Links[ARKNAVN],ROW(K24)-ROW($K$9)+1)","v":"2.4"},{"$f":"HYPERLINK(INDEX(Links[LINK],MATCH(K24,Links[ARKNAVN],0)),INDEX(Links[OPGAVE],MATCH(K24,Links[ARKNAVN],0)))","v":"Samarbejde med øvrige institutioner og/eller aktører"},null,null,null,{"$f":"IFERROR(INDEX(Forside!$O$17:$O$34,MATCH($K$9:$K$27,Forside!$L$17:$L$34,0)),\"\")","v":"Ej relevant"}]
[null,null,null,null,null,null,null,null,null,"",{"$f":"INDEX(Links[ARKNAVN],ROW(K25)-ROW($K$9)+1)","v":"3.0"},{"$f":"HYPERLINK(INDEX(Links[LINK],MATCH(K25,Links[ARKNAVN],0)),INDEX(Links[OPGAVE],MATCH(K25,Links[ARKNAVN],0)))","v":"Indledning sektion 3"},null,null,null,{"$f":"IFERROR(INDEX(Forside!$O$17:$O$34,MATCH($K$9:$K$27,Forside!$L$17:$L$34,0)),\"\")","v":""}]
[null,null,null,null,null,null,null,null,null,"",{"$f":"INDEX(Links[ARKNAVN],ROW(K26)-ROW($K$9)+1)","v":"3.1"},{"$f":"HYPERLINK(INDEX(Links[LINK],MATCH(K26,Links[ARKNAVN],0)),INDEX(Links[OPGAVE],MATCH(K26,Links[ARKNAVN],0)))","v":"Nye udbud"},null,null,null,{"$f":"IFERROR(INDEX(Forside!$O$17:$O$34,MATCH($K$9:$K$27,Forside!$L$17:$L$34,0)),\"\")","v":"Ej relevant"}]
[null,null,null,null,null,null,null,null,null,null,{"$f":"INDEX(Links[ARKNAVN],ROW(K27)-ROW($K$9)+1)","v":"3.2"},{"$f":"HYPERLINK(INDEX(Links[LINK],MATCH(K27,Links[ARKNAVN],0)),INDEX(Links[OPGAVE],MATCH(K27,Links[ARKNAVN],0)))","v":"Planlagte samarbejder eller overvejelser derom"},null,null,null,{"$f":"IFERROR(INDEX(Forside!$O$17:$O$34,MATCH($K$9:$K$27,Forside!$L$17:$L$34,0)),\"\")","v":"Ej relevant"}]
[]
[]
[null,null,null,null,null,null,null,null,null,"FORSIDE"]
[]
[]
[]
[]
[null,null,null,null,null,null,null,null,null,{"$f":"HYPERLINK(INDEX(Links[LINK],MATCH(RIGHT(CELL(\"filnavn\"),3),Links[ARKNAVN],0)-1),_xlfn.UNICHAR(231))","v":{"$error":"#N/A"}}]
[]
[]
[]
[]
[null,null,null,null,null,null,null,null,null,{"$f":"HYPERLINK(INDEX(Links[LINK],MATCH(RIGHT(CELL(\"filnavn\"),3),Links[ARKNAVN],0)+1),_xlfn.UNICHAR(232))","v":{"$error":"#N/A"}}]

{"sheet":"2.4","index":16,"n_rows":40,"n_cols":16,"rows_kept":40,"cut":false,"hidden":false,"merged":[[2,9,7,15],[29,9,32,15],[34,9,37,15],[39,9,42,15]]}
[]
[]
[null,null,null,null,null,null,null,null,null,"OVERSIGT"]
[]
[]
[]
[]
[]
[null,null,null,null,null,null,null,null,null,{"$f":"IF(RIGHT(CELL(\"filnavn\"),3)=K9,_xlfn.UNICHAR(159),\"\")","v":""},{"$f":"INDEX(Links[ARKNAVN],ROW(K9)-ROW($K$9)+1)","v":"0.0"},{"$f":"HYPERLINK(INDEX(Links[LINK],MATCH(K9,Links[ARKNAVN],0)),INDEX(Links[OPGAVE],MATCH(K9,Links[ARKNAVN],0)))","v":"Overordnede overvejelser om opgaven"},null,null,null,{"$f":"IFERROR(INDEX(Forside!$O$17:$O$34,MATCH($K$9:$K$27,Forside!$L$17:$L$34,0)),\"\")","v":"Løst"}]
[null,null,null,null,null,null,null,null,null,{"$f":"IF(RIGHT(CELL(\"filnavn\"),3)=K10,_xlfn.UNICHAR(159),\"\")","v":""},{"$f":"INDEX(Links[ARKNAVN],ROW(K10)-ROW($K$9)+1)","v":"1.0"},{"$f":"HYPERLINK(INDEX(Links[LINK],MATCH(K10,Links[ARKNAVN],0)),INDEX(Links[OPGAVE],MATCH(K10,Links[ARKNAVN],0)))","v":"Indledning sektion 1"},null,null,null,{"$f":"IFERROR(INDEX(Forside!$O$17:$O$34,MATCH($K$9:$K$27,Forside!$L$17:$L$34,0)),\"\")","v":""}]
[null,null,null,null,null,null,null,null,null,"",{"$f":"INDEX(Links[ARKNAVN],ROW(K11)-ROW($K$9)+1)","v":"1.1"},{"$f":"HYPERLINK(INDEX(Links[LINK],MATCH(K11,Links[ARKNAVN],0)),INDEX(Links[OPGAVE],MATCH(K11,Links[ARKNAVN],0)))","v":"Ledelsesmæssige overvejelser"},null,null,null,{"$f":"IFERROR(INDEX(Forside!$O$17:$O$34,MATCH($K$9:$K$27,Forside!$L$17:$L$34,0)),\"\")","v":"Løst"}]
[null,null,null,null,null,null,null,null,null,"",{"$f":"INDEX(Links[ARKNAVN],ROW(K12)-ROW($K$9)+1)","v":"1.2"},{"$f":"HYPERLINK(INDEX(Links[LINK],MATCH(K12,Links[ARKNAVN],0)),INDEX(Links[OPGAVE],MATCH(K12,Links[ARKNAVN],0)))","v":"Antal pladser der flyttes ud"},null,null,null,{"$f":"IFERROR(INDEX(Forside!$O$17:$O$34,MATCH($K$9:$K$27,Forside!$L$17:$L$34,0)),\"\")","v":"Løst"}]
[null,null,null,null,null,null,null,null,null,"",{"$f":"INDEX(Links[ARKNAVN],ROW(K13)-ROW($K$9)+1)","v":"1.3"},{"$f":"HYPERLINK(INDEX(Links[LINK],MATCH(K13,Links[ARKNAVN],0)),INDEX(Links[OPGAVE],MATCH(K13,Links[ARKNAVN],0)))","v":"Antal pladser på nye udbud"},null,null,null,{"$f":"IFERROR(INDEX(Forside!$O$17:$O$34,MATCH($K$9:$K$27,Forside!$L$17:$L$34,0)),\"\")","v":"Ikke udfyldt"}]
[null,null,null,null,null,null,null,null,null,"",{"$f":"INDEX(Links[ARKNAVN],ROW(K14)-ROW($K$9)+1)","v":"1.4"},{"$f":"HYPERLINK(INDEX(Links[LINK],MATCH(K14,Links[ARKNAVN],0)),INDEX(Links[OPGAVE],MATCH(K14,Links[ARKNAVN],0)))","v":"Antal pladser der nedskaleres"},null,null,null,{"$f":"IFERROR(INDEX(Forside!$O$17:$O$34,MATCH($K$9:$K$27,Forside!$L$17:$L$34,0)),\"\")","v":"Løst"}]
[null,null,null,null,null,null,null,null,null,"",{"$f":"INDEX(Links[ARKNAVN],ROW(K15)-ROW($K$9)+1)","v":"1.5"},{"$f":"HYPERLINK(INDEX(Links[LINK],MATCH(K15,Links[ARKNAVN],0)),INDEX(Links[OPGAVE],MATCH(K15,Links[ARKNAVN],0)))","v":"Beskrivelse af regionale elementer"},null,null,null,{"$f":"IFERROR(INDEX(Forside!$O$17:$O$34,MATCH($K$9:$K$27,Forside!$L$17:$L$34,0)),\"\")","v":"Løst"}]
[null,null,null,null,null,null,null,null,null,"",{"$f":"INDEX(Links[ARKNAVN],ROW(K16)-ROW($K$9)+1)","v":"1.6"},{"$f":"HYPERLINK(INDEX(Links[LINK],MATCH(K16,Links[ARKNAVN],0)),INDEX(Links[OPGAVE],MATCH(K16,Links[ARKNAVN],0)))","v":"Tabel med regionale elementer"},null,null,null,{"$f":"IFERROR(INDEX(Forside!$O$17:$O$34,MATCH($K$9:$K$27,Forside!$L$17:$L$34,0)),\"\")","v":"Løst"}]
[null,null,null,null,null,null,null,null,null,"",{"$f":"INDEX(Links[ARKNAVN],ROW(K17)-ROW($K$9)+1)","v":"1.7"},{"$f":"HYPERLINK(INDEX(Links[LINK],MATCH(K17,Links[ARKNAVN],0)),INDEX(Links[OPGAVE],MATCH(K17,Links[ARKNAVN],0)))","v":"Beskrivelse af særlige hensyn"},null,null,null,{"$f":"IFERROR(INDEX(Forside!$O$17:$O$34,MATCH($K$9:$K$27,Forside!$L$17:$L$34,0)),\"\")","v":"Løst"}]
[null,null,null,null,null,null,null,null,null,"",{"$f":"INDEX(Links[ARKNAVN],ROW(K18)-ROW($K$9)+1)","v":"1.8"},{"$f":"HYPERLINK(INDEX(Links[LINK],MATCH(K18,Links[ARKNAVN],0)),INDEX(Links[OPGAVE],MATCH(K18,Links[ARKNAVN],0)))","v":"Tabel med særlige hensyn"},null,null,null,{"$f":"IFERROR(INDEX(Forside!$O$17:$O$34,MATCH($K$9:$K$27,Forside!$L$17:$L$34,0)),\"\")","v":"Løst"}]
[null,null,null,null,null,null,null,null,null,"",{"$f":"INDEX(Links[ARKNAVN],ROW(K19)-ROW($K$9)+1)","v":"1.9"},{"$f":"HYPERLINK(INDEX(Links[LINK],MATCH(K19,Links[ARKNAVN],0)),INDEX(Links[OPGAVE],MATCH(K19,Links[ARKNAVN],0)))","v":"Samarbejde med øvrige institutioner og/eller aktører"},null,null,null,{"$f":"IFERROR(INDEX(Forside!$O$17:$O$34,MATCH($K$9:$K$27,Forside!$L$17:$L$34,0)),\"\")","v":"Løst"}]
[null,null,null,null,null,null,null,null,null,"",{"$f":"INDEX(Links[ARKNAVN],ROW(K20)-ROW($K$9)+1)","v":"2.0"},{"$f":"HYPERLINK(INDEX(Links[LINK],MATCH(K20,Links[ARKNAVN],0)),INDEX(Links[OPGAVE],MATCH(K20,Links[ARKNAVN],0)))","v":"Indledning sektion 2"},null,null,null,{"$f":"IFERROR(INDEX(Forside!$O$17:$O$34,MATCH($K$9:$K$27,Forside!$L$17:$L$34,0)),\"\")","v":""}]
[null,null,null,null,null,null,null,null,null,"",{"$f":"INDEX(Links[ARKNAVN],ROW(K21)-ROW($K$9)+1)","v":"2.1"},{"$f":"HYPERLINK(INDEX(Links[LINK],MATCH(K21,Links[ARKNAVN],0)),INDEX(Links[OPGAVE],MATCH(K21,Links[ARKNAVN],0)))","v":"Plan for nye/udflyttede velfærdspladser"},null,null,null,{"$f":"IFERROR(INDEX(Forside!$O$17:$O$34,MATCH($K$9:$K$27,Forside!$L$17:$L$34,0)),\"\")","v":"Ej relevant"}]
[null,null,null,null,null,null,null,null,null,"",{"$f":"INDEX(Links[ARKNAVN],ROW(K22)-ROW($K$9)+1)","v":"2.2"},{"$f":"HYPERLINK(INDEX(Links[LINK],MATCH(K22,Links[ARKNAVN],0)),INDEX(Links[OPGAVE],MATCH(K22,Links[ARKNAVN],0)))","v":"Antal nye og/eller udflyttede velfærdspladser"},null,null,null,{"$f":"IFERROR(INDEX(Forside!$O$17:$O$34,MATCH($K$9:$K$27,Forside!$L$17:$L$34,0)),\"\")","v":"Ej relevant"}]
[null,null,null,null,null,null,null,null,null,"",{"$f":"INDEX(Links[ARKNAVN],ROW(K23)-ROW($K$9)+1)","v":"2.3"},{"$f":"HYPERLINK(INDEX(Links[LINK],MATCH(K23,Links[ARKNAVN],0)),INDEX(Links[OPGAVE],MATCH(K23,Links[ARKNAVN],0)))","v":"Overvejelser omkring praktikpladsbehovet"},null,null,null,{"$f":"IFERROR(INDEX(Forside!$O$17:$O$34,MATCH($K$9:$K$27,Forside!$L$17:$L$34,0)),\"\")","v":"Ej relevant"}]
[null,null,null,null,null,null,null,null,null,"",{"$f":"INDEX(Links[ARKNAVN],ROW(K24)-ROW($K$9)+1)","v":"2.4"},{"$f":"HYPERLINK(INDEX(Links[LINK],MATCH(K24,Links[ARKNAVN],0)),INDEX(Links[OPGAVE],MATCH(K24,Links[ARKNAVN],0)))","v":"Samarbejde med øvrige institutioner og/eller aktører"},null,null,null,{"$f":"IFERROR(INDEX(Forside!$O$17:$O$34,MATCH($K$9:$K$27,Forside!$L$17:$L$34,0)),\"\")","v":"Ej relevant"}]
[null,null,null,null,null,null,null,null,null,"",{"$f":"INDEX(Links[ARKNAVN],ROW(K25)-ROW($K$9)+1)","v":"3.0"},{"$f":"HYPERLINK(INDEX(Links[LINK],MATCH(K25,Links[ARKNAVN],0)),INDEX(Links[OPGAVE],MATCH(K25,Links[ARKNAVN],0)))","v":"Indledning sektion 3"},null,null,null,{"$f":"IFERROR(INDEX(Forside!$O$17:$O$34,MATCH($K$9:$K$27,Forside!$L$17:$L$34,0)),\"\")","v":""}]
[null,null,null,null,null,null,null,null,null,"",{"$f":"INDEX(Links[ARKNAVN],ROW(K26)-ROW($K$9)+1)","v":"3.1"},{"$f":"HYPERLINK(INDEX(Links[LINK],MATCH(K26,Links[ARKNAVN],0)),INDEX(Links[OPGAVE],MATCH(K26,Links[ARKNAVN],0)))","v":"Nye udbud"},null,null,null,{"$f":"IFERROR(INDEX(Forside!$O$17:$O$34,MATCH($K$9:$K$27,Forside!$L$17:$L$34,0)),\"\")","v":"Ej relevant"}]
[null,null,null,null,null,null,null,null,null,null,{"$f":"INDEX(Links[ARKNAVN],ROW(K27)-ROW($K$9)+1)","v":"3.2"},{"$f":"HYPERLINK(INDEX(Links[LINK],MATCH(K27,Links[ARKNAVN],0)),INDEX(Links[OPGAVE],MATCH(K27,Links[ARKNAVN],0)))","v":"Planlagte samarbejder eller overvejelser derom"},null,null,null,{"$f":"IFERROR(INDEX(Forside!$O$17:$O$34,MATCH($K$9:$K$27,Forside!$L$17:$L$34,0)),\"\")","v":"Ej relevant"}]
[]
[]
[null,null,null,null,null,null,null,null,null,"FORSIDE"]
[]
[]
[]
[]
[null,null,null,null,null,null,null,null,null,{"$f":"HYPERLINK(INDEX(Links[LINK],MATCH(RIGHT(CELL(\"filnavn\"),3),Links[ARKNAVN],0)-1),_xlfn.UNICHAR(231))","v":{"$error":"#N/A"}}]
[]
[]
[]
[]
[null,null,null,null,null,null,null,null,null,{"$f":"HYPERLINK(INDEX(Links[LINK],MATCH(RIGHT(CELL(\"filnavn\"),3),Links[ARKNAVN],0)+1),_xlfn.UNICHAR(232))","v":{"$error":"#N/A"}}]

{"sheet":"3.0","index":17,"n_rows":40,"n_cols":16,"rows_kept":40,"cut":false,"hidden":false,"merged":[[2,9,7,15],[29,9,32,15],[34,9,37,15],[39,9,42,15]]}
[]
[]
[null,null,null,null,null,null,null,null,null,"OVERSIGT"]
[]
[]
[]
[]
[]
[null,null,null,null,null,null,null,null,null,{"$f":"IF(RIGHT(CELL(\"filnavn\"),3)=K9,_xlfn.UNICHAR(159),\"\")","v":""},{"$f":"INDEX(Links[ARKNAVN],ROW(K9)-ROW($K$9)+1)","v":"0.0"},{"$f":"HYPERLINK(INDEX(Links[LINK],MATCH(K9,Links[ARKNAVN],0)),INDEX(Links[OPGAVE],MATCH(K9,Links[ARKNAVN],0)))","v":"Overordnede overvejelser om opgaven"},null,null,null,{"$f":"IFERROR(INDEX(Forside!$O$17:$O$34,MATCH($K$9:$K$27,Forside!$L$17:$L$34,0)),\"\")","v":"Løst"}]
[null,null,null,null,null,null,null,null,null,{"$f":"IF(RIGHT(CELL(\"filnavn\"),3)=K10,_xlfn.UNICHAR(159),\"\")","v":""},{"$f":"INDEX(Links[ARKNAVN],ROW(K10)-ROW($K$9)+1)","v":"1.0"},{"$f":"HYPERLINK(INDEX(Links[LINK],MATCH(K10,Links[ARKNAVN],0)),INDEX(Links[OPGAVE],MATCH(K10,Links[ARKNAVN],0)))","v":"Indledning sektion 1"},null,null,null,{"$f":"IFERROR(INDEX(Forside!$O$17:$O$34,MATCH($K$9:$K$27,Forside!$L$17:$L$34,0)),\"\")","v":""}]
[null,null,null,null,null,null,null,null,null,"",{"$f":"INDEX(Links[ARKNAVN],ROW(K11)-ROW($K$9)+1)","v":"1.1"},{"$f":"HYPERLINK(INDEX(Links[LINK],MATCH(K11,Links[ARKNAVN],0)),INDEX(Links[OPGAVE],MATCH(K11,Links[ARKNAVN],0)))","v":"Ledelsesmæssige overvejelser"},null,null,null,{"$f":"IFERROR(INDEX(Forside!$O$17:$O$34,MATCH($K$9:$K$27,Forside!$L$17:$L$34,0)),\"\")","v":"Løst"}]
[null,null,null,null,null,null,null,null,null,"",{"$f":"INDEX(Links[ARKNAVN],ROW(K12)-ROW($K$9)+1)","v":"1.2"},{"$f":"HYPERLINK(INDEX(Links[LINK],MATCH(K12,Links[ARKNAVN],0)),INDEX(Links[OPGAVE],MATCH(K12,Links[ARKNAVN],0)))","v":"Antal pladser der flyttes ud"},null,null,null,{"$f":"IFERROR(INDEX(Forside!$O$17:$O$34,MATCH($K$9:$K$27,Forside!$L$17:$L$34,0)),\"\")","v":"Løst"}]
[null,null,null,null,null,null,null,null,null,"",{"$f":"INDEX(Links[ARKNAVN],ROW(K13)-ROW($K$9)+1)","v":"1.3"},{"$f":"HYPERLINK(INDEX(Links[LINK],MATCH(K13,Links[ARKNAVN],0)),INDEX(Links[OPGAVE],MATCH(K13,Links[ARKNAVN],0)))","v":"Antal pladser på nye udbud"},null,null,null,{"$f":"IFERROR(INDEX(Forside!$O$17:$O$34,MATCH($K$9:$K$27,Forside!$L$17:$L$34,0)),\"\")","v":"Ikke udfyldt"}]
[null,null,null,null,null,null,null,null,null,"",{"$f":"INDEX(Links[ARKNAVN],ROW(K14)-ROW($K$9)+1)","v":"1.4"},{"$f":"HYPERLINK(INDEX(Links[LINK],MATCH(K14,Links[ARKNAVN],0)),INDEX(Links[OPGAVE],MATCH(K14,Links[ARKNAVN],0)))","v":"Antal pladser der nedskaleres"},null,null,null,{"$f":"IFERROR(INDEX(Forside!$O$17:$O$34,MATCH($K$9:$K$27,Forside!$L$17:$L$34,0)),\"\")","v":"Løst"}]
[null,null,null,null,null,null,null,null,null,"",{"$f":"INDEX(Links[ARKNAVN],ROW(K15)-ROW($K$9)+1)","v":"1.5"},{"$f":"HYPERLINK(INDEX(Links[LINK],MATCH(K15,Links[ARKNAVN],0)),INDEX(Links[OPGAVE],MATCH(K15,Links[ARKNAVN],0)))","v":"Beskrivelse af regionale elementer"},null,null,null,{"$f":"IFERROR(INDEX(Forside!$O$17:$O$34,MATCH($K$9:$K$27,Forside!$L$17:$L$34,0)),\"\")","v":"Løst"}]
[null,null,null,null,null,null,null,null,null,"",{"$f":"INDEX(Links[ARKNAVN],ROW(K16)-ROW($K$9)+1)","v":"1.6"},{"$f":"HYPERLINK(INDEX(Links[LINK],MATCH(K16,Links[ARKNAVN],0)),INDEX(Links[OPGAVE],MATCH(K16,Links[ARKNAVN],0)))","v":"Tabel med regionale elementer"},null,null,null,{"$f":"IFERROR(INDEX(Forside!$O$17:$O$34,MATCH($K$9:$K$27,Forside!$L$17:$L$34,0)),\"\")","v":"Løst"}]
[null,null,null,null,null,null,null,null,null,"",{"$f":"INDEX(Links[ARKNAVN],ROW(K17)-ROW($K$9)+1)","v":"1.7"},{"$f":"HYPERLINK(INDEX(Links[LINK],MATCH(K17,Links[ARKNAVN],0)),INDEX(Links[OPGAVE],MATCH(K17,Links[ARKNAVN],0)))","v":"Beskrivelse af særlige hensyn"},null,null,null,{"$f":"IFERROR(INDEX(Forside!$O$17:$O$34,MATCH($K$9:$K$27,Forside!$L$17:$L$34,0)),\"\")","v":"Løst"}]
[null,null,null,null,null,null,null,null,null,"",{"$f":"INDEX(Links[ARKNAVN],ROW(K18)-ROW($K$9)+1)","v":"1.8"},{"$f":"HYPERLINK(INDEX(Links[LINK],MATCH(K18,Links[ARKNAVN],0)),INDEX(Links[OPGAVE],MATCH(K18,Links[ARKNAVN],0)))","v":"Tabel med særlige hensyn"},null,null,null,{"$f":"IFERROR(INDEX(Forside!$O$17:$O$34,MATCH($K$9:$K$27,Forside!$L$17:$L$34,0)),\"\")","v":"Løst"}]
[null,null,null,null,null,null,null,null,null,"",{"$f":"INDEX(Links[ARKNAVN],ROW(K19)-ROW($K$9)+1)","v":"1.9"},{"$f":"HYPERLINK(INDEX(Links[LINK],MATCH(K19,Links[ARKNAVN],0)),INDEX(Links[OPGAVE],MATCH(K19,Links[ARKNAVN],0)))","v":"Samarbejde med øvrige institutioner og/eller aktører"},null,null,null,{"$f":"IFERROR(INDEX(Forside!$O$17:$O$34,MATCH($K$9:$K$27,Forside!$L$17:$L$34,0)),\"\")","v":"Løst"}]
[null,null,null,null,null,null,null,null,null,"",{"$f":"INDEX(Links[ARKNAVN],ROW(K20)-ROW($K$9)+1)","v":"2.0"},{"$f":"HYPERLINK(INDEX(Links[LINK],MATCH(K20,Links[ARKNAVN],0)),INDEX(Links[OPGAVE],MATCH(K20,Links[ARKNAVN],0)))","v":"Indledning sektion 2"},null,null,null,{"$f":"IFERROR(INDEX(Forside!$O$17:$O$34,MATCH($K$9:$K$27,Forside!$L$17:$L$34,0)),\"\")","v":""}]
[null,null,null,null,null,null,null,null,null,"",{"$f":"INDEX(Links[ARKNAVN],ROW(K21)-ROW($K$9)+1)","v":"2.1"},{"$f":"HYPERLINK(INDEX(Links[LINK],MATCH(K21,Links[ARKNAVN],0)),INDEX(Links[OPGAVE],MATCH(K21,Links[ARKNAVN],0)))","v":"Plan for nye/udflyttede velfærdspladser"},null,null,null,{"$f":"IFERROR(INDEX(Forside!$O$17:$O$34,MATCH($K$9:$K$27,Forside!$L$17:$L$34,0)),\"\")","v":"Ej relevant"}]
[null,null,null,null,null,null,null,null,null,"",{"$f":"INDEX(Links[ARKNAVN],ROW(K22)-ROW($K$9)+1)","v":"2.2"},{"$f":"HYPERLINK(INDEX(Links[LINK],MATCH(K22,Links[ARKNAVN],0)),INDEX(Links[OPGAVE],MATCH(K22,Links[ARKNAVN],0)))","v":"Antal nye og/eller udflyttede velfærdspladser"},null,null,null,{"$f":"IFERROR(INDEX(Forside!$O$17:$O$34,MATCH($K$9:$K$27,Forside!$L$17:$L$34,0)),\"\")","v":"Ej relevant"}]
[null,null,null,null,null,null,null,null,null,"",{"$f":"INDEX(Links[ARKNAVN],ROW(K23)-ROW($K$9)+1)","v":"2.3"},{"$f":"HYPERLINK(INDEX(Links[LINK],MATCH(K23,Links[ARKNAVN],0)),INDEX(Links[OPGAVE],MATCH(K23,Links[ARKNAVN],0)))","v":"Overvejelser omkring praktikpladsbehovet"},null,null,null,{"$f":"IFERROR(INDEX(Forside!$O$17:$O$34,MATCH($K$9:$K$27,Forside!$L$17:$L$34,0)),\"\")","v":"Ej relevant"}]
[null,null,null,null,null,null,null,null,null,"",{"$f":"INDEX(Links[ARKNAVN],ROW(K24)-ROW($K$9)+1)","v":"2.4"},{"$f":"HYPERLINK(INDEX(Links[LINK],MATCH(K24,Links[ARKNAVN],0)),INDEX(Links[OPGAVE],MATCH(K24,Links[ARKNAVN],0)))","v":"Samarbejde med øvrige institutioner og/eller aktører"},null,null,null,{"$f":"IFERROR(INDEX(Forside!$O$17:$O$34,MATCH($K$9:$K$27,Forside!$L$17:$L$34,0)),\"\")","v":"Ej relevant"}]
[null,null,null,null,null,null,null,null,null,"",{"$f":"INDEX(Links[ARKNAVN],ROW(K25)-ROW($K$9)+1)","v":"3.0"},{"$f":"HYPERLINK(INDEX(Links[LINK],MATCH(K25,Links[ARKNAVN],0)),INDEX(Links[OPGAVE],MATCH(K25,Links[ARKNAVN],0)))","v":"Indledning sektion 3"},null,null,null,{"$f":"IFERROR(INDEX(Forside!$O$17:$O$34,MATCH($K$9:$K$27,Forside!$L$17:$L$34,0)),\"\")","v":""}]
[null,null,null,null,null,null,null,null,null,"",{"$f":"INDEX(Links[ARKNAVN],ROW(K26)-ROW($K$9)+1)","v":"3.1"},{"$f":"HYPERLINK(INDEX(Links[LINK],MATCH(K26,Links[ARKNAVN],0)),INDEX(Links[OPGAVE],MATCH(K26,Links[ARKNAVN],0)))","v":"Nye udbud"},null,null,null,{"$f":"IFERROR(INDEX(Forside!$O$17:$O$34,MATCH($K$9:$K$27,Forside!$L$17:$L$34,0)),\"\")","v":"Ej relevant"}]
[null,null,null,null,null,null,null,null,null,null,{"$f":"INDEX(Links[ARKNAVN],ROW(K27)-ROW($K$9)+1)","v":"3.2"},{"$f":"HYPERLINK(INDEX(Links[LINK],MATCH(K27,Links[ARKNAVN],0)),INDEX(Links[OPGAVE],MATCH(K27,Links[ARKNAVN],0)))","v":"Planlagte samarbejder eller overvejelser derom"},null,null,null,{"$f":"IFERROR(INDEX(Forside!$O$17:$O$34,MATCH($K$9:$K$27,Forside!$L$17:$L$34,0)),\"\")","v":"Ej relevant"}]
[]
[]
[null,null,null,null,null,null,null,null,null,"FORSIDE"]
[]
[]
[]
[]
[null,null,null,null,null,null,null,null,null,{"$f":"HYPERLINK(INDEX(Links[LINK],MATCH(RIGHT(CELL(\"filnavn\"),3),Links[ARKNAVN],0)-1),_xlfn.UNICHAR(231))","v":{"$error":"#N/A"}}]
[]
[]
[]
[]
[null,null,null,null,null,null,null,null,null,{"$f":"HYPERLINK(INDEX(Links[LINK],MATCH(RIGHT(CELL(\"filnavn\"),3),Links[ARKNAVN],0)+1),_xlfn.UNICHAR(232))","v":{"$error":"#N/A"}}]

{"sheet":"3.1","index":18,"n_rows":50,"n_cols":15,"rows_kept":50,"cut":false,"hidden":false,"merged":[[2,8,7,14],[29,8,32,14],[34,8,37,14],[39,8,42,14]]}
[]
[]
[null,null,null,null,null,null,null,null,"OVERSIGT"]
[]
[]
[]
[]
[]
[null,null,null,null,null,null,null,null,{"$f":"IF(RIGHT(CELL(\"filnavn\"),3)=J9,_xlfn.UNICHAR(159),\"\")","v":""},{"$f":"INDEX(Links[ARKNAVN],ROW(J9)-ROW($K$9)+1)","v":"0.0"},{"$f":"HYPERLINK(INDEX(Links[LINK],MATCH(J9,Links[ARKNAVN],0)),INDEX(Links[OPGAVE],MATCH(J9,Links[ARKNAVN],0)))","v":"Overordnede overvejelser om opgaven"},null,null,null,{"$f":"IFERROR(INDEX(Forside!$O$17:$O$34,MATCH($J$9:$J$27,Forside!$L$17:$L$34,0)),\"\")","v":"Løst"}]
[null,null,null,null,null,null,null,null,{"$f":"IF(RIGHT(CELL(\"filnavn\"),3)=J10,_xlfn.UNICHAR(159),\"\")","v":""},{"$f":"INDEX(Links[ARKNAVN],ROW(J10)-ROW($K$9)+1)","v":"1.0"},{"$f":"HYPERLINK(INDEX(Links[LINK],MATCH(J10,Links[ARKNAVN],0)),INDEX(Links[OPGAVE],MATCH(J10,Links[ARKNAVN],0)))","v":"Indledning sektion 1"},null,null,null,{"$f":"IFERROR(INDEX(Forside!$O$17:$O$34,MATCH($J$9:$J$27,Forside!$L$17:$L$34,0)),\"\")","v":""}]
[null,null,null,null,null,null,null,null,"",{"$f":"INDEX(Links[ARKNAVN],ROW(J11)-ROW($K$9)+1)","v":"1.1"},{"$f":"HYPERLINK(INDEX(Links[LINK],MATCH(J11,Links[ARKNAVN],0)),INDEX(Links[OPGAVE],MATCH(J11,Links[ARKNAVN],0)))","v":"Ledelsesmæssige overvejelser"},null,null,null,{"$f":"IFERROR(INDEX(Forside!$O$17:$O$34,MATCH($J$9:$J$27,Forside!$L$17:$L$34,0)),\"\")","v":"Løst"}]
[null,null,null,null,null,null,null,null,"",{"$f":"INDEX(Links[ARKNAVN],ROW(J12)-ROW($K$9)+1)","v":"1.2"},{"$f":"HYPERLINK(INDEX(Links[LINK],MATCH(J12,Links[ARKNAVN],0)),INDEX(Links[OPGAVE],MATCH(J12,Links[ARKNAVN],0)))","v":"Antal pladser der flyttes ud"},null,null,null,{"$f":"IFERROR(INDEX(Forside!$O$17:$O$34,MATCH($J$9:$J$27,Forside!$L$17:$L$34,0)),\"\")","v":"Løst"}]
[null,"Uddannelse","Antal pladser","Estimeret år","By","Kommentar",null,null,"",{"$f":"INDEX(Links[ARKNAVN],ROW(J13)-ROW($K$9)+1)","v":"1.3"},{"$f":"HYPERLINK(INDEX(Links[LINK],MATCH(J13,Links[ARKNAVN],0)),INDEX(Links[OPGAVE],MATCH(J13,Links[ARKNAVN],0)))","v":"Antal pladser på nye udbud"},null,null,null,{"$f":"IFERROR(INDEX(Forside!$O$17:$O$34,MATCH($J$9:$J$27,Forside!$L$17:$L$34,0)),\"\")","v":"Ikke udfyldt"}]
[{"$f":"SUMPRODUCT(--(B14:F14<>\"\"))","v":0},null,null,null,null,null,null,null,"",{"$f":"INDEX(Links[ARKNAVN],ROW(J14)-ROW($K$9)+1)","v":"1.4"},{"$f":"HYPERLINK(INDEX(Links[LINK],MATCH(J14,Links[ARKNAVN],0)),INDEX(Links[OPGAVE],MATCH(J14,Links[ARKNAVN],0)))","v":"Antal pladser der nedskaleres"},null,null,null,{"$f":"IFERROR(INDEX(Forside!$O$17:$O$34,MATCH($J$9:$J$27,Forside!$L$17:$L$34,0)),\"\")","v":"Løst"}]
[{"$f":"SUMPRODUCT(--(B15:F15<>\"\"))","v":0},null,null,null,null,null,null,null,"",{"$f":"INDEX(Links[ARKNAVN],ROW(J15)-ROW($K$9)+1)","v":"1.5"},{"$f":"HYPERLINK(INDEX(Links[LINK],MATCH(J15,Links[ARKNAVN],0)),INDEX(Links[OPGAVE],MATCH(J15,Links[ARKNAVN],0)))","v":"Beskrivelse af regionale elementer"},null,null,null,{"$f":"IFERROR(INDEX(Forside!$O$17:$O$34,MATCH($J$9:$J$27,Forside!$L$17:$L$34,0)),\"\")","v":"Løst"}]
[0,null,null,null,null,null,null,null,"",{"$f":"INDEX(Links[ARKNAVN],ROW(J16)-ROW($K$9)+1)","v":"1.6"},{"$f":"HYPERLINK(INDEX(Links[LINK],MATCH(J16,Links[ARKNAVN],0)),INDEX(Links[OPGAVE],MATCH(J16,Links[ARKNAVN],0)))","v":"Tabel med regionale elementer"},null,null,null,{"$f":"IFERROR(INDEX(Forside!$O$17:$O$34,MATCH($J$9:$J$27,Forside!$L$17:$L$34,0)),\"\")","v":"Løst"}]
[0,null,null,null,null,null,null,null,"",{"$f":"INDEX(Links[ARKNAVN],ROW(J17)-ROW($K$9)+1)","v":"1.7"},{"$f":"HYPERLINK(INDEX(Links[LINK],MATCH(J17,Links[ARKNAVN],0)),INDEX(Links[OPGAVE],MATCH(J17,Links[ARKNAVN],0)))","v":"Beskrivelse af særlige hensyn"},null,null,null,{"$f":"IFERROR(INDEX(Forside!$O$17:$O$34,MATCH($J$9:$J$27,Forside!$L$17:$L$34,0)),\"\")","v":"Løst"}]
[0,null,null,null,null,null,null,null,"",{"$f":"INDEX(Links[ARKNAVN],ROW(J18)-ROW($K$9)+1)","v":"1.8"},{"$f":"HYPERLINK(INDEX(Links[LINK],MATCH(J18,Links[ARKNAVN],0)),INDEX(Links[OPGAVE],MATCH(J18,Links[ARKNAVN],0)))","v":"Tabel med særlige hensyn"},null,null,null,{"$f":"IFERROR(INDEX(Forside!$O$17:$O$34,MATCH($J$9:$J$27,Forside!$L$17:$L$34,0)),\"\")","v":"Løst"}]
[0,null,null,null,null,null,null,null,"",{"$f":"INDEX(Links[ARKNAVN],ROW(J19)-ROW($K$9)+1)","v":"1.9"},{"$f":"HYPERLINK(INDEX(Links[LINK],MATCH(J19,Links[ARKNAVN],0)),INDEX(Links[OPGAVE],MATCH(J19,Links[ARKNAVN],0)))","v":"Samarbejde med øvrige institutioner og/eller aktører"},null,null,null,{"$f":"IFERROR(INDEX(Forside!$O$17:$O$34,MATCH($J$9:$J$27,Forside!$L$17:$L$34,0)),\"\")","v":"Løst"}]
[0,null,null,null,null,null,null,null,"",{"$f":"INDEX(Links[ARKNAVN],ROW(J20)-ROW($K$9)+1)","v":"2.0"},{"$f":"HYPERLINK(INDEX(Links[LINK],MATCH(J20,Links[ARKNAVN],0)),INDEX(Links[OPGAVE],MATCH(J20,Links[ARKNAVN],0)))","v":"Indledning sektion 2"},null,null,null,{"$f":"IFERROR(INDEX(Forside!$O$17:$O$34,MATCH($J$9:$J$27,Forside!$L$17:$L$34,0)),\"\")","v":""}]
[0,null,null,null,null,null,null,null,"",{"$f":"INDEX(Links[ARKNAVN],ROW(J21)-ROW($K$9)+1)","v":"2.1"},{"$f":"HYPERLINK(INDEX(Links[LINK],MATCH(J21,Links[ARKNAVN],0)),INDEX(Links[OPGAVE],MATCH(J21,Links[ARKNAVN],0)))","v":"Plan for nye/udflyttede velfærdspladser"},null,null,null,{"$f":"IFERROR(INDEX(Forside!$O$17:$O$34,MATCH($J$9:$J$27,Forside!$L$17:$L$34,0)),\"\")","v":"Ej relevant"}]
[0,null,null,null,null,null,null,null,"",{"$f":"INDEX(Links[ARKNAVN],ROW(J22)-ROW($K$9)+1)","v":"2.2"},{"$f":"HYPERLINK(INDEX(Links[LINK],MATCH(J22,Links[ARKNAVN],0)),INDEX(Links[OPGAVE],MATCH(J22,Links[ARKNAVN],0)))","v":"Antal nye og/eller udflyttede velfærdspladser"},null,null,null,{"$f":"IFERROR(INDEX(Forside!$O$17:$O$34,MATCH($J$9:$J$27,Forside!$L$17:$L$34,0)),\"\")","v":"Ej relevant"}]
[0,null,null,null,null,null,null,null,"",{"$f":"INDEX(Links[ARKNAVN],ROW(J23)-ROW($K$9)+1)","v":"2.3"},{"$f":"HYPERLINK(INDEX(Links[LINK],MATCH(J23,Links[ARKNAVN],0)),INDEX(Links[OPGAVE],MATCH(J23,Links[ARKNAVN],0)))","v":"Overvejelser omkring praktikpladsbehovet"},null,null,null,{"$f":"IFERROR(INDEX(Forside!$O$17:$O$34,MATCH($J$9:$J$27,Forside!$L$17:$L$34,0)),\"\")","v":"Ej relevant"}]
[0,null,null,null,null,null,null,null,"",{"$f":"INDEX(Links[ARKNAVN],ROW(J24)-ROW($K$9)+1)","v":"2.4"},{"$f":"HYPERLINK(INDEX(Links[LINK],MATCH(J24,Links[ARKNAVN],0)),INDEX(Links[OPGAVE],MATCH(J24,Links[ARKNAVN],0)))","v":"Samarbejde med øvrige institutioner og/eller aktører"},null,null,null,{"$f":"IFERROR(INDEX(Forside!$O$17:$O$34,MATCH($J$9:$J$27,Forside!$L$17:$L$34,0)),\"\")","v":"Ej relevant"}]
[0,null,null,null,null,null,null,null,"",{"$f":"INDEX(Links[ARKNAVN],ROW(J25)-ROW($K$9)+1)","v":"3.0"},{"$f":"HYPERLINK(INDEX(Links[LINK],MATCH(J25,Links[ARKNAVN],0)),INDEX(Links[OPGAVE],MATCH(J25,Links[ARKNAVN],0)))","v":"Indledning sektion 3"},null,null,null,{"$f":"IFERROR(INDEX(Forside!$O$17:$O$34,MATCH($J$9:$J$27,Forside!$L$17:$L$34,0)),\"\")","v":""}]
[0,null,null,null,null,null,null,null,"",{"$f":"INDEX(Links[ARKNAVN],ROW(J26)-ROW($K$9)+1)","v":"3.1"},{"$f":"HYPERLINK(INDEX(Links[LINK],MATCH(J26,Links[ARKNAVN],0)),INDEX(Links[OPGAVE],MATCH(J26,Links[ARKNAVN],0)))","v":"Nye udbud"},null,null,null,{"$f":"IFERROR(INDEX(Forside!$O$17:$O$34,MATCH($J$9:$J$27,Forside!$L$17:$L$34,0)),\"\")","v":"Ej relevant"}]
[0,null,null,null,null,null,null,null,null,{"$f":"INDEX(Links[ARKNAVN],ROW(J27)-ROW($K$9)+1)","v":"3.2"},{"$f":"HYPERLINK(INDEX(Links[LINK],MATCH(J27,Links[ARKNAVN],0)),INDEX(Links[OPGAVE],MATCH(J27,Links[ARKNAVN],0)))","v":"Planlagte samarbejder eller overvejelser derom"},null,null,null,{"$f":"IFERROR(INDEX(Forside!$O$17:$O$34,MATCH($J$9:$J$27,Forside!$L$17:$L$34,0)),\"\")","v":"Ej relevant"}]
[0]
[0]
[0,null,null,null,null,null,null,null,"FORSIDE"]
[0]
[0]
[0]
[0]
[0,null,null,null,null,null,null,null,{"$f":"HYPERLINK(INDEX(Links[LINK],MATCH(RIGHT(CELL(\"filnavn\"),3),Links[ARKNAVN],0)-1),_xlfn.UNICHAR(231))","v":{"$error":"#N/A"}}]
[0]
[0]
[0]
[0]
[0,null,null,null,null,null,null,null,{"$f":"HYPERLINK(INDEX(Links[LINK],MATCH(RIGHT(CELL(\"filnavn\"),3),Links[ARKNAVN],0)+1),_xlfn.UNICHAR(232))","v":{"$error":"#N/A"}}]
[0]
[0]
[0]
[0]
[0]
[0]
[0]
[0]
[0]
[0]

{"sheet":"3.2","index":19,"n_rows":39,"n_cols":16,"rows_kept":39,"cut":false,"hidden":false,"merged":[[2,9,7,15],[33,9,36,15],[38,9,41,15]]}
[]
[]
[null,null,null,null,null,null,null,null,null,"OVERSIGT"]
[]
[]
[]
[]
[]
[null,null,null,null,null,null,null,null,null,{"$f":"IF(RIGHT(CELL(\"filnavn\"),3)=K9,_xlfn.UNICHAR(159),\"\")","v":""},{"$f":"INDEX(Links[ARKNAVN],ROW(K9)-ROW($K$9)+1)","v":"0.0"},{"$f":"HYPERLINK(INDEX(Links[LINK],MATCH(K9,Links[ARKNAVN],0)),INDEX(Links[OPGAVE],MATCH(K9,Links[ARKNAVN],0)))","v":"Overordnede overvejelser om opgaven"},null,null,null,{"$f":"IFERROR(INDEX(Forside!$O$17:$O$34,MATCH($K$9:$K$27,Forside!$L$17:$L$34,0)),\"\")","v":"Løst"}]
[null,null,null,null,null,null,null,null,null,{"$f":"IF(RIGHT(CELL(\"filnavn\"),3)=K10,_xlfn.UNICHAR(159),\"\")","v":""},{"$f":"INDEX(Links[ARKNAVN],ROW(K10)-ROW($K$9)+1)","v":"1.0"},{"$f":"HYPERLINK(INDEX(Links[LINK],MATCH(K10,Links[ARKNAVN],0)),INDEX(Links[OPGAVE],MATCH(K10,Links[ARKNAVN],0)))","v":"Indledning sektion 1"},null,null,null,{"$f":"IFERROR(INDEX(Forside!$O$17:$O$34,MATCH($K$9:$K$27,Forside!$L$17:$L$34,0)),\"\")","v":""}]
[null,null,null,null,null,null,null,null,null,"",{"$f":"INDEX(Links[ARKNAVN],ROW(K11)-ROW($K$9)+1)","v":"1.1"},{"$f":"HYPERLINK(INDEX(Links[LINK],MATCH(K11,Links[ARKNAVN],0)),INDEX(Links[OPGAVE],MATCH(K11,Links[ARKNAVN],0)))","v":"Ledelsesmæssige overvejelser"},null,null,null,{"$f":"IFERROR(INDEX(Forside!$O$17:$O$34,MATCH($K$9:$K$27,Forside!$L$17:$L$34,0)),\"\")","v":"Løst"}]
[null,null,null,null,null,null,null,null,null,"",{"$f":"INDEX(Links[ARKNAVN],ROW(K12)-ROW($K$9)+1)","v":"1.2"},{"$f":"HYPERLINK(INDEX(Links[LINK],MATCH(K12,Links[ARKNAVN],0)),INDEX(Links[OPGAVE],MATCH(K12,Links[ARKNAVN],0)))","v":"Antal pladser der flyttes ud"},null,null,null,{"$f":"IFERROR(INDEX(Forside!$O$17:$O$34,MATCH($K$9:$K$27,Forside!$L$17:$L$34,0)),\"\")","v":"Løst"}]
[null,null,null,null,null,null,null,null,null,"",{"$f":"INDEX(Links[ARKNAVN],ROW(K13)-ROW($K$9)+1)","v":"1.3"},{"$f":"HYPERLINK(INDEX(Links[LINK],MATCH(K13,Links[ARKNAVN],0)),INDEX(Links[OPGAVE],MATCH(K13,Links[ARKNAVN],0)))","v":"Antal pladser på nye udbud"},null,null,null,{"$f":"IFERROR(INDEX(Forside!$O$17:$O$34,MATCH($K$9:$K$27,Forside!$L$17:$L$34,0)),\"\")","v":"Ikke udfyldt"}]
[null,null,null,null,null,null,null,null,null,"",{"$f":"INDEX(Links[ARKNAVN],ROW(K14)-ROW($K$9)+1)","v":"1.4"},{"$f":"HYPERLINK(INDEX(Links[LINK],MATCH(K14,Links[ARKNAVN],0)),INDEX(Links[OPGAVE],MATCH(K14,Links[ARKNAVN],0)))","v":"Antal pladser der nedskaleres"},null,null,null,{"$f":"IFERROR(INDEX(Forside!$O$17:$O$34,MATCH($K$9:$K$27,Forside!$L$17:$L$34,0)),\"\")","v":"Løst"}]
[null,null,null,null,null,null,null,null,null,"",{"$f":"INDEX(Links[ARKNAVN],ROW(K15)-ROW($K$9)+1)","v":"1.5"},{"$f":"HYPERLINK(INDEX(Links[LINK],MATCH(K15,Links[ARKNAVN],0)),INDEX(Links[OPGAVE],MATCH(K15,Links[ARKNAVN],0)))","v":"Beskrivelse af regionale elementer"},null,null,null,{"$f":"IFERROR(INDEX(Forside!$O$17:$O$34,MATCH($K$9:$K$27,Forside!$L$17:$L$34,0)),\"\")","v":"Løst"}]
[null,null,null,null,null,null,null,null,null,"",{"$f":"INDEX(Links[ARKNAVN],ROW(K16)-ROW($K$9)+1)","v":"1.6"},{"$f":"HYPERLINK(INDEX(Links[LINK],MATCH(K16,Links[ARKNAVN],0)),INDEX(Links[OPGAVE],MATCH(K16,Links[ARKNAVN],0)))","v":"Tabel med regionale elementer"},null,null,null,{"$f":"IFERROR(INDEX(Forside!$O$17:$O$34,MATCH($K$9:$K$27,Forside!$L$17:$L$34,0)),\"\")","v":"Løst"}]
[null,null,null,null,null,null,null,null,null,"",{"$f":"INDEX(Links[ARKNAVN],ROW(K17)-ROW($K$9)+1)","v":"1.7"},{"$f":"HYPERLINK(INDEX(Links[LINK],MATCH(K17,Links[ARKNAVN],0)),INDEX(Links[OPGAVE],MATCH(K17,Links[ARKNAVN],0)))","v":"Beskrivelse af særlige hensyn"},null,null,null,{"$f":"IFERROR(INDEX(Forside!$O$17:$O$34,MATCH($K$9:$K$27,Forside!$L$17:$L$34,0)),\"\")","v":"Løst"}]
[null,null,null,null,null,null,null,null,null,"",{"$f":"INDEX(Links[ARKNAVN],ROW(K18)-ROW($K$9)+1)","v":"1.8"},{"$f":"HYPERLINK(INDEX(Links[LINK],MATCH(K18,Links[ARKNAVN],0)),INDEX(Links[OPGAVE],MATCH(K18,Links[ARKNAVN],0)))","v":"Tabel med særlige hensyn"},null,null,null,{"$f":"IFERROR(INDEX(Forside!$O$17:$O$34,MATCH($K$9:$K$27,Forside!$L$17:$L$34,0)),\"\")","v":"Løst"}]
[null,null,null,null,null,null,null,null,null,"",{"$f":"INDEX(Links[ARKNAVN],ROW(K19)-ROW($K$9)+1)","v":"1.9"},{"$f":"HYPERLINK(INDEX(Links[LINK],MATCH(K19,Links[ARKNAVN],0)),INDEX(Links[OPGAVE],MATCH(K19,Links[ARKNAVN],0)))","v":"Samarbejde med øvrige institutioner og/eller aktører"},null,null,null,{"$f":"IFERROR(INDEX(Forside!$O$17:$O$34,MATCH($K$9:$K$27,Forside!$L$17:$L$34,0)),\"\")","v":"Løst"}]
[null,null,null,null,null,null,null,null,null,"",{"$f":"INDEX(Links[ARKNAVN],ROW(K20)-ROW($K$9)+1)","v":"2.0"},{"$f":"HYPERLINK(INDEX(Links[LINK],MATCH(K20,Links[ARKNAVN],0)),INDEX(Links[OPGAVE],MATCH(K20,Links[ARKNAVN],0)))","v":"Indledning sektion 2"},null,null,null,{"$f":"IFERROR(INDEX(Forside!$O$17:$O$34,MATCH($K$9:$K$27,Forside!$L$17:$L$34,0)),\"\")","v":""}]
[null,null,null,null,null,null,null,null,null,"",{"$f":"INDEX(Links[ARKNAVN],ROW(K21)-ROW($K$9)+1)","v":"2.1"},{"$f":"HYPERLINK(INDEX(Links[LINK],MATCH(K21,Links[ARKNAVN],0)),INDEX(Links[OPGAVE],MATCH(K21,Links[ARKNAVN],0)))","v":"Plan for nye/udflyttede velfærdspladser"},null,null,null,{"$f":"IFERROR(INDEX(Forside!$O$17:$O$34,MATCH($K$9:$K$27,Forside!$L$17:$L$34,0)),\"\")","v":"Ej relevant"}]
[null,null,null,null,null,null,null,null,null,"",{"$f":"INDEX(Links[ARKNAVN],ROW(K22)-ROW($K$9)+1)","v":"2.2"},{"$f":"HYPERLINK(INDEX(Links[LINK],MATCH(K22,Links[ARKNAVN],0)),INDEX(Links[OPGAVE],MATCH(K22,Links[ARKNAVN],0)))","v":"Antal nye og/eller udflyttede velfærdspladser"},null,null,null,{"$f":"IFERROR(INDEX(Forside!$O$17:$O$34,MATCH($K$9:$K$27,Forside!$L$17:$L$34,0)),\"\")","v":"Ej relevant"}]
[null,null,null,null,null,null,null,null,null,"",{"$f":"INDEX(Links[ARKNAVN],ROW(K23)-ROW($K$9)+1)","v":"2.3"},{"$f":"HYPERLINK(INDEX(Links[LINK],MATCH(K23,Links[ARKNAVN],0)),INDEX(Links[OPGAVE],MATCH(K23,Links[ARKNAVN],0)))","v":"Overvejelser omkring praktikpladsbehovet"},null,null,null,{"$f":"IFERROR(INDEX(Forside!$O$17:$O$34,MATCH($K$9:$K$27,Forside!$L$17:$L$34,0)),\"\")","v":"Ej relevant"}]
[null,null,null,null,null,null,null,null,null,"",{"$f":"INDEX(Links[ARKNAVN],ROW(K24)-ROW($K$9)+1)","v":"2.4"},{"$f":"HYPERLINK(INDEX(Links[LINK],MATCH(K24,Links[ARKNAVN],0)),INDEX(Links[OPGAVE],MATCH(K24,Links[ARKNAVN],0)))","v":"Samarbejde med øvrige institutioner og/eller aktører"},null,null,null,{"$f":"IFERROR(INDEX(Forside!$O$17:$O$34,MATCH($K$9:$K$27,Forside!$L$17:$L$34,0)),\"\")","v":"Ej relevant"}]
[null,null,null,null,null,null,null,null,null,{"$f":"IF(RIGHT(CELL(\"filnavn\"),3)=K25,_xlfn.UNICHAR(159),\"\")","v":""},{"$f":"INDEX(Links[ARKNAVN],ROW(K25)-ROW($K$9)+1)","v":"3.0"},{"$f":"HYPERLINK(INDEX(Links[LINK],MATCH(K25,Links[ARKNAVN],0)),INDEX(Links[OPGAVE],MATCH(K25,Links[ARKNAVN],0)))","v":"Indledning sektion 3"},null,null,null,{"$f":"IFERROR(INDEX(Forside!$O$17:$O$34,MATCH($K$9:$K$27,Forside!$L$17:$L$34,0)),\"\")","v":""}]
[null,null,null,null,null,null,null,null,null,"",{"$f":"INDEX(Links[ARKNAVN],ROW(K26)-ROW($K$9)+1)","v":"3.1"},{"$f":"HYPERLINK(INDEX(Links[LINK],MATCH(K26,Links[ARKNAVN],0)),INDEX(Links[OPGAVE],MATCH(K26,Links[ARKNAVN],0)))","v":"Nye udbud"},null,null,null,{"$f":"IFERROR(INDEX(Forside!$O$17:$O$34,MATCH($K$9:$K$27,Forside!$L$17:$L$34,0)),\"\")","v":"Ej relevant"}]
[null,null,null,null,null,null,null,null,null,"",{"$f":"INDEX(Links[ARKNAVN],ROW(K27)-ROW($K$9)+1)","v":"3.2"},{"$f":"HYPERLINK(INDEX(Links[LINK],MATCH(K27,Links[ARKNAVN],0)),INDEX(Links[OPGAVE],MATCH(K27,Links[ARKNAVN],0)))","v":"Planlagte samarbejder eller overvejelser derom"},null,null,null,{"$f":"IFERROR(INDEX(Forside!$O$17:$O$34,MATCH($K$9:$K$27,Forside!$L$17:$L$34,0)),\"\")","v":"Ej relevant"}]
[]
[]
[]
[]
[]
[]
[null,null,null,null,null,null,null,null,null,"FORSIDE"]
[]
[]
[]
[]
[null,null,null,null,null,null,null,null,null,{"$f":"HYPERLINK(INDEX(Links[LINK],MATCH(RIGHT(CELL(\"filnavn\"),3),Links[ARKNAVN],0)-1),_xlfn.UNICHAR(231))","v":{"$error":"#N/A"}}]

{"sheet":"Uddannelsesoversigt","index":20,"n_rows":1273,"n_cols":5,"rows_kept":1273,"cut":false,"hidden":false,"merged":[]}
[]
[]
[]
[]
[]
[]
[]
[]
[]
[]
[]
[]
[]
[]
[]
[null,"HovedInstitutionTx","HGRPTX","MGRPTX","UDD5TX"]
[null,"Arkitektskolen Aarhus","Akademisk bachelor","Teknik, bach.","Arkitekt, bach."]
[null,"Copenhagen Business School - Handelshøjskolen","Akademisk bachelor","Samfund, bach.","Erhvervsøkonomi-Asian studies programme (ASP), bach."]
[null,"Copenhagen Business School - Handelshøjskolen","Akademisk bachelor","Samfund, bach.","Erhvervsøkonomi-business, language and culture, bach."]
[null,"Copenhagen Business School - Handelshøjskolen","Akademisk bachelor","Samfund, bach.","Europæisk business, HA i europæisk business, bach."]
[null,"Copenhagen Business School - Handelshøjskolen","Akademisk bachelor","Samfund, bach.","HA almen erhvervsøkonomi, bach."]
[null,"Copenhagen Business School - Handelshøjskolen","Akademisk bachelor","Samfund, bach.","HA erhvervsøkonomi og projektledelse, bach."]
[null,"Copenhagen Business School - Handelshøjskolen","Akademisk bachelor","Samfund, bach.","HA erhvervsøkonomi og service management, bach."]
[null,"Copenhagen Business School - Handelshøjskolen","Akademisk bachelor","Samfund, bach.","HA i digital ledelse, bach."]
[null,"Copenhagen Business School - Handelshøjskolen","Akademisk bachelor","Samfund, bach.","HA i markeds- og kulturanalyse, bach."]
[null,"Copenhagen Business School - Handelshøjskolen","Akademisk bachelor","Samfund, bach.","HA international business, bach."]
[null,"Copenhagen Business School - Handelshøjskolen","Akademisk bachelor","Samfund, bach.","HA international shipping og handel, bach."]
[null,"Copenhagen Business School - Handelshøjskolen","Akademisk bachelor","Samfund, bach.","HA(fil.) erhvervsøkonomi-filosofi, bach."]
[null,"Copenhagen Business School - Handelshøjskolen","Akademisk bachelor","Samfund, bach.","HA(it) erhvervsøkonomi-informationsteknologi, bach."]
[null,"Copenhagen Business School - Handelshøjskolen","Akademisk bachelor","Samfund, bach.","HA(jur.) erhvervsøkonomi-jura, bach."]
[null,"Copenhagen Business School - Handelshøjskolen","Akademisk bachelor","Samfund, bach.","HA(kom.) erhvervsøkonomi-virksomhedskommunikation, bach."]
[null,"Copenhagen Business School - Handelshøjskolen","Akademisk bachelor","Samfund, bach.","HA(mat.) erhvervsøkonomi-matematik, bach."]
[null,"Copenhagen Business School - Handelshøjskolen","Akademisk bachelor","Samfund, bach.","HA(pol.) international erhvervsøkonomi-politik, bach."]
[null,"Copenhagen Business School - Handelshøjskolen","Akademisk bachelor","Samfund, bach.","HA(psyk) erhvervsøkonomi-psykologi, bach."]
[null,"Copenhagen Business School - Handelshøjskolen","Akademisk bachelor","Samfund, bach.","HA(soc.) erhvervsøkonomi-sociologi, bach."]
[null,"Danmarks Tekniske Universitet","Akademisk bachelor","Teknik, bach.","Bioteknologi, ing.bach."]
[null,"Danmarks Tekniske Universitet","Akademisk bachelor","Teknik, bach.","Bygge og anlæg, ingeniør bach."]
[null,"Danmarks Tekniske Universitet","Akademisk bachelor","Teknik, bach.","Bygningsdesign, ing.bach."]
[null,"Danmarks Tekniske Universitet","Akademisk bachelor","Teknik, bach.","Bæredygtigt energidesign, ingeniør bach."]
[null,"Danmarks Tekniske Universitet","Akademisk bachelor","Teknik, bach.","Cyberteknologi, ingeniør bach."]
[null,"Danmarks Tekniske Universitet","Akademisk bachelor","Teknik, bach.","Design og innovation, ing.bach."]
[null,"Danmarks Tekniske Universitet","Akademisk bachelor","Teknik, bach.","Elektroteknologi, ingeniør bach."]
[null,"Danmarks Tekniske Universitet","Akademisk bachelor","Teknik, bach.","Fysik og nanoteknologi, ing.bach."]
[null,"Danmarks Tekniske Universitet","Akademisk bachelor","Teknik, bach.","Geofysik og rumteknologi, ing.bach."]
[null,"Danmarks Tekniske Universitet","Akademisk bachelor","Teknik, bach.","Kemi og teknologi, ing.bach."]
[null,"Danmarks Tekniske Universitet","Akademisk bachelor","Teknik, bach.","Kunstig intelligens og data, ingeniør bach."]
[null,"Danmarks Tekniske Universitet","Akademisk bachelor","Teknik, bach.","Kvantitativ biologi og sygdomsmodellering, ingeniør bach."]
[null,"Danmarks Tekniske Universitet","Akademisk bachelor","Teknik, bach.","Matematik og teknologi, ingeniør bach."]
[null,"Danmarks Tekniske Universitet","Akademisk bachelor","Teknik, bach.","Medicin og teknologi, ing.bach."]
[null,"Danmarks Tekniske Universitet","Akademisk bachelor","Teknik, bach.","Miljøvidenskab, ing.bach."]
[null,"Danmarks Tekniske Universitet","Akademisk bachelor","Teknik, bach.","Produktion og konstruktion, ingeniør bach."]
[null,"Danmarks Tekniske Universitet","Akademisk bachelor","Teknik, bach.","Softwareteknologi, ingeniør bach."]
[null,"Danmarks Tekniske Universitet","Akademisk bachelor","Teknik, bach.","Strategisk analyse og systemdesign, ingeniør bach."]
[null,"Danmarks Tekniske Universitet","Akademisk bachelor","Teknik, bach.","Teknisk biomedicin, ing.bach."]
[null,"Danmarks Tekniske Universitet","Akademisk bachelor","Teknik, bach.","Teknisk videnskab, ing.bach."]
[null,"Designskolen Kolding","Akademisk bachelor","Humaniora, bach.","Designer, bach."]
[null,"Det Kongelige Akademi - Arkitektur, Design, Konservering","Akademisk bachelor","Humaniora, bach.","Designer, bach."]
[null,"Det Kongelige Akademi - Arkitektur, Design, Konservering","Akademisk bachelor","Teknik, bach.","Arkitekt, bach."]
[null,"IT-Universitetet i København","Akademisk bachelor","Natur, bach.","Data science, bach."]
[null,"IT-Universitetet i København","Akademisk bachelor","Natur, bach.","Digital design og interaktive teknologier, bach."]
[null,"IT-Universitetet i København","Akademisk bachelor","Natur, bach.","Global virksomhedsinformatik, bach."]
[null,"IT-Universitetet i København","Akademisk bachelor","Natur, bach.","Softwareudvikling, bach."]
[null,"Københavns Universitet","Akademisk bachelor","Samfund, bach.","Antropologi, bach."]
[null,"Københavns Universitet","Akademisk bachelor","Samfund, bach.","Jura, bach."]
[null,"Københavns Universitet","Akademisk bachelor","Samfund, bach.","Psykologi, bach."]
[null,"Københavns Universitet","Akademisk bachelor","Samfund, bach.","Samfundsfag, bach."]
[null,"Københavns Universitet","Akademisk bachelor","Samfund, bach.","Sociologi, bach."]
[null,"Københavns Universitet","Akademisk bachelor","Samfund, bach.","Statskundskab, bach."]
[null,"Københavns Universitet","Akademisk bachelor","Samfund, bach.","Økonomi, bach."]
[null,"Københavns Universitet","Akademisk bachelor","Humaniora, bach.","Arkæologi forhistorisk, bach."]
[null,"Københavns Universitet","Akademisk bachelor","Humaniora, bach.","Arkæologi klassisk, bach."]
[null,"Københavns Universitet","Akademisk bachelor","Humaniora, bach.","Asienstudier, Japanstudier, bach."]
[null,"Københavns Universitet","Akademisk bachelor","Humaniora, bach.","Asienstudier, Kinastudier, bach."]
[null,"Københavns Universitet","Akademisk bachelor","Humaniora, bach.","Asienstudier, Koreastudier, bach."]
[null,"Københavns Universitet","Akademisk bachelor","Humaniora, bach.","Audiologopædi, bach."]
[null,"Københavns Universitet","Akademisk bachelor","Humaniora, bach.","Bibliotekar DB"]
[null,"Københavns Universitet","Akademisk bachelor","Humaniora, bach.","Dansk, bach."]
[null,"Københavns Universitet","Akademisk bachelor","Humaniora, bach.","Engelsk, bach."]
[null,"Københavns Universitet","Akademisk bachelor","Humaniora, bach.","Etnologi europæisk, bach"]
[null,"Københavns Universitet","Akademisk bachelor","Humaniora, bach.","Film- og medievidenskab, bach."]
[null,"Københavns Universitet","Akademisk bachelor","Humaniora, bach.","Filosofi, bach."]
[null,"Københavns Universitet","Akademisk bachelor","Humaniora, bach.","Fransk sprog, litteratur og kultur, bach."]
[null,"Københavns Universitet","Akademisk bachelor","Humaniora, bach.","Græsk, klassisk, bach."]
[null,"Københavns Universitet","Akademisk bachelor","Humaniora, bach.","Grønlandske og arktiske studier, bach."]
[null,"Københavns Universitet","Akademisk bachelor","Humaniora, bach.","Historie, bach."]
[null,"Københavns Universitet","Akademisk bachelor","Humaniora, bach.","Indianske sprog og kulturer, bach."]
[null,"Københavns Universitet","Akademisk bachelor","Humaniora, bach.","Informationsstudier, bach."]
[null,"Københavns Universitet","Akademisk bachelor","Humaniora, bach.","Italiensk sprog og kultur, bach."]
[null,"Københavns Universitet","Akademisk bachelor","Humaniora, bach.","Kommunikation og IT, bach."]
[null,"Københavns Universitet","Akademisk bachelor","Humaniora, bach.","Kunsthistorie, bach."]
[null,"Københavns Universitet","Akademisk bachelor","Humaniora, bach.","Latin, bach."]
[null,"Københavns Universitet","Akademisk bachelor","Humaniora, bach.","Lingvistik, bach."]
[null,"Københavns Universitet","Akademisk bachelor","Humaniora, bach.","Litteraturvidenskab, bach."]
[null,"Københavns Universitet","Akademisk bachelor","Humaniora, bach.","Mellemøstens sprog og samfund - Ægyptologi, bach."]
[null,"Københavns Universitet","Akademisk bachelor","Humaniora, bach.","Mellemøstens sprog og samfund, bach."]
[null,"Københavns Universitet","Akademisk bachelor","Humaniora, bach.","Mellemøstens sprog og samfund-Nærorientalsk arkæologi, bach."]
[null,"Københavns Universitet","Akademisk bachelor","Humaniora, bach.","Moderne Indien og Sydasienstudier, bach."]
[null,"Københavns Universitet","Akademisk bachelor","Humaniora, bach.","Musik/Musikvidenskab, bach."]
[null,"Københavns Universitet","Akademisk bachelor","Humaniora, bach.","Pædagogik, bach."]
[null,"Københavns Universitet","Akademisk bachelor","Humaniora, bach.","Religion studier/videnskab, bach."]
[null,"Københavns Universitet","Akademisk bachelor","Humaniora, bach.","Retorik, bach."]
[null,"Københavns Universitet","Akademisk bachelor","Humaniora, bach.","Spansk sprog og kultur, bach."]
[null,"Københavns Universitet","Akademisk bachelor","Humaniora, bach.","Teater- og performancestudier, bach."]
[null,"Københavns Universitet","Akademisk bachelor","Humaniora, bach.","Teologi, bach."]
[null,"Københavns Universitet","Akademisk bachelor","Humaniora, bach.","Tysk sprog, litteratur og kultur, bach."]
[null,"Københavns Universitet","Akademisk bachelor","Humaniora, bach.","Østeuropastudier, bach."]
[null,"Københavns Universitet","Akademisk bachelor","Natur, bach.","Biokemi, bach."]
[null,"Københavns Universitet","Akademisk bachelor","Natur, bach.","Biologi, bach."]
[null,"Københavns Universitet","Akademisk bachelor","Natur, bach.","Biologi-bioteknologi, bach."]
[null,"Københavns Universitet","Akademisk bachelor","Natur, bach.","Datalogi, bach."]
[null,"Københavns Universitet","Akademisk bachelor","Natur, bach.","Datalogi-økonomi, bach."]
[null,"Københavns Universitet","Akademisk bachelor","Natur, bach.","Forsikringsmatematik, bach."]
[null,"Københavns Universitet","Akademisk bachelor","Natur, bach.","Fysik, bach."]
[null,"Københavns Universitet","Akademisk bachelor","Natur, bach.","Fødevarer og ernæring, bach."]
[null,"Københavns Universitet","Akademisk bachelor","Natur, bach.","Geografi/Geografi og geoinformatik, bach."]
[null,"Københavns Universitet","Akademisk bachelor","Natur, bach.","Geologi/Geologi-geoscience, bach."]
[null,"Københavns Universitet","Akademisk bachelor","Natur, bach.","Husdyrvidenskab, bach."]
[null,"Københavns Universitet","Akademisk bachelor","Natur, bach.","Idræt/Idræt og sundhed, bach."]
[null,"Københavns Universitet","Akademisk bachelor","Natur, bach.","Kemi, bach."]
[null,"Københavns Universitet","Akademisk bachelor","Natur, bach.","Landskabsarkitektur, bach."]
[null,"Københavns Universitet","Akademisk bachelor","Natur, bach.","Machine learning og data science, bach."]
[null,"Københavns Universitet","Akademisk bachelor","Natur, bach.","Matematik og økonomi, bach."]
[null,"Københavns Universitet","Akademisk bachelor","Natur, bach.","Matematik, bach."]
[null,"Københavns Universitet","Akademisk bachelor","Natur, bach.","Medicinalkemi, bach."]
[null,"Københavns Universitet","Akademisk bachelor","Natur, bach.","Miljø- og fødevareøkonomi, bach."]
[null,"Københavns Universitet","Akademisk bachelor","Natur, bach.","Molekylær biomedicin /Molekylær medicin, bach."]
[null,"Københavns Universitet","Akademisk bachelor","Natur, bach.","Nanoscience, bach."]
[null,"Københavns Universitet","Akademisk bachelor","Natur, bach.","Naturressourcer, bach."]
[null,"Københavns Universitet","Akademisk bachelor","Sundhed, bach.","Farmaci, bach."]
[null,"Københavns Universitet","Akademisk bachelor","Sundhed, bach.","Folkesundhedsvidenskab, bach."]
[null,"Københavns Universitet","Akademisk bachelor","Sundhed, bach.","Medicin, bach."]
[null,"Københavns Universitet","Akademisk bachelor","Sundhed, bach.","Odontologi, bach."]
[null,"Københavns Universitet","Akademisk bachelor","Sundhed, bach.","Sundhed og informatik, bach."]
[null,"Københavns Universitet","Akademisk bachelor","Sundhed, bach.","Veterinærmedicin, bach."]
[null,"Roskilde Universitet","Akademisk bachelor","Samfund, bach.","Samfundsvidenskab una, bach. (RUC)"]
[null,"Roskilde Universitet","Akademisk bachelor","Samfund, bach.","Social Sciences, bach. (RUC)"]
[null,"Roskilde Universitet","Akademisk bachelor","Humaniora, bach.","Humanistisk una, bach. (RUC)"]
[null,"Roskilde Universitet","Akademisk bachelor","Humaniora, bach.","Humanities, bach. (RUC)"]
[null,"Roskilde Universitet","Akademisk bachelor","Teknik, bach.","Humanistisk-teknologisk, bach. (RUC)"]
[null,"Roskilde Universitet","Akademisk bachelor","Natur, bach.","Natural Sciences, bach. (RUC)"]
[null,"Roskilde Universitet","Akademisk bachelor","Natur, bach.","Naturvidenskab una, bach. (RUC)"]
[null,"Syddansk Universitet","Akademisk bachelor","Samfund, bach.","Economics and Business Administration, bach."]
[null,"Syddansk Universitet","Akademisk bachelor","Samfund, bach.","Europæiske studier, bach."]
[null,"Syddansk Universitet","Akademisk bachelor","Samfund, bach.","HA almen erhvervsøkonomi, bach."]
[null,"Syddansk Universitet","Akademisk bachelor","Samfund, bach.","HA(jur.) erhvervsøkonomi-jura, bach."]
[null,"Syddansk Universitet","Akademisk bachelor","Samfund, bach.","Journalistik, bach."]
[null,"Syddansk Universitet","Akademisk bachelor","Samfund, bach.","Jura, bach."]
[null,"Syddansk Universitet","Akademisk bachelor","Samfund, bach.","Markeds- og ledelsesantropologi, bach."]
[null,"Syddansk Universitet","Akademisk bachelor","Samfund, bach.","Psykologi, bach."]
[null,"Syddansk Universitet","Akademisk bachelor","Samfund, bach.","Samfundsfag, bach."]
[null,"Syddansk Universitet","Akademisk bachelor","Samfund, bach.","Sociologi og kulturanalyse, bach."]
[null,"Syddansk Universitet","Akademisk bachelor","Samfund, bach.","Statskundskab, bach."]
[null,"Syddansk Universitet","Akademisk bachelor","Samfund, bach.","Økonomi, bach."]
[null,"Syddansk Universitet","Akademisk bachelor","Humaniora, bach.","Amerikanske studier, bach."]
[null,"Syddansk Universitet","Akademisk bachelor","Humaniora, bach.","Audiologi, bach."]
[null,"Syddansk Universitet","Akademisk bachelor","Humaniora, bach.","Audiologopædi, bach."]
[null,"Syddansk Universitet","Akademisk bachelor","Humaniora, bach.","Bibliotekskundskab og videnskommunikation, bach."]
[null,"Syddansk Universitet","Akademisk bachelor","Humaniora, bach.","Dansk, bach."]
[null,"Syddansk Universitet","Akademisk bachelor","Humaniora, bach.","Designkultur og økonomi, bach."]
[null,"Syddansk Universitet","Akademisk bachelor","Humaniora, bach.","Designkultur, bach."]
[null,"Syddansk Universitet","Akademisk bachelor","Humaniora, bach.","Engelsk, bach."]
[null,"Syddansk Universitet","Akademisk bachelor","Humaniora, bach.","Erhvervsøkonomi-erhvervssprog, engelsk, bach.negot."]
[null,"Syddansk Universitet","Akademisk bachelor","Humaniora, bach.","Erhvervsøkonomi-erhvervssprog, tysk, bach.negot."]
[null,"Syddansk Universitet","Akademisk bachelor","Humaniora, bach.","Filosofi, bach."]
[null,"Syddansk Universitet","Akademisk bachelor","Humaniora, bach.","Historie, bach."]
[null,"Syddansk Universitet","Akademisk bachelor","Humaniora, bach.","Informationsvidenskab, it og interaktionsdesign"]
[null,"Syddansk Universitet","Akademisk bachelor","Humaniora, bach.","Interkulturel pædagogik og dansk som andetsprog, bach."]
[null,"Syddansk Universitet","Akademisk bachelor","Humaniora, bach.","Internat. virksomhedskommunikation, engelsk, bach."]
[null,"Syddansk Universitet","Akademisk bachelor","Humaniora, bach.","Internat. virksomhedskommunikation, tysk, bach."]
[null,"Syddansk Universitet","Akademisk bachelor","Humaniora, bach.","International erhvervsøkonomi med fremmedsprog, bach."]
[null,"Syddansk Universitet","Akademisk bachelor","Humaniora, bach.","International virksomhedskommunikation i 2 fremmedsprog, bach."]
[null,"Syddansk Universitet","Akademisk bachelor","Humaniora, bach.","Litteraturvidenskab, bach."]
[null,"Syddansk Universitet","Akademisk bachelor","Humaniora, bach.","Medievidenskab, bach."]
[null,"Syddansk Universitet","Akademisk bachelor","Humaniora, bach.","Oldtidskundskab, bach."]
[null,"Syddansk Universitet","Akademisk bachelor","Humaniora, bach.","Religion studier/videnskab, bach."]
[null,"Syddansk Universitet","Akademisk bachelor","Humaniora, bach.","Tysk sprog, litteratur og kultur, bach."]
[null,"Syddansk Universitet","Akademisk bachelor","Teknik, bach.","Bygningsteknik, ingeniør bach."]
[null,"Syddansk Universitet","Akademisk bachelor","Teknik, bach.","Elektronik, ingeniør bach."]
[null,"Syddansk Universitet","Akademisk bachelor","Teknik, bach.","Energiteknologi, ing.bach."]
[null,"Syddansk Universitet","Akademisk bachelor","Teknik, bach.","Engineering, Innovation and Business, ing.bach."]
[null,"Syddansk Universitet","Akademisk bachelor","Teknik, bach.","Fysik og teknologi, ing.bach."]
[null,"Syddansk Universitet","Akademisk bachelor","Teknik, bach.","Kemi og bioteknologi, ing.bach."]
[null,"Syddansk Universitet","Akademisk bachelor","Teknik, bach.","Mekatronik, ing.bach."]
[null,"Syddansk Universitet","Akademisk bachelor","Teknik, bach.","Produktudvikling og innovation, ingeniør bach."]
[null,"Syddansk Universitet","Akademisk bachelor","Teknik, bach.","Robotteknologi, ing.bach."]
[null,"Syddansk Universitet","Akademisk bachelor","Teknik, bach.","Software engineering, ing.bach."]
[null,"Syddansk Universitet","Akademisk bachelor","Teknik, bach.","Spiludvikling og læringsteknologi, ingeniør bach."]
[null,"Syddansk Universitet","Akademisk bachelor","Teknik, bach.","Sundheds- og velfærdsteknologi (teknisk videnskab), ing.bach."]
[null,"Syddansk Universitet","Akademisk bachelor","Natur, bach.","Anvendt matematik, bach."]
[null,"Syddansk Universitet","Akademisk bachelor","Natur, bach.","Biokemi og molekylær biologi, bach."]
[null,"Syddansk Universitet","Akademisk bachelor","Natur, bach.","Biologi, bach."]
[null,"Syddansk Universitet","Akademisk bachelor","Natur, bach.","Biomedicin, bach."]
[null,"Syddansk Universitet","Akademisk bachelor","Natur, bach.","Datalogi, bach."]
[null,"Syddansk Universitet","Akademisk bachelor","Natur, bach.","Fysik, bach."]
[null,"Syddansk Universitet","Akademisk bachelor","Natur, bach.","Idræt/Idræt og sundhed, bach."]
[null,"Syddansk Universitet","Akademisk bachelor","Natur, bach.","Kemi, bach."]
[null,"Syddansk Universitet","Akademisk bachelor","Natur, bach.","Matematik og økonomi, bach."]
[null,"Syddansk Universitet","Akademisk bachelor","Natur, bach.","Matematik, bach."]
[null,"Syddansk Universitet","Akademisk bachelor","Sundhed, bach.","Farmaci, bach."]
[null,"Syddansk Universitet","Akademisk bachelor","Sundhed, bach.","Folkesundhedsvidenskab, bach."]
[null,"Syddansk Universitet","Akademisk bachelor","Sundhed, bach.","Klinisk biomekanik, bach."]
[null,"Syddansk Universitet","Akademisk bachelor","Sundhed, bach.","Medicin, bach."]
[null,"Aalborg Universitet","Akademisk bachelor","Samfund, bach.","HA almen erhvervsøkonomi, bach."]
[null,"Aalborg Universitet","Akademisk bachelor","Samfund, bach.","HA(jur.) erhvervsøkonomi-jura, bach."]
[null,"Aalborg Universitet","Akademisk bachelor","Samfund, bach.","Innovation og digitalisering, bach."]
[null,"Aalborg Universitet","Akademisk bachelor","Samfund, bach.","Jura, bach."]
[null,"Aalborg Universitet","Akademisk bachelor","Samfund, bach.","Organisatorisk læring, bach."]
[null,"Aalborg Universitet","Akademisk bachelor","Samfund, bach.","Politik og administration, bach."]
[null,"Aalborg Universitet","Akademisk bachelor","Samfund, bach.","Psykologi, bach."]
[null,"Aalborg Universitet","Akademisk bachelor","Samfund, bach.","Samfundsfag, bach."]
[null,"Aalborg Universitet","Akademisk bachelor","Samfund, bach.","Sociologi, bach."]
[null,"Aalborg Universitet","Akademisk bachelor","Samfund, bach.","Økonomi, bach."]
[null,"Aalborg Universitet","Akademisk bachelor","Humaniora, bach.","Anvendt filosofi, bach."]
[null,"Aalborg Universitet","Akademisk bachelor","Humaniora, bach.","Dansk, bach."]
[null,"Aalborg Universitet","Akademisk bachelor","Humaniora, bach.","Engelsk, bach."]
[null,"Aalborg Universitet","Akademisk bachelor","Humaniora, bach.","Historie, bach."]
[null,"Aalborg Universitet","Akademisk bachelor","Humaniora, bach.","Internat. virksomhedskommunikation, engelsk, bach."]
[null,"Aalborg Universitet","Akademisk bachelor","Humaniora, bach.","Kommunikation og digitale medier, bach."]
[null,"Aalborg Universitet","Akademisk bachelor","Humaniora, bach.","Kunst og teknologi, bach."]
[null,"Aalborg Universitet","Akademisk bachelor","Humaniora, bach.","Musik/Musikvidenskab, bach."]
[null,"Aalborg Universitet","Akademisk bachelor","Humaniora, bach.","Musikterapi, bach."]
[null,"Aalborg Universitet","Akademisk bachelor","Humaniora, bach.","Sprog og internationale studier-engelsk, bach."]
[null,"Aalborg Universitet","Akademisk bachelor","Humaniora, bach.","Sprog og internationale studier-spansk, bach."]
[null,"Aalborg Universitet","Akademisk bachelor","Teknik, bach.","Anvendt industriel elektronik, ing.bach."]
[null,"Aalborg Universitet","Akademisk bachelor","Teknik, bach.","Arkitektur og design,ing.bach"]
[null,"Aalborg Universitet","Akademisk bachelor","Teknik, bach.","Bioteknologi, ing.bach."]
[null,"Aalborg Universitet","Akademisk bachelor","Teknik, bach.","By-, energi- og miljøplanlægning, ingeniør bach."]
[null,"Aalborg Universitet","Akademisk bachelor","Teknik, bach.","Byggeri og anlæg, ingeniør bach."]
[null,"Aalborg Universitet","Akademisk bachelor","Teknik, bach.","Bæredygtigt design, ing.bach."]
[null,"Aalborg Universitet","Akademisk bachelor","Teknik, bach.","Chemistry-biotechnology, ing.bach."]
[null,"Aalborg Universitet","Akademisk bachelor","Teknik, bach.","Computerteknologi, ing.bach."]
[null,"Aalborg Universitet","Akademisk bachelor","Teknik, bach.","Elektronik og IT, ing.bach."]
[null,"Aalborg Universitet","Akademisk bachelor","Teknik, bach.","Energi, ing.bach."]
[null,"Aalborg Universitet","Akademisk bachelor","Teknik, bach.","Globale forretningssystemer, ingeniør bach."]
[null,"Aalborg Universitet","Akademisk bachelor","Teknik, bach.","Kemiteknologi, ing.bach."]
[null,"Aalborg Universitet","Akademisk bachelor","Teknik, bach.","Landinspektørvidenskab, bach."]
[null,"Aalborg Universitet","Akademisk bachelor","Teknik, bach.","Matematik-teknologi, ingeniør bach."]
[null,"Aalborg Universitet","Akademisk bachelor","Teknik, bach.","Mekanik og Produktion, ingeniør.bach"]
[null,"Aalborg Universitet","Akademisk bachelor","Teknik, bach.","Miljøvidenskab, ing.bach."]
[null,"Aalborg Universitet","Akademisk bachelor","Teknik, bach.","Nanoteknologi, ing.bach."]
[null,"Aalborg Universitet","Akademisk bachelor","Teknik, bach.","Produkt- og designpsykologi, ingeniør bach."]
[null,"Aalborg Universitet","Akademisk bachelor","Teknik, bach.","Robotteknologi, ing.bach."]
[null,"Aalborg Universitet","Akademisk bachelor","Teknik, bach.","Software, ingeniør bach."]
[null,"Aalborg Universitet","Akademisk bachelor","Teknik, bach.","Sundhedsteknologi, ing.bach."]
[null,"Aalborg Universitet","Akademisk bachelor","Teknik, bach.","Teknoantropologi, bach."]
[null,"Aalborg Universitet","Akademisk bachelor","Natur, bach.","Biologi, bach."]
[null,"Aalborg Universitet","Akademisk bachelor","Natur, bach.","Datalogi, bach."]
[null,"Aalborg Universitet","Akademisk bachelor","Natur, bach.","Datavidenskab, bach."]
[null,"Aalborg Universitet","Akademisk bachelor","Natur, bach.","Fysik, bach."]
[null,"Aalborg Universitet","Akademisk bachelor","Natur, bach.","Geografi/Geografi og geoinformatik, bach."]
[null,"Aalborg Universitet","Akademisk bachelor","Natur, bach.","Idræt/Idræt og sundhed, bach."]
[null,"Aalborg Universitet","Akademisk bachelor","Natur, bach.","Informationsteknologi, bach."]
[null,"Aalborg Universitet","Akademisk bachelor","Natur, bach.","Interaktionsdesign, bach."]
[null,"Aalborg Universitet","Akademisk bachelor","Natur, bach.","Kemi, bach."]
[null,"Aalborg Universitet","Akademisk bachelor","Natur, bach.","Matematik og økonomi, bach."]
[null,"Aalborg Universitet","Akademisk bachelor","Natur, bach.","Matematik, bach."]
[null,"Aalborg Universitet","Akademisk bachelor","Natur, bach.","Medialogi, bach."]
[null,"Aalborg Universitet","Akademisk bachelor","Sundhed, bach.","Medicin med industriel speciale, bach."]
[null,"Aalborg Universitet","Akademisk bachelor","Sundhed, bach.","Medicin, bach."]
[null,"Aarhus Universitet","Akademisk bachelor","Samfund, bach.","Antropologi, bach."]
[null,"Aarhus Universitet","Akademisk bachelor","Samfund, bach.","Economics and Business Administration, bach."]
[null,"Aarhus Universitet","Akademisk bachelor","Samfund, bach.","Erhvervsøkonomi, bach."]
[null,"Aarhus Universitet","Akademisk bachelor","Samfund, bach.","HA almen erhvervsøkonomi, bach."]
[null,"Aarhus Universitet","Akademisk bachelor","Samfund, bach.","HA(jur.) erhvervsøkonomi-jura, bach."]
[null,"Aarhus Universitet","Akademisk bachelor","Samfund, bach.","Jura, bach."]
[null,"Aarhus Universitet","Akademisk bachelor","Samfund, bach.","Kognitionsvidenskab,bach."]
[null,"Aarhus Universitet","Akademisk bachelor","Samfund, bach.","Politik og økonomi, bach"]
[null,"Aarhus Universitet","Akademisk bachelor","Samfund, bach.","Psykologi, bach."]
[null,"Aarhus Universitet","Akademisk bachelor","Samfund, bach.","Samfundsfag, bach."]
[null,"Aarhus Universitet","Akademisk bachelor","Samfund, bach.","Statskundskab, bach."]
[null,"Aarhus Universitet","Akademisk bachelor","Samfund, bach.","Uddannelsesvidenskab, bach."]
[null,"Aarhus Universitet","Akademisk bachelor","Samfund, bach.","Økonomi, bach."]
[null,"Aarhus Universitet","Akademisk bachelor","Humaniora, bach.","Arabisk- og islamstudier, bach."]
[null,"Aarhus Universitet","Akademisk bachelor","Humaniora, bach.","Arkæologi klassisk, bach."]
[null,"Aarhus Universitet","Akademisk bachelor","Humaniora, bach.","Arkæologi, bach."]
[null,"Aarhus Universitet","Akademisk bachelor","Humaniora, bach.","Asienstudier, Japanstudier, bach."]
[null,"Aarhus Universitet","Akademisk bachelor","Humaniora, bach.","Asienstudier, Kinastudier, bach."]
[null,"Aarhus Universitet","Akademisk bachelor","Humaniora, bach.","Brasilianske studier, bach."]
[null,"Aarhus Universitet","Akademisk bachelor","Humaniora, bach.","Digital design, bach."]
[null,"Aarhus Universitet","Akademisk bachelor","Humaniora, bach.","Dramaturgi, bach."]
[null,"Aarhus Universitet","Akademisk bachelor","Humaniora, bach.","Engelsk, bach."]
[null,"Aarhus Universitet","Akademisk bachelor","Humaniora, bach.","Filosofi, bach."]
[null,"Aarhus Universitet","Akademisk bachelor","Humaniora, bach.","Fransk sprog, litteratur og kultur, bach."]
[null,"Aarhus Universitet","Akademisk bachelor","Humaniora, bach.","Historie, bach."]
[null,"Aarhus Universitet","Akademisk bachelor","Humaniora, bach.","Idehistorie, bach."]
[null,"Aarhus Universitet","Akademisk bachelor","Humaniora, bach.","Informationsvidenskab, bach."]
[null,"Aarhus Universitet","Akademisk bachelor","Humaniora, bach.","Internat. virksomhedskommunikation, engelsk, bach."]
[null,"Aarhus Universitet","Akademisk bachelor","Humaniora, bach.","Internat. virksomhedskommunikation, fransk, bach."]
[null,"Aarhus Universitet","Akademisk bachelor","Humaniora, bach.","Internat. virksomhedskommunikation, spansk, bach."]
[null,"Aarhus Universitet","Akademisk bachelor","Humaniora, bach.","Internat. virksomhedskommunikation, tysk, bach."]
[null,"Aarhus Universitet","Akademisk bachelor","Humaniora, bach.","Klassisk filologi, bach."]
[null,"Aarhus Universitet","Akademisk bachelor","Humaniora, bach.","Kunsthistorie, bach."]
[null,"Aarhus Universitet","Akademisk bachelor","Humaniora, bach.","Lingvistik, bach."]
[null,"Aarhus Universitet","Akademisk bachelor","Humaniora, bach.","Litteraturhistorie, bach."]
[null,"Aarhus Universitet","Akademisk bachelor","Humaniora, bach.","Medievidenskab, bach."]
[null,"Aarhus Universitet","Akademisk bachelor","Humaniora, bach.","Moderne Indien og Sydasienstudier, bach."]
[null,"Aarhus Universitet","Akademisk bachelor","Humaniora, bach.","Musik/Musikvidenskab, bach."]
[null,"Aarhus Universitet","Akademisk bachelor","Humaniora, bach.","Nordisk sprog og litteratur, bach."]
[null,"Aarhus Universitet","Akademisk bachelor","Humaniora, bach.","Religion studier/videnskab, bach."]
[null,"Aarhus Universitet","Akademisk bachelor","Humaniora, bach.","Ruslandstudier, bach."]
[null,"Aarhus Universitet","Akademisk bachelor","Humaniora, bach.","Spansk og spanskamerikansk sprog, litteratur og kultur, bach."]
[null,"Aarhus Universitet","Akademisk bachelor","Humaniora, bach.","Teologi, bach."]
[null,"Aarhus Universitet","Akademisk bachelor","Humaniora, bach.","Tysk sprog, litteratur og kultur, bach."]
[null,"Aarhus Universitet","Akademisk bachelor","Humaniora, bach.","Æstetik og kultur, bach."]
[null,"Aarhus Universitet","Akademisk bachelor","Teknik, bach.","Bioteknologi, ing.bach."]
[null,"Aarhus Universitet","Akademisk bachelor","Teknik, bach.","Byggeri, ingeniør bach."]
[null,"Aarhus Universitet","Akademisk bachelor","Teknik, bach.","Computerteknologi, bach."]
[null,"Aarhus Universitet","Akademisk bachelor","Teknik, bach.","Elektroteknologi, ingeniør bach."]
[null,"Aarhus Universitet","Akademisk bachelor","Teknik, bach.","Kemi og teknologi, ing.bach."]
[null,"Aarhus Universitet","Akademisk bachelor","Teknik, bach.","Mekanik, ingeniør bach."]
[null,"Aarhus Universitet","Akademisk bachelor","Natur, bach.","Agrobiologi, bach."]
[null,"Aarhus Universitet","Akademisk bachelor","Natur, bach.","Biologi, bach."]
[null,"Aarhus Universitet","Akademisk bachelor","Natur, bach.","Datalogi, bach."]
[null,"Aarhus Universitet","Akademisk bachelor","Natur, bach.","Datavidenskab, bach."]
[null,"Aarhus Universitet","Akademisk bachelor","Natur, bach.","Fysik, bach."]
[null,"Aarhus Universitet","Akademisk bachelor","Natur, bach.","Geologi/Geologi-geoscience, bach."]
[null,"Aarhus Universitet","Akademisk bachelor","Natur, bach.","Idræt/Idræt og sundhed, bach."]
[null,"Aarhus Universitet","Akademisk bachelor","Natur, bach.","It-produktudvikling, bach."]
[null,"Aarhus Universitet","Akademisk bachelor","Natur, bach.","Kemi, bach."]
[null,"Aarhus Universitet","Akademisk bachelor","Natur, bach.","Matematik og økonomi, bach."]
[null,"Aarhus Universitet","Akademisk bachelor","Natur, bach.","Matematik, bach."]
[null,"Aarhus Universitet","Akademisk bachelor","Natur, bach.","Medicinalkemi, bach."]
[null,"Aarhus Universitet","Akademisk bachelor","Natur, bach.","Molekylær biomedicin /Molekylær medicin, bach."]
[null,"Aarhus Universitet","Akademisk bachelor","Natur, bach.","Molekylærbiologi, bach."]
[null,"Aarhus Universitet","Akademisk bachelor","Natur, bach.","Nanoscience, bach."]
[null,"Aarhus Universitet","Akademisk bachelor","Sundhed, bach.","Folkesundhedsvidenskab, bach."]
[null,"Aarhus Universitet","Akademisk bachelor","Sundhed, bach.","Medicin, bach."]
[null,"Aarhus Universitet","Akademisk bachelor","Sundhed, bach.","Odontologi, bach."]
[null,"Erhvervsakademi Dania","Erhvervsakademiuddannelser (EA)","It-faglige område, EA","Datamatiker"]
[null,"Erhvervsakademi Dania","Erhvervsakademiuddannelser (EA)","It-faglige område, EA","IT Technology"]
[null,"Erhvervsakademi Dania","Erhvervsakademiuddannelser (EA)","It-faglige område, EA","IT-teknolog"]
[null,"Erhvervsakademi Dania","Erhvervsakademiuddannelser (EA)","It-faglige område, EA","Multimediedesigner"]
[null,"Erhvervsakademi Dania","Erhvervsakademiuddannelser (EA)","Samfundsfaglige område, EA","Administrationsøkonom"]
[null,"Erhvervsakademi Dania","Erhvervsakademiuddannelser (EA)","Tekniske område, EA","Automationsteknolog"]
[null,"Erhvervsakademi Dania","Erhvervsakademiuddannelser (EA)","Tekniske område, EA","Automotive Technology"]
[null,"Erhvervsakademi Dania","Erhvervsakademiuddannelser (EA)","Tekniske område, EA","Autoteknolog"]
[null,"Erhvervsakademi Dania","Erhvervsakademiuddannelser (EA)","Tekniske område, EA","El-installatør"]
[null,"Erhvervsakademi Dania","Erhvervsakademiuddannelser (EA)","Tekniske område, EA","Energiteknolog"]
[null,"Erhvervsakademi Dania","Erhvervsakademiuddannelser (EA)","Tekniske område, EA","Produktionsteknolog"]
[null,"Erhvervsakademi Dania","Erhvervsakademiuddannelser (EA)","Økonomisk-merkantile område, EA","Finansøkonom"]
[null,"Erhvervsakademi Dania","Erhvervsakademiuddannelser (EA)","Økonomisk-merkantile område, EA","Handelsøkonom"]
[null,"Erhvervsakademi Dania","Erhvervsakademiuddannelser (EA)","Økonomisk-merkantile område, EA","Logistikøkonom"]
[null,"Erhvervsakademi Dania","Erhvervsakademiuddannelser (EA)","Økonomisk-merkantile område, EA","Markedsføringsøkonom"]
[null,"Erhvervsakademi Dania","Erhvervsakademiuddannelser (EA)","Økonomisk-merkantile område, EA","Marketing Management"]
[null,"Erhvervsakademi Dania","Erhvervsakademiuddannelser (EA)","Økonomisk-merkantile område, EA","Service, Hospitality and Tourism Management"]
[null,"Erhvervsakademi Dania","Erhvervsakademiuddannelser (EA)","Økonomisk-merkantile område, EA","Serviceøkonom"]
[null,"Erhvervsakademi MidtVest","Erhvervsakademiuddannelser (EA)","Bio- og laboratorietekniske område, EA","Laborant"]
[null,"Erhvervsakademi MidtVest","Erhvervsakademiuddannelser (EA)","Bio- og laboratorietekniske område, EA","Procesteknolog"]
[null,"Erhvervsakademi MidtVest","Erhvervsakademiuddannelser (EA)","It-faglige område, EA","Datamatiker"]
[null,"Erhvervsakademi MidtVest","Erhvervsakademiuddannelser (EA)","It-faglige område, EA","Multimediedesigner"]
[null,"Erhvervsakademi MidtVest","Erhvervsakademiuddannelser (EA)","Tekniske område, EA","Byggekoordinator"]
[null,"Erhvervsakademi MidtVest","Erhvervsakademiuddannelser (EA)","Tekniske område, EA","El-installatør"]
[null,"Erhvervsakademi MidtVest","Erhvervsakademiuddannelser (EA)","Tekniske område, EA","Produktionsteknolog"]
[null,"Erhvervsakademi MidtVest","Erhvervsakademiuddannelser (EA)","Tekniske område, EA","VVS-installatør"]
[null,"Erhvervsakademi MidtVest","Erhvervsakademiuddannelser (EA)","Økonomisk-merkantile område, EA","Finansøkonom"]
[null,"Erhvervsakademi MidtVest","Erhvervsakademiuddannelser (EA)","Økonomisk-merkantile område, EA","Markedsføringsøkonom"]
[null,"Erhvervsakademi MidtVest","Erhvervsakademiuddannelser (EA)","Økonomisk-merkantile område, EA","Serviceøkonom"]
[null,"Erhvervsakademi SydVest","Erhvervsakademiuddannelser (EA)","Designfaglige område, EA","Designteknolog"]
[null,"Erhvervsakademi SydVest","Erhvervsakademiuddannelser (EA)","It-faglige område, EA","Computer Science"]
[null,"Erhvervsakademi SydVest","Erhvervsakademiuddannelser (EA)","It-faglige område, EA","Datamatiker"]
[null,"Erhvervsakademi SydVest","Erhvervsakademiuddannelser (EA)","It-faglige område, EA","Multimedia Design"]
[null,"Erhvervsakademi SydVest","Erhvervsakademiuddannelser (EA)","It-faglige område, EA","Multimediedesigner"]
[null,"Erhvervsakademi SydVest","Erhvervsakademiuddannelser (EA)","Tekniske område, EA","Byggekoordinator"]
[null,"Erhvervsakademi SydVest","Erhvervsakademiuddannelser (EA)","Tekniske område, EA","Driftsteknolog offshore"]
[null,"Erhvervsakademi SydVest","Erhvervsakademiuddannelser (EA)","Tekniske område, EA","Produktionsteknolog"]
[null,"Erhvervsakademi SydVest","Erhvervsakademiuddannelser (EA)","Økonomisk-merkantile område, EA","Finansøkonom"]
[null,"Erhvervsakademi SydVest","Erhvervsakademiuddannelser (EA)","Økonomisk-merkantile område, EA","Markedsføringsøkonom"]
[null,"Erhvervsakademi SydVest","Erhvervsakademiuddannelser (EA)","Økonomisk-merkantile område, EA","Marketing Management"]
[null,"Erhvervsakademi SydVest","Erhvervsakademiuddannelser (EA)","Økonomisk-merkantile område, EA","Serviceøkonom"]
[null,"Erhvervsakademi Aarhus","Erhvervsakademiuddannelser (EA)","Bio- og laboratorietekniske område, EA","Chemical and Biotechnical Science"]
[null,"Erhvervsakademi Aarhus","Erhvervsakademiuddannelser (EA)","Bio- og laboratorietekniske område, EA","Jordbrugsteknolog"]
[null,"Erhvervsakademi Aarhus","Erhvervsakademiuddannelser (EA)","Bio- og laboratorietekniske område, EA","Laborant"]
[null,"Erhvervsakademi Aarhus","Erhvervsakademiuddannelser (EA)","It-faglige område, EA","Datamatiker"]
[null,"Erhvervsakademi Aarhus","Erhvervsakademiuddannelser (EA)","It-faglige område, EA","IT Technology"]
[null,"Erhvervsakademi Aarhus","Erhvervsakademiuddannelser (EA)","It-faglige område, EA","IT-teknolog"]
[null,"Erhvervsakademi Aarhus","Erhvervsakademiuddannelser (EA)","It-faglige område, EA","Multimedia Design"]
[null,"Erhvervsakademi Aarhus","Erhvervsakademiuddannelser (EA)","It-faglige område, EA","Multimediedesigner"]
[null,"Erhvervsakademi Aarhus","Erhvervsakademiuddannelser (EA)","Tekniske område, EA","Automationsteknolog"]
[null,"Erhvervsakademi Aarhus","Erhvervsakademiuddannelser (EA)","Tekniske område, EA","Autoteknolog"]
[null,"Erhvervsakademi Aarhus","Erhvervsakademiuddannelser (EA)","Tekniske område, EA","Byggekoordinator"]
[null,"Erhvervsakademi Aarhus","Erhvervsakademiuddannelser (EA)","Tekniske område, EA","Miljøteknolog"]
[null,"Erhvervsakademi Aarhus","Erhvervsakademiuddannelser (EA)","Tekniske område, EA","Produktionsteknolog"]
[null,"Erhvervsakademi Aarhus","Erhvervsakademiuddannelser (EA)","Økonomisk-merkantile område, EA","Financial controller"]
[null,"Erhvervsakademi Aarhus","Erhvervsakademiuddannelser (EA)","Økonomisk-merkantile område, EA","Finansøkonom"]
[null,"Erhvervsakademi Aarhus","Erhvervsakademiuddannelser (EA)","Økonomisk-merkantile område, EA","Markedsføringsøkonom"]
[null,"Erhvervsakademi Aarhus","Erhvervsakademiuddannelser (EA)","Økonomisk-merkantile område, EA","Marketing Management"]
[null,"Erhvervsakademi Aarhus","Erhvervsakademiuddannelser (EA)","Økonomisk-merkantile område, EA","Serviceøkonom"]
[null,"Erhvervsakademiet Copenhagen Business Academy","Erhvervsakademiuddannelser (EA)","Bio- og laboratorietekniske område, EA","Laborant"]
[null,"Erhvervsakademiet Copenhagen Business Academy","Erhvervsakademiuddannelser (EA)","It-faglige område, EA","Datamatiker"]
[null,"Erhvervsakademiet Copenhagen Business Academy","Erhvervsakademiuddannelser (EA)","It-faglige område, EA","Multimediedesigner"]
[null,"Erhvervsakademiet Copenhagen Business Academy","Erhvervsakademiuddannelser (EA)","Tekniske område, EA","Miljøteknolog"]
[null,"Erhvervsakademiet Copenhagen Business Academy","Erhvervsakademiuddannelser (EA)","Økonomisk-merkantile område, EA","Financial controller"]
[null,"Erhvervsakademiet Copenhagen Business Academy","Erhvervsakademiuddannelser (EA)","Økonomisk-merkantile område, EA","Finansøkonom"]
[null,"Erhvervsakademiet Copenhagen Business Academy","Erhvervsakademiuddannelser (EA)","Økonomisk-merkantile område, EA","Handelsøkonom"]
[null,"Erhvervsakademiet Copenhagen Business Academy","Erhvervsakademiuddannelser (EA)","Økonomisk-merkantile område, EA","Logistikøkonom"]
[null,"Erhvervsakademiet Copenhagen Business Academy","Erhvervsakademiuddannelser (EA)","Økonomisk-merkantile område, EA","Markedsføringsøkonom"]
[null,"Erhvervsakademiet Copenhagen Business Academy","Erhvervsakademiuddannelser (EA)","Økonomisk-merkantile område, EA","Marketing Management"]
[null,"Erhvervsakademiet Copenhagen Business Academy","Erhvervsakademiuddannelser (EA)","Økonomisk-merkantile område, EA","Service, Hospitality and Tourism Management"]
[null,"Erhvervsakademiet Copenhagen Business Academy","Erhvervsakademiuddannelser (EA)","Økonomisk-merkantile område, EA","Serviceøkonom"]
[null,"IBA Erhvervsakademi Kolding","Erhvervsakademiuddannelser (EA)","Designfaglige område, EA","E-designer"]
[null,"IBA Erhvervsakademi Kolding","Erhvervsakademiuddannelser (EA)","It-faglige område, EA","Multimedia Design"]
[null,"IBA Erhvervsakademi Kolding","Erhvervsakademiuddannelser (EA)","It-faglige område, EA","Multimediedesigner"]
[null,"IBA Erhvervsakademi Kolding","Erhvervsakademiuddannelser (EA)","Tekniske område, EA","Produktionsteknolog"]
[null,"IBA Erhvervsakademi Kolding","Erhvervsakademiuddannelser (EA)","Økonomisk-merkantile område, EA","Financial controller"]
[null,"IBA Erhvervsakademi Kolding","Erhvervsakademiuddannelser (EA)","Økonomisk-merkantile område, EA","Finansøkonom"]
[null,"IBA Erhvervsakademi Kolding","Erhvervsakademiuddannelser (EA)","Økonomisk-merkantile område, EA","Markedsføringsøkonom"]
[null,"IBA Erhvervsakademi Kolding","Erhvervsakademiuddannelser (EA)","Økonomisk-merkantile område, EA","Marketing Management"]
[null,"Københavns Erhvervsakademi (KEA)","Erhvervsakademiuddannelser (EA)","Designfaglige område, EA","Design, Technology and Business"]
[null,"Københavns Erhvervsakademi (KEA)","Erhvervsakademiuddannelser (EA)","Designfaglige område, EA","Designteknolog"]
[null,"Københavns Erhvervsakademi (KEA)","Erhvervsakademiuddannelser (EA)","Designfaglige område, EA","E-designer"]
[null,"Københavns Erhvervsakademi (KEA)","Erhvervsakademiuddannelser (EA)","It-faglige område, EA","Computer Science"]
[null,"Københavns Erhvervsakademi (KEA)","Erhvervsakademiuddannelser (EA)","It-faglige område, EA","Datamatiker"]
[null,"Københavns Erhvervsakademi (KEA)","Erhvervsakademiuddannelser (EA)","It-faglige område, EA","IT-teknolog"]
[null,"Københavns Erhvervsakademi (KEA)","Erhvervsakademiuddannelser (EA)","It-faglige område, EA","Multimedia Design"]
[null,"Københavns Erhvervsakademi (KEA)","Erhvervsakademiuddannelser (EA)","It-faglige område, EA","Multimediedesigner"]
[null,"Københavns Erhvervsakademi (KEA)","Erhvervsakademiuddannelser (EA)","Tekniske område, EA","Automationsteknolog"]
[null,"Københavns Erhvervsakademi (KEA)","Erhvervsakademiuddannelser (EA)","Tekniske område, EA","Byggekoordinator"]
[null,"Københavns Erhvervsakademi (KEA)","Erhvervsakademiuddannelser (EA)","Tekniske område, EA","El-installatør"]
[null,"Københavns Erhvervsakademi (KEA)","Erhvervsakademiuddannelser (EA)","Tekniske område, EA","Energiteknolog"]
[null,"Københavns Erhvervsakademi (KEA)","Erhvervsakademiuddannelser (EA)","Tekniske område, EA","Kort- og landmålingstekniker"]
[null,"Københavns Erhvervsakademi (KEA)","Erhvervsakademiuddannelser (EA)","Tekniske område, EA","Production Technology"]
[null,"Københavns Erhvervsakademi (KEA)","Erhvervsakademiuddannelser (EA)","Tekniske område, EA","Produktionsteknolog"]
[null,"Københavns Erhvervsakademi (KEA)","Erhvervsakademiuddannelser (EA)","Tekniske område, EA","VVS-installatør"]
[null,"Københavns Professionshøjskole","Erhvervsakademiuddannelser (EA)","Bio- og laboratorietekniske område, EA","Laborant"]
[null,"Københavns Professionshøjskole","Erhvervsakademiuddannelser (EA)","Samfundsfaglige område, EA","Administrationsøkonom"]
[null,"Professionshøjskolen UC Syddanmark","Erhvervsakademiuddannelser (EA)","Bio- og laboratorietekniske område, EA","Laborant"]
[null,"Professionshøjskolen University College Nordjylland","Erhvervsakademiuddannelser (EA)","Designfaglige område, EA","Design, Technology and Business"]
[null,"Professionshøjskolen University College Nordjylland","Erhvervsakademiuddannelser (EA)","Designfaglige område, EA","Designteknolog"]
[null,"Professionshøjskolen University College Nordjylland","Erhvervsakademiuddannelser (EA)","It-faglige område, EA","Computer Science"]
[null,"Professionshøjskolen University College Nordjylland","Erhvervsakademiuddannelser (EA)","It-faglige område, EA","Datamatiker"]
[null,"Professionshøjskolen University College Nordjylland","Erhvervsakademiuddannelser (EA)","It-faglige område, EA","IT-teknolog"]
[null,"Professionshøjskolen University College Nordjylland","Erhvervsakademiuddannelser (EA)","It-faglige område, EA","Multimedia Design"]
[null,"Professionshøjskolen University College Nordjylland","Erhvervsakademiuddannelser (EA)","It-faglige område, EA","Multimediedesigner"]
[null,"Professionshøjskolen University College Nordjylland","Erhvervsakademiuddannelser (EA)","Tekniske område, EA","Automation Engineering"]
[null,"Professionshøjskolen University College Nordjylland","Erhvervsakademiuddannelser (EA)","Tekniske område, EA","Automationsteknolog"]
[null,"Professionshøjskolen University College Nordjylland","Erhvervsakademiuddannelser (EA)","Tekniske område, EA","El-installatør"]
[null,"Professionshøjskolen University College Nordjylland","Erhvervsakademiuddannelser (EA)","Tekniske område, EA","Energiteknolog"]
[null,"Professionshøjskolen University College Nordjylland","Erhvervsakademiuddannelser (EA)","Tekniske område, EA","Produktionsteknolog"]
[null,"Professionshøjskolen University College Nordjylland","Erhvervsakademiuddannelser (EA)","Tekniske område, EA","VVS-installatør"]
[null,"Professionshøjskolen University College Nordjylland","Erhvervsakademiuddannelser (EA)","Økonomisk-merkantile område, EA","Financial controller"]
[null,"Professionshøjskolen University College Nordjylland","Erhvervsakademiuddannelser (EA)","Økonomisk-merkantile område, EA","Finansøkonom"]
[null,"Professionshøjskolen University College Nordjylland","Erhvervsakademiuddannelser (EA)","Økonomisk-merkantile område, EA","Markedsføringsøkonom"]
[null,"Professionshøjskolen University College Nordjylland","Erhvervsakademiuddannelser (EA)","Økonomisk-merkantile område, EA","Marketing Management"]
[null,"Professionshøjskolen University College Nordjylland","Erhvervsakademiuddannelser (EA)","Økonomisk-merkantile område, EA","Service, Hospitality and Tourism Management"]
[null,"Professionshøjskolen University College Nordjylland","Erhvervsakademiuddannelser (EA)","Økonomisk-merkantile område, EA","Serviceøkonom"]
[null,"Professionshøjskolen VIA University College","Erhvervsakademiuddannelser (EA)","Designfaglige område, EA","Design, Technology and Business"]
[null,"Professionshøjskolen VIA University College","Erhvervsakademiuddannelser (EA)","Designfaglige område, EA","Designteknolog"]
[null,"Professionshøjskolen VIA University College","Erhvervsakademiuddannelser (EA)","Tekniske område, EA","Kort- og landmålingstekniker"]
[null,"Professionshøjskolen VIA University College","Erhvervsakademiuddannelser (EA)","Tekniske område, EA","Produktionsteknolog"]
[null,"Professionshøjskolen VIA University College","Erhvervsakademiuddannelser (EA)","Økonomisk-merkantile område, EA","Markedsføringsøkonom"]
[null,"Professionshøjskolen VIA University College","Erhvervsakademiuddannelser (EA)","Økonomisk-merkantile område, EA","Marketing Management"]
[null,"UCL Erhvervsakademi og Professionshøjskole","Erhvervsakademiuddannelser (EA)","Bio- og laboratorietekniske område, EA","Jordbrugsteknolog"]
[null,"UCL Erhvervsakademi og Professionshøjskole","Erhvervsakademiuddannelser (EA)","Bio- og laboratorietekniske område, EA","Laborant"]
[null,"UCL Erhvervsakademi og Professionshøjskole","Erhvervsakademiuddannelser (EA)","Bio- og laboratorietekniske område, EA","Procesteknolog"]
[null,"UCL Erhvervsakademi og Professionshøjskole","Erhvervsakademiuddannelser (EA)","It-faglige område, EA","Datamatiker"]
[null,"UCL Erhvervsakademi og Professionshøjskole","Erhvervsakademiuddannelser (EA)","It-faglige område, EA","IT Technology"]
[null,"UCL Erhvervsakademi og Professionshøjskole","Erhvervsakademiuddannelser (EA)","It-faglige område, EA","IT-teknolog"]
[null,"UCL Erhvervsakademi og Professionshøjskole","Erhvervsakademiuddannelser (EA)","It-faglige område, EA","Multimediedesigner"]
[null,"UCL Erhvervsakademi og Professionshøjskole","Erhvervsakademiuddannelser (EA)","Tekniske område, EA","Automationsteknolog"]
[null,"UCL Erhvervsakademi og Professionshøjskole","Erhvervsakademiuddannelser (EA)","Tekniske område, EA","Autoteknolog"]
[null,"UCL Erhvervsakademi og Professionshøjskole","Erhvervsakademiuddannelser (EA)","Tekniske område, EA","Byggekoordinator"]
[null,"UCL Erhvervsakademi og Professionshøjskole","Erhvervsakademiuddannelser (EA)","Tekniske område, EA","El-installatør"]
[null,"UCL Erhvervsakademi og Professionshøjskole","Erhvervsakademiuddannelser (EA)","Tekniske område, EA","Energiteknolog"]
[null,"UCL Erhvervsakademi og Professionshøjskole","Erhvervsakademiuddannelser (EA)","Tekniske område, EA","Produktionsteknolog"]
[null,"UCL Erhvervsakademi og Professionshøjskole","Erhvervsakademiuddannelser (EA)","Tekniske område, EA","VVS-installatør"]
[null,"UCL Erhvervsakademi og Professionshøjskole","Erhvervsakademiuddannelser (EA)","Økonomisk-merkantile område, EA","Financial controller"]
[null,"UCL Erhvervsakademi og Professionshøjskole","Erhvervsakademiuddannelser (EA)","Økonomisk-merkantile område, EA","Finansøkonom"]
[null,"UCL Erhvervsakademi og Professionshøjskole","Erhvervsakademiuddannelser (EA)","Økonomisk-merkantile område, EA","Handelsøkonom"]
[null,"UCL Erhvervsakademi og Professionshøjskole","Erhvervsakademiuddannelser (EA)","Økonomisk-merkantile område, EA","Logistics Management"]
[null,"UCL Erhvervsakademi og Professionshøjskole","Erhvervsakademiuddannelser (EA)","Økonomisk-merkantile område, EA","Logistikøkonom"]
[null,"UCL Erhvervsakademi og Professionshøjskole","Erhvervsakademiuddannelser (EA)","Økonomisk-merkantile område, EA","Markedsføringsøkonom"]
[null,"UCL Erhvervsakademi og Professionshøjskole","Erhvervsakademiuddannelser (EA)","Økonomisk-merkantile område, EA","Marketing Management"]
[null,"UCL Erhvervsakademi og Professionshøjskole","Erhvervsakademiuddannelser (EA)","Økonomisk-merkantile område, EA","Service, Hospitality and Tourism Management"]
[null,"UCL Erhvervsakademi og Professionshøjskole","Erhvervsakademiuddannelser (EA)","Økonomisk-merkantile område, EA","Serviceøkonom"]
[null,"Zealand Sjællands Erhvervsakademi","Erhvervsakademiuddannelser (EA)","Bio- og laboratorietekniske område, EA","Jordbrugsteknolog"]
[null,"Zealand Sjællands Erhvervsakademi","Erhvervsakademiuddannelser (EA)","Bio- og laboratorietekniske område, EA","Laborant"]
[null,"Zealand Sjællands Erhvervsakademi","Erhvervsakademiuddannelser (EA)","Bio- og laboratorietekniske område, EA","Procesteknolog"]
[null,"Zealand Sjællands Erhvervsakademi","Erhvervsakademiuddannelser (EA)","It-faglige område, EA","Computer Science"]
[null,"Zealand Sjællands Erhvervsakademi","Erhvervsakademiuddannelser (EA)","It-faglige område, EA","Datamatiker"]
[null,"Zealand Sjællands Erhvervsakademi","Erhvervsakademiuddannelser (EA)","It-faglige område, EA","Multimedia Design"]
[null,"Zealand Sjællands Erhvervsakademi","Erhvervsakademiuddannelser (EA)","It-faglige område, EA","Multimediedesigner"]
[null,"Zealand Sjællands Erhvervsakademi","Erhvervsakademiuddannelser (EA)","Samfundsfaglige område, EA","Administrationsøkonom"]
[null,"Zealand Sjællands Erhvervsakademi","Erhvervsakademiuddannelser (EA)","Tekniske område, EA","Autoteknolog"]
[null,"Zealand Sjællands Erhvervsakademi","Erhvervsakademiuddannelser (EA)","Tekniske område, EA","Produktionsteknolog"]
[null,"Zealand Sjællands Erhvervsakademi","Erhvervsakademiuddannelser (EA)","Tekniske område, EA","VVS-installatør"]
[null,"Zealand Sjællands Erhvervsakademi","Erhvervsakademiuddannelser (EA)","Økonomisk-merkantile område, EA","Commerce Management"]
[null,"Zealand Sjællands Erhvervsakademi","Erhvervsakademiuddannelser (EA)","Økonomisk-merkantile område, EA","Finansøkonom"]
[null,"Zealand Sjællands Erhvervsakademi","Erhvervsakademiuddannelser (EA)","Økonomisk-merkantile område, EA","Handelsøkonom"]
[null,"Zealand Sjællands Erhvervsakademi","Erhvervsakademiuddannelser (EA)","Økonomisk-merkantile område, EA","Logistics Management"]
[null,"Zealand Sjællands Erhvervsakademi","Erhvervsakademiuddannelser (EA)","Økonomisk-merkantile område, EA","Logistikøkonom"]
[null,"Zealand Sjællands Erhvervsakademi","Erhvervsakademiuddannelser (EA)","Økonomisk-merkantile område, EA","Markedsføringsøkonom"]
[null,"Zealand Sjællands Erhvervsakademi","Erhvervsakademiuddannelser (EA)","Økonomisk-merkantile område, EA","Marketing Management"]
[null,"Zealand Sjællands Erhvervsakademi","Erhvervsakademiuddannelser (EA)","Økonomisk-merkantile område, EA","Service, Hospitality and Tourism Management"]
[null,"Zealand Sjællands Erhvervsakademi","Erhvervsakademiuddannelser (EA)","Økonomisk-merkantile område, EA","Serviceøkonom"]
[null,"Aarhus Universitet","Erhvervsakademiuddannelser (EA)","Sundhedsfaglige område, EA","Klinisk tandtekniker"]
[null,"Arkitektskolen Aarhus","Kandidatuddannelser","Teknik, kandidat","Arkitekt, kand.2år"]
[null,"Copenhagen Business School - Handelshøjskolen","Kandidatuddannelser","Samfund, kandidat","Avanceret økonomi og finansiering, kand.2år"]
[null,"Copenhagen Business School - Handelshøjskolen","Kandidatuddannelser","Samfund, kandidat","Business Administration and Data Science, kand.2år"]
[null,"Copenhagen Business School - Handelshøjskolen","Kandidatuddannelser","Samfund, kandidat","E-business, kand.2år"]
[null,"Copenhagen Business School - Handelshøjskolen","Kandidatuddannelser","Samfund, kandidat","Economics and Business Administration, kand.2år"]
[null,"Copenhagen Business School - Handelshøjskolen","Kandidatuddannelser","Samfund, kandidat","Erhvervsøkonomi og bioentrepreneurskab, kand.2år"]
[null,"Copenhagen Business School - Handelshøjskolen","Kandidatuddannelser","Samfund, kandidat","Erhvervsøkonomi og informationsteknologi, kand.2år"]
[null,"Copenhagen Business School - Handelshøjskolen","Kandidatuddannelser","Samfund, kandidat","Erhvervsøkonomi og jura, cand.merc.(jur.)2år"]
[null,"Copenhagen Business School - Handelshøjskolen","Kandidatuddannelser","Samfund, kandidat","Erhvervsøkonomi og matematik, kand.2år"]
[null,"Copenhagen Business School - Handelshøjskolen","Kandidatuddannelser","Samfund, kandidat","Erhvervsøkonomi og politik, kand.2år"]
[null,"Copenhagen Business School - Handelshøjskolen","Kandidatuddannelser","Samfund, kandidat","Erhvervsøkonomi og psykologi, kand.2år"]
[null,"Copenhagen Business School - Handelshøjskolen","Kandidatuddannelser","Samfund, kandidat","Erhvervsøkonomi, kand.2år"]
[null,"Copenhagen Business School - Handelshøjskolen","Kandidatuddannelser","Samfund, kandidat","Erhvervsøkonomi-business, language and culture, kand.2år"]
[null,"Copenhagen Business School - Handelshøjskolen","Kandidatuddannelser","Samfund, kandidat","Erhvervsøkonomi-filosofi, kand.2år"]
[null,"Copenhagen Business School - Handelshøjskolen","Kandidatuddannelser","Samfund, kandidat","Erhvervsøkonomi-virksomhedskommunikation, kand.2år"]
[null,"Copenhagen Business School - Handelshøjskolen","Kandidatuddannelser","Samfund, kandidat","Human resource management, kand.2år"]
[null,"Copenhagen Business School - Handelshøjskolen","Kandidatuddannelser","Samfund, kandidat","Management creative business processes, kand.2år"]
[null,"Copenhagen Business School - Handelshøjskolen","Kandidatuddannelser","Samfund, kandidat","Organisation, innovation og entrepreneurship, kand.2år"]
[null,"Copenhagen Business School - Handelshøjskolen","Kandidatuddannelser","Samfund, kandidat","Politisk kommunikation og ledelse, kand.2år"]
[null,"Copenhagen Business School - Handelshøjskolen","Kandidatuddannelser","Samfund, kandidat","Revisorkandidat, kand.2år"]
[null,"Copenhagen Business School - Handelshøjskolen","Kandidatuddannelser","Samfund, kandidat","Sundhedsinnovation, kand.2år"]
[null,"Copenhagen Business School - Handelshøjskolen","Kandidatuddannelser","Humaniora, kandidat","Multikulturel organisationskommunikation, kand.2år"]
[null,"Danmarks Tekniske Universitet","Kandidatuddannelser","Teknik, kandidat","Advanced Materials and Healthcare Engineering, civilingeniør 2år"]
[null,"Danmarks Tekniske Universitet","Kandidatuddannelser","Teknik, kandidat","Akvatisk videnskab og teknologi, cand.scient.tech.2år"]
[null,"Danmarks Tekniske Universitet","Kandidatuddannelser","Teknik, kandidat","Anvendt kemi, civilingeniør 2år"]
[null,"Danmarks Tekniske Universitet","Kandidatuddannelser","Teknik, kandidat","Autonome systemer, kand.2år"]
[null,"Danmarks Tekniske Universitet","Kandidatuddannelser","Teknik, kandidat","Bioinformatik og systembiologi, civilingeniør 2år"]
[null,"Danmarks Tekniske Universitet","Kandidatuddannelser","Teknik, kandidat","Bioteknologi, civilingeniør 2år"]
[null,"Danmarks Tekniske Universitet","Kandidatuddannelser","Teknik, kandidat","Business analytics, civilingeniør 2år"]
[null,"Danmarks Tekniske Universitet","Kandidatuddannelser","Teknik, kandidat","Byggeteknologi, civilingeniør 2år"]
[null,"Danmarks Tekniske Universitet","Kandidatuddannelser","Teknik, kandidat","Bygningsdesign, civilingeniør 2år"]
[null,"Danmarks Tekniske Universitet","Kandidatuddannelser","Teknik, kandidat","Bæredygtig energi, civilingeniør 2år"]
[null,"Danmarks Tekniske Universitet","Kandidatuddannelser","Teknik, kandidat","Design og innovation, civilingeniør 2år"]
[null,"Danmarks Tekniske Universitet","Kandidatuddannelser","Teknik, kandidat","Elektroteknologi, civilingeniør 2år"]
[null,"Danmarks Tekniske Universitet","Kandidatuddannelser","Teknik, kandidat","Farmateknologi, civilingeniør 2år"]
[null,"Danmarks Tekniske Universitet","Kandidatuddannelser","Teknik, kandidat","Fotonik, civilingeniør 2år"]
[null,"Danmarks Tekniske Universitet","Kandidatuddannelser","Teknik, kandidat","Fysik og nanoteknologi, civilingeniør 2år"]
[null,"Danmarks Tekniske Universitet","Kandidatuddannelser","Teknik, kandidat","Fødevareteknologi, cand.scient.tech.2år"]
[null,"Danmarks Tekniske Universitet","Kandidatuddannelser","Teknik, kandidat","Geofysik og rumteknologi, civilingeniør 2år"]
[null,"Danmarks Tekniske Universitet","Kandidatuddannelser","Teknik, kandidat","Industriel økonomi og teknologiledelse, civilingeniør 2år"]
[null,"Danmarks Tekniske Universitet","Kandidatuddannelser","Teknik, kandidat","Informationsteknologi, civilingeniør 2år"]
[null,"Danmarks Tekniske Universitet","Kandidatuddannelser","Teknik, kandidat","Kemisk og biokemisk teknologi, civilingeniør 2år"]
[null,"Danmarks Tekniske Universitet","Kandidatuddannelser","Teknik, kandidat","Kommunikationsteknologier og systemdesign, civilingeniør 2år"]
[null,"Danmarks Tekniske Universitet","Kandidatuddannelser","Teknik, kandidat","Konstruktion og mekanik, civilingeniør 2år"]
[null,"Danmarks Tekniske Universitet","Kandidatuddannelser","Teknik, kandidat","Kvantitativ biologi og sygdomsmodellering, civilingeniør 2år"]
[null,"Danmarks Tekniske Universitet","Kandidatuddannelser","Teknik, kandidat","Lyd og akustisk teknologi, civilingeniør 2år"]
[null,"Danmarks Tekniske Universitet","Kandidatuddannelser","Teknik, kandidat","Matematisk modellering og computing, civilingeniør 2år"]
[null,"Danmarks Tekniske Universitet","Kandidatuddannelser","Teknik, kandidat","Materiale- og procesteknologi, civilingeniør 2år"]
[null,"Danmarks Tekniske Universitet","Kandidatuddannelser","Teknik, kandidat","Medicin og teknologi, civilingeniør 2år"]
[null,"Danmarks Tekniske Universitet","Kandidatuddannelser","Teknik, kandidat","Menneskeorienteret kunstig intelligens, civilingeniør 2år"]
[null,"Danmarks Tekniske Universitet","Kandidatuddannelser","Teknik, kandidat","Miljøteknologi, civilingeniør 2år"]
[null,"Danmarks Tekniske Universitet","Kandidatuddannelser","Teknik, kandidat","Olie- og gasteknologi, civilingeniør 2år"]
[null,"Danmarks Tekniske Universitet","Kandidatuddannelser","Teknik, kandidat","Technology Entrepreneurship, civilingeniør 2år"]
[null,"Danmarks Tekniske Universitet","Kandidatuddannelser","Teknik, kandidat","Transport og logistik, civilingeniør 2år"]
[null,"Danmarks Tekniske Universitet","Kandidatuddannelser","Teknik, kandidat","Vindenergi, civilingeniør 2år"]
[null,"Designskolen Kolding","Kandidatuddannelser","Humaniora, kandidat","Designer, kand.2år"]
[null,"Det Kongelige Akademi - Arkitektur, Design, Konservering","Kandidatuddannelser","Humaniora, kandidat","Designer, kand.2år"]
[null,"Det Kongelige Akademi - Arkitektur, Design, Konservering","Kandidatuddannelser","Humaniora, kandidat","Konservator una, kand.2år"]
[null,"Det Kongelige Akademi - Arkitektur, Design, Konservering","Kandidatuddannelser","Teknik, kandidat","Arkitekt, kand.2år"]
[null,"IT-Universitetet i København","Kandidatuddannelser","Natur, kandidat","Computer Science, kand.2år"]
[null,"IT-Universitetet i København","Kandidatuddannelser","Natur, kandidat","Digital design og interaktive teknologier, kand.2år"]
[null,"IT-Universitetet i København","Kandidatuddannelser","Natur, kandidat","Digital innovation og management, kand.2år"]
[null,"IT-Universitetet i København","Kandidatuddannelser","Natur, kandidat","Softwaredesign, kand.2år"]
[null,"IT-Universitetet i København","Kandidatuddannelser","Natur, kandidat","Spil, kand.2år"]
[null,"Københavns Universitet","Kandidatuddannelser","Samfund, kandidat","Anthropology, kand.2år"]
[null,"Københavns Universitet","Kandidatuddannelser","Samfund, kandidat","Economics, kand.2år"]
[null,"Københavns Universitet","Kandidatuddannelser","Samfund, kandidat","Global udvikling, kand.2år"]
[null,"Københavns Universitet","Kandidatuddannelser","Samfund, kandidat","Jura, cand.soc.2år"]
[null,"Københavns Universitet","Kandidatuddannelser","Samfund, kandidat","Jura, kand.2år"]
[null,"Københavns Universitet","Kandidatuddannelser","Samfund, kandidat","Laws, kand.2år"]
[null,"Københavns Universitet","Kandidatuddannelser","Samfund, kandidat","Political Science, kand.2år"]
[null,"Københavns Universitet","Kandidatuddannelser","Samfund, kandidat","Psykologi, kand.2år"]
[null,"Københavns Universitet","Kandidatuddannelser","Samfund, kandidat","Samfundsfag, cand.soc.2år"]
[null,"Københavns Universitet","Kandidatuddannelser","Samfund, kandidat","Sikkerheds- og risikoledelse, kand.2år"]
[null,"Københavns Universitet","Kandidatuddannelser","Samfund, kandidat","Social Data Science, kand.2år"]
[null,"Københavns Universitet","Kandidatuddannelser","Samfund, kandidat","Sociologi, kand.2år"]
[null,"Københavns Universitet","Kandidatuddannelser","Samfund, kandidat","Statskundskab, kand.2år"]
[null,"Københavns Universitet","Kandidatuddannelser","Samfund, kandidat","Økonomi, kand.2år"]
[null,"Københavns Universitet","Kandidatuddannelser","Humaniora, kandidat","Afrikastudier, kand.2år"]
[null,"Københavns Universitet","Kandidatuddannelser","Humaniora, kandidat","Anvendt kulturanalyse, kand.2år"]
[null,"Københavns Universitet","Kandidatuddannelser","Humaniora, kandidat","Arkæologi forhistorisk, kand.2år"]
[null,"Københavns Universitet","Kandidatuddannelser","Humaniora, kandidat","Arkæologi klassisk, kand.2år"]
[null,"Københavns Universitet","Kandidatuddannelser","Humaniora, kandidat","Asienstudier, Japanstudier, kand.2år"]
[null,"Københavns Universitet","Kandidatuddannelser","Humaniora, kandidat","Asienstudier, Kinastudier, kand.2år"]
[null,"Københavns Universitet","Kandidatuddannelser","Humaniora, kandidat","Audiologopædi, kand.2år"]
[null,"Københavns Universitet","Kandidatuddannelser","Humaniora, kandidat","Dansk, kand.2år"]
[null,"Københavns Universitet","Kandidatuddannelser","Humaniora, kandidat","Engelsk, kand.2år"]
[null,"Københavns Universitet","Kandidatuddannelser","Humaniora, kandidat","Europas religiøse rødder, kand.2år"]
[null,"Københavns Universitet","Kandidatuddannelser","Humaniora, kandidat","Europæisk etnologi, kand.2år"]
[null,"Københavns Universitet","Kandidatuddannelser","Humaniora, kandidat","Film- and Media Studies, kand.2år"]
[null,"Københavns Universitet","Kandidatuddannelser","Humaniora, kandidat","Film- og medievidenskab, kand.2år"]
[null,"Københavns Universitet","Kandidatuddannelser","Humaniora, kandidat","Filosofi, kand.2år"]
[null,"Københavns Universitet","Kandidatuddannelser","Humaniora, kandidat","Fransk sprog, litteratur og kultur, kand.2år"]
[null,"Københavns Universitet","Kandidatuddannelser","Humaniora, kandidat","Historie, kand.2år"]
[null,"Københavns Universitet","Kandidatuddannelser","Humaniora, kandidat","Information Science and Cultural Communication, kand.2år"]
[null,"Københavns Universitet","Kandidatuddannelser","Humaniora, kandidat","Informationsvidenskab og kulturformidling, kand.2år"]
[null,"Københavns Universitet","Kandidatuddannelser","Humaniora, kandidat","Interkulturelle markedsstudier, kand.2år"]
[null,"Københavns Universitet","Kandidatuddannelser","Humaniora, kandidat","IT og kognition, kand.2år"]
[null,"Københavns Universitet","Kandidatuddannelser","Humaniora, kandidat","Italiensk sprog og kultur, kand.2år"]
[null,"Københavns Universitet","Kandidatuddannelser","Humaniora, kandidat","Kognition og kommunikation, kand.2år"]
[null,"Københavns Universitet","Kandidatuddannelser","Humaniora, kandidat","Kommunikation og IT, kand.2år"]
[null,"Københavns Universitet","Kandidatuddannelser","Humaniora, kandidat","Kunsthistorie, kand.2år"]
[null,"Københavns Universitet","Kandidatuddannelser","Humaniora, kandidat","Litteraturvidenskab, kand.2år"]
[null,"Københavns Universitet","Kandidatuddannelser","Humaniora, kandidat","Mellemøstens sprog og samfund, kand.2år"]
[null,"Københavns Universitet","Kandidatuddannelser","Humaniora, kandidat","Migrationsstudier, kand.2år"]
[null,"Københavns Universitet","Kandidatuddannelser","Humaniora, kandidat","Moderne kultur, kand.2år"]
[null,"Københavns Universitet","Kandidatuddannelser","Humaniora, kandidat","Musikvidenskab/Musik, kand.2år"]
[null,"Københavns Universitet","Kandidatuddannelser","Humaniora, kandidat","Pædagogik, kand.2år"]
[null,"Københavns Universitet","Kandidatuddannelser","Humaniora, kandidat","Religionsvidenskab, kand.2år"]
[null,"Københavns Universitet","Kandidatuddannelser","Humaniora, kandidat","Retorik, kand.2år"]
[null,"Københavns Universitet","Kandidatuddannelser","Humaniora, kandidat","Spansk sprog og kultur, kand.2år"]
[null,"Københavns Universitet","Kandidatuddannelser","Humaniora, kandidat","Sprogpsykologi, kand.2år"]
[null,"Københavns Universitet","Kandidatuddannelser","Humaniora, kandidat","Sprogvidenskab og lingvistik, kand.2år"]
[null,"Københavns Universitet","Kandidatuddannelser","Humaniora, kandidat","Teatervidenskab og performancestudier, kand.2år"]
[null,"Københavns Universitet","Kandidatuddannelser","Humaniora, kandidat","Teologi, kand.2år"]
[null,"Københavns Universitet","Kandidatuddannelser","Humaniora, kandidat","Tværkulturelle studier, kand.2år"]
[null,"Københavns Universitet","Kandidatuddannelser","Humaniora, kandidat","Urban Studies, kand.2år"]
[null,"Københavns Universitet","Kandidatuddannelser","Humaniora, kandidat","Visuel kultur, kand.2år"]
[null,"Københavns Universitet","Kandidatuddannelser","Humaniora, kandidat","Østeuropastudier, kand.2år"]
[null,"Københavns Universitet","Kandidatuddannelser","Teknik, kandidat","Integrerede fødevarestudier, kand.2år"]
[null,"Københavns Universitet","Kandidatuddannelser","Natur, kandidat","Agronomi, kand.2år"]
[null,"Københavns Universitet","Kandidatuddannelser","Natur, kandidat","Bioinformatik, kand.2år"]
[null,"Københavns Universitet","Kandidatuddannelser","Natur, kandidat","Biokemi, kand.2år"]
[null,"Københavns Universitet","Kandidatuddannelser","Natur, kandidat","Biologi-bioteknologi, kand.2år"]
[null,"Københavns Universitet","Kandidatuddannelser","Natur, kandidat","Biology, kand.2år"]
[null,"Københavns Universitet","Kandidatuddannelser","Natur, kandidat","Chemistry, kand.2år"]
[null,"Københavns Universitet","Kandidatuddannelser","Natur, kandidat","Computer Science, kand.2år"]
[null,"Københavns Universitet","Kandidatuddannelser","Natur, kandidat","Forsikringsmatematik, kand.2år"]
[null,"Københavns Universitet","Kandidatuddannelser","Natur, kandidat","Fødevareinnovation og sundhed, kand.2år"]
[null,"Københavns Universitet","Kandidatuddannelser","Natur, kandidat","Fødevarevidenskab, kand.2år"]
[null,"Københavns Universitet","Kandidatuddannelser","Natur, kandidat","Geography/Geography and Geoinformatics, kand.2år"]
[null,"Københavns Universitet","Kandidatuddannelser","Natur, kandidat","Geologi/Geologi-geoscience, kand.2år"]
[null,"Københavns Universitet","Kandidatuddannelser","Natur, kandidat","Human ernæring, kand.2år"]
[null,"Københavns Universitet","Kandidatuddannelser","Natur, kandidat","Humanfysiologi, kand.2år"]
[null,"Københavns Universitet","Kandidatuddannelser","Natur, kandidat","Humanistisk-samfundsvidenskabelig idrætsvidenskab, kand.2år"]
[null,"Københavns Universitet","Kandidatuddannelser","Natur, kandidat","Husdyrvidenskab, kand.2år"]
[null,"Københavns Universitet","Kandidatuddannelser","Natur, kandidat","Jordbrugsøkonomi, kand.2år"]
[null,"Københavns Universitet","Kandidatuddannelser","Natur, kandidat","Klimaforandringer, kand.2år"]
[null,"Københavns Universitet","Kandidatuddannelser","Natur, kandidat","Landskabsarkitektur, kand.2år"]
[null,"Københavns Universitet","Kandidatuddannelser","Natur, kandidat","Mathematics, kand.2år"]
[null,"Københavns Universitet","Kandidatuddannelser","Natur, kandidat","Mathematics-Economics, kand.2år"]
[null,"Københavns Universitet","Kandidatuddannelser","Natur, kandidat","Medicinalkemi, kand.2år"]
[null,"Københavns Universitet","Kandidatuddannelser","Natur, kandidat","Mejeribrug, kand.2år"]
[null,"Københavns Universitet","Kandidatuddannelser","Natur, kandidat","Miljø- og naturessourceøkonomi, kand.2år"]
[null,"Københavns Universitet","Kandidatuddannelser","Natur, kandidat","Miljøvidenskab, kand.2år"]
[null,"Københavns Universitet","Kandidatuddannelser","Natur, kandidat","Molecular Biomedicine, kand.2år"]
[null,"Københavns Universitet","Kandidatuddannelser","Natur, kandidat","Nanoscience, kand.2år"]
[null,"Københavns Universitet","Kandidatuddannelser","Natur, kandidat","Naturforvaltn. landskab-biodiversitet-planlægn., kand.2år"]
[null,"Københavns Universitet","Kandidatuddannelser","Natur, kandidat","Naturressourcer og udvikling/Agricult. development, kand.2år"]
[null,"Københavns Universitet","Kandidatuddannelser","Natur, kandidat","Neuroscience, kand.2år"]
[null,"Københavns Universitet","Kandidatuddannelser","Natur, kandidat","Physics, kand.2år"]
[null,"Københavns Universitet","Kandidatuddannelser","Natur, kandidat","Skovbrugsvidenskab, kand.2år"]
[null,"Københavns Universitet","Kandidatuddannelser","Natur, kandidat","Statistik, kand.2år"]
[null,"Københavns Universitet","Kandidatuddannelser","Natur, kandidat","STEM-undervisning, kand.2år"]
[null,"Københavns Universitet","Kandidatuddannelser","Natur, kandidat","Sustainable Forest and Nature Management, kand.2år"]
[null,"Københavns Universitet","Kandidatuddannelser","Natur, kandidat","Sustainable Tropical Forestry, kand.2år"]
[null,"Københavns Universitet","Kandidatuddannelser","Sundhed, kandidat","Farmaceutisk videnskab, kand.2år"]
[null,"Københavns Universitet","Kandidatuddannelser","Sundhed, kandidat","Farmaci, kand.2år"]
[null,"Københavns Universitet","Kandidatuddannelser","Sundhed, kandidat","Folkesundhedsvidenskab, kand.2år"]
[null,"Københavns Universitet","Kandidatuddannelser","Sundhed, kandidat","Global sundhed, kand.2år"]
[null,"Københavns Universitet","Kandidatuddannelser","Sundhed, kandidat","Humanbiologi, kand.2år"]
[null,"Københavns Universitet","Kandidatuddannelser","Sundhed, kandidat","Immunologi og inflammation, kand.2år"]
[null,"Københavns Universitet","Kandidatuddannelser","Sundhed, kandidat","Klinisk ernæring, kand.2år"]
[null,"Københavns Universitet","Kandidatuddannelser","Sundhed, kandidat","Lægemiddelvidenskab, kand.2år"]
[null,"Københavns Universitet","Kandidatuddannelser","Sundhed, kandidat","Medicin, kand.3år"]
[null,"Københavns Universitet","Kandidatuddannelser","Sundhed, kandidat","Odontologi, kand.2år"]
[null,"Københavns Universitet","Kandidatuddannelser","Sundhed, kandidat","Sundhed og informatik, kand.2år"]
[null,"Københavns Universitet","Kandidatuddannelser","Sundhed, kandidat","Sundhedsfaglig kandidatuddannelse, kand.2år"]
[null,"Københavns Universitet","Kandidatuddannelser","Sundhed, kandidat","Veterinærmedicin, kand.2½år"]
[null,"Roskilde Universitet","Kandidatuddannelser","Samfund, kandidat","Arbejdslivsstudier, kand.2år"]
[null,"Roskilde Universitet","Kandidatuddannelser","Samfund, kandidat","Business Administration and Leadership, kand.2år"]
[null,"Roskilde Universitet","Kandidatuddannelser","Samfund, kandidat","Business studies, kand.2år"]
[null,"Roskilde Universitet","Kandidatuddannelser","Samfund, kandidat","Global Studies, kand.2år"]
[null,"Roskilde Universitet","Kandidatuddannelser","Samfund, kandidat","Globale studier, kombination (RUC)"]
[null,"Roskilde Universitet","Kandidatuddannelser","Samfund, kandidat","International Development Studies, kand.2år"]
[null,"Roskilde Universitet","Kandidatuddannelser","Samfund, kandidat","International Public Administration and Politics, kand.2år"]
[null,"Roskilde Universitet","Kandidatuddannelser","Samfund, kandidat","Internationale udviklingsstudier, kand.2år"]
[null,"Roskilde Universitet","Kandidatuddannelser","Samfund, kandidat","Nordisk urban planlægning, kand.2år"]
[null,"Roskilde Universitet","Kandidatuddannelser","Samfund, kandidat","Plan, by og proces, kand.2år"]
[null,"Roskilde Universitet","Kandidatuddannelser","Samfund, kandidat","Politik og forvaltning, kand.2år"]
[null,"Roskilde Universitet","Kandidatuddannelser","Samfund, kandidat","Politik, kand.2år"]
[null,"Roskilde Universitet","Kandidatuddannelser","Samfund, kandidat","Psykologi, kand.2år"]
[null,"Roskilde Universitet","Kandidatuddannelser","Samfund, kandidat","Social Entrepreneurship and Management, kand.2år"]
[null,"Roskilde Universitet","Kandidatuddannelser","Samfund, kandidat","Sociale interventionsstudier, kand.2år"]
[null,"Roskilde Universitet","Kandidatuddannelser","Samfund, kandidat","Socialvidenskab, kand.2år"]
[null,"Roskilde Universitet","Kandidatuddannelser","Samfund, kandidat","Spatial Designs ans Society, kand.2år"]
[null,"Roskilde Universitet","Kandidatuddannelser","Samfund, kandidat","Sundhedsfremme og sundhedsstrategier, kand.2år"]
[null,"Roskilde Universitet","Kandidatuddannelser","Samfund, kandidat","Tek-Sam - miljøplanlægning, kand.2år"]
[null,"Roskilde Universitet","Kandidatuddannelser","Samfund, kandidat","Virksomhedsledelse, kand.2år"]
[null,"Roskilde Universitet","Kandidatuddannelser","Samfund, kandidat","Virksomhedsstudier, kand.2år"]
[null,"Roskilde Universitet","Kandidatuddannelser","Humaniora, kandidat","Communication Studies, kand.2år"]
[null,"Roskilde Universitet","Kandidatuddannelser","Humaniora, kandidat","Cultural Encounters and Communication Studies, kand.2år"]
[null,"Roskilde Universitet","Kandidatuddannelser","Humaniora, kandidat","Dansk, kand.2år"]
[null,"Roskilde Universitet","Kandidatuddannelser","Humaniora, kandidat","Filosofi, kand.2år"]
[null,"Roskilde Universitet","Kandidatuddannelser","Humaniora, kandidat","Historie, kand.2år"]
[null,"Roskilde Universitet","Kandidatuddannelser","Humaniora, kandidat","Journalistik, kand.2år"]
[null,"Roskilde Universitet","Kandidatuddannelser","Humaniora, kandidat","Kommunikation, kand.2år"]
[null,"Roskilde Universitet","Kandidatuddannelser","Humaniora, kandidat","Kultur- og sprogmødestudier, kand.2år"]
[null,"Roskilde Universitet","Kandidatuddannelser","Humaniora, kandidat","Performance-design, kand.2år"]
[null,"Roskilde Universitet","Kandidatuddannelser","Humaniora, kandidat","Pædagogik og uddannelsesstudier, kand.2år"]
[null,"Roskilde Universitet","Kandidatuddannelser","Natur, kandidat","Chemistry, kand.2år"]
[null,"Roskilde Universitet","Kandidatuddannelser","Natur, kandidat","Datalogi, kand.2år"]
[null,"Roskilde Universitet","Kandidatuddannelser","Natur, kandidat","Environmental Biology, kand.2år"]
[null,"Roskilde Universitet","Kandidatuddannelser","Natur, kandidat","Geografi/Geografi og geoinformatik, kand.2år"]
[null,"Roskilde Universitet","Kandidatuddannelser","Natur, kandidat","Informatik, kand.2år"]
[null,"Roskilde Universitet","Kandidatuddannelser","Natur, kandidat","Kemi, kand.2år"]
[null,"Roskilde Universitet","Kandidatuddannelser","Natur, kandidat","Miljørisiko, kand.2år"]
[null,"Roskilde Universitet","Kandidatuddannelser","Natur, kandidat","Physics, kand.2år"]
[null,"Roskilde Universitet","Kandidatuddannelser","Sundhed, kandidat","Medicinalbiologi, kand.2år"]
[null,"Syddansk Universitet","Kandidatuddannelser","Samfund, kandidat","Economics and Business Administration, kand.2år"]
[null,"Syddansk Universitet","Kandidatuddannelser","Samfund, kandidat","Economics, kand.2år"]
[null,"Syddansk Universitet","Kandidatuddannelser","Samfund, kandidat","Erhvervsøk-erhv.spr, internat. turisme-fritidsman, kand.2år"]
[null,"Syddansk Universitet","Kandidatuddannelser","Samfund, kandidat","Erhvervsøkonomi og jura, cand.merc.(jur.)2år"]
[null,"Syddansk Universitet","Kandidatuddannelser","Samfund, kandidat","Erhvervsøkonomi, kand.2år"]
[null,"Syddansk Universitet","Kandidatuddannelser","Samfund, kandidat","International sikkerhed og folkeret, kand.2år"]
[null,"Syddansk Universitet","Kandidatuddannelser","Samfund, kandidat","Jura, kand.2år"]
[null,"Syddansk Universitet","Kandidatuddannelser","Samfund, kandidat","Komparativ politik og velfærdsstudier, kand.2år"]
[null,"Syddansk Universitet","Kandidatuddannelser","Samfund, kandidat","Kultursociologi, kand.2år"]
[null,"Syddansk Universitet","Kandidatuddannelser","Samfund, kandidat","Miljø og ressource management, kand.2år"]
[null,"Syddansk Universitet","Kandidatuddannelser","Samfund, kandidat","Psykologi, kand.2år"]
[null,"Syddansk Universitet","Kandidatuddannelser","Samfund, kandidat","Revisorkandidat, kand.2år"]
[null,"Syddansk Universitet","Kandidatuddannelser","Samfund, kandidat","Samfundsfag, cand.soc.2år"]
[null,"Syddansk Universitet","Kandidatuddannelser","Samfund, kandidat","Statskundskab, kand.2år"]
[null,"Syddansk Universitet","Kandidatuddannelser","Humaniora, kandidat","Amerikanske studier, kand.2år"]
[null,"Syddansk Universitet","Kandidatuddannelser","Humaniora, kandidat","Audiologi, kand.2år"]
[null,"Syddansk Universitet","Kandidatuddannelser","Humaniora, kandidat","Audiologopædi, kand.2år"]
[null,"Syddansk Universitet","Kandidatuddannelser","Humaniora, kandidat","Dansk, kand.2år"]
[null,"Syddansk Universitet","Kandidatuddannelser","Humaniora, kandidat","Designledelse, kand.2år"]
[null,"Syddansk Universitet","Kandidatuddannelser","Humaniora, kandidat","Designstudier, kand.2år"]
[null,"Syddansk Universitet","Kandidatuddannelser","Humaniora, kandidat","English, kand.2år"]
[null,"Syddansk Universitet","Kandidatuddannelser","Humaniora, kandidat","Erhvervsøkonomi og erhvervssprog, kand.2år"]
[null,"Syddansk Universitet","Kandidatuddannelser","Humaniora, kandidat","Erhvervsøkonomi-erhvervssprog, engelsk, kand.2år"]
[null,"Syddansk Universitet","Kandidatuddannelser","Humaniora, kandidat","Erhvervsøkonomi-erhvervssprog, spansk, kand.2år"]
[null,"Syddansk Universitet","Kandidatuddannelser","Humaniora, kandidat","Erhvervsøkonomi-erhvervssprog, tysk, kand.2år"]
[null,"Syddansk Universitet","Kandidatuddannelser","Humaniora, kandidat","Filosofi, kand.2år"]
[null,"Syddansk Universitet","Kandidatuddannelser","Humaniora, kandidat","Historie, kand.2år"]
[null,"Syddansk Universitet","Kandidatuddannelser","Humaniora, kandidat","International virksomhedskommunikation, kand.2år"]
[null,"Syddansk Universitet","Kandidatuddannelser","Humaniora, kandidat","Journalistik, cand.mag.2år"]
[null,"Syddansk Universitet","Kandidatuddannelser","Humaniora, kandidat","Journalistik, kand.2år"]
[null,"Syddansk Universitet","Kandidatuddannelser","Humaniora, kandidat","Kultur og kulturformidling, kand.2år"]
[null,"Syddansk Universitet","Kandidatuddannelser","Humaniora, kandidat","Litteraturvidenskab, kand.2år"]
[null,"Syddansk Universitet","Kandidatuddannelser","Humaniora, kandidat","Medievidenskab, kand.2år"]
[null,"Syddansk Universitet","Kandidatuddannelser","Humaniora, kandidat","Mellemøststudier, kand.2år"]
[null,"Syddansk Universitet","Kandidatuddannelser","Humaniora, kandidat","Oldtidskundskab, kand.2år"]
[null,"Syddansk Universitet","Kandidatuddannelser","Humaniora, kandidat","Pædagogik, kand.2år"]
[null,"Syddansk Universitet","Kandidatuddannelser","Humaniora, kandidat","Religion studier/religionsvidenskab, kand.2år"]
[null,"Syddansk Universitet","Kandidatuddannelser","Humaniora, kandidat","Spansk sprog og kultur, kand.2år"]
[null,"Syddansk Universitet","Kandidatuddannelser","Humaniora, kandidat","Tysk sprog, litteratur og kultur, kand.2år"]
[null,"Syddansk Universitet","Kandidatuddannelser","Teknik, kandidat","Elektronik, civilingeniør 2år"]
[null,"Syddansk Universitet","Kandidatuddannelser","Teknik, kandidat","Energiteknologi, civilingeniør 2år"]
[null,"Syddansk Universitet","Kandidatuddannelser","Teknik, kandidat","Engineering, Innovation and Business, civilingeniør 2år"]
[null,"Syddansk Universitet","Kandidatuddannelser","Teknik, kandidat","Fysik og teknologi, civilingeniør 2år"]
[null,"Syddansk Universitet","Kandidatuddannelser","Teknik, kandidat","Information Technology in IT, Communication and Organisation, kand.2år"]
[null,"Syddansk Universitet","Kandidatuddannelser","Teknik, kandidat","IT-produktdesign, kand.2år"]
[null,"Syddansk Universitet","Kandidatuddannelser","Teknik, kandidat","Kemi, civilingeniør 2år"]
[null,"Syddansk Universitet","Kandidatuddannelser","Teknik, kandidat","Konstruktionsteknik, civilingeniør 2år"]
[null,"Syddansk Universitet","Kandidatuddannelser","Teknik, kandidat","Mekatronik, civilingeniør 2år"]
[null,"Syddansk Universitet","Kandidatuddannelser","Teknik, kandidat","Miljøteknologi, civilingeniør 2år"]
[null,"Syddansk Universitet","Kandidatuddannelser","Teknik, kandidat","Operations Management, civilingeniør 2år"]
[null,"Syddansk Universitet","Kandidatuddannelser","Teknik, kandidat","Produktudvikling og innovation, civilingeniør 2år"]
[null,"Syddansk Universitet","Kandidatuddannelser","Teknik, kandidat","Robotteknologi, civilingeniør 2år"]
[null,"Syddansk Universitet","Kandidatuddannelser","Teknik, kandidat","Software Engineering, civilingeniør 2år"]
[null,"Syddansk Universitet","Kandidatuddannelser","Teknik, kandidat","Spiludvikling og læringsteknologi, civilingeniør 2år"]
[null,"Syddansk Universitet","Kandidatuddannelser","Teknik, kandidat","Sundheds- og velfærdsteknologi (teknisk videnskab), civilingeniør 2år"]
[null,"Syddansk Universitet","Kandidatuddannelser","Teknik, kandidat","Webkommunikation, kand.2år"]
[null,"Syddansk Universitet","Kandidatuddannelser","Natur, kandidat","Anvendt matematik, kand.2år"]
[null,"Syddansk Universitet","Kandidatuddannelser","Natur, kandidat","Biokemi og molekylær biologi, kand.2år"]
[null,"Syddansk Universitet","Kandidatuddannelser","Natur, kandidat","Biology, kand.2år"]
[null,"Syddansk Universitet","Kandidatuddannelser","Natur, kandidat","Biomedicin, kand.2år"]
[null,"Syddansk Universitet","Kandidatuddannelser","Natur, kandidat","Biomedicinsk informatik, kand.2år"]
[null,"Syddansk Universitet","Kandidatuddannelser","Natur, kandidat","Chemistry, kand.2år"]
[null,"Syddansk Universitet","Kandidatuddannelser","Natur, kandidat","Computer Science, kand.2år"]
[null,"Syddansk Universitet","Kandidatuddannelser","Natur, kandidat","Datavidenskab, kand.2år"]
[null,"Syddansk Universitet","Kandidatuddannelser","Natur, kandidat","Idræt/Idræt og sundhed, kand.2år"]
[null,"Syddansk Universitet","Kandidatuddannelser","Natur, kandidat","Matematik-økonomi, kand.2år"]
[null,"Syddansk Universitet","Kandidatuddannelser","Natur, kandidat","Mathematics, kand.2år"]
[null,"Syddansk Universitet","Kandidatuddannelser","Natur, kandidat","Medicinalkemi, kand.2år"]
[null,"Syddansk Universitet","Kandidatuddannelser","Natur, kandidat","Physics, kand.2år"]
[null,"Syddansk Universitet","Kandidatuddannelser","Sundhed, kandidat","Ergoterapi, kand.2år"]
[null,"Syddansk Universitet","Kandidatuddannelser","Sundhed, kandidat","Farmaci, kand.2år"]
[null,"Syddansk Universitet","Kandidatuddannelser","Sundhed, kandidat","Fysioterapi, kand.2år"]
[null,"Syddansk Universitet","Kandidatuddannelser","Sundhed, kandidat","Jordemodervidenskab, kand.2år"]
[null,"Syddansk Universitet","Kandidatuddannelser","Sundhed, kandidat","Klinisk biomekanik, kand.2år"]
[null,"Syddansk Universitet","Kandidatuddannelser","Sundhed, kandidat","Klinisk sygepleje, kand.2år"]
[null,"Syddansk Universitet","Kandidatuddannelser","Sundhed, kandidat","Medicin, kand.3år"]
[null,"Syddansk Universitet","Kandidatuddannelser","Sundhed, kandidat","Public Health, kand.2år"]
[null,"Syddansk Universitet","Kandidatuddannelser","Sundhed, kandidat","Sundhedsfaglig kandidatuddannelse, kand.2år"]
[null,"Aalborg Universitet","Kandidatuddannelser","Samfund, kandidat","Avanceret udvikling i socialt arbejde, kand.2år"]
[null,"Aalborg Universitet","Kandidatuddannelser","Samfund, kandidat","By, bolig og bosætning, kand.2år"]
[null,"Aalborg Universitet","Kandidatuddannelser","Samfund, kandidat","Erhvervsøkonomi og jura, cand.merc.(jur.)2år"]
[null,"Aalborg Universitet","Kandidatuddannelser","Samfund, kandidat","Erhvervsøkonomi, kand.2år"]
[null,"Aalborg Universitet","Kandidatuddannelser","Samfund, kandidat","Internationale forhold, kand.2år"]
[null,"Aalborg Universitet","Kandidatuddannelser","Samfund, kandidat","IT-ledelse, kand.2år"]
[null,"Aalborg Universitet","Kandidatuddannelser","Samfund, kandidat","Jura, kand.2år"]
[null,"Aalborg Universitet","Kandidatuddannelser","Samfund, kandidat","Kriminologi, kand.2år"]
[null,"Aalborg Universitet","Kandidatuddannelser","Samfund, kandidat","Politik og administration, kand.2år"]
[null,"Aalborg Universitet","Kandidatuddannelser","Samfund, kandidat","Psykologi, kand.2år"]
[null,"Aalborg Universitet","Kandidatuddannelser","Samfund, kandidat","Revisorkandidat, kand.2år"]
[null,"Aalborg Universitet","Kandidatuddannelser","Samfund, kandidat","Samfundsfag, cand.soc.2år"]
[null,"Aalborg Universitet","Kandidatuddannelser","Samfund, kandidat","Socialt arbejde, kand.2år"]
[null,"Aalborg Universitet","Kandidatuddannelser","Samfund, kandidat","Sociologi, kand.2år"]
[null,"Aalborg Universitet","Kandidatuddannelser","Samfund, kandidat","Økonomi, kand.2år"]
[null,"Aalborg Universitet","Kandidatuddannelser","Humaniora, kandidat","Anvendt filosofi, kand.2år"]
[null,"Aalborg Universitet","Kandidatuddannelser","Humaniora, kandidat","Dansk, kand.2år"]
[null,"Aalborg Universitet","Kandidatuddannelser","Humaniora, kandidat","Engelsk, kand.2år"]
[null,"Aalborg Universitet","Kandidatuddannelser","Humaniora, kandidat","Historie, kand.2år"]
[null,"Aalborg Universitet","Kandidatuddannelser","Humaniora, kandidat","Information Science, kand.2år"]
[null,"Aalborg Universitet","Kandidatuddannelser","Humaniora, kandidat","Informationsvidenskab, kand.2år"]
[null,"Aalborg Universitet","Kandidatuddannelser","Humaniora, kandidat","Interaktive digitale medier, kand.2år"]
[null,"Aalborg Universitet","Kandidatuddannelser","Humaniora, kandidat","Internat. virksomhedskommunikation, engelsk, kand.2år"]
[null,"Aalborg Universitet","Kandidatuddannelser","Humaniora, kandidat","Internat. virksomhedskommunikation, spansk, kand.2år"]
[null,"Aalborg Universitet","Kandidatuddannelser","Humaniora, kandidat","It og læring, organisatorisk omstilling, kand.2år"]
[null,"Aalborg Universitet","Kandidatuddannelser","Humaniora, kandidat","Kommunikation, kand.2år"]
[null,"Aalborg Universitet","Kandidatuddannelser","Humaniora, kandidat","Kultur, kommunikation og globalisering, kand.2år"]
[null,"Aalborg Universitet","Kandidatuddannelser","Humaniora, kandidat","Læring og forandringsprocesser, kand.2år"]
[null,"Aalborg Universitet","Kandidatuddannelser","Humaniora, kandidat","Media Arts Cultures, kand.2år"]
[null,"Aalborg Universitet","Kandidatuddannelser","Humaniora, kandidat","Musikvidenskab/Musik, kand.2år"]
[null,"Aalborg Universitet","Kandidatuddannelser","Humaniora, kandidat","Oplevelsesdesign, kand.2år"]
[null,"Aalborg Universitet","Kandidatuddannelser","Humaniora, kandidat","Turisme, kand.2år"]
[null,"Aalborg Universitet","Kandidatuddannelser","Teknik, kandidat","Arkitektur, cand.scient.tech.2år"]
[null,"Aalborg Universitet","Kandidatuddannelser","Teknik, kandidat","Arkitektur, civilingeniør 2år"]
[null,"Aalborg Universitet","Kandidatuddannelser","Teknik, kandidat","Bioengineering, civilingeniør 2år"]
[null,"Aalborg Universitet","Kandidatuddannelser","Teknik, kandidat","Bioteknologi, civilingeniør 2år"]
[null,"Aalborg Universitet","Kandidatuddannelser","Teknik, kandidat","By-, energi- og miljøplanlægning, civilingeniør 2år"]
[null,"Aalborg Universitet","Kandidatuddannelser","Teknik, kandidat","Bygge- og anlægskonstruktion, civilingeniør 2år"]
[null,"Aalborg Universitet","Kandidatuddannelser","Teknik, kandidat","Byggeledelse og bygningsinformatik, kand.2år"]
[null,"Aalborg Universitet","Kandidatuddannelser","Teknik, kandidat","Byggeledelse, civilingeniør 2år"]
[null,"Aalborg Universitet","Kandidatuddannelser","Teknik, kandidat","Bygningers energidesign, kand.2år"]
[null,"Aalborg Universitet","Kandidatuddannelser","Teknik, kandidat","Bæredygtig bioteknologi, civilingeniør 2år"]
[null,"Aalborg Universitet","Kandidatuddannelser","Teknik, kandidat","Bæredygtig byudvikling, civilingeniør 2år"]
[null,"Aalborg Universitet","Kandidatuddannelser","Teknik, kandidat","Bæredygtig energiteknik, civilingeniør 2år"]
[null,"Aalborg Universitet","Kandidatuddannelser","Teknik, kandidat","Bæredygtigt design, civilingeniør 2år"]
[null,"Aalborg Universitet","Kandidatuddannelser","Teknik, kandidat","Communication Technologies, civilingeniør 2år"]
[null,"Aalborg Universitet","Kandidatuddannelser","Teknik, kandidat","Cyber Security, civilingeniør 2år"]
[null,"Aalborg Universitet","Kandidatuddannelser","Teknik, kandidat","Energiteknik, civilingeniør 2år"]
[null,"Aalborg Universitet","Kandidatuddannelser","Teknik, kandidat","Forretningsinnovation, kand.2år"]
[null,"Aalborg Universitet","Kandidatuddannelser","Teknik, kandidat","Idrætsteknologi, kand.2år"]
[null,"Aalborg Universitet","Kandidatuddannelser","Teknik, kandidat","Indeklima og energi, civilingeniør 2år"]
[null,"Aalborg Universitet","Kandidatuddannelser","Teknik, kandidat","Industrielt design, civilingeniør 2år"]
[null,"Aalborg Universitet","Kandidatuddannelser","Teknik, kandidat","Innovativ kommunikationsteknik-entrepreneursk., civilingeniør 2år"]
[null,"Aalborg Universitet","Kandidatuddannelser","Teknik, kandidat","Kemi, civilingeniør 2år"]
[null,"Aalborg Universitet","Kandidatuddannelser","Teknik, kandidat","Kemiteknik, civilingeniør 2år"]
[null,"Aalborg Universitet","Kandidatuddannelser","Teknik, kandidat","Landinspektørvidenskab, cand.geom.2år"]
[null,"Aalborg Universitet","Kandidatuddannelser","Teknik, kandidat","Landinspektørvidenskab,cand.scient.tech.2år"]
[null,"Aalborg Universitet","Kandidatuddannelser","Teknik, kandidat","Ledelse og informatik i byggeriet, kand.2år"]
[null,"Aalborg Universitet","Kandidatuddannelser","Teknik, kandidat","Lyd- og musikteknologi, civilingeniør 2år"]
[null,"Aalborg Universitet","Kandidatuddannelser","Teknik, kandidat","Management Engineering, civilingeniør 2år"]
[null,"Aalborg Universitet","Kandidatuddannelser","Teknik, kandidat","Matematik-teknologi, civilingeniør 2år"]
[null,"Aalborg Universitet","Kandidatuddannelser","Teknik, kandidat","Materials Technology and Nanotechnology, civilingeniør 2år"]
[null,"Aalborg Universitet","Kandidatuddannelser","Teknik, kandidat","Mechanical Engineering, civilingeniør 2år"]
[null,"Aalborg Universitet","Kandidatuddannelser","Teknik, kandidat","Miljøvidenskab, cand.tech.2år"]
[null,"Aalborg Universitet","Kandidatuddannelser","Teknik, kandidat","Nanobioteknologi, civilingeniør 2år"]
[null,"Aalborg Universitet","Kandidatuddannelser","Teknik, kandidat","Produkt og designpsykologi, civilingeniør 2år"]
[null,"Aalborg Universitet","Kandidatuddannelser","Teknik, kandidat","Produktion, kand.2år"]
[null,"Aalborg Universitet","Kandidatuddannelser","Teknik, kandidat","Regulering og automation, civilingeniør 2år"]
[null,"Aalborg Universitet","Kandidatuddannelser","Teknik, kandidat","Robotteknologi, civilingeniør 2år"]
[null,"Aalborg Universitet","Kandidatuddannelser","Teknik, kandidat","Signalbehandling og akustik, civilingeniør 2år"]
[null,"Aalborg Universitet","Kandidatuddannelser","Teknik, kandidat","Sikkerhed og risikostyring, kand.2år"]
[null,"Aalborg Universitet","Kandidatuddannelser","Teknik, kandidat","Software, civilingeniør 2år"]
[null,"Aalborg Universitet","Kandidatuddannelser","Teknik, kandidat","Sundhedsteknologi, civilingeniør 2år"]
[null,"Aalborg Universitet","Kandidatuddannelser","Teknik, kandidat","Teknoantropologi, kand.2år"]
[null,"Aalborg Universitet","Kandidatuddannelser","Teknik, kandidat","Urbant design, cand.scient.tech.2år"]
[null,"Aalborg Universitet","Kandidatuddannelser","Teknik, kandidat","Urbant design, civilingeniør 2år"]
[null,"Aalborg Universitet","Kandidatuddannelser","Teknik, kandidat","Vand og miljø, civilingeniør 2år"]
[null,"Aalborg Universitet","Kandidatuddannelser","Teknik, kandidat","Veje og trafik, civilingeniør 2år"]
[null,"Aalborg Universitet","Kandidatuddannelser","Teknik, kandidat","Vision, grafik og interaktive systemer, civilingeniør 2år"]
[null,"Aalborg Universitet","Kandidatuddannelser","Natur, kandidat","Biologi, kand.2år"]
[null,"Aalborg Universitet","Kandidatuddannelser","Natur, kandidat","Datalogi (IT), kand.2år"]
[null,"Aalborg Universitet","Kandidatuddannelser","Natur, kandidat","Datalogi, kand.2år"]
[null,"Aalborg Universitet","Kandidatuddannelser","Natur, kandidat","Fysik, kand.2år"]
[null,"Aalborg Universitet","Kandidatuddannelser","Natur, kandidat","Geography/Geography and Geoinformatics, kand.2år"]
[null,"Aalborg Universitet","Kandidatuddannelser","Natur, kandidat","Idræt/Idræt og sundhed, kand.2år"]
[null,"Aalborg Universitet","Kandidatuddannelser","Natur, kandidat","Interaktionsdesign, kand.2år"]
[null,"Aalborg Universitet","Kandidatuddannelser","Natur, kandidat","IT-design og applikationsudvikling, kand.2år"]
[null,"Aalborg Universitet","Kandidatuddannelser","Natur, kandidat","Kemi, kand.2år"]
[null,"Aalborg Universitet","Kandidatuddannelser","Natur, kandidat","Klinisk videnskab og teknologi, kand.2år"]
[null,"Aalborg Universitet","Kandidatuddannelser","Natur, kandidat","Lysdesign, kand.2år"]
[null,"Aalborg Universitet","Kandidatuddannelser","Natur, kandidat","Matematik, kand.2år"]
[null,"Aalborg Universitet","Kandidatuddannelser","Natur, kandidat","Matematik-økonomi, kand.2år"]
[null,"Aalborg Universitet","Kandidatuddannelser","Natur, kandidat","Medialogi, kand.2år"]
[null,"Aalborg Universitet","Kandidatuddannelser","Natur, kandidat","Service systems design, kand.2år"]
[null,"Aalborg Universitet","Kandidatuddannelser","Sundhed, kandidat","Folkesundhedsvidenskab, kand.2år"]
[null,"Aalborg Universitet","Kandidatuddannelser","Sundhed, kandidat","Medicin med industriel specialisering, kand.2år"]
[null,"Aalborg Universitet","Kandidatuddannelser","Sundhed, kandidat","Medicin, kand.3år"]
[null,"Aalborg Universitet","Kandidatuddannelser","Sundhed, kandidat","Muskuloskeletal fysioterapi, kand.2år"]
[null,"Aarhus Universitet","Kandidatuddannelser","Samfund, kandidat","Anthropology, kand.2år"]
[null,"Aarhus Universitet","Kandidatuddannelser","Samfund, kandidat","Antropologi, kand.2år"]
[null,"Aarhus Universitet","Kandidatuddannelser","Samfund, kandidat","Economics and Business Administration, kand.2år"]
[null,"Aarhus Universitet","Kandidatuddannelser","Samfund, kandidat","Economics, kand.2år"]
[null,"Aarhus Universitet","Kandidatuddannelser","Samfund, kandidat","Erhvervsøkonomi og jura, cand.merc.(jur.)2år"]
[null,"Aarhus Universitet","Kandidatuddannelser","Samfund, kandidat","Erhvervsøkonomi, cand.soc.2år"]
[null,"Aarhus Universitet","Kandidatuddannelser","Samfund, kandidat","Human security, kand.2år"]
[null,"Aarhus Universitet","Kandidatuddannelser","Samfund, kandidat","Internationale studier, kand.2år"]
[null,"Aarhus Universitet","Kandidatuddannelser","Samfund, kandidat","It, kommunikation og organisation, kand.2år"]
[null,"Aarhus Universitet","Kandidatuddannelser","Samfund, kandidat","Jura, kand.2år"]
[null,"Aarhus Universitet","Kandidatuddannelser","Samfund, kandidat","Oplevelsesøkonomi, kand.2år"]
[null,"Aarhus Universitet","Kandidatuddannelser","Samfund, kandidat","Political Science, kand.2år"]
[null,"Aarhus Universitet","Kandidatuddannelser","Samfund, kandidat","Psykologi, kand.2år"]
[null,"Aarhus Universitet","Kandidatuddannelser","Samfund, kandidat","Revisorkandidat, kand.2år"]
[null,"Aarhus Universitet","Kandidatuddannelser","Samfund, kandidat","Samfundsfag, cand.soc.2år"]
[null,"Aarhus Universitet","Kandidatuddannelser","Samfund, kandidat","Statskundskab, kand.2år"]
[null,"Aarhus Universitet","Kandidatuddannelser","Samfund, kandidat","Uddannelsesvidenskab, kand.2år"]
[null,"Aarhus Universitet","Kandidatuddannelser","Humaniora, kandidat","Arkæologi, kand.2år"]
[null,"Aarhus Universitet","Kandidatuddannelser","Humaniora, kandidat","Bæredygtig kulturarvsmanagement, kand.2år"]
[null,"Aarhus Universitet","Kandidatuddannelser","Humaniora, kandidat","Children's Literature, Media and Culture, kand.2år"]
[null,"Aarhus Universitet","Kandidatuddannelser","Humaniora, kandidat","Diakoni, kand.2år"]
[null,"Aarhus Universitet","Kandidatuddannelser","Humaniora, kandidat","Didaktik, dansk, kand.2år"]
[null,"Aarhus Universitet","Kandidatuddannelser","Humaniora, kandidat","Didaktik, matematik, kand.2år"]
[null,"Aarhus Universitet","Kandidatuddannelser","Humaniora, kandidat","Didaktik, materiel kultur, kand.2år"]
[null,"Aarhus Universitet","Kandidatuddannelser","Humaniora, kandidat","Didaktik, musikpædagogik, kand.2år"]
[null,"Aarhus Universitet","Kandidatuddannelser","Humaniora, kandidat","Digital design, kand.2år"]
[null,"Aarhus Universitet","Kandidatuddannelser","Humaniora, kandidat","Dramaturgi, kand.2år"]
[null,"Aarhus Universitet","Kandidatuddannelser","Humaniora, kandidat","Engelsk, kand.2år"]
[null,"Aarhus Universitet","Kandidatuddannelser","Humaniora, kandidat","Erhvervsspr.-internat. erhvervskomm, engelsk, kand.2år"]
[null,"Aarhus Universitet","Kandidatuddannelser","Humaniora, kandidat","Erhvervsspr.-internat. erhvervskomm, spansk, kand.2år"]
[null,"Aarhus Universitet","Kandidatuddannelser","Humaniora, kandidat","Erhvervsspr.-internat. erhvervskomm, tysk, kand.2år"]
[null,"Aarhus Universitet","Kandidatuddannelser","Humaniora, kandidat","Europastudier, kand.2år"]
[null,"Aarhus Universitet","Kandidatuddannelser","Humaniora, kandidat","Filosofi, kand.2år"]
[null,"Aarhus Universitet","Kandidatuddannelser","Humaniora, kandidat","Fransk sprog, litteratur og kultur, kand.2år"]
[null,"Aarhus Universitet","Kandidatuddannelser","Humaniora, kandidat","Generel pædagogik, kand.2år"]
[null,"Aarhus Universitet","Kandidatuddannelser","Humaniora, kandidat","Globale områdestudier, kand. 2 år"]
[null,"Aarhus Universitet","Kandidatuddannelser","Humaniora, kandidat","Historie, kand.2år"]
[null,"Aarhus Universitet","Kandidatuddannelser","Humaniora, kandidat","Idehistorie, kand.2år"]
[null,"Aarhus Universitet","Kandidatuddannelser","Humaniora, kandidat","Informationsvidenskab, kand.2år"]
[null,"Aarhus Universitet","Kandidatuddannelser","Humaniora, kandidat","Interkulturelle studier i fransk, kand.2år"]
[null,"Aarhus Universitet","Kandidatuddannelser","Humaniora, kandidat","Interkulturelle studier i Latinamerika og Spanien, kand.2år"]
[null,"Aarhus Universitet","Kandidatuddannelser","Humaniora, kandidat","Interkulturelle studier, kand.2år"]
[null,"Aarhus Universitet","Kandidatuddannelser","Humaniora, kandidat","IT-didaktisk design, kand.2år"]
[null,"Aarhus Universitet","Kandidatuddannelser","Humaniora, kandidat","Journalistik, kand.2år"]
[null,"Aarhus Universitet","Kandidatuddannelser","Humaniora, kandidat","Journalistik, medier og globalisering, kand.2år"]
[null,"Aarhus Universitet","Kandidatuddannelser","Humaniora, kandidat","Kognitiv semiotik, kand.2år"]
[null,"Aarhus Universitet","Kandidatuddannelser","Humaniora, kandidat","Kunsthistorie, kand.2år"]
[null,"Aarhus Universitet","Kandidatuddannelser","Humaniora, kandidat","Linguistics, kand.2år"]
[null,"Aarhus Universitet","Kandidatuddannelser","Humaniora, kandidat","Litteraturhistorie, kand.2år"]
[null,"Aarhus Universitet","Kandidatuddannelser","Humaniora, kandidat","Medievidenskab, kand.2år"]
[null,"Aarhus Universitet","Kandidatuddannelser","Humaniora, kandidat","Musikvidenskab/Musik, kand.2år"]
[null,"Aarhus Universitet","Kandidatuddannelser","Humaniora, kandidat","Nordisk sprog og litteratur, kand.2år"]
[null,"Aarhus Universitet","Kandidatuddannelser","Humaniora, kandidat","Pædagogisk antropologi og globalisering, kand.2år"]
[null,"Aarhus Universitet","Kandidatuddannelser","Humaniora, kandidat","Pædagogisk antropologi, kand.2år"]
[null,"Aarhus Universitet","Kandidatuddannelser","Humaniora, kandidat","Pædagogisk filosofi, kand.2år"]
[null,"Aarhus Universitet","Kandidatuddannelser","Humaniora, kandidat","Pædagogisk psykologi, kand.2år"]
[null,"Aarhus Universitet","Kandidatuddannelser","Humaniora, kandidat","Pædagogisk sociologi, kand.2år"]
[null,"Aarhus Universitet","Kandidatuddannelser","Humaniora, kandidat","Religion studier/religionsvidenskab, kand.2år"]
[null,"Aarhus Universitet","Kandidatuddannelser","Humaniora, kandidat","Retorik, kand.2år"]
[null,"Aarhus Universitet","Kandidatuddannelser","Humaniora, kandidat","Spansk sprog og kultur, kand.2år"]
[null,"Aarhus Universitet","Kandidatuddannelser","Humaniora, kandidat","Teologi, kand.2år"]
[null,"Aarhus Universitet","Kandidatuddannelser","Humaniora, kandidat","Tysk sprog, litteratur og kultur, kand.2år"]
[null,"Aarhus Universitet","Kandidatuddannelser","Humaniora, kandidat","Æstetik og kultur, kand.2år"]
[null,"Aarhus Universitet","Kandidatuddannelser","Teknik, kandidat","Biomedicinsk teknologi, civilingeniør 2år"]
[null,"Aarhus Universitet","Kandidatuddannelser","Teknik, kandidat","Byggeri, civilingeniør 2år"]
[null,"Aarhus Universitet","Kandidatuddannelser","Teknik, kandidat","Computerteknologi, civilingeniør 2år"]
[null,"Aarhus Universitet","Kandidatuddannelser","Teknik, kandidat","Elektroteknologi, civilingeniør 2år"]
[null,"Aarhus Universitet","Kandidatuddannelser","Teknik, kandidat","Kemi og bioteknologi, civilingeniør 2år"]
[null,"Aarhus Universitet","Kandidatuddannelser","Teknik, kandidat","Mekanik, civilingeniør 2år"]
[null,"Aarhus Universitet","Kandidatuddannelser","Teknik, kandidat","Teknologibaseret forretningsudvikling, civilingeniør 2år"]
[null,"Aarhus Universitet","Kandidatuddannelser","Natur, kandidat","Agrobiologi, kand.2år"]
[null,"Aarhus Universitet","Kandidatuddannelser","Natur, kandidat","Astronomi, kand.2år"]
[null,"Aarhus Universitet","Kandidatuddannelser","Natur, kandidat","Bioinformatik, kand.2år"]
[null,"Aarhus Universitet","Kandidatuddannelser","Natur, kandidat","Biology, kand.2år"]
[null,"Aarhus Universitet","Kandidatuddannelser","Natur, kandidat","Chemistry, kand.2år"]
[null,"Aarhus Universitet","Kandidatuddannelser","Natur, kandidat","Cognitive Science, kand.2år"]
[null,"Aarhus Universitet","Kandidatuddannelser","Natur, kandidat","Computer Science, kand.2år"]
[null,"Aarhus Universitet","Kandidatuddannelser","Natur, kandidat","Geofysik, kand.2år"]
[null,"Aarhus Universitet","Kandidatuddannelser","Natur, kandidat","Geologi/Geologi-geoscience, kand.2år"]
[null,"Aarhus Universitet","Kandidatuddannelser","Natur, kandidat","Idræt/Idræt og sundhed, kand.2år"]
[null,"Aarhus Universitet","Kandidatuddannelser","Natur, kandidat","IT-produktudvikling, kand.2år"]
[null,"Aarhus Universitet","Kandidatuddannelser","Natur, kandidat","Jordbrug, natur og miljø, kand.2år"]
[null,"Aarhus Universitet","Kandidatuddannelser","Natur, kandidat","Mathematics, kand.2år"]
[null,"Aarhus Universitet","Kandidatuddannelser","Natur, kandidat","Mathematics-Economics, kand.2år"]
[null,"Aarhus Universitet","Kandidatuddannelser","Natur, kandidat","Medicinalkemi, kand.2år"]
[null,"Aarhus Universitet","Kandidatuddannelser","Natur, kandidat","Molecular Biology, kand.2år"]
[null,"Aarhus Universitet","Kandidatuddannelser","Natur, kandidat","Molekylær biomedicin /Molekylær medicin, kand.2år"]
[null,"Aarhus Universitet","Kandidatuddannelser","Natur, kandidat","Molekylær ernæring og fødevareteknologi, kand.2år"]
[null,"Aarhus Universitet","Kandidatuddannelser","Natur, kandidat","Nanoscience, kand.2år"]
[null,"Aarhus Universitet","Kandidatuddannelser","Natur, kandidat","Physics, kand.2år"]
[null,"Aarhus Universitet","Kandidatuddannelser","Natur, kandidat","Soils and Global Change, kand.2år"]
[null,"Aarhus Universitet","Kandidatuddannelser","Natur, kandidat","Statistik, kand.2år"]
[null,"Aarhus Universitet","Kandidatuddannelser","Natur, kandidat","Videnskabsstudier, kand.2år"]
[null,"Aarhus Universitet","Kandidatuddannelser","Sundhed, kandidat","Folkesundhedsvidenskab, kand.2år"]
[null,"Aarhus Universitet","Kandidatuddannelser","Sundhed, kandidat","Medicin, kand.3år"]
[null,"Aarhus Universitet","Kandidatuddannelser","Sundhed, kandidat","Odontologi, kand.2år"]
[null,"Aarhus Universitet","Kandidatuddannelser","Sundhed, kandidat","Optometri og synsvidenskab, kand.2år"]
[null,"Aarhus Universitet","Kandidatuddannelser","Sundhed, kandidat","Sundhedsfaglig kandidatuddannelse, kand.2år"]
[null,"Aarhus Universitet","Kandidatuddannelser","Sundhed, kandidat","Sygepleje, kand.2år"]
[null,"Danmarks Medie- og Journalisthøjskole","Professionsbachelorer","Medie, kommunikation, it mv., prof. bach.","Fotojournalist, prof.bach."]
[null,"Danmarks Medie- og Journalisthøjskole","Professionsbachelorer","Medie, kommunikation, it mv., prof. bach.","Journalist, prof.bach."]
[null,"Danmarks Medie- og Journalisthøjskole","Professionsbachelorer","Medie, kommunikation, it mv., prof. bach.","Kommunikation, prof.bach."]
[null,"Danmarks Medie- og Journalisthøjskole","Professionsbachelorer","Medie, kommunikation, it mv., prof. bach.","Medieproduktion og ledelse, prof.bach."]
[null,"Danmarks Medie- og Journalisthøjskole","Professionsbachelorer","Medie, kommunikation, it mv., prof. bach.","TV- og medietilrettelæggelse, prof.bach."]
[null,"Danmarks Medie- og Journalisthøjskole","Professionsbachelorer","Medie, kommunikation, it mv., prof. bach.","Visuel kommunikation, prof.bach."]
[null,"Danmarks Tekniske Universitet","Professionsbachelorer","Teknik, prof. bach.","Arktisk byggeri og infrastruktur, ing.prof.bach."]
[null,"Danmarks Tekniske Universitet","Professionsbachelorer","Teknik, prof. bach.","Byggeri og infrastruktur, ing.prof.bach."]
[null,"Danmarks Tekniske Universitet","Professionsbachelorer","Teknik, prof. bach.","Bygningsdesign, ing.prof.bach."]
[null,"Danmarks Tekniske Universitet","Professionsbachelorer","Teknik, prof. bach.","Eksport og teknologi, ing.prof.bach."]
[null,"Danmarks Tekniske Universitet","Professionsbachelorer","Teknik, prof. bach.","Elektrisk energiteknologi, ing.prof.bach."]
[null,"Danmarks Tekniske Universitet","Professionsbachelorer","Teknik, prof. bach.","Elektroteknologi, ing.prof.bach."]
[null,"Danmarks Tekniske Universitet","Professionsbachelorer","Teknik, prof. bach.","Fiskeriteknologi, ing.prof.bach."]
[null,"Danmarks Tekniske Universitet","Professionsbachelorer","Teknik, prof. bach.","Fødevaresikkerhed og -kvalitet, ing.prof.bach."]
[null,"Danmarks Tekniske Universitet","Professionsbachelorer","Teknik, prof. bach.","It og økonomi, ing.prof.bach."]
[null,"Danmarks Tekniske Universitet","Professionsbachelorer","Teknik, prof. bach.","It-elektronik, ing.prof.bach."]
[null,"Danmarks Tekniske Universitet","Professionsbachelorer","Teknik, prof. bach.","Kemi- og bioteknologi, ing.prof.bach."]
[null,"Danmarks Tekniske Universitet","Professionsbachelorer","Teknik, prof. bach.","Kemiteknik og International Business, ing.prof.bach."]
[null,"Danmarks Tekniske Universitet","Professionsbachelorer","Teknik, prof. bach.","Maskinteknik, ing.prof.bach."]
[null,"Danmarks Tekniske Universitet","Professionsbachelorer","Teknik, prof. bach.","Mobilitet, Transport og Logistik, ing.prof.bach."]
[null,"Danmarks Tekniske Universitet","Professionsbachelorer","Teknik, prof. bach.","Proces og innovation, ing.prof.bach."]
[null,"Danmarks Tekniske Universitet","Professionsbachelorer","Teknik, prof. bach.","Produktion (Produktionsteknik), ing.prof.bach."]
[null,"Danmarks Tekniske Universitet","Professionsbachelorer","Teknik, prof. bach.","Softwareteknologi, ing.prof.bach."]
[null,"Danmarks Tekniske Universitet","Professionsbachelorer","Teknik, prof. bach.","Sundhedsteknologi, ing.prof.bach."]
[null,"Det Kongelige Akademi - Arkitektur, Design, Konservering","Professionsbachelorer","Kunstneriske, prof. bach.","Crafts in Glass and Ceramics, prof.bach."]
[null,"Erhvervsakademi Dania","Professionsbachelorer","Økonomisk/merkantil, prof. bach.","Bachelor of International Hospitality Management (overbygning), prof.bach."]
[null,"Erhvervsakademi Dania","Professionsbachelorer","Økonomisk/merkantil, prof. bach.","Dataanalyse (overbygning), prof.bach."]
[null,"Erhvervsakademi Dania","Professionsbachelorer","Økonomisk/merkantil, prof. bach.","E-handel (overbygning), prof.bach."]
[null,"Erhvervsakademi Dania","Professionsbachelorer","Økonomisk/merkantil, prof. bach.","International hospitality management (overbygning), prof.bach."]
[null,"Erhvervsakademi Dania","Professionsbachelorer","Medie, kommunikation, it mv., prof. bach.","Softwareudvikling (overbygning), prof.bach."]
[null,"Erhvervsakademi Dania","Professionsbachelorer","Sundhed, prof. bach.","Optometrist, prof.bach."]
[null,"Erhvervsakademi MidtVest","Professionsbachelorer","Økonomisk/merkantil, prof. bach.","Finans, prof.bach."]
[null,"Erhvervsakademi MidtVest","Professionsbachelorer","Økonomisk/merkantil, prof. bach.","Innovation og entrepreneurship (overbygning), prof.bach."]
[null,"Erhvervsakademi MidtVest","Professionsbachelorer","Økonomisk/merkantil, prof. bach.","International handel og markedsføring (overbygning), prof.bach."]
[null,"Erhvervsakademi MidtVest","Professionsbachelorer","Medie, kommunikation, it mv., prof. bach.","Digital konceptudvikling (overbygning), prof.bach."]
[null,"Erhvervsakademi SydVest","Professionsbachelorer","Økonomisk/merkantil, prof. bach.","International handel og markedsføring (overbygning), prof.bach."]
[null,"Erhvervsakademi SydVest","Professionsbachelorer","Økonomisk/merkantil, prof. bach.","International Sales and Marketing (overbygning), prof.bach."]
[null,"Erhvervsakademi SydVest","Professionsbachelorer","Teknik, prof. bach.","Bygningskonstruktør, prof.bach."]
[null,"Erhvervsakademi SydVest","Professionsbachelorer","Teknik, prof. bach.","Teknisk manager offshore (overbygning), prof.bach."]
[null,"Erhvervsakademi SydVest","Professionsbachelorer","Medie, kommunikation, it mv., prof. bach.","Software Development (overbygning), prof.bach."]
[null,"Erhvervsakademi SydVest","Professionsbachelorer","Medie, kommunikation, it mv., prof. bach.","Softwareudvikling (overbygning), prof.bach."]
[null,"Erhvervsakademi SydVest","Professionsbachelorer","Medie, kommunikation, it mv., prof. bach.","Webudvikling (overbygning), prof.bach."]
[null,"Erhvervsakademi SydVest","Professionsbachelorer","Design, prof. bach.","Design and Business (overbygning), prof.bach."]
[null,"Erhvervsakademi SydVest","Professionsbachelorer","Design, prof. bach.","Design og business (overbygning), prof.bach."]
[null,"Erhvervsakademi Aarhus","Professionsbachelorer","Økonomisk/merkantil, prof. bach.","E-handel (overbygning), prof.bach."]
[null,"Erhvervsakademi Aarhus","Professionsbachelorer","Økonomisk/merkantil, prof. bach.","Financial Management and Service, prof.bach."]
[null,"Erhvervsakademi Aarhus","Professionsbachelorer","Økonomisk/merkantil, prof. bach.","Finans, prof.bach."]
[null,"Erhvervsakademi Aarhus","Professionsbachelorer","Økonomisk/merkantil, prof. bach.","Innovation and entrepreneurship (overbygning), prof.bach."]
[null,"Erhvervsakademi Aarhus","Professionsbachelorer","Økonomisk/merkantil, prof. bach.","Innovation og entrepreneurship (overbygning), prof.bach."]
[null,"Erhvervsakademi Aarhus","Professionsbachelorer","Økonomisk/merkantil, prof. bach.","International handel og markedsføring (overbygning), prof.bach."]
[null,"Erhvervsakademi Aarhus","Professionsbachelorer","Økonomisk/merkantil, prof. bach.","Økonomi og informationsteknologi, prof.bach."]
[null,"Erhvervsakademi Aarhus","Professionsbachelorer","Teknik, prof. bach.","Chemical and Biotechnical Technology and Food Technology (overbygning), prof.bach."]
[null,"Erhvervsakademi Aarhus","Professionsbachelorer","Teknik, prof. bach.","Fødevareteknologi og -applikation, prof.bach."]
[null,"Erhvervsakademi Aarhus","Professionsbachelorer","Teknik, prof. bach.","Jordbrug (overbygning), prof.bach."]
[null,"Erhvervsakademi Aarhus","Professionsbachelorer","Teknik, prof. bach.","Laboratorie- og fødevareteknologi (overbygning), prof.bach."]
[null,"Erhvervsakademi Aarhus","Professionsbachelorer","Teknik, prof. bach.","Product Development and Integrative Technology (overbygning), prof.bach."]
[null,"Erhvervsakademi Aarhus","Professionsbachelorer","Teknik, prof. bach.","Produktudvikling og teknisk integration (overbygning), prof.bach."]
[null,"Erhvervsakademi Aarhus","Professionsbachelorer","Medie, kommunikation, it mv., prof. bach.","Digital Concept Development (overbygning), prof.bach."]
[null,"Erhvervsakademi Aarhus","Professionsbachelorer","Medie, kommunikation, it mv., prof. bach.","Digital konceptudvikling (overbygning), prof.bach."]
[null,"Erhvervsakademi Aarhus","Professionsbachelorer","Medie, kommunikation, it mv., prof. bach.","It-sikkerhed (overbygning), prof.bach."]
[null,"Erhvervsakademi Aarhus","Professionsbachelorer","Medie, kommunikation, it mv., prof. bach.","Softwareudvikling (overbygning), prof.bach."]
[null,"Erhvervsakademi Aarhus","Professionsbachelorer","Medie, kommunikation, it mv., prof. bach.","Web Development (overbygning), prof.bach."]
[null,"Erhvervsakademi Aarhus","Professionsbachelorer","Medie, kommunikation, it mv., prof. bach.","Webudvikling (overbygning), prof.bach."]
[null,"Erhvervsakademiet Copenhagen Business Academy","Professionsbachelorer","Økonomisk/merkantil, prof. bach.","Bachelor of International Hospitality Management (overbygning), prof.bach."]
[null,"Erhvervsakademiet Copenhagen Business Academy","Professionsbachelorer","Økonomisk/merkantil, prof. bach.","E-handel (overbygning), prof.bach."]
[null,"Erhvervsakademiet Copenhagen Business Academy","Professionsbachelorer","Økonomisk/merkantil, prof. bach.","Finans, prof.bach."]
[null,"Erhvervsakademiet Copenhagen Business Academy","Professionsbachelorer","Økonomisk/merkantil, prof. bach.","Innovation and entrepreneurship (overbygning), prof.bach."]
[null,"Erhvervsakademiet Copenhagen Business Academy","Professionsbachelorer","Økonomisk/merkantil, prof. bach.","Innovation og entrepreneurship (overbygning), prof.bach."]
[null,"Erhvervsakademiet Copenhagen Business Academy","Professionsbachelorer","Økonomisk/merkantil, prof. bach.","International handel og markedsføring (overbygning), prof.bach."]
[null,"Erhvervsakademiet Copenhagen Business Academy","Professionsbachelorer","Økonomisk/merkantil, prof. bach.","International hospitality management (overbygning), prof.bach."]
[null,"Erhvervsakademiet Copenhagen Business Academy","Professionsbachelorer","Økonomisk/merkantil, prof. bach.","International Sales and Marketing (overbygning), prof.bach."]
[null,"Erhvervsakademiet Copenhagen Business Academy","Professionsbachelorer","Økonomisk/merkantil, prof. bach.","Sport Management (overbygning), prof.bach."]
[null,"Erhvervsakademiet Copenhagen Business Academy","Professionsbachelorer","Økonomisk/merkantil, prof. bach.","Sportsmanagement (overbygning), prof.bach."]
[null,"Erhvervsakademiet Copenhagen Business Academy","Professionsbachelorer","Medie, kommunikation, it mv., prof. bach.","Softwareudvikling (overbygning), prof.bach."]
[null,"Erhvervsakademiet Copenhagen Business Academy","Professionsbachelorer","Medie, kommunikation, it mv., prof. bach.","Web Development (overbygning), prof.bach."]
[null,"Fredericia Maskinmesterskole","Professionsbachelorer","Teknik, prof. bach.","Maskinmester, prof.bach."]
[null,"IBA Erhvervsakademi Kolding","Professionsbachelorer","Økonomisk/merkantil, prof. bach.","E-handel (overbygning), prof.bach."]
[null,"IBA Erhvervsakademi Kolding","Professionsbachelorer","Økonomisk/merkantil, prof. bach.","Finans, prof.bach."]
[null,"IBA Erhvervsakademi Kolding","Professionsbachelorer","Økonomisk/merkantil, prof. bach.","International handel og markedsføring (overbygning), prof.bach."]
[null,"IBA Erhvervsakademi Kolding","Professionsbachelorer","Økonomisk/merkantil, prof. bach.","International Sales and Marketing (overbygning), prof.bach."]
[null,"IBA Erhvervsakademi Kolding","Professionsbachelorer","Medie, kommunikation, it mv., prof. bach.","Webudvikling (overbygning), prof.bach."]
[null,"Københavns Erhvervsakademi (KEA)","Professionsbachelorer","Økonomisk/merkantil, prof. bach.","Business Economics and Information Technology, prof.bach."]
[null,"Københavns Erhvervsakademi (KEA)","Professionsbachelorer","Økonomisk/merkantil, prof. bach.","Økonomi og informationsteknologi, prof.bach."]
[null,"Københavns Erhvervsakademi (KEA)","Professionsbachelorer","Teknik, prof. bach.","Architectural Technology and Construction Management, prof.bach."]
[null,"Københavns Erhvervsakademi (KEA)","Professionsbachelorer","Teknik, prof. bach.","Bygningskonstruktør, prof.bach."]
[null,"Københavns Erhvervsakademi (KEA)","Professionsbachelorer","Teknik, prof. bach.","Product Development and Integrative Technology (overbygning), prof.bach."]
[null,"Københavns Erhvervsakademi (KEA)","Professionsbachelorer","Teknik, prof. bach.","Produktudvikling og teknisk integration (overbygning), prof.bach."]
[null,"Københavns Erhvervsakademi (KEA)","Professionsbachelorer","Medie, kommunikation, it mv., prof. bach.","Digital konceptudvikling (overbygning), prof.bach."]
[null,"Københavns Erhvervsakademi (KEA)","Professionsbachelorer","Medie, kommunikation, it mv., prof. bach.","It-sikkerhed (overbygning), prof.bach."]
[null,"Københavns Erhvervsakademi (KEA)","Professionsbachelorer","Medie, kommunikation, it mv., prof. bach.","Software Development (overbygning), prof.bach."]
[null,"Københavns Erhvervsakademi (KEA)","Professionsbachelorer","Medie, kommunikation, it mv., prof. bach.","Web Development (overbygning), prof.bach."]
[null,"Københavns Erhvervsakademi (KEA)","Professionsbachelorer","Design, prof. bach.","Design and Business (overbygning), prof.bach."]
[null,"Københavns Erhvervsakademi (KEA)","Professionsbachelorer","Design, prof. bach.","Design og business (overbygning), prof.bach."]
[null,"Københavns Erhvervsakademi (KEA)","Professionsbachelorer","Design, prof. bach.","Jewellery, Technology and Business, prof.bach."]
[null,"Københavns Erhvervsakademi (KEA)","Professionsbachelorer","Sundhed, prof. bach.","Optometrist, prof.bach."]
[null,"Københavns Professionshøjskole","Professionsbachelorer","Teknik, prof. bach.","Katastrofe- og risikomanager, prof.bach."]
[null,"Københavns Professionshøjskole","Professionsbachelorer","Teknik, prof. bach.","Laboratorie- og fødevareteknologi (overbygning), prof.bach."]
[null,"Københavns Professionshøjskole","Professionsbachelorer","Medie, kommunikation, it mv., prof. bach.","Kristendom, kultur og kommunikation, prof.bach."]
[null,"Københavns Professionshøjskole","Professionsbachelorer","Sundhed, prof. bach.","Bioanalytiker, prof.bach"]
[null,"Københavns Professionshøjskole","Professionsbachelorer","Sundhed, prof. bach.","Ergoterapi, prof.bach."]
[null,"Københavns Professionshøjskole","Professionsbachelorer","Sundhed, prof. bach.","Ernæring og sundhed, prof.bach."]
[null,"Københavns Professionshøjskole","Professionsbachelorer","Sundhed, prof. bach.","Fysioterapi, prof.bach."]
[null,"Københavns Professionshøjskole","Professionsbachelorer","Sundhed, prof. bach.","Jordemoder, prof.bach."]
[null,"Københavns Professionshøjskole","Professionsbachelorer","Sundhed, prof. bach.","Psykomotorik, prof.bach."]
[null,"Københavns Professionshøjskole","Professionsbachelorer","Sundhed, prof. bach.","Radiograf, prof.bach."]
[null,"Københavns Professionshøjskole","Professionsbachelorer","Sundhed, prof. bach.","Sygeplejerske, prof.bach."]
[null,"Københavns Professionshøjskole","Professionsbachelorer","Pædagogik, prof. bach.","Dansk tegnsprog og tolkning, prof.bach."]
[null,"Københavns Professionshøjskole","Professionsbachelorer","Pædagogik, prof. bach.","Folkeskolelærer, prof.bach."]
[null,"Københavns Professionshøjskole","Professionsbachelorer","Pædagogik, prof. bach.","Natur- og kulturformidling, prof.bach."]
[null,"Københavns Professionshøjskole","Professionsbachelorer","Pædagogik, prof. bach.","Pædagog, prof.bach."]
[null,"Københavns Professionshøjskole","Professionsbachelorer","Pædagogik, prof. bach.","Tekstildesign, -håndværk og formidling, prof.bach."]
[null,"Københavns Professionshøjskole","Professionsbachelorer","Samfund, prof. bach.","Offentlig administration, prof.bach."]
[null,"Københavns Professionshøjskole","Professionsbachelorer","Samfund, prof. bach.","Skat, prof.bach."]
[null,"Københavns Professionshøjskole","Professionsbachelorer","Samfund, prof. bach.","Socialrådgiver, prof.bach"]
[null,"Københavns Universitet","Professionsbachelorer","Teknik, prof. bach.","Skov- og landskabsingeniør, prof.bach."]
[null,"Københavns Universitet","Professionsbachelorer","Sundhed, prof. bach.","Tandplejer, prof.bach."]
[null,"MARTEC - Maritime and Polytechnic University College","Professionsbachelorer","Teknik, prof. bach.","Maskinmester, prof.bach."]
[null,"MARTEC - Maritime and Polytechnic University College","Professionsbachelorer","Teknik, prof. bach.","Skibsfører, prof.bach."]
[null,"Maskinmesterskolen København","Professionsbachelorer","Teknik, prof. bach.","Maskinmester, prof.bach."]
[null,"Professionshøjskolen Absalon","Professionsbachelorer","Økonomisk/merkantil, prof. bach.","Leisure management, prof.bach."]
[null,"Professionshøjskolen Absalon","Professionsbachelorer","Teknik, prof. bach.","Biotechnology, ing.prof.bach."]
[null,"Professionshøjskolen Absalon","Professionsbachelorer","Teknik, prof. bach.","Bioteknologi, ing.prof.bach."]
[null,"Professionshøjskolen Absalon","Professionsbachelorer","Teknik, prof. bach.","Maskinteknologi, ing.prof.bach."]
[null,"Professionshøjskolen Absalon","Professionsbachelorer","Sundhed, prof. bach.","Bioanalytiker, prof.bach"]
[null,"Professionshøjskolen Absalon","Professionsbachelorer","Sundhed, prof. bach.","Ergoterapi, prof.bach."]
[null,"Professionshøjskolen Absalon","Professionsbachelorer","Sundhed, prof. bach.","Ernæring og sundhed, prof.bach."]
[null,"Professionshøjskolen Absalon","Professionsbachelorer","Sundhed, prof. bach.","Fysioterapi, prof.bach."]
[null,"Professionshøjskolen Absalon","Professionsbachelorer","Sundhed, prof. bach.","Sygeplejerske, prof.bach."]
[null,"Professionshøjskolen Absalon","Professionsbachelorer","Pædagogik, prof. bach.","Folkeskolelærer, prof.bach."]
[null,"Professionshøjskolen Absalon","Professionsbachelorer","Pædagogik, prof. bach.","Pædagog, prof.bach."]
[null,"Professionshøjskolen Absalon","Professionsbachelorer","Samfund, prof. bach.","Offentlig administration, prof.bach."]
[null,"Professionshøjskolen Absalon","Professionsbachelorer","Samfund, prof. bach.","Socialrådgiver, prof.bach"]
[null,"Professionshøjskolen UC Syddanmark","Professionsbachelorer","Medie, kommunikation, it mv., prof. bach.","Grafisk kommunikation, prof.bach."]
[null,"Professionshøjskolen UC Syddanmark","Professionsbachelorer","Medie, kommunikation, it mv., prof. bach.","Medie- og sonokommunikation, prof.bach."]
[null,"Professionshøjskolen UC Syddanmark","Professionsbachelorer","Sundhed, prof. bach.","Bioanalytiker, prof.bach"]
[null,"Professionshøjskolen UC Syddanmark","Professionsbachelorer","Sundhed, prof. bach.","Ergoterapi, prof.bach."]
[null,"Professionshøjskolen UC Syddanmark","Professionsbachelorer","Sundhed, prof. bach.","Ernæring og sundhed, prof.bach."]
[null,"Professionshøjskolen UC Syddanmark","Professionsbachelorer","Sundhed, prof. bach.","Fysioterapi, prof.bach."]
[null,"Professionshøjskolen UC Syddanmark","Professionsbachelorer","Sundhed, prof. bach.","Jordemoder, prof.bach."]
[null,"Professionshøjskolen UC Syddanmark","Professionsbachelorer","Sundhed, prof. bach.","Sygeplejerske, prof.bach."]
[null,"Professionshøjskolen UC Syddanmark","Professionsbachelorer","Pædagogik, prof. bach.","Folkeskolelærer, prof.bach."]
[null,"Professionshøjskolen UC Syddanmark","Professionsbachelorer","Pædagogik, prof. bach.","Pædagog, prof.bach."]
[null,"Professionshøjskolen UC Syddanmark","Professionsbachelorer","Samfund, prof. bach.","Offentlig administration, prof.bach."]
[null,"Professionshøjskolen UC Syddanmark","Professionsbachelorer","Samfund, prof. bach.","Skat, prof.bach."]
[null,"Professionshøjskolen UC Syddanmark","Professionsbachelorer","Samfund, prof. bach.","Socialrådgiver, prof.bach"]
[null,"Professionshøjskolen University College Nordjylland","Professionsbachelorer","Økonomisk/merkantil, prof. bach.","Bachelor of International Hospitality Management (overbygning), prof.bach."]
[null,"Professionshøjskolen University College Nordjylland","Professionsbachelorer","Økonomisk/merkantil, prof. bach.","Eksport og teknologi, prof.bach."]
[null,"Professionshøjskolen University College Nordjylland","Professionsbachelorer","Økonomisk/merkantil, prof. bach.","Export and Technology Management, prof.bach."]
[null,"Professionshøjskolen University College Nordjylland","Professionsbachelorer","Økonomisk/merkantil, prof. bach.","Finans, prof.bach."]
[null,"Professionshøjskolen University College Nordjylland","Professionsbachelorer","Økonomisk/merkantil, prof. bach.","Innovation og entrepreneurship (overbygning), prof.bach."]
[null,"Professionshøjskolen University College Nordjylland","Professionsbachelorer","Økonomisk/merkantil, prof. bach.","International handel og markedsføring (overbygning), prof.bach."]
[null,"Professionshøjskolen University College Nordjylland","Professionsbachelorer","Økonomisk/merkantil, prof. bach.","International hospitality management (overbygning), prof.bach."]
[null,"Professionshøjskolen University College Nordjylland","Professionsbachelorer","Økonomisk/merkantil, prof. bach.","International Sales and Marketing (overbygning), prof.bach."]
[null,"Professionshøjskolen University College Nordjylland","Professionsbachelorer","Økonomisk/merkantil, prof. bach.","Sport Management (overbygning), prof.bach."]
[null,"Professionshøjskolen University College Nordjylland","Professionsbachelorer","Økonomisk/merkantil, prof. bach.","Sportsmanagement (overbygning), prof.bach."]
[null,"Professionshøjskolen University College Nordjylland","Professionsbachelorer","Teknik, prof. bach.","Architectural Technology and Construction Management, prof.bach."]
[null,"Professionshøjskolen University College Nordjylland","Professionsbachelorer","Teknik, prof. bach.","Bygningskonstruktør, prof.bach."]
[null,"Professionshøjskolen University College Nordjylland","Professionsbachelorer","Teknik, prof. bach.","Energi management (overbygning), prof.bach."]
[null,"Professionshøjskolen University College Nordjylland","Professionsbachelorer","Teknik, prof. bach.","Produktudvikling og teknisk integration (overbygning), prof.bach."]
[null,"Professionshøjskolen University College Nordjylland","Professionsbachelorer","Medie, kommunikation, it mv., prof. bach.","Digital Concept Development (overbygning), prof.bach."]
[null,"Professionshøjskolen University College Nordjylland","Professionsbachelorer","Medie, kommunikation, it mv., prof. bach.","Digital konceptudvikling (overbygning), prof.bach."]
[null,"Professionshøjskolen University College Nordjylland","Professionsbachelorer","Medie, kommunikation, it mv., prof. bach.","It-sikkerhed (overbygning), prof.bach."]
[null,"Professionshøjskolen University College Nordjylland","Professionsbachelorer","Medie, kommunikation, it mv., prof. bach.","Software Development (overbygning), prof.bach."]
[null,"Professionshøjskolen University College Nordjylland","Professionsbachelorer","Medie, kommunikation, it mv., prof. bach.","Softwareudvikling (overbygning), prof.bach."]
[null,"Professionshøjskolen University College Nordjylland","Professionsbachelorer","Medie, kommunikation, it mv., prof. bach.","Web Development (overbygning), prof.bach."]
[null,"Professionshøjskolen University College Nordjylland","Professionsbachelorer","Medie, kommunikation, it mv., prof. bach.","Webudvikling (overbygning), prof.bach."]
[null,"Professionshøjskolen University College Nordjylland","Professionsbachelorer","Sundhed, prof. bach.","Ergoterapi, prof.bach."]
[null,"Professionshøjskolen University College Nordjylland","Professionsbachelorer","Sundhed, prof. bach.","Fysioterapi, prof.bach."]
[null,"Professionshøjskolen University College Nordjylland","Professionsbachelorer","Sundhed, prof. bach.","Jordemoder, prof.bach."]
[null,"Professionshøjskolen University College Nordjylland","Professionsbachelorer","Sundhed, prof. bach.","Radiograf, prof.bach."]
[null,"Professionshøjskolen University College Nordjylland","Professionsbachelorer","Sundhed, prof. bach.","Sygeplejerske, prof.bach."]
[null,"Professionshøjskolen University College Nordjylland","Professionsbachelorer","Pædagogik, prof. bach.","Folkeskolelærer, prof.bach."]
[null,"Professionshøjskolen University College Nordjylland","Professionsbachelorer","Pædagogik, prof. bach.","Natur- og kulturformidling, prof.bach."]
[null,"Professionshøjskolen University College Nordjylland","Professionsbachelorer","Pædagogik, prof. bach.","Pædagog, prof.bach."]
[null,"Professionshøjskolen University College Nordjylland","Professionsbachelorer","Samfund, prof. bach.","Offentlig administration, prof.bach."]
[null,"Professionshøjskolen VIA University College","Professionsbachelorer","Økonomisk/merkantil, prof. bach.","International handel og markedsføring (overbygning), prof.bach."]
[null,"Professionshøjskolen VIA University College","Professionsbachelorer","Økonomisk/merkantil, prof. bach.","International Sales and Marketing (overbygning), prof.bach."]
[null,"Professionshøjskolen VIA University College","Professionsbachelorer","Økonomisk/merkantil, prof. bach.","Procesøkonomi og værdikædeledelse, prof.bach."]
[null,"Professionshøjskolen VIA University College","Professionsbachelorer","Økonomisk/merkantil, prof. bach.","Value Chain Management, prof.bach."]
[null,"Professionshøjskolen VIA University College","Professionsbachelorer","Teknik, prof. bach.","Architectural Technology and Construction Management, prof.bach."]
[null,"Professionshøjskolen VIA University College","Professionsbachelorer","Teknik, prof. bach.","Byggeri og anlæg, ing.prof.bach."]
[null,"Professionshøjskolen VIA University College","Professionsbachelorer","Teknik, prof. bach.","Bygningskonstruktør, prof.bach."]
[null,"Professionshøjskolen VIA University College","Professionsbachelorer","Teknik, prof. bach.","Civil Engineering, ing.prof.bach."]
[null,"Professionshøjskolen VIA University College","Professionsbachelorer","Teknik, prof. bach.","Eksport og teknologi, ing.prof.bach."]
[null,"Professionshøjskolen VIA University College","Professionsbachelorer","Teknik, prof. bach.","Global Business Engineering, ing.prof.bach."]
[null,"Professionshøjskolen VIA University College","Professionsbachelorer","Teknik, prof. bach.","Information and Communication Technology, ing.prof.bach."]
[null,"Professionshøjskolen VIA University College","Professionsbachelorer","Teknik, prof. bach.","Informations- og kommunikationsteknologi, ing.prof.bach."]
[null,"Professionshøjskolen VIA University College","Professionsbachelorer","Teknik, prof. bach.","Maskinteknologi, ing.prof.bach."]
[null,"Professionshøjskolen VIA University College","Professionsbachelorer","Teknik, prof. bach.","Mechanical Engineering, ing.prof.bach."]
[null,"Professionshøjskolen VIA University College","Professionsbachelorer","Teknik, prof. bach.","Produktion (Produktionsteknik), ing.prof.bach."]
[null,"Professionshøjskolen VIA University College","Professionsbachelorer","Teknik, prof. bach.","Supply Engineering, Water, Waste Water and District Heating, ing.prof.bach."]
[null,"Professionshøjskolen VIA University College","Professionsbachelorer","Medie, kommunikation, it mv., prof. bach.","Animation, prof.bach."]
[null,"Professionshøjskolen VIA University College","Professionsbachelorer","Medie, kommunikation, it mv., prof. bach.","Kristendom, kultur og kommunikation, prof.bach."]
[null,"Professionshøjskolen VIA University College","Professionsbachelorer","Medie, kommunikation, it mv., prof. bach.","Multiplatform storytelling and production, prof.bach."]
[null,"Professionshøjskolen VIA University College","Professionsbachelorer","Design, prof. bach.","Design and Business (overbygning), prof.bach."]
[null,"Professionshøjskolen VIA University College","Professionsbachelorer","Design, prof. bach.","Design og business (overbygning), prof.bach."]
[null,"Professionshøjskolen VIA University College","Professionsbachelorer","Sundhed, prof. bach.","Bioanalytiker, prof.bach"]
[null,"Professionshøjskolen VIA University College","Professionsbachelorer","Sundhed, prof. bach.","Ergoterapi, prof.bach."]
[null,"Professionshøjskolen VIA University College","Professionsbachelorer","Sundhed, prof. bach.","Ernæring og sundhed, prof.bach."]
[null,"Professionshøjskolen VIA University College","Professionsbachelorer","Sundhed, prof. bach.","Fysioterapi, prof.bach."]
[null,"Professionshøjskolen VIA University College","Professionsbachelorer","Sundhed, prof. bach.","Global nutrition and health, prof.bach."]
[null,"Professionshøjskolen VIA University College","Professionsbachelorer","Sundhed, prof. bach.","Psykomotorik, prof.bach."]
[null,"Professionshøjskolen VIA University College","Professionsbachelorer","Sundhed, prof. bach.","Sygeplejerske, prof.bach."]
[null,"Professionshøjskolen VIA University College","Professionsbachelorer","Pædagogik, prof. bach.","Diakoni og socialpædagogik, prof.bach."]
[null,"Professionshøjskolen VIA University College","Professionsbachelorer","Pædagogik, prof. bach.","Folkeskolelærer, prof.bach."]
[null,"Professionshøjskolen VIA University College","Professionsbachelorer","Pædagogik, prof. bach.","Pædagog, prof.bach."]
[null,"Professionshøjskolen VIA University College","Professionsbachelorer","Pædagogik, prof. bach.","Tekstildesign, -håndværk og formidling, prof.bach."]
[null,"Professionshøjskolen VIA University College","Professionsbachelorer","Samfund, prof. bach.","Offentlig administration, prof.bach."]
[null,"Professionshøjskolen VIA University College","Professionsbachelorer","Samfund, prof. bach.","Skat, prof.bach."]
[null,"Professionshøjskolen VIA University College","Professionsbachelorer","Samfund, prof. bach.","Socialrådgiver, prof.bach"]
[null,"Svendborg International Maritime Academy, SIMAC","Professionsbachelorer","Teknik, prof. bach.","Maritim transport og skibsledelse (juniorofficer), prof.bach."]
[null,"Svendborg International Maritime Academy, SIMAC","Professionsbachelorer","Teknik, prof. bach.","Maritim transport og skibsledelse (seniorofficer), prof.bach."]
[null,"Svendborg International Maritime Academy, SIMAC","Professionsbachelorer","Teknik, prof. bach.","Maskinmester, prof.bach."]
[null,"Svendborg International Maritime Academy, SIMAC","Professionsbachelorer","Teknik, prof. bach.","Skibsfører, prof.bach."]
[null,"Syddansk Universitet","Professionsbachelorer","Teknik, prof. bach.","Bygningsteknik, ing.prof.bach."]
[null,"Syddansk Universitet","Professionsbachelorer","Teknik, prof. bach.","Electronics, ing.prof.bach."]
[null,"Syddansk Universitet","Professionsbachelorer","Teknik, prof. bach.","Elektrisk energiteknologi, ing.prof.bach."]
[null,"Syddansk Universitet","Professionsbachelorer","Teknik, prof. bach.","Elektronik og datateknik, ing.prof.bach."]
[null,"Syddansk Universitet","Professionsbachelorer","Teknik, prof. bach.","Global Management and Manufacturing , ing.prof.bach."]
[null,"Syddansk Universitet","Professionsbachelorer","Teknik, prof. bach.","Integreret design, ing.prof.bach."]
[null,"Syddansk Universitet","Professionsbachelorer","Teknik, prof. bach.","Kemi- og bioteknologi, ing.prof.bach."]
[null,"Syddansk Universitet","Professionsbachelorer","Teknik, prof. bach.","Maskinteknik, ing.prof.bach."]
[null,"Syddansk Universitet","Professionsbachelorer","Teknik, prof. bach.","Mekatronik, ing.prof.bach."]
[null,"Syddansk Universitet","Professionsbachelorer","Teknik, prof. bach.","Produktion (Produktionsteknik), ing.prof.bach."]
[null,"Syddansk Universitet","Professionsbachelorer","Teknik, prof. bach.","Robotteknologi, ing.prof.bach."]
[null,"Syddansk Universitet","Professionsbachelorer","Teknik, prof. bach.","Softwareteknologi, ing.prof.bach."]
[null,"Syddansk Universitet","Professionsbachelorer","Medie, kommunikation, it mv., prof. bach.","Fremmedsprog og digital markedskommunikation, prof.bach."]
[null,"UCL Erhvervsakademi og Professionshøjskole","Professionsbachelorer","Økonomisk/merkantil, prof. bach.","Bachelor of International Hospitality Management (overbygning), prof.bach."]
[null,"UCL Erhvervsakademi og Professionshøjskole","Professionsbachelorer","Økonomisk/merkantil, prof. bach.","E-handel (overbygning), prof.bach."]
[null,"UCL Erhvervsakademi og Professionshøjskole","Professionsbachelorer","Økonomisk/merkantil, prof. bach.","Finans, prof.bach."]
[null,"UCL Erhvervsakademi og Professionshøjskole","Professionsbachelorer","Økonomisk/merkantil, prof. bach.","Innovation and entrepreneurship (overbygning), prof.bach."]
[null,"UCL Erhvervsakademi og Professionshøjskole","Professionsbachelorer","Økonomisk/merkantil, prof. bach.","Innovation og entrepreneurship (overbygning), prof.bach."]
[null,"UCL Erhvervsakademi og Professionshøjskole","Professionsbachelorer","Økonomisk/merkantil, prof. bach.","International handel og markedsføring (overbygning), prof.bach."]
[null,"UCL Erhvervsakademi og Professionshøjskole","Professionsbachelorer","Økonomisk/merkantil, prof. bach.","International hospitality management (overbygning), prof.bach."]
[null,"UCL Erhvervsakademi og Professionshøjskole","Professionsbachelorer","Økonomisk/merkantil, prof. bach.","International Sales and Marketing (overbygning), prof.bach."]
[null,"UCL Erhvervsakademi og Professionshøjskole","Professionsbachelorer","Økonomisk/merkantil, prof. bach.","Sportsmanagement (overbygning), prof.bach."]
[null,"UCL Erhvervsakademi og Professionshøjskole","Professionsbachelorer","Økonomisk/merkantil, prof. bach.","Økonomi og informationsteknologi, prof.bach."]
[null,"UCL Erhvervsakademi og Professionshøjskole","Professionsbachelorer","Teknik, prof. bach.","Architectural Technology and Construction Management, prof.bach."]
[null,"UCL Erhvervsakademi og Professionshøjskole","Professionsbachelorer","Teknik, prof. bach.","Bygningskonstruktør, prof.bach."]
[null,"UCL Erhvervsakademi og Professionshøjskole","Professionsbachelorer","Teknik, prof. bach.","Jordbrug (overbygning), prof.bach."]
[null,"UCL Erhvervsakademi og Professionshøjskole","Professionsbachelorer","Teknik, prof. bach.","Product Development and Integrative Technology (overbygning), prof.bach."]
[null,"UCL Erhvervsakademi og Professionshøjskole","Professionsbachelorer","Medie, kommunikation, it mv., prof. bach.","Digital konceptudvikling (overbygning), prof.bach."]
[null,"UCL Erhvervsakademi og Professionshøjskole","Professionsbachelorer","Medie, kommunikation, it mv., prof. bach.","Softwareudvikling (overbygning), prof.bach."]
[null,"UCL Erhvervsakademi og Professionshøjskole","Professionsbachelorer","Medie, kommunikation, it mv., prof. bach.","Webudvikling (overbygning), prof.bach."]
[null,"UCL Erhvervsakademi og Professionshøjskole","Professionsbachelorer","Sundhed, prof. bach.","Bioanalytiker, prof.bach"]
[null,"UCL Erhvervsakademi og Professionshøjskole","Professionsbachelorer","Sundhed, prof. bach.","Ergoterapi, prof.bach."]
[null,"UCL Erhvervsakademi og Professionshøjskole","Professionsbachelorer","Sundhed, prof. bach.","Fysioterapi, prof.bach."]
[null,"UCL Erhvervsakademi og Professionshøjskole","Professionsbachelorer","Sundhed, prof. bach.","Radiograf, prof.bach."]
[null,"UCL Erhvervsakademi og Professionshøjskole","Professionsbachelorer","Sundhed, prof. bach.","Sygeplejerske, prof.bach."]
[null,"UCL Erhvervsakademi og Professionshøjskole","Professionsbachelorer","Pædagogik, prof. bach.","Folkeskolelærer, prof.bach."]
[null,"UCL Erhvervsakademi og Professionshøjskole","Professionsbachelorer","Pædagogik, prof. bach.","Pædagog, prof.bach."]
[null,"UCL Erhvervsakademi og Professionshøjskole","Professionsbachelorer","Samfund, prof. bach.","Offentlig administration, prof.bach."]
[null,"UCL Erhvervsakademi og Professionshøjskole","Professionsbachelorer","Samfund, prof. bach.","Socialrådgiver, prof.bach"]
[null,"Zealand Sjællands Erhvervsakademi","Professionsbachelorer","Økonomisk/merkantil, prof. bach.","Innovation og entrepreneurship (overbygning), prof.bach."]
[null,"Zealand Sjællands Erhvervsakademi","Professionsbachelorer","Økonomisk/merkantil, prof. bach.","International handel og markedsføring (overbygning), prof.bach."]
[null,"Zealand Sjællands Erhvervsakademi","Professionsbachelorer","Økonomisk/merkantil, prof. bach.","International Sales and Marketing (overbygning), prof.bach."]
[null,"Zealand Sjællands Erhvervsakademi","Professionsbachelorer","Teknik, prof. bach.","Bygningskonstruktør, prof.bach."]
[null,"Zealand Sjællands Erhvervsakademi","Professionsbachelorer","Teknik, prof. bach.","Have- og parkingeniør, prof.bach."]
[null,"Zealand Sjællands Erhvervsakademi","Professionsbachelorer","Teknik, prof. bach.","Jordbrug (overbygning), prof.bach."]
[null,"Zealand Sjællands Erhvervsakademi","Professionsbachelorer","Medie, kommunikation, it mv., prof. bach.","Digital Concept Development (overbygning), prof.bach."]
[null,"Zealand Sjællands Erhvervsakademi","Professionsbachelorer","Medie, kommunikation, it mv., prof. bach.","Digital konceptudvikling (overbygning), prof.bach."]
[null,"Zealand Sjællands Erhvervsakademi","Professionsbachelorer","Medie, kommunikation, it mv., prof. bach.","Web Development (overbygning), prof.bach."]
[null,"Aalborg Universitet","Professionsbachelorer","Teknik, prof. bach.","Byggeri og anlæg, ing.prof.bach."]
[null,"Aalborg Universitet","Professionsbachelorer","Teknik, prof. bach.","Bæredygtig energiteknik, ing.prof.bach."]
[null,"Aalborg Universitet","Professionsbachelorer","Teknik, prof. bach.","Elektronik, ing.prof.bach."]
[null,"Aalborg Universitet","Professionsbachelorer","Teknik, prof. bach.","Globale forretningssystemer, ing.prof.bach."]
[null,"Aalborg Universitet","Professionsbachelorer","Teknik, prof. bach.","Kemi- og bioteknologi, ing.prof.bach."]
[null,"Aalborg Universitet","Professionsbachelorer","Teknik, prof. bach.","Maskinteknik, ing.prof.bach."]
[null,"Aalborg Universitet","Professionsbachelorer","Samfund, prof. bach.","Socialrådgiver, prof.bach"]
[null,"Aarhus Maskinmesterskole","Professionsbachelorer","Teknik, prof. bach.","Maskinmester, prof.bach."]
[null,"Aarhus Universitet","Professionsbachelorer","Teknik, prof. bach.","Bioteknologi, ing.prof.bach."]
[null,"Aarhus Universitet","Professionsbachelorer","Teknik, prof. bach.","Bygning, ing.prof.bach."]
[null,"Aarhus Universitet","Professionsbachelorer","Teknik, prof. bach.","Bygningsdesign, ing.prof.bach."]
[null,"Aarhus Universitet","Professionsbachelorer","Teknik, prof. bach.","Elektrisk energiteknologi, ing.prof.bach."]
[null,"Aarhus Universitet","Professionsbachelorer","Teknik, prof. bach.","Elektronik, ing.prof.bach."]
[null,"Aarhus Universitet","Professionsbachelorer","Teknik, prof. bach.","Forretningsudvikling, ing.prof.bach."]
[null,"Aarhus Universitet","Professionsbachelorer","Teknik, prof. bach.","Global Management and Manufacturing , ing.prof.bach."]
[null,"Aarhus Universitet","Professionsbachelorer","Teknik, prof. bach.","Kemi (kemiteknik), ing.prof.bach."]
[null,"Aarhus Universitet","Professionsbachelorer","Teknik, prof. bach.","Kemi og fødevareteknologi, diplomingeniør prof.bach."]
[null,"Aarhus Universitet","Professionsbachelorer","Teknik, prof. bach.","Maskinteknik, ing.prof.bach."]
[null,"Aarhus Universitet","Professionsbachelorer","Teknik, prof. bach.","Softwareteknologi, ing.prof.bach."]
[null,"Aarhus Universitet","Professionsbachelorer","Teknik, prof. bach.","Sundhedsteknologi, ing.prof.bach."]
[null,"Aarhus Universitet","Professionsbachelorer","Sundhed, prof. bach.","Tandplejer, prof.bach."]
[null,"Marstal Navigationsskole","Øvrige erhvervsfaglige uddannelser","Øvrige erhvervsfaglige uddannelser","Grundlæggende maritim uddannelse"]
[null,"MARTEC - Maritime and Polytechnic University College","Øvrige erhvervsfaglige uddannelser","Øvrige erhvervsfaglige uddannelser","Fiskeskipper af 1. grad"]
[null,"MARTEC - Maritime and Polytechnic University College","Øvrige erhvervsfaglige uddannelser","Øvrige erhvervsfaglige uddannelser","Fiskeskipper af 3. grad"]
[null,"MARTEC - Maritime and Polytechnic University College","Øvrige erhvervsfaglige uddannelser","Øvrige erhvervsfaglige uddannelser","Grundlæggende maritim uddannelse"]
[null,"MARTEC - Maritime and Polytechnic University College","Øvrige erhvervsfaglige uddannelser","Øvrige erhvervsfaglige uddannelser","Skibsassistent med metaluddannelse"]
[null,"MARTEC - Maritime and Polytechnic University College","Øvrige erhvervsfaglige uddannelser","Øvrige erhvervsfaglige uddannelser","Skibsmaskinist"]
[null,"MARTEC - Maritime and Polytechnic University College","Øvrige erhvervsfaglige uddannelser","Øvrige erhvervsfaglige uddannelser","Sætteskipper"]
[null,"Marstal Navigationsskole","Øvrige korte videregående uddannelser","Maritime, KVU","Skibsfører (uden gymnasial uddannelse)"]
[null,"MARTEC - Maritime and Polytechnic University College","Øvrige korte videregående uddannelser","Maritime, KVU","Skibsfører (uden gymnasial uddannelse)"]
[null,"Københavns Professionshøjskole","Øvrige mellemlange videregående uddannelser","Ernæring og sundhed, MVU","Sundhedsplejerske"]
[null,"Professionshøjskolen VIA University College","Øvrige mellemlange videregående uddannelser","Ernæring og sundhed, MVU","Sundhedsplejerske"]

{"sheet":"Reference","index":21,"n_rows":35,"n_cols":25,"rows_kept":35,"cut":false,"hidden":true,"merged":[]}
[]
["Navn","Tekst","Løst",null,null,null,null,null,null,null,null,null,"Institution","Type","0.0","1.0","2.0","3.0",null,"Opgave","udfyld",null,"ARKNAVN","OPGAVE","LINK"]
["1.2",{"$f":"SUM(OFFSET(Opgave_1.2[Uddannelsesområde],0,-1))","v":34},{"$f":"B3>0","v":true},null,null,"Mellemgrupper",null,"Type udflytning",null,"Velfærdsuddannelser",null,null,"Arkitektskolen Aarhus","Kunstneriske og kulturelle uddannelsesinstitutioner",true,true,{"$f":"IF(OR(N3=\"Professionshøjskoler\",M3=\"Aalborg Universitet\"),TRUE,FALSE)","v":false},false,null,"0.0",null,null,"0.0","Overordnede overvejelser om opgaven",{"$f":"\"#\"&W3&\"!A1\"","v":"#0.0!A1"}]
["1.3",{"$f":"SUM(OFFSET(Opgave_1.3[Uddannelsesområde],0,-1))","v":0},{"$f":"B4>0","v":false},null,null,"Bio- og laboratorietekniske område, EA",null,"Udflytning",null,"Folkeskolelærer",null,null,"Copenhagen Business School - Handelshøjskolen","Universiteter",true,true,{"$f":"IF(OR(N4=\"Professionshøjskoler\",M4=\"Aalborg Universitet\"),TRUE,FALSE)","v":false},false,null,"1.1",null,null,"1.0","Indledning sektion 1","#1.0!A1"]
["1.4",{"$f":"SUM(OFFSET(Opgave_1.4[Uddannelsesområde],0,-1))","v":53},true,null,null,"Designfaglige område, EA",null,"Nye pladser",null,"Pædagog",null,null,"Danmarks Medie- og Journalisthøjskole","Professionshøjskoler",true,true,false,false,null,"1.2",null,null,"1.1","Ledelsesmæssige overvejelser","#1.1!A1"]
["1.6",{"$f":"SUM(OFFSET(Opgave_1.6[Beskrivelse],0,-1))","v":12},true,null,null,"It-faglige område, EA",null,null,null,"Socialrådgiver",null,null,"Danmarks Tekniske Universitet","Universiteter",true,true,{"$f":"IF(OR(N6=\"Professionshøjskoler\",M6=\"Aalborg Universitet\"),TRUE,FALSE)","v":false},false,null,"1.3",null,null,"1.2","Antal pladser der flyttes ud","#1.2!A1"]
["1.8",{"$f":"SUM(OFFSET(Opgave_1.8[Uddannelsesområde],0,-1))","v":20},true,null,null,"Samfundsfaglige område, EA",null,null,null,"Sygeplejerske",null,null,"Designskolen Kolding","Kunstneriske og kulturelle uddannelsesinstitutioner",true,false,false,true,null,"1.4",null,null,"1.3","Antal pladser på nye udbud","#1.3!A1"]
["2.2",{"$f":"SUM(OFFSET(Opgave_2.2[Uddannelse],0,-1))","v":0},false,null,null,"Tekniske område, EA",null,null,null,null,null,null,"Det Kongelige Akademi - Arkitektur, Design, Konservering","Kunstneriske og kulturelle uddannelsesinstitutioner",true,true,false,false,null,"1.5",null,null,"1.4","Antal pladser der nedskaleres","#1.4!A1"]
["3.1",{"$f":"SUM(OFFSET(Opgave_3.1[Uddannelse],0,-1))","v":0},false,null,null,"Økonomisk-merkantile område, EA",null,null,null,null,null,null,"Erhvervsakademi Dania","Erhvervsakademier",true,false,false,true,null,"1.6",null,null,"1.5","Beskrivelse af regionale elementer","#1.5!A1"]
["0.0","Udfyldt",{"$f":"AND(LEN(B10)>0,B10<>\"[Udfyld her]\")","v":true},null,null,"Sundhedsfaglige område, EA",null,null,null,null,null,null,"Erhvervsakademi MidtVest","Erhvervsakademier",true,false,false,true,null,"1.7",null,null,"1.6","Tabel med regionale elementer","#1.6!A1"]
["1.1","Udfyldt",{"$f":"AND(LEN(B11)>0,B11<>\"[Udfyld her]\")","v":true},null,null,"Økonomisk/merkantil, prof. bach.",null,null,null,null,null,null,"Erhvervsakademi SydVest","Erhvervsakademier",true,false,false,true,null,"1.8",null,null,"1.7","Beskrivelse af særlige hensyn","#1.7!A1"]
["1.5","Udfyldt",true,null,null,"Teknik, prof. bach.",null,null,null,null,null,null,"Erhvervsakademi Aarhus","Erhvervsakademier",true,true,false,false,null,"1.9",null,null,"1.8","Tabel med særlige hensyn","#1.8!A1"]
["1.7","Udfyldt",true,null,null,"Kunstneriske, prof. bach.",null,null,null,null,null,null,"Erhvervsakademiet Copenhagen Business Academy","Erhvervsakademier",true,true,false,false,null,"2.1",null,null,"1.9","Samarbejde med øvrige institutioner og/eller aktører","#1.9!A1"]
["1.9","Udfyldt\r\n",true,null,null,"Medie, kommunikation, it mv., prof. bach.",null,null,null,null,null,null,"Fredericia Maskinmesterskole","Maritime uddannelsesinstitutioner",true,false,false,true,null,"2.2",null,null,"2.0","Indledning sektion 2","#2.0!A1"]
["2.1","[Udfyld her]",false,null,null,"Design, prof. bach.",null,null,null,null,null,null,"IBA Erhvervsakademi Kolding","Erhvervsakademier",true,false,false,true,null,"2.3",null,null,"2.1","Plan for nye/udflyttede velfærdspladser","#2.1!A1"]
["2.3","[Udfyld her]",false,null,null,"Sundhed, prof. bach.",null,null,null,null,null,null,"IT-Universitetet i København","Universiteter",true,true,false,false,null,"3.1",null,null,"2.2","Antal nye og/eller udflyttede velfærdspladser","#2.2!A1"]
["2.4","[Udfyld her]",false,null,null,"Pædagogik, prof. bach.",null,null,null,null,null,null,"Københavns Erhvervsakademi (KEA)","Erhvervsakademier",true,true,false,false,null,"3.2",null,null,"2.3","Overvejelser omkring praktikpladsbehovet","#2.3!A1"]
["3.2","[Udfyld her]",{"$f":"AND(LEN(B18)>0,B18<>\"[Udfyld her]\")","v":false},null,null,"Samfund, prof. bach.",null,null,null,null,null,null,"Københavns Professionshøjskole","Professionshøjskoler",true,true,true,false,null,null,null,null,"2.4","Samarbejde med øvrige institutioner og/eller aktører","#2.4!A1"]
[null,null,null,null,null,"Samfund, bach.",null,null,null,null,null,null,"Københavns Universitet","Universiteter",true,true,false,false,null,null,null,null,"3.0","Indledning sektion 3",{"$f":"\"#\"&W19&\"!A1\"","v":"#3.0!A1"}]
[null,null,null,null,null,"Humaniora, bach.",null,null,null,null,null,null,"Marstal Navigationsskole","Maritime uddannelsesinstitutioner",true,false,false,true,null,null,null,null,"3.1","Nye udbud",{"$f":"\"#\"&W20&\"!A1\"","v":"#3.1!A1"}]
[null,null,null,null,null,"Teknik, bach.",null,null,null,null,null,null,"MARTEC - Maritime and Polytechnic University College","Maritime uddannelsesinstitutioner",true,false,false,true,null,null,null,null,"3.2","Planlagte samarbejder eller overvejelser derom",{"$f":"\"#\"&W21&\"!A1\"","v":"#3.2!A1"}]
[null,null,null,null,null,"Natur, bach.",null,null,null,null,null,null,"Maskinmesterskolen København","Maritime uddannelsesinstitutioner",true,true,false,false]
[null,null,null,null,null,"Sundhed, bach.",null,null,null,null,null,null,"Professionshøjskolen Absalon","Professionshøjskoler",true,false,true,true]
[null,null,null,null,null,"Samfund, kandidat",null,null,null,null,null,null,"Professionshøjskolen UC Syddanmark","Professionshøjskoler",true,false,true,true]
[null,null,null,null,null,"Humaniora, kandidat",null,null,null,null,null,null,"Professionshøjskolen University College Nordjylland","Professionshøjskoler",true,true,true,false]
[null,null,null,null,null,"Teknik, kandidat",null,null,null,null,null,null,"Professionshøjskolen VIA University College","Professionshøjskoler",true,true,true,false]
[null,null,null,null,null,"Natur, kandidat",null,null,null,null,null,null,"Roskilde Universitet","Universiteter",true,true,false,false]
[null,null,null,null,null,"Sundhed, kandidat",null,null,null,null,null,null,"Svendborg International Maritime Academy, SIMAC","Maritime uddannelsesinstitutioner",true,false,false,true]
[null,null,null,null,null,null,null,null,null,null,null,null,"Syddansk Universitet","Universiteter",true,true,false,false]
[null,null,null,null,null,null,null,null,null,null,null,null,"UCL Erhvervsakademi og Professionshøjskole","Professionshøjskoler",true,true,true,false]
[null,null,null,null,null,null,null,null,null,null,null,null,"Zealand Sjællands Erhvervsakademi","Erhvervsakademier",true,false,false,true]
[null,null,null,null,null,null,null,null,null,null,null,null,"Aalborg Universitet","Universiteter",true,true,true,false]
[null,null,null,null,null,null,null,null,null,null,null,null,"Aarhus Maskinmesterskole","Maritime uddannelsesinstitutioner",true,true,false,false]
[null,null,null,null,null,null,null,null,null,null,null,null,"Aarhus Universitet","Universiteter",true,true,false,false]
[null,null,null,null,null,null,null,null,null,null,null,null,"[Ingen institution valgt]",null,null,null,{"$f":"IF(OR(N35=\"Professionshøjskoler\",M35=\"Aalborg Universitet\"),TRUE,FALSE)","v":false}]